Workbook

Sheet data.e
B2: =_xlfn.AGGREGATE(3,5,data.E[الموظف المختص]) -> 803 | K2: =_xlfn.AGGREGATE(2,5,data.E[نسبة5%إعاقة]) -> 35 | T2: =SUM(T4:T806) -> 1256544.541 | U2: 182600 | V2: 1693635.12 | W2: 188181.75 | X2: 6757.564671 | Y2: 0 | Z2: 0 | AA2: 852.01038 | AB2: 48945.07668 | AC2: 236700 | AD2: 38.4 | AE2: 6300 | AF2: 0 | AG2: 1326.61 | AH2: 0 | AI2: 287862.0971 | AJ2: 22665.99887 | AK2: 25261.59708 | AL2: 33718.27033 | AM2: 33487.88 | AN2: 119694.55 | AO2: 20005.90072 | AP2: 32805.25249 | AQ2: 41211.00538 | AR2: 59253.18973 | AS2: 64524.05574 | AT2: 71516.47438 | AU2: 189491.7745 | AV2: 59405.54235 | AW2: 384000 | AX2: 5384 | AY2: 1162425.48 | AZ2: 7910 | BA2: 209090.69 | BB2: 0 | BC2: 0 | BD2: 0 | BE2: 4995007.28 | BF2: 1074254.37 | BG2: 6075561.65 | BH2: 0 | BI2: 0 | BJ2: 0 | BK2: 0 | BM2: =SUM(BM4:BM806) -> 574917.55 | BN2: 0 | BO2: 8097.88 | BP2: 500 | BQ2: 679.53 | BR2: 18292.64 | BS2: 1969.95 | BT2: 1509.07 | BU2: 1497.4 | BV2: 734.7 | BW2: 2364 | BX2: 18906.16 | BY2: 27265.524 | BZ2: 0 | CA2: 1600 | CB2: 0 | CC2: 4000 | CD2: 0 | CE2: 0 | CF2: 0 | CG2: 0 | CH2: 0 | CI2: 0 | CJ2: 2542.9 | CK2: 3327 | CL2: 133.56 | CM2: 0 | CN2: 0 | CO2: 0 | CP2: 4215.18 | CQ2: 0 | CR2: 18474.82 | CS2: 209090.69 | CT2: 0 | CU2: 0 | CV2: 58911.57 | CW2: 37209.54 | CX2: 147326.25 | CZ2: 64495.77 | DA2: 1208061.68 | DB2: 4867499.97
B3: كود الشركة | C3: كود البيرول | D3: التعامل المالي | E3: اسم الموظف | F3: رقم الجوال | G3: الموظف المختص | H3: حالة العمل | I3: التصنيف الادارى | J3: الدرجة | K3: نسبة5%إعاقة | L3: ترقية 7/2025 | M3: الوظيفة | N3: الفرع | O3: المنطقه | P3: الرقم القومي | Q3: مرجع بحث | R3: استعلام ترقية | S3: الأجر الأساسي | T3: أساسي 7/2025 | U3: أجر مقطوع | V3: الحافز | W3: حافز أداء 15% | X3: حافز موانى | Y3: عمولة انتاج | Z3: أومر الشغل للملاكي | AA3: بدل مخاطر مواني 30% | AB3: بدل مخاطر | AC3: بدل انتقال | AD3: بدل اقامة | AE3: بدل تمثيل | AF3: بدل ضيافة | AG3: بدل تفرغ | AH3: بدل تباع | AI3: إجمالي بدلات | AJ3: علاوة 2014 | AK3: علاوة 2015 | AL3: علاوة 2016 | AM3: ع م من 14 حتى 18 | AN3: علاوة استثنائية2018 | AO3: علاوة 2019 | AP3: علاوة 2020 | AQ3: علاوة 2021 | AR3: علاوة 2022 | AS3: علاوة 2023 | AT3: علاوة 2024 | AU3: إ.ع من14:24 أعمال+إجتماعية | AV3: علاوة 2025 | AW3: علاوة غلاء معيشة | AX3: علاوة اجتماعية | AY3: إجمالي علاوات | AZ3: م. عيد العمال | BA3: متوسط المنحة | BB3: رد مستحقات | BC3: بدل سهر | BD3: الإضافي | BE3: الإجمالي | BF3: مكمل الأجر | BG3: إجمالي المستحق | BH3: عدد أيام الأجازات | BI3: أيام أجازات بعد السنوية | BJ3: أيام الغياب | BK3: أيام جزاء | BL3: الأجر الشامل | BM3: تامينات 2026 | BN3: ضريبة 2026 | BO3: خصم غياب عام | BP3: جزاءات | BQ3: خصم غياب من الحافز | BR3: خصم حافز | BS3: خصم حافز بعد السنوية | BT3: اشتراكات اجازات خاصة | BU3: مدة سابقة | BV3: إيجار سكن | BW3: نقابة | BX3: خصم نفقات | BY3: أجر بالزيادة | BZ3: سولار | CA3: عهد | CB3: تلفيات | CC3: عجز | CD3: تعويضات | CE3: سلفة | CF3: نقليات | CG3: مخالفات مرور | CH3: تنفيذ أحكام | CI3: إجمالي المديونية | CJ3: الشهداء | CK3: دعم ذوى الاعاقة | CL3: تسويات مدينة | CM3: حج وعمرة | CN3: قسط تأمينات | CO3: صندوق تكافل | CP3: تأمين صحي بورسعيد | CQ3: أخرى | CR3: نصف وقت | CS3: متوسط منح | CT3: خصم 5% تأمين من العمولة | CU3: إيقاف | CV3: مرضي | CW3: أجازة | CX3: إعارة | CY3: إنهاء | CZ3: معاش | DA3: إجمالي المستقطع | DB3: صافي الأجر
A4: =IF(data.E[[#This Row],[الموظف المختص]]=print.e!$E$2,COUNTIF('data.e'!$G$4:G4,G4),"") -> 1 | B4: 1 | C4: 111 | D4: بنك مصر 1 | E4: لواء محمد محمد السيد عامر | G4: منال | H4: دوام كامل | I4: ادارى | J4: رئيس مجلس ادارة | M4: رئيس مجلس الإدارة والعضو المنتدب | N4: الادارة العامة | O4: المنطقه المركزية | P4: 0 | Q4: 1111لواء محمد محمد السيد عامرمنالرئيس مجلس ادارةرئيس مجلس الإدارة والعضو المنتدب | S4: 0 | T4: 0 | U4: 40000 | V4: =ROUND(T4*135%,2) -> 0 | W4: =ROUND(T4*15%,2) -> 0 | X4: 0 | Y4: 0 | Z4: 0 | AB4: 0 | AC4: 0 | AE4: 0 | AG4: 0 | AH4: 0 | AI4: =SUM(AA4:AH4)-data.E[[#This Row],[بدل تمثيل]] -> 0 | AJ4: 0 | AK4: 0 | AL4: 0 | AM4: 0 | AN4: 0 | AO4: 0 | AP4: 0 | AQ4: 0 | AR4: 0 | AS4: 0 | AT4: 0 | AU4: 0 | AV4: 0 | AW4: 0 | AX4: 0 | AY4: =ROUND(SUM(AJ4:AX4),2) -> 0 | BA4: =ROUND((data.E[[#This Row],[أساسي 7/2025]]*2)/12,2) -> 0 | BE4: =ROUND(SUM(T4:Z4,AI4,AY4,AZ4:BA4),2) -> 40000 | BF4: =IF(BE4<7000,7000-BE4,0) -> 0 | BG4: =IF(data.E[[#This Row],[حالة العمل]]="إيقاف",data.E[[#This Row],[أساسي 7/2025]],ROUND(SUM(data.E[[#This Row],[بدل تمثيل]],BB4:BF4),2)) -> 40000 | BL4: =ROUND(data.E[[#This Row],[تامينات 2026]]/11%,2) -> 0 | BM4: 0 | BO4: =(data.E[[#This Row],[إجمالي المستحق]]-SUM(data.E[[#This Row],[الحافز]],data.E[[#This Row],[متوسط المنحة]:[الإضافي]]))/30*data.E[[#This Row],[أيام الغياب]] -> 0 | BP4: =(data.E[[#This Row],[إجمالي المستحق]]-SUM(data.E[[#This Row],[الحافز]],data.E[[#This Row],[متوسط المنحة]:[الإضافي]]))/30*data.E[[#This Row],[أيام جزاء]] -> 0 | BQ4: =IF(data.E[[#This Row],[أيام الغياب]]=1,data.E[[#This Row],[الحافز]]*20%,IF(data.E[[#This Row],[أيام الغياب]]=2,data.E[[#This Row],[الحافز]]*30%,IF(data.E[[#This Row],[أيام الغياب]]>2,data.E[[#This Row],[الحافز]]*100%,0))) -> 0 | BR4: =IF(data.E[[#This Row],[عدد أيام الأجازات]]<=4,data.E[[#This Row],[الحافز]]*0,IF(data.E[[#This Row],[عدد أيام الأجازات]]=5,data.E[[#This Row],[الحافز]]*20%,IF(data.E[[#This Row],[عدد أيام الأجازات]]=6,data.E[[#This Row],[الحافز]]*40%,IF(data.E[[#This Row],[عدد أيام الأجازات]]=7,data.E[[#This Row],[الحافز]]*50%,IF(data.E[[#This Row],[عدد أيام الأجازات]]>7,data.E[[#This Row],[الحافز]]*100%,0))))) -> 0 | BS4: 0 | BT4: 0 | BU4: 0 | BW4: 0 | BX4: 0 | BZ4: 0 | CD4: 0 | CE4: 0 | CG4: 0 | CJ4: 16.5 | CK4: 0 | CR4: =ROUND(IF(H4=$CR$3,(BG4-BA4)*40%,0),2) -> 0 | CS4: =BA4 -> 0 | CT4: 0 | CU4: =ROUND(IF($H4=data.E[[#Headers],[إيقاف]],$BG4-SUM(data.E[[#This Row],[تامينات 2026]:[تنفيذ أحكام]],data.E[[#This Row],[الشهداء]:[خصم 5% تأمين من العمولة]],0),0),2) -> 0 | CV4: =ROUND(IF($H4=data.E[[#Headers],[مرضي]],$BG4-SUM(data.E[[#This Row],[تامينات 2026]:[تنفيذ أحكام]],data.E[[#This Row],[الشهداء]:[خصم 5% تأمين من العمولة]],0),0),2) -> 0 | CW4: =ROUND(IF($H4=data.E[[#Headers],[أجازة]],$BG4-SUM(data.E[[#This Row],[تامينات 2026]:[تنفيذ أحكام]],data.E[[#This Row],[الشهداء]:[خصم 5% تأمين من العمولة]],0),0),2) -> 0 | CX4: =ROUND(IF($H4=data.E[[#Headers],[إعارة]],$BG4-SUM(data.E[[#This Row],[تامينات 2026]:[تنفيذ أحكام]],data.E[[#This Row],[الشهداء]:[خصم 5% تأمين من العمولة]],0),0),2) -> 0 | CY4: =ROUND(IF($H4=data.E[[#Headers],[إنهاء]],$BG4-SUM(data.E[[#This Row],[تامينات 2026]:[تنفيذ أحكام]],data.E[[#This Row],[الشهداء]:[خصم 5% تأمين من العمولة]],0),0),2) -> 0 | CZ4: =ROUND(IF($H4=data.E[[#Headers],[معاش]],$BG4-SUM(data.E[[#This Row],[تامينات 2026]:[تنفيذ أحكام]],data.E[[#This Row],[الشهداء]:[خصم 5% تأمين من العمولة]],0),0),2) -> 0 | DA4: =ROUND(SUM(data.E[[#This Row],[تامينات 2026]:[تنفيذ أحكام]],data.E[[#This Row],[الشهداء]:[معاش]]),2) -> 16.5 | DB4: =ROUND(BG4-DA4,2) -> 39983.5
A5: =IF(data.E[[#This Row],[الموظف المختص]]=print.e!$E$2,COUNTIF('data.e'!$G$4:G5,G5),"") -> 2 | B5: 100001 | C5: 113 | D5: بنك مصر 1 | E5: عماد ممدوح محمود حسين | G5: منال | H5: دوام كامل | I5: ادارى | J5: عقود خاصة | M5: رئيس قطاع النقل والفروع | N5: عقود خاصة | O5: المنطقه المركزية | P5: 0 | Q5: 100001113عماد ممدوح محمود حسينمنالعقود خاصةرئيس قطاع النقل والفروعقطاع النقل والفروع | S5: 0 | T5: 0 | U5: 17500 | V5: 0 | W5: 0 | X5: 0 | Y5: 0 | Z5: 0 | AB5: 0 | AC5: 0 | AE5: 0 | AG5: 0 | AH5: 0 | AI5: =SUM(AA5:AH5)-data.E[[#This Row],[بدل تمثيل]] -> 0 | AJ5: 0 | AK5: 0 | AL5: 0 | AM5: 0 | AN5: 0 | AO5: 0 | AP5: 0 | AQ5: 0 | AR5: 0 | AS5: 0 | AT5: 0 | AU5: 0 | AV5: 0 | AW5: 0 | AX5: 0 | AY5: 0 | BA5: =ROUND((data.E[[#This Row],[أساسي 7/2025]]*2)/12,2) -> 0 | BE5: 17500 | BF5: 0 | BG5: =IF(data.E[[#This Row],[حالة العمل]]="إيقاف",data.E[[#This Row],[أساسي 7/2025]],ROUND(SUM(data.E[[#This Row],[بدل تمثيل]],BB5:BF5),2)) -> 17500 | BL5: =ROUND(data.E[[#This Row],[تامينات 2026]]/11%,2) -> 16700 | BM5: 1837 | BO5: =(data.E[[#This Row],[إجمالي المستحق]]-SUM(data.E[[#This Row],[الحافز]],data.E[[#This Row],[متوسط المنحة]:[الإضافي]]))/30*data.E[[#This Row],[أيام الغياب]] -> 0 | BP5: =(data.E[[#This Row],[إجمالي المستحق]]-SUM(data.E[[#This Row],[الحافز]],data.E[[#This Row],[متوسط المنحة]:[الإضافي]]))/30*data.E[[#This Row],[أيام جزاء]] -> 0 | BQ5: =IF(data.E[[#This Row],[أيام الغياب]]=1,data.E[[#This Row],[الحافز]]*20%,IF(data.E[[#This Row],[أيام الغياب]]=2,data.E[[#This Row],[الحافز]]*30%,IF(data.E[[#This Row],[أيام الغياب]]>2,data.E[[#This Row],[الحافز]]*100%,0))) -> 0 | BR5: =IF(data.E[[#This Row],[عدد أيام الأجازات]]<=4,data.E[[#This Row],[الحافز]]*0,IF(data.E[[#This Row],[عدد أيام الأجازات]]=5,data.E[[#This Row],[الحافز]]*20%,IF(data.E[[#This Row],[عدد أيام الأجازات]]=6,data.E[[#This Row],[الحافز]]*40%,IF(data.E[[#This Row],[عدد أيام الأجازات]]=7,data.E[[#This Row],[الحافز]]*50%,IF(data.E[[#This Row],[عدد أيام الأجازات]]>7,data.E[[#This Row],[الحافز]]*100%,0))))) -> 0 | BS5: 0 | BT5: 0 | BU5: 0 | BW5: 0 | BX5: 0 | BZ5: 0 | CD5: 0 | CE5: 0 | CG5: 0 | CJ5: 8.75 | CK5: 0 | CL5: 0 | CN5: 0 | CR5: 0 | CS5: 0 | CT5: 0 | CU5: =ROUND(IF($H5=data.E[[#Headers],[إيقاف]],$BG5-SUM(data.E[[#This Row],[تامينات 2026]:[تنفيذ أحكام]],data.E[[#This Row],[الشهداء]:[خصم 5% تأمين من العمولة]],0),0),2) -> 0 | CV5: =ROUND(IF($H5=data.E[[#Headers],[مرضي]],$BG5-SUM(data.E[[#This Row],[تامينات 2026]:[تنفيذ أحكام]],data.E[[#This Row],[الشهداء]:[خصم 5% تأمين من العمولة]],0),0),2) -> 0 | CW5: =ROUND(IF($H5=data.E[[#Headers],[أجازة]],$BG5-SUM(data.E[[#This Row],[تامينات 2026]:[تنفيذ أحكام]],data.E[[#This Row],[الشهداء]:[خصم 5% تأمين من العمولة]],0),0),2) -> 0 | CX5: =ROUND(IF($H5=data.E[[#Headers],[إعارة]],$BG5-SUM(data.E[[#This Row],[تامينات 2026]:[تنفيذ أحكام]],data.E[[#This Row],[الشهداء]:[خصم 5% تأمين من العمولة]],0),0),2) -> 0 | CY5: =ROUND(IF($H5=data.E[[#Headers],[إنهاء]],$BG5-SUM(data.E[[#This Row],[تامينات 2026]:[تنفيذ أحكام]],data.E[[#This Row],[الشهداء]:[خصم 5% تأمين من العمولة]],0),0),2) -> 0 | CZ5: =ROUND(IF($H5=data.E[[#Headers],[معاش]],$BG5-SUM(data.E[[#This Row],[تامينات 2026]:[تنفيذ أحكام]],data.E[[#This Row],[الشهداء]:[خصم 5% تأمين من العمولة]],0),0),2) -> 0 | DA5: =ROUND(SUM(data.E[[#This Row],[تامينات 2026]:[تنفيذ أحكام]],data.E[[#This Row],[الشهداء]:[معاش]]),2) -> 1845.75 | DB5: 15654.25
A6: =IF(data.E[[#This Row],[الموظف المختص]]=print.e!$E$2,COUNTIF('data.e'!$G$4:G6,G6),"") -> 3 | B6: 100002 | C6: 114 | D6: بنك مصر 1 | E6: احمد طلعت سيد | G6: منال | H6: دوام كامل | I6: ادارى | J6: ر. قطاع | M6: رئيس القطاع الإداري | N6: عقود خاصة | O6: المنطقه المركزية | P6: 27505052100778 | Q6: 100002114احمد طلعت سيدمنالر. قطاعرئيس القطاع الإداريالقطاع الإداري | S6: 0 | T6: 0 | U6: 16500 | V6: 0 | W6: 0 | X6: 0 | Y6: 0 | Z6: 0 | AB6: 0 | AC6: 0 | AE6: 0 | AG6: 0 | AH6: 0 | AI6: =SUM(AA6:AH6)-data.E[[#This Row],[بدل تمثيل]] -> 0 | AJ6: 0 | AK6: 0 | AL6: 0 | AM6: 0 | AN6: 0 | AO6: 0 | AP6: 0 | AQ6: 0 | AR6: 0 | AS6: 0 | AT6: 0 | AU6: 0 | AV6: 0 | AW6: 0 | AX6: 0 | AY6: 0 | BA6: =ROUND((data.E[[#This Row],[أساسي 7/2025]]*2)/12,2) -> 0 | BE6: 16500 | BF6: 0 | BG6: =IF(data.E[[#This Row],[حالة العمل]]="إيقاف",data.E[[#This Row],[أساسي 7/2025]],ROUND(SUM(data.E[[#This Row],[بدل تمثيل]],BB6:BF6),2)) -> 16500 | BL6: =ROUND(data.E[[#This Row],[تامينات 2026]]/11%,2) -> 15708.36 | BM6: 1727.92 | BO6: =(data.E[[#This Row],[إجمالي المستحق]]-SUM(data.E[[#This Row],[الحافز]],data.E[[#This Row],[متوسط المنحة]:[الإضافي]]))/30*data.E[[#This Row],[أيام الغياب]] -> 0 | BP6: =(data.E[[#This Row],[إجمالي المستحق]]-SUM(data.E[[#This Row],[الحافز]],data.E[[#This Row],[متوسط المنحة]:[الإضافي]]))/30*data.E[[#This Row],[أيام جزاء]] -> 0 | BQ6: =IF(data.E[[#This Row],[أيام الغياب]]=1,data.E[[#This Row],[الحافز]]*20%,IF(data.E[[#This Row],[أيام الغياب]]=2,data.E[[#This Row],[الحافز]]*30%,IF(data.E[[#This Row],[أيام الغياب]]>2,data.E[[#This Row],[الحافز]]*100%,0))) -> 0 | BR6: =IF(data.E[[#This Row],[عدد أيام الأجازات]]<=4,data.E[[#This Row],[الحافز]]*0,IF(data.E[[#This Row],[عدد أيام الأجازات]]=5,data.E[[#This Row],[الحافز]]*20%,IF(data.E[[#This Row],[عدد أيام الأجازات]]=6,data.E[[#This Row],[الحافز]]*40%,IF(data.E[[#This Row],[عدد أيام الأجازات]]=7,data.E[[#This Row],[الحافز]]*50%,IF(data.E[[#This Row],[عدد أيام الأجازات]]>7,data.E[[#This Row],[الحافز]]*100%,0))))) -> 0 | BS6: 0 | BT6: 0 | BU6: 0 | BW6: 0 | BX6: 0 | BZ6: 0 | CD6: 0 | CE6: 0 | CG6: 0 | CJ6: 7.5 | CK6: 0 | CR6: 0 | CS6: 0 | CT6: 0 | CU6: =ROUND(IF($H6=data.E[[#Headers],[إيقاف]],$BG6-SUM(data.E[[#This Row],[تامينات 2026]:[تنفيذ أحكام]],data.E[[#This Row],[الشهداء]:[خصم 5% تأمين من العمولة]],0),0),2) -> 0 | CV6: =ROUND(IF($H6=data.E[[#Headers],[مرضي]],$BG6-SUM(data.E[[#This Row],[تامينات 2026]:[تنفيذ أحكام]],data.E[[#This Row],[الشهداء]:[خصم 5% تأمين من العمولة]],0),0),2) -> 0 | CW6: =ROUND(IF($H6=data.E[[#Headers],[أجازة]],$BG6-SUM(data.E[[#This Row],[تامينات 2026]:[تنفيذ أحكام]],data.E[[#This Row],[الشهداء]:[خصم 5% تأمين من العمولة]],0),0),2) -> 0 | CX6: =ROUND(IF($H6=data.E[[#Headers],[إعارة]],$BG6-SUM(data.E[[#This Row],[تامينات 2026]:[تنفيذ أحكام]],data.E[[#This Row],[الشهداء]:[خصم 5% تأمين من العمولة]],0),0),2) -> 0 | CY6: =ROUND(IF($H6=data.E[[#Headers],[إنهاء]],$BG6-SUM(data.E[[#This Row],[تامينات 2026]:[تنفيذ أحكام]],data.E[[#This Row],[الشهداء]:[خصم 5% تأمين من العمولة]],0),0),2) -> 0 | CZ6: =ROUND(IF($H6=data.E[[#Headers],[معاش]],$BG6-SUM(data.E[[#This Row],[تامينات 2026]:[تنفيذ أحكام]],data.E[[#This Row],[الشهداء]:[خصم 5% تأمين من العمولة]],0),0),2) -> 0 | DA6: =ROUND(SUM(data.E[[#This Row],[تامينات 2026]:[تنفيذ أحكام]],data.E[[#This Row],[الشهداء]:[معاش]]),2) -> 1735.42 | DB6: 14764.58
A7: =IF(data.E[[#This Row],[الموظف المختص]]=print.e!$E$2,COUNTIF('data.e'!$G$4:G7,G7),"") -> 4 | B7: 100003 | C7: 117 | D7: بنك مصر 1 | E7: محمد عبد التواب شعبان | G7: منال | H7: معاش | I7: ادارى | J7: م . عام | N7: عقود خاصة | O7: المنطقه المركزية | P7: 27012101201618 | Q7: 100003117محمد عبد التواب شعبانمنالم . عام | S7: 0 | T7: 0 | U7: 15400 | V7: 0 | W7: 0 | X7: 0 | Y7: 0 | Z7: 0 | AB7: 0 | AC7: 0 | AE7: 0 | AG7: 0 | AH7: 0 | AI7: =SUM(AA7:AH7)-data.E[[#This Row],[بدل تمثيل]] -> 0 | AJ7: 0 | AK7: 0 | AL7: 0 | AM7: 0 | AN7: 0 | AO7: 0 | AP7: 0 | AQ7: 0 | AR7: 0 | AS7: 0 | AT7: 0 | AU7: 0 | AV7: 0 | AW7: 0 | AX7: 0 | AY7: 0 | BA7: =ROUND((data.E[[#This Row],[أساسي 7/2025]]*2)/12,2) -> 0 | BE7: 15400 | BF7: 0 | BG7: =IF(data.E[[#This Row],[حالة العمل]]="إيقاف",data.E[[#This Row],[أساسي 7/2025]],ROUND(SUM(data.E[[#This Row],[بدل تمثيل]],BB7:BF7),2)) -> 15400 | BL7: =ROUND(data.E[[#This Row],[تامينات 2026]]/11%,2) -> 14633.36 | BM7: 1609.67 | BO7: =(data.E[[#This Row],[إجمالي المستحق]]-SUM(data.E[[#This Row],[الحافز]],data.E[[#This Row],[متوسط المنحة]:[الإضافي]]))/30*data.E[[#This Row],[أيام الغياب]] -> 0 | BP7: =(data.E[[#This Row],[إجمالي المستحق]]-SUM(data.E[[#This Row],[الحافز]],data.E[[#This Row],[متوسط المنحة]:[الإضافي]]))/30*data.E[[#This Row],[أيام جزاء]] -> 0 | BQ7: =IF(data.E[[#This Row],[أيام الغياب]]=1,data.E[[#This Row],[الحافز]]*20%,IF(data.E[[#This Row],[أيام الغياب]]=2,data.E[[#This Row],[الحافز]]*30%,IF(data.E[[#This Row],[أيام الغياب]]>2,data.E[[#This Row],[الحافز]]*100%,0))) -> 0 | BR7: =IF(data.E[[#This Row],[عدد أيام الأجازات]]<=4,data.E[[#This Row],[الحافز]]*0,IF(data.E[[#This Row],[عدد أيام الأجازات]]=5,data.E[[#This Row],[الحافز]]*20%,IF(data.E[[#This Row],[عدد أيام الأجازات]]=6,data.E[[#This Row],[الحافز]]*40%,IF(data.E[[#This Row],[عدد أيام الأجازات]]=7,data.E[[#This Row],[الحافز]]*50%,IF(data.E[[#This Row],[عدد أيام الأجازات]]>7,data.E[[#This Row],[الحافز]]*100%,0))))) -> 0 | BS7: 0 | BT7: 0 | BU7: 0 | BW7: 0 | BX7: 0 | BZ7: 0 | CD7: 0 | CE7: 0 | CG7: 0 | CJ7: 0 | CK7: 0 | CR7: 0 | CS7: 0 | CT7: 0 | CU7: =ROUND(IF($H7=data.E[[#Headers],[إيقاف]],$BG7-SUM(data.E[[#This Row],[تامينات 2026]:[تنفيذ أحكام]],data.E[[#This Row],[الشهداء]:[خصم 5% تأمين من العمولة]],0),0),2) -> 0 | CV7: =ROUND(IF($H7=data.E[[#Headers],[مرضي]],$BG7-SUM(data.E[[#This Row],[تامينات 2026]:[تنفيذ أحكام]],data.E[[#This Row],[الشهداء]:[خصم 5% تأمين من العمولة]],0),0),2) -> 0 | CW7: =ROUND(IF($H7=data.E[[#Headers],[أجازة]],$BG7-SUM(data.E[[#This Row],[تامينات 2026]:[تنفيذ أحكام]],data.E[[#This Row],[الشهداء]:[خصم 5% تأمين من العمولة]],0),0),2) -> 0 | CX7: =ROUND(IF($H7=data.E[[#Headers],[إعارة]],$BG7-SUM(data.E[[#This Row],[تامينات 2026]:[تنفيذ أحكام]],data.E[[#This Row],[الشهداء]:[خصم 5% تأمين من العمولة]],0),0),2) -> 0 | CY7: =ROUND(IF($H7=data.E[[#Headers],[إنهاء]],$BG7-SUM(data.E[[#This Row],[تامينات 2026]:[تنفيذ أحكام]],data.E[[#This Row],[الشهداء]:[خصم 5% تأمين من العمولة]],0),0),2) -> 0 | CZ7: =ROUND(IF($H7=data.E[[#Headers],[معاش]],$BG7-SUM(data.E[[#This Row],[تامينات 2026]:[تنفيذ أحكام]],data.E[[#This Row],[الشهداء]:[خصم 5% تأمين من العمولة]],0),0),2) -> 13790.33 | DA7: =ROUND(SUM(data.E[[#This Row],[تامينات 2026]:[تنفيذ أحكام]],data.E[[#This Row],[الشهداء]:[معاش]]),2) -> 15400 | DB7: 0
A8: =IF(data.E[[#This Row],[الموظف المختص]]=print.e!$E$2,COUNTIF('data.e'!$G$4:G8,G8),"") -> 5 | B8: 100004 | C8: 118 | D8: بنك مصر 1 | E8: ناجى محمد عبد الحليم | G8: منال | H8: دوام كامل | I8: ادارى | J8: م . عام | M8: 0 | N8: عقود خاصة | O8: المنطقه الجنوبية | P8: 27111071701857 | Q8: 100004118ناجى محمد عبد الحليممنالم . عام | S8: 0 | T8: 0 | U8: 15400 | V8: 0 | W8: 0 | X8: 0 | Y8: 0 | Z8: 0 | AB8: 0 | AC8: 0 | AE8: 0 | AG8: 0 | AH8: 0 | AI8: =SUM(AA8:AH8)-data.E[[#This Row],[بدل تمثيل]] -> 0 | AJ8: 0 | AK8: 0 | AL8: 0 | AM8: 0 | AN8: 0 | AO8: 0 | AP8: 0 | AQ8: 0 | AR8: 0 | AS8: 0 | AT8: 0 | AU8: 0 | AV8: 0 | AW8: 0 | AX8: 0 | AY8: 0 | BA8: =ROUND((data.E[[#This Row],[أساسي 7/2025]]*2)/12,2) -> 0 | BE8: 15400 | BF8: 0 | BG8: =IF(data.E[[#This Row],[حالة العمل]]="إيقاف",data.E[[#This Row],[أساسي 7/2025]],ROUND(SUM(data.E[[#This Row],[بدل تمثيل]],BB8:BF8),2)) -> 15400 | BL8: =ROUND(data.E[[#This Row],[تامينات 2026]]/11%,2) -> 14633.36 | BM8: 1609.67 | BO8: =(data.E[[#This Row],[إجمالي المستحق]]-SUM(data.E[[#This Row],[الحافز]],data.E[[#This Row],[متوسط المنحة]:[الإضافي]]))/30*data.E[[#This Row],[أيام الغياب]] -> 0 | BP8: =(data.E[[#This Row],[إجمالي المستحق]]-SUM(data.E[[#This Row],[الحافز]],data.E[[#This Row],[متوسط المنحة]:[الإضافي]]))/30*data.E[[#This Row],[أيام جزاء]] -> 0 | BQ8: =IF(data.E[[#This Row],[أيام الغياب]]=1,data.E[[#This Row],[الحافز]]*20%,IF(data.E[[#This Row],[أيام الغياب]]=2,data.E[[#This Row],[الحافز]]*30%,IF(data.E[[#This Row],[أيام الغياب]]>2,data.E[[#This Row],[الحافز]]*100%,0))) -> 0 | BR8: =IF(data.E[[#This Row],[عدد أيام الأجازات]]<=4,data.E[[#This Row],[الحافز]]*0,IF(data.E[[#This Row],[عدد أيام الأجازات]]=5,data.E[[#This Row],[الحافز]]*20%,IF(data.E[[#This Row],[عدد أيام الأجازات]]=6,data.E[[#This Row],[الحافز]]*40%,IF(data.E[[#This Row],[عدد أيام الأجازات]]=7,data.E[[#This Row],[الحافز]]*50%,IF(data.E[[#This Row],[عدد أيام الأجازات]]>7,data.E[[#This Row],[الحافز]]*100%,0))))) -> 0 | BS8: 0 | BT8: 0 | BU8: 0 | BW8: 0 | BX8: 0 | BZ8: 0 | CD8: 0 | CE8: 0 | CG8: 0 | CJ8: 7 | CK8: 0 | CR8: 0 | CS8: 0 | CT8: 0 | CU8: =ROUND(IF($H8=data.E[[#Headers],[إيقاف]],$BG8-SUM(data.E[[#This Row],[تامينات 2026]:[تنفيذ أحكام]],data.E[[#This Row],[الشهداء]:[خصم 5% تأمين من العمولة]],0),0),2) -> 0 | CV8: =ROUND(IF($H8=data.E[[#Headers],[مرضي]],$BG8-SUM(data.E[[#This Row],[تامينات 2026]:[تنفيذ أحكام]],data.E[[#This Row],[الشهداء]:[خصم 5% تأمين من العمولة]],0),0),2) -> 0 | CW8: =ROUND(IF($H8=data.E[[#Headers],[أجازة]],$BG8-SUM(data.E[[#This Row],[تامينات 2026]:[تنفيذ أحكام]],data.E[[#This Row],[الشهداء]:[خصم 5% تأمين من العمولة]],0),0),2) -> 0 | CX8: =ROUND(IF($H8=data.E[[#Headers],[إعارة]],$BG8-SUM(data.E[[#This Row],[تامينات 2026]:[تنفيذ أحكام]],data.E[[#This Row],[الشهداء]:[خصم 5% تأمين من العمولة]],0),0),2) -> 0 | CY8: =ROUND(IF($H8=data.E[[#Headers],[إنهاء]],$BG8-SUM(data.E[[#This Row],[تامينات 2026]:[تنفيذ أحكام]],data.E[[#This Row],[الشهداء]:[خصم 5% تأمين من العمولة]],0),0),2) -> 0 | CZ8: =ROUND(IF($H8=data.E[[#Headers],[معاش]],$BG8-SUM(data.E[[#This Row],[تامينات 2026]:[تنفيذ أحكام]],data.E[[#This Row],[الشهداء]:[خصم 5% تأمين من العمولة]],0),0),2) -> 0 | DA8: =ROUND(SUM(data.E[[#This Row],[تامينات 2026]:[تنفيذ أحكام]],data.E[[#This Row],[الشهداء]:[معاش]]),2) -> 1616.67 | DB8: 13783.33
A9: =IF(data.E[[#This Row],[الموظف المختص]]=print.e!$E$2,COUNTIF('data.e'!$G$4:G9,G9),"") -> 6 | B9: 100005 | C9: 115 | D9: بنك مصر 1 | E9: علاء نبيه عبدالله | G9: منال | H9: دوام كامل | I9: ادارى | J9: م . عام | N9: عقود خاصة | O9: المنطقه الجنوبية | P9: 27001172700179 | Q9: 100005115علاء نبيه عبداللهمنالم . عام | S9: 0 | T9: 0 | U9: 15400 | V9: 0 | W9: 0 | X9: 0 | Y9: 0 | Z9: 0 | AB9: 0 | AC9: 0 | AE9: 0 | AG9: 0 | AH9: 0 | AI9: =SUM(AA9:AH9)-data.E[[#This Row],[بدل تمثيل]] -> 0 | AJ9: 0 | AK9: 0 | AL9: 0 | AM9: 0 | AN9: 0 | AO9: 0 | AP9: 0 | AQ9: 0 | AR9: 0 | AS9: 0 | AT9: 0 | AU9: 0 | AV9: 0 | AW9: 0 | AX9: 0 | AY9: 0 | BA9: =ROUND((data.E[[#This Row],[أساسي 7/2025]]*2)/12,2) -> 0 | BE9: 15400 | BF9: 0 | BG9: =IF(data.E[[#This Row],[حالة العمل]]="إيقاف",data.E[[#This Row],[أساسي 7/2025]],ROUND(SUM(data.E[[#This Row],[بدل تمثيل]],BB9:BF9),2)) -> 15400 | BL9: =ROUND(data.E[[#This Row],[تامينات 2026]]/11%,2) -> 14633.36 | BM9: 1609.67 | BO9: =(data.E[[#This Row],[إجمالي المستحق]]-SUM(data.E[[#This Row],[الحافز]],data.E[[#This Row],[متوسط المنحة]:[الإضافي]]))/30*data.E[[#This Row],[أيام الغياب]] -> 0 | BP9: =(data.E[[#This Row],[إجمالي المستحق]]-SUM(data.E[[#This Row],[الحافز]],data.E[[#This Row],[متوسط المنحة]:[الإضافي]]))/30*data.E[[#This Row],[أيام جزاء]] -> 0 | BQ9: =IF(data.E[[#This Row],[أيام الغياب]]=1,data.E[[#This Row],[الحافز]]*20%,IF(data.E[[#This Row],[أيام الغياب]]=2,data.E[[#This Row],[الحافز]]*30%,IF(data.E[[#This Row],[أيام الغياب]]>2,data.E[[#This Row],[الحافز]]*100%,0))) -> 0 | BR9: =IF(data.E[[#This Row],[عدد أيام الأجازات]]<=4,data.E[[#This Row],[الحافز]]*0,IF(data.E[[#This Row],[عدد أيام الأجازات]]=5,data.E[[#This Row],[الحافز]]*20%,IF(data.E[[#This Row],[عدد أيام الأجازات]]=6,data.E[[#This Row],[الحافز]]*40%,IF(data.E[[#This Row],[عدد أيام الأجازات]]=7,data.E[[#This Row],[الحافز]]*50%,IF(data.E[[#This Row],[عدد أيام الأجازات]]>7,data.E[[#This Row],[الحافز]]*100%,0))))) -> 0 | BS9: 0 | BT9: 0 | BU9: 0 | BW9: 0 | BX9: 0 | BZ9: 0 | CD9: 0 | CE9: 0 | CG9: 0 | CJ9: 7 | CK9: 0 | CR9: 0 | CS9: 0 | CT9: 0 | CU9: =ROUND(IF($H9=data.E[[#Headers],[إيقاف]],$BG9-SUM(data.E[[#This Row],[تامينات 2026]:[تنفيذ أحكام]],data.E[[#This Row],[الشهداء]:[خصم 5% تأمين من العمولة]],0),0),2) -> 0 | CV9: =ROUND(IF($H9=data.E[[#Headers],[مرضي]],$BG9-SUM(data.E[[#This Row],[تامينات 2026]:[تنفيذ أحكام]],data.E[[#This Row],[الشهداء]:[خصم 5% تأمين من العمولة]],0),0),2) -> 0 | CW9: =ROUND(IF($H9=data.E[[#Headers],[أجازة]],$BG9-SUM(data.E[[#This Row],[تامينات 2026]:[تنفيذ أحكام]],data.E[[#This Row],[الشهداء]:[خصم 5% تأمين من العمولة]],0),0),2) -> 0 | CX9: =ROUND(IF($H9=data.E[[#Headers],[إعارة]],$BG9-SUM(data.E[[#This Row],[تامينات 2026]:[تنفيذ أحكام]],data.E[[#This Row],[الشهداء]:[خصم 5% تأمين من العمولة]],0),0),2) -> 0 | CY9: =ROUND(IF($H9=data.E[[#Headers],[إنهاء]],$BG9-SUM(data.E[[#This Row],[تامينات 2026]:[تنفيذ أحكام]],data.E[[#This Row],[الشهداء]:[خصم 5% تأمين من العمولة]],0),0),2) -> 0 | CZ9: =ROUND(IF($H9=data.E[[#Headers],[معاش]],$BG9-SUM(data.E[[#This Row],[تامينات 2026]:[تنفيذ أحكام]],data.E[[#This Row],[الشهداء]:[خصم 5% تأمين من العمولة]],0),0),2) -> 0 | DA9: =ROUND(SUM(data.E[[#This Row],[تامينات 2026]:[تنفيذ أحكام]],data.E[[#This Row],[الشهداء]:[معاش]]),2) -> 1616.67 | DB9: 13783.33
A10: =IF(data.E[[#This Row],[الموظف المختص]]=print.e!$E$2,COUNTIF('data.e'!$G$4:G10,G10),"") -> 7 | B10: 100006 | C10: 116 | D10: بنك مصر 1 | E10: وائل محمد يونس حسن | G10: منال | H10: دوام كامل | I10: ادارى | J10: م . عام | N10: عقود خاصة | O10: المنطقه الجنوبية | P10: 27911011301791 | Q10: 100006116وائل محمد يونس حسنمنالم . عام | S10: 0 | T10: 0 | U10: 15400 | V10: 0 | W10: 0 | X10: 0 | Y10: 0 | Z10: 0 | AB10: 0 | AC10: 0 | AE10: 0 | AG10: 0 | AH10: 0 | AI10: =SUM(AA10:AH10)-data.E[[#This Row],[بدل تمثيل]] -> 0 | AJ10: 0 | AK10: 0 | AL10: 0 | AM10: 0 | AN10: 0 | AO10: 0 | AP10: 0 | AQ10: 0 | AR10: 0 | AS10: 0 | AT10: 0 | AU10: 0 | AV10: 0 | AW10: 0 | AX10: 0 | AY10: 0 | BA10: =ROUND((data.E[[#This Row],[أساسي 7/2025]]*2)/12,2) -> 0 | BE10: 15400 | BF10: 0 | BG10: =IF(data.E[[#This Row],[حالة العمل]]="إيقاف",data.E[[#This Row],[أساسي 7/2025]],ROUND(SUM(data.E[[#This Row],[بدل تمثيل]],BB10:BF10),2)) -> 15400 | BL10: =ROUND(data.E[[#This Row],[تامينات 2026]]/11%,2) -> 14633.36 | BM10: 1609.67 | BO10: =(data.E[[#This Row],[إجمالي المستحق]]-SUM(data.E[[#This Row],[الحافز]],data.E[[#This Row],[متوسط المنحة]:[الإضافي]]))/30*data.E[[#This Row],[أيام الغياب]] -> 0 | BP10: =(data.E[[#This Row],[إجمالي المستحق]]-SUM(data.E[[#This Row],[الحافز]],data.E[[#This Row],[متوسط المنحة]:[الإضافي]]))/30*data.E[[#This Row],[أيام جزاء]] -> 0 | BQ10: =IF(data.E[[#This Row],[أيام الغياب]]=1,data.E[[#This Row],[الحافز]]*20%,IF(data.E[[#This Row],[أيام الغياب]]=2,data.E[[#This Row],[الحافز]]*30%,IF(data.E[[#This Row],[أيام الغياب]]>2,data.E[[#This Row],[الحافز]]*100%,0))) -> 0 | BR10: =IF(data.E[[#This Row],[عدد أيام الأجازات]]<=4,data.E[[#This Row],[الحافز]]*0,IF(data.E[[#This Row],[عدد أيام الأجازات]]=5,data.E[[#This Row],[الحافز]]*20%,IF(data.E[[#This Row],[عدد أيام الأجازات]]=6,data.E[[#This Row],[الحافز]]*40%,IF(data.E[[#This Row],[عدد أيام الأجازات]]=7,data.E[[#This Row],[الحافز]]*50%,IF(data.E[[#This Row],[عدد أيام الأجازات]]>7,data.E[[#This Row],[الحافز]]*100%,0))))) -> 0 | BS10: 0 | BT10: 0 | BU10: 0 | BW10: 0 | BX10: 0 | BZ10: 0 | CD10: 0 | CE10: 0 | CG10: 0 | CJ10: 7 | CK10: 0 | CR10: 0 | CS10: 0 | CT10: 0 | CU10: =ROUND(IF($H10=data.E[[#Headers],[إيقاف]],$BG10-SUM(data.E[[#This Row],[تامينات 2026]:[تنفيذ أحكام]],data.E[[#This Row],[الشهداء]:[خصم 5% تأمين من العمولة]],0),0),2) -> 0 | CV10: =ROUND(IF($H10=data.E[[#Headers],[مرضي]],$BG10-SUM(data.E[[#This Row],[تامينات 2026]:[تنفيذ أحكام]],data.E[[#This Row],[الشهداء]:[خصم 5% تأمين من العمولة]],0),0),2) -> 0 | CW10: =ROUND(IF($H10=data.E[[#Headers],[أجازة]],$BG10-SUM(data.E[[#This Row],[تامينات 2026]:[تنفيذ أحكام]],data.E[[#This Row],[الشهداء]:[خصم 5% تأمين من العمولة]],0),0),2) -> 0 | CX10: =ROUND(IF($H10=data.E[[#Headers],[إعارة]],$BG10-SUM(data.E[[#This Row],[تامينات 2026]:[تنفيذ أحكام]],data.E[[#This Row],[الشهداء]:[خصم 5% تأمين من العمولة]],0),0),2) -> 0 | CY10: =ROUND(IF($H10=data.E[[#Headers],[إنهاء]],$BG10-SUM(data.E[[#This Row],[تامينات 2026]:[تنفيذ أحكام]],data.E[[#This Row],[الشهداء]:[خصم 5% تأمين من العمولة]],0),0),2) -> 0 | CZ10: =ROUND(IF($H10=data.E[[#Headers],[معاش]],$BG10-SUM(data.E[[#This Row],[تامينات 2026]:[تنفيذ أحكام]],data.E[[#This Row],[الشهداء]:[خصم 5% تأمين من العمولة]],0),0),2) -> 0 | DA10: =ROUND(SUM(data.E[[#This Row],[تامينات 2026]:[تنفيذ أحكام]],data.E[[#This Row],[الشهداء]:[معاش]]),2) -> 1616.67 | DB10: 13783.33
A11: =IF(data.E[[#This Row],[الموظف المختص]]=print.e!$E$2,COUNTIF('data.e'!$G$4:G11,G11),"") -> 8 | B11: 100007 | C11: 119 | D11: بنك مصر 1 | E11: محمد سعيد محمد القاضى | G11: منال | H11: دوام كامل | I11: ادارى | J11: عقد خاص | L11: 0 | M11: 0 | N11: عقود خاصة | O11: المنطقه المركزية | P11: 0 | Q11: 100007119محمد سعيد محمد القاضىمنالعقد خاص | R11: 0 | S11: 0 | T11: 0 | U11: 15000 | V11: 0 | W11: 0 | X11: 0 | Y11: 0 | Z11: 0 | AB11: 0 | AC11: 0 | AD11: 0 | AE11: 0 | AF11: 0 | AG11: 0 | AH11: 0 | AI11: =SUM(AA11:AH11)-data.E[[#This Row],[بدل تمثيل]] -> 0 | AJ11: 0 | AK11: 0 | AL11: 0 | AM11: 0 | AN11: 0 | AO11: 0 | AP11: 0 | AQ11: 0 | AR11: 0 | AS11: 0 | AT11: 0 | AU11: 0 | AV11: 0 | AW11: 0 | AX11: 0 | AY11: 0 | AZ11: 0 | BA11: =ROUND((data.E[[#This Row],[أساسي 7/2025]]*2)/12,2) -> 0 | BE11: 15000 | BF11: 0 | BG11: =IF(data.E[[#This Row],[حالة العمل]]="إيقاف",data.E[[#This Row],[أساسي 7/2025]],ROUND(SUM(data.E[[#This Row],[بدل تمثيل]],BB11:BF11),2)) -> 15000 | BL11: =ROUND(data.E[[#This Row],[تامينات 2026]]/11%,2) -> 15000 | BM11: 1650 | BO11: =(data.E[[#This Row],[إجمالي المستحق]]-SUM(data.E[[#This Row],[الحافز]],data.E[[#This Row],[متوسط المنحة]:[الإضافي]]))/30*data.E[[#This Row],[أيام الغياب]] -> 0 | BP11: =(data.E[[#This Row],[إجمالي المستحق]]-SUM(data.E[[#This Row],[الحافز]],data.E[[#This Row],[متوسط المنحة]:[الإضافي]]))/30*data.E[[#This Row],[أيام جزاء]] -> 0 | BQ11: =IF(data.E[[#This Row],[أيام الغياب]]=1,data.E[[#This Row],[الحافز]]*20%,IF(data.E[[#This Row],[أيام الغياب]]=2,data.E[[#This Row],[الحافز]]*30%,IF(data.E[[#This Row],[أيام الغياب]]>2,data.E[[#This Row],[الحافز]]*100%,0))) -> 0 | BR11: =IF(data.E[[#This Row],[عدد أيام الأجازات]]<=4,data.E[[#This Row],[الحافز]]*0,IF(data.E[[#This Row],[عدد أيام الأجازات]]=5,data.E[[#This Row],[الحافز]]*20%,IF(data.E[[#This Row],[عدد أيام الأجازات]]=6,data.E[[#This Row],[الحافز]]*40%,IF(data.E[[#This Row],[عدد أيام الأجازات]]=7,data.E[[#This Row],[الحافز]]*50%,IF(data.E[[#This Row],[عدد أيام الأجازات]]>7,data.E[[#This Row],[الحافز]]*100%,0))))) -> 0 | BS11: 0 | BT11: 0 | BU11: 0 | BV11: 0 | BW11: 0 | BX11: 0 | BZ11: 0 | CA11: 0 | CB11: 0 | CD11: 0 | CE11: 0 | CF11: 0 | CG11: 0 | CH11: 0 | CJ11: 7.5 | CK11: 0 | CL11: 0 | CM11: 0 | CN11: 0 | CO11: 0 | CP11: 0 | CR11: 0 | CS11: 0 | CT11: 0 | CU11: =ROUND(IF($H11=data.E[[#Headers],[إيقاف]],$BG11-SUM(data.E[[#This Row],[تامينات 2026]:[تنفيذ أحكام]],data.E[[#This Row],[الشهداء]:[خصم 5% تأمين من العمولة]],0),0),2) -> 0 | CV11: =ROUND(IF($H11=data.E[[#Headers],[مرضي]],$BG11-SUM(data.E[[#This Row],[تامينات 2026]:[تنفيذ أحكام]],data.E[[#This Row],[الشهداء]:[خصم 5% تأمين من العمولة]],0),0),2) -> 0 | CW11: =ROUND(IF($H11=data.E[[#Headers],[أجازة]],$BG11-SUM(data.E[[#This Row],[تامينات 2026]:[تنفيذ أحكام]],data.E[[#This Row],[الشهداء]:[خصم 5% تأمين من العمولة]],0),0),2) -> 0 | CX11: =ROUND(IF($H11=data.E[[#Headers],[إعارة]],$BG11-SUM(data.E[[#This Row],[تامينات 2026]:[تنفيذ أحكام]],data.E[[#This Row],[الشهداء]:[خصم 5% تأمين من العمولة]],0),0),2) -> 0 | CY11: =ROUND(IF($H11=data.E[[#Headers],[إنهاء]],$BG11-SUM(data.E[[#This Row],[تامينات 2026]:[تنفيذ أحكام]],data.E[[#This Row],[الشهداء]:[خصم 5% تأمين من العمولة]],0),0),2) -> 0 | CZ11: =ROUND(IF($H11=data.E[[#Headers],[معاش]],$BG11-SUM(data.E[[#This Row],[تامينات 2026]:[تنفيذ أحكام]],data.E[[#This Row],[الشهداء]:[خصم 5% تأمين من العمولة]],0),0),2) -> 0 | DA11: =ROUND(SUM(data.E[[#This Row],[تامينات 2026]:[تنفيذ أحكام]],data.E[[#This Row],[الشهداء]:[معاش]]),2) -> 1657.5 | DB11: 13342.5
A12: =IF(data.E[[#This Row],[الموظف المختص]]=print.e!$E$2,COUNTIF('data.e'!$G$4:G12,G12),"") -> 9 | B12: 100008 | C12: 112 | D12: بنك مصر 1 | E12: هشام حنفى سليم | G12: منال | H12: دوام كامل | I12: ادارى | J12: عقد خبرة | N12: عقود خاصة | O12: المنطقه المركزية | P12: 27911011301791 | Q12: 100008112هشام حنفى سليممنالعقد خبرة | S12: 0 | T12: 0 | U12: 7000 | V12: 0 | W12: 0 | X12: 0 | Y12: 0 | Z12: 0 | AB12: 0 | AC12: 0 | AE12: 0 | AG12: 0 | AH12: 0 | AI12: =SUM(AA12:AH12)-data.E[[#This Row],[بدل تمثيل]] -> 0 | AJ12: 0 | AK12: 0 | AL12: 0 | AM12: 0 | AN12: 0 | AO12: 0 | AP12: 0 | AQ12: 0 | AR12: 0 | AS12: 0 | AT12: 0 | AU12: 0 | AV12: 0 | AW12: 0 | AX12: 0 | AY12: 0 | BA12: =ROUND((data.E[[#This Row],[أساسي 7/2025]]*2)/12,2) -> 0 | BE12: 7000 | BF12: 0 | BG12: =IF(data.E[[#This Row],[حالة العمل]]="إيقاف",data.E[[#This Row],[أساسي 7/2025]],ROUND(SUM(data.E[[#This Row],[بدل تمثيل]],BB12:BF12),2)) -> 7000 | BL12: =ROUND(data.E[[#This Row],[تامينات 2026]]/11%,2) -> 0 | BM12: 0 | BO12: =(data.E[[#This Row],[إجمالي المستحق]]-SUM(data.E[[#This Row],[الحافز]],data.E[[#This Row],[متوسط المنحة]:[الإضافي]]))/30*data.E[[#This Row],[أيام الغياب]] -> 0 | BP12: =(data.E[[#This Row],[إجمالي المستحق]]-SUM(data.E[[#This Row],[الحافز]],data.E[[#This Row],[متوسط المنحة]:[الإضافي]]))/30*data.E[[#This Row],[أيام جزاء]] -> 0 | BQ12: =IF(data.E[[#This Row],[أيام الغياب]]=1,data.E[[#This Row],[الحافز]]*20%,IF(data.E[[#This Row],[أيام الغياب]]=2,data.E[[#This Row],[الحافز]]*30%,IF(data.E[[#This Row],[أيام الغياب]]>2,data.E[[#This Row],[الحافز]]*100%,0))) -> 0 | BR12: =IF(data.E[[#This Row],[عدد أيام الأجازات]]<=4,data.E[[#This Row],[الحافز]]*0,IF(data.E[[#This Row],[عدد أيام الأجازات]]=5,data.E[[#This Row],[الحافز]]*20%,IF(data.E[[#This Row],[عدد أيام الأجازات]]=6,data.E[[#This Row],[الحافز]]*40%,IF(data.E[[#This Row],[عدد أيام الأجازات]]=7,data.E[[#This Row],[الحافز]]*50%,IF(data.E[[#This Row],[عدد أيام الأجازات]]>7,data.E[[#This Row],[الحافز]]*100%,0))))) -> 0 | BS12: 0 | BT12: 0 | BU12: 0 | BW12: 0 | BX12: 0 | BZ12: 0 | CD12: 0 | CE12: 0 | CG12: 0 | CJ12: 3 | CK12: 0 | CR12: 0 | CS12: 0 | CT12: 0 | CU12: =ROUND(IF($H12=data.E[[#Headers],[إيقاف]],$BG12-SUM(data.E[[#This Row],[تامينات 2026]:[تنفيذ أحكام]],data.E[[#This Row],[الشهداء]:[خصم 5% تأمين من العمولة]],0),0),2) -> 0 | CV12: =ROUND(IF($H12=data.E[[#Headers],[مرضي]],$BG12-SUM(data.E[[#This Row],[تامينات 2026]:[تنفيذ أحكام]],data.E[[#This Row],[الشهداء]:[خصم 5% تأمين من العمولة]],0),0),2) -> 0 | CW12: =ROUND(IF($H12=data.E[[#Headers],[أجازة]],$BG12-SUM(data.E[[#This Row],[تامينات 2026]:[تنفيذ أحكام]],data.E[[#This Row],[الشهداء]:[خصم 5% تأمين من العمولة]],0),0),2) -> 0 | CX12: =ROUND(IF($H12=data.E[[#Headers],[إعارة]],$BG12-SUM(data.E[[#This Row],[تامينات 2026]:[تنفيذ أحكام]],data.E[[#This Row],[الشهداء]:[خصم 5% تأمين من العمولة]],0),0),2) -> 0 | CY12: =ROUND(IF($H12=data.E[[#Headers],[إنهاء]],$BG12-SUM(data.E[[#This Row],[تامينات 2026]:[تنفيذ أحكام]],data.E[[#This Row],[الشهداء]:[خصم 5% تأمين من العمولة]],0),0),2) -> 0 | CZ12: =ROUND(IF($H12=data.E[[#Headers],[معاش]],$BG12-SUM(data.E[[#This Row],[تامينات 2026]:[تنفيذ أحكام]],data.E[[#This Row],[الشهداء]:[خصم 5% تأمين من العمولة]],0),0),2) -> 0 | DA12: =ROUND(SUM(data.E[[#This Row],[تامينات 2026]:[تنفيذ أحكام]],data.E[[#This Row],[الشهداء]:[معاش]]),2) -> 3 | DB12: 6997
A13: =IF(data.E[[#This Row],[الموظف المختص]]=print.e!$E$2,COUNTIF('data.e'!$G$4:G13,G13),"") -> 10 | B13: 100010 | C13: 120 | D13: بنك مصر 1 | E13: نعمان على نعمان على | G13: منال | H13: دوام كامل | I13: ادارى | J13: عقد خاص | L13: 0 | M13: 0 | N13: عقود خاصة | O13: المنطقه الجنوبية | P13: 0 | Q13: 100010120نعمان على نعمان علىمنالعقد خاص | R13: 0 | S13: 0 | T13: 0 | U13: 15000 | V13: 0 | W13: 0 | X13: 0 | Y13: 0 | Z13: 0 | AB13: 0 | AC13: 0 | AD13: 0 | AE13: 0 | AF13: 0 | AG13: 0 | AH13: 0 | AI13: =SUM(AA13:AH13)-data.E[[#This Row],[بدل تمثيل]] -> 0 | AJ13: 0 | AK13: 0 | AL13: 0 | AM13: 0 | AN13: 0 | AO13: 0 | AP13: 0 | AQ13: 0 | AR13: 0 | AS13: 0 | AT13: 0 | AU13: 0 | AV13: 0 | AW13: 0 | AX13: 0 | AY13: 0 | AZ13: 0 | BA13: =ROUND((data.E[[#This Row],[أساسي 7/2025]]*2)/12,2) -> 0 | BE13: 15000 | BF13: 0 | BG13: =IF(data.E[[#This Row],[حالة العمل]]="إيقاف",data.E[[#This Row],[أساسي 7/2025]],ROUND(SUM(data.E[[#This Row],[بدل تمثيل]],BB13:BF13),2)) -> 15000 | BL13: =ROUND(data.E[[#This Row],[تامينات 2026]]/11%,2) -> 15000 | BM13: 1650 | BO13: =(data.E[[#This Row],[إجمالي المستحق]]-SUM(data.E[[#This Row],[الحافز]],data.E[[#This Row],[متوسط المنحة]:[الإضافي]]))/30*data.E[[#This Row],[أيام الغياب]] -> 0 | BP13: =(data.E[[#This Row],[إجمالي المستحق]]-SUM(data.E[[#This Row],[الحافز]],data.E[[#This Row],[متوسط المنحة]:[الإضافي]]))/30*data.E[[#This Row],[أيام جزاء]] -> 0 | BQ13: =IF(data.E[[#This Row],[أيام الغياب]]=1,data.E[[#This Row],[الحافز]]*20%,IF(data.E[[#This Row],[أيام الغياب]]=2,data.E[[#This Row],[الحافز]]*30%,IF(data.E[[#This Row],[أيام الغياب]]>2,data.E[[#This Row],[الحافز]]*100%,0))) -> 0 | BR13: =IF(data.E[[#This Row],[عدد أيام الأجازات]]<=4,data.E[[#This Row],[الحافز]]*0,IF(data.E[[#This Row],[عدد أيام الأجازات]]=5,data.E[[#This Row],[الحافز]]*20%,IF(data.E[[#This Row],[عدد أيام الأجازات]]=6,data.E[[#This Row],[الحافز]]*40%,IF(data.E[[#This Row],[عدد أيام الأجازات]]=7,data.E[[#This Row],[الحافز]]*50%,IF(data.E[[#This Row],[عدد أيام الأجازات]]>7,data.E[[#This Row],[الحافز]]*100%,0))))) -> 0 | BS13: 0 | BT13: 0 | BU13: 0 | BV13: 0 | BW13: 0 | BX13: 0 | BZ13: 0 | CA13: 0 | CB13: 0 | CD13: 0 | CE13: 0 | CF13: 0 | CG13: 0 | CH13: 0 | CJ13: 7.5 | CK13: 0 | CL13: 0 | CM13: 0 | CN13: 0 | CO13: 0 | CP13: 0 | CR13: 0 | CS13: 0 | CT13: 0 | CU13: =ROUND(IF($H13=data.E[[#Headers],[إيقاف]],$BG13-SUM(data.E[[#This Row],[تامينات 2026]:[تنفيذ أحكام]],data.E[[#This Row],[الشهداء]:[خصم 5% تأمين من العمولة]],0),0),2) -> 0 | CV13: =ROUND(IF($H13=data.E[[#Headers],[مرضي]],$BG13-SUM(data.E[[#This Row],[تامينات 2026]:[تنفيذ أحكام]],data.E[[#This Row],[الشهداء]:[خصم 5% تأمين من العمولة]],0),0),2) -> 0 | CW13: =ROUND(IF($H13=data.E[[#Headers],[أجازة]],$BG13-SUM(data.E[[#This Row],[تامينات 2026]:[تنفيذ أحكام]],data.E[[#This Row],[الشهداء]:[خصم 5% تأمين من العمولة]],0),0),2) -> 0 | CX13: =ROUND(IF($H13=data.E[[#Headers],[إعارة]],$BG13-SUM(data.E[[#This Row],[تامينات 2026]:[تنفيذ أحكام]],data.E[[#This Row],[الشهداء]:[خصم 5% تأمين من العمولة]],0),0),2) -> 0 | CY13: =ROUND(IF($H13=data.E[[#Headers],[إنهاء]],$BG13-SUM(data.E[[#This Row],[تامينات 2026]:[تنفيذ أحكام]],data.E[[#This Row],[الشهداء]:[خصم 5% تأمين من العمولة]],0),0),2) -> 0 | CZ13: =ROUND(IF($H13=data.E[[#Headers],[معاش]],$BG13-SUM(data.E[[#This Row],[تامينات 2026]:[تنفيذ أحكام]],data.E[[#This Row],[الشهداء]:[خصم 5% تأمين من العمولة]],0),0),2) -> 0 | DA13: =ROUND(SUM(data.E[[#This Row],[تامينات 2026]:[تنفيذ أحكام]],data.E[[#This Row],[الشهداء]:[معاش]]),2) -> 1657.5 | DB13: 13342.5
A14: =IF(data.E[[#This Row],[الموظف المختص]]=print.e!$E$2,COUNTIF('data.e'!$G$4:G14,G14),"") -> 11 | B14: 100011 | C14: 22037 | D14: بنك مصر 1 | E14: ناهد حسن توفيق محمد | G14: منال | H14: دوام كامل | I14: عقد خبرة | J14: عقد خبره | N14: عقود خاصة | O14: المنطقه المركزية | P14: 26804150101255 | Q14: 10001122037ناهد حسن توفيق محمدمنالعقد خبره | S14: 0 | T14: 0 | U14: 10000 | V14: 0 | W14: 0 | Y14: 0 | Z14: 0 | AB14: 0 | AC14: 0 | AE14: 0 | AF14: 0 | AH14: 0 | AI14: =SUM(AA14:AH14)-data.E[[#This Row],[بدل تمثيل]] -> 0 | AJ14: 0 | AK14: 0 | AL14: 0 | AM14: 0 | AN14: 0 | AO14: 0 | AP14: 0 | AQ14: 0 | AR14: 0 | AS14: 0 | AT14: 0 | AU14: 0 | AV14: 0 | AW14: 0 | AX14: 0 | AY14: 0 | AZ14: 0 | BA14: =ROUND((data.E[[#This Row],[أساسي 7/2025]]*2)/12,2) -> 0 | BE14: 10000 | BF14: 0 | BG14: =IF(data.E[[#This Row],[حالة العمل]]="إيقاف",data.E[[#This Row],[أساسي 7/2025]],ROUND(SUM(data.E[[#This Row],[بدل تمثيل]],BB14:BF14),2)) -> 10000 | BL14: =ROUND(data.E[[#This Row],[تامينات 2026]]/11%,2) -> 0 | BM14: 0 | BO14: =(data.E[[#This Row],[إجمالي المستحق]]-SUM(data.E[[#This Row],[الحافز]],data.E[[#This Row],[متوسط المنحة]:[الإضافي]]))/30*data.E[[#This Row],[أيام الغياب]] -> 0 | BP14: =(data.E[[#This Row],[إجمالي المستحق]]-SUM(data.E[[#This Row],[الحافز]],data.E[[#This Row],[متوسط المنحة]:[الإضافي]]))/30*data.E[[#This Row],[أيام جزاء]] -> 0 | BQ14: =IF(data.E[[#This Row],[أيام الغياب]]=1,data.E[[#This Row],[الحافز]]*20%,IF(data.E[[#This Row],[أيام الغياب]]=2,data.E[[#This Row],[الحافز]]*30%,IF(data.E[[#This Row],[أيام الغياب]]>2,data.E[[#This Row],[الحافز]]*100%,0))) -> 0 | BR14: =IF(data.E[[#This Row],[عدد أيام الأجازات]]<=4,data.E[[#This Row],[الحافز]]*0,IF(data.E[[#This Row],[عدد أيام الأجازات]]=5,data.E[[#This Row],[الحافز]]*20%,IF(data.E[[#This Row],[عدد أيام الأجازات]]=6,data.E[[#This Row],[الحافز]]*40%,IF(data.E[[#This Row],[عدد أيام الأجازات]]=7,data.E[[#This Row],[الحافز]]*50%,IF(data.E[[#This Row],[عدد أيام الأجازات]]>7,data.E[[#This Row],[الحافز]]*100%,0))))) -> 0 | BS14: 0 | BT14: 0 | BU14: 0 | BV14: 0 | BW14: 0 | BX14: 0 | BZ14: 0 | CA14: 0 | CB14: 0 | CD14: 0 | CE14: 0 | CF14: 0 | CG14: 0 | CH14: 0 | CJ14: 0 | CK14: 0 | CN14: 0 | CO14: 0 | CR14: 0 | CS14: 0 | CT14: 0 | CU14: =ROUND(IF($H14=data.E[[#Headers],[إيقاف]],$BG14-SUM(data.E[[#This Row],[تامينات 2026]:[تنفيذ أحكام]],data.E[[#This Row],[الشهداء]:[خصم 5% تأمين من العمولة]],0),0),2) -> 0 | CV14: =ROUND(IF($H14=data.E[[#Headers],[مرضي]],$BG14-SUM(data.E[[#This Row],[تامينات 2026]:[تنفيذ أحكام]],data.E[[#This Row],[الشهداء]:[خصم 5% تأمين من العمولة]],0),0),2) -> 0 | CW14: =ROUND(IF($H14=data.E[[#Headers],[أجازة]],$BG14-SUM(data.E[[#This Row],[تامينات 2026]:[تنفيذ أحكام]],data.E[[#This Row],[الشهداء]:[خصم 5% تأمين من العمولة]],0),0),2) -> 0 | CX14: =ROUND(IF($H14=data.E[[#Headers],[إعارة]],$BG14-SUM(data.E[[#This Row],[تامينات 2026]:[تنفيذ أحكام]],data.E[[#This Row],[الشهداء]:[خصم 5% تأمين من العمولة]],0),0),2) -> 0 | CY14: =ROUND(IF($H14=data.E[[#Headers],[إنهاء]],$BG14-SUM(data.E[[#This Row],[تامينات 2026]:[تنفيذ أحكام]],data.E[[#This Row],[الشهداء]:[خصم 5% تأمين من العمولة]],0),0),2) -> 0 | CZ14: =ROUND(IF($H14=data.E[[#Headers],[معاش]],$BG14-SUM(data.E[[#This Row],[تامينات 2026]:[تنفيذ أحكام]],data.E[[#This Row],[الشهداء]:[خصم 5% تأمين من العمولة]],0),0),2) -> 0 | DA14: =ROUND(SUM(data.E[[#This Row],[تامينات 2026]:[تنفيذ أحكام]],data.E[[#This Row],[الشهداء]:[معاش]]),2) -> 0 | DB14: 10000
A15: =IF(data.E[[#This Row],[الموظف المختص]]=print.e!$E$2,COUNTIF('data.e'!$G$4:G15,G15),"") -> 12 | B15: 101000 | C15: 11231 | D15: بنك مصر 1 | E15: ايمن صلاح الدين السباعي خليل | G15: منال | H15: دوام كامل | I15: ادارى | J15: ر. قطاع | N15: الادارة العامة | O15: المنطقه المركزية | P15: 26602050101515 | Q15: 10100011231ايمن صلاح الدين السباعي خليلمنالر. قطاعالقطاع المالي | S15: 3183.357 | T15: 3501.6927 | U15: 0 | V15: 4727.29 | W15: 525.25 | X15: 0 | Y15: 0 | Z15: 0 | AB15: 0 | AC15: 300 | AE15: 300 | AF15: 0 | AG15: 0 | AH15: 0 | AI15: =SUM(AA15:AH15)-data.E[[#This Row],[بدل تمثيل]] -> 300 | AJ15: 91.92 | AK15: 102.64 | AL15: 120 | AM15: 0 | AN15: 190 | AO15: 55.58 | AP15: 106.06 | AQ15: 136.18 | AR15: 194.29 | AS15: 207.89 | AT15: 222.44 | AU15: 0 | AV15: 159.16785 | AW15: 600 | AX15: 10 | AY15: 2196.17 | AZ15: 10 | BA15: =ROUND((data.E[[#This Row],[أساسي 7/2025]]*2)/12,2) -> 583.62 | BE15: 11844.02 | BF15: 0 | BG15: =IF(data.E[[#This Row],[حالة العمل]]="إيقاف",data.E[[#This Row],[أساسي 7/2025]],ROUND(SUM(data.E[[#This Row],[بدل تمثيل]],BB15:BF15),2)) -> 12144.02 | BL15: =ROUND(data.E[[#This Row],[تامينات 2026]]/11%,2) -> 11531.55 | BM15: 1268.47 | BO15: =(data.E[[#This Row],[إجمالي المستحق]]-SUM(data.E[[#This Row],[الحافز]],data.E[[#This Row],[متوسط المنحة]:[الإضافي]]))/30*data.E[[#This Row],[أيام الغياب]] -> 0 | BP15: =(data.E[[#This Row],[إجمالي المستحق]]-SUM(data.E[[#This Row],[الحافز]],data.E[[#This Row],[متوسط المنحة]:[الإضافي]]))/30*data.E[[#This Row],[أيام جزاء]] -> 0 | BQ15: =IF(data.E[[#This Row],[أيام الغياب]]=1,data.E[[#This Row],[الحافز]]*20%,IF(data.E[[#This Row],[أيام الغياب]]=2,data.E[[#This Row],[الحافز]]*30%,IF(data.E[[#This Row],[أيام الغياب]]>2,data.E[[#This Row],[الحافز]]*100%,0))) -> 0 | BR15: =IF(data.E[[#This Row],[عدد أيام الأجازات]]<=4,data.E[[#This Row],[الحافز]]*0,IF(data.E[[#This Row],[عدد أيام الأجازات]]=5,data.E[[#This Row],[الحافز]]*20%,IF(data.E[[#This Row],[عدد أيام الأجازات]]=6,data.E[[#This Row],[الحافز]]*40%,IF(data.E[[#This Row],[عدد أيام الأجازات]]=7,data.E[[#This Row],[الحافز]]*50%,IF(data.E[[#This Row],[عدد أيام الأجازات]]>7,data.E[[#This Row],[الحافز]]*100%,0))))) -> 0 | BS15: 0 | BT15: 6.18 | BU15: 0 | BV15: 0 | BW15: 0 | BX15: 0 | BZ15: 0 | CA15: 0 | CB15: 0 | CD15: 0 | CE15: 0 | CF15: 0 | CG15: 0 | CH15: 0 | CJ15: 5.63 | CK15: 10 | CN15: 0 | CO15: 0 | CR15: 0 | CS15: 583.62 | CT15: 0 | CU15: =ROUND(IF($H15=data.E[[#Headers],[إيقاف]],$BG15-SUM(data.E[[#This Row],[تامينات 2026]:[تنفيذ أحكام]],data.E[[#This Row],[الشهداء]:[خصم 5% تأمين من العمولة]],0),0),2) -> 0 | CV15: =ROUND(IF($H15=data.E[[#Headers],[مرضي]],$BG15-SUM(data.E[[#This Row],[تامينات 2026]:[تنفيذ أحكام]],data.E[[#This Row],[الشهداء]:[خصم 5% تأمين من العمولة]],0),0),2) -> 0 | CW15: =ROUND(IF($H15=data.E[[#Headers],[أجازة]],$BG15-SUM(data.E[[#This Row],[تامينات 2026]:[تنفيذ أحكام]],data.E[[#This Row],[الشهداء]:[خصم 5% تأمين من العمولة]],0),0),2) -> 0 | CX15: =ROUND(IF($H15=data.E[[#Headers],[إعارة]],$BG15-SUM(data.E[[#This Row],[تامينات 2026]:[تنفيذ أحكام]],data.E[[#This Row],[الشهداء]:[خصم 5% تأمين من العمولة]],0),0),2) -> 0 | CY15: =ROUND(IF($H15=data.E[[#Headers],[إنهاء]],$BG15-SUM(data.E[[#This Row],[تامينات 2026]:[تنفيذ أحكام]],data.E[[#This Row],[الشهداء]:[خصم 5% تأمين من العمولة]],0),0),2) -> 0 | CZ15: =ROUND(IF($H15=data.E[[#Headers],[معاش]],$BG15-SUM(data.E[[#This Row],[تامينات 2026]:[تنفيذ أحكام]],data.E[[#This Row],[الشهداء]:[خصم 5% تأمين من العمولة]],0),0),2) -> 0 | DA15: =ROUND(SUM(data.E[[#This Row],[تامينات 2026]:[تنفيذ أحكام]],data.E[[#This Row],[الشهداء]:[معاش]]),2) -> 1873.9 | DB15: 10270.12
A16: =IF(data.E[[#This Row],[الموظف المختص]]=print.e!$E$2,COUNTIF('data.e'!$G$4:G16,G16),"") -> 13 | B16: 101002 | C16: 1003 | D16: بنك مصر 2 | E16: عبده عبد الرحمن عبده عبد العال | G16: منال | H16: دوام كامل | I16: ادارى | J16: م . عام | N16: الادارة العامة | O16: المنطقه المركزية | P16: 26612170101514 | Q16: 1010021003عبده عبد الرحمن عبده عبد العالمنالم . عام | S16: 2545.16 | T16: 2799.676 | U16: 0 | V16: 3779.56 | W16: 419.95 | X16: 0 | Y16: 0 | Z16: 0 | AB16: 0 | AC16: 300 | AE16: 200 | AG16: 0 | AH16: 0 | AI16: =SUM(AA16:AH16)-data.E[[#This Row],[بدل تمثيل]] -> 300 | AJ16: 90.31 | AK16: 100.41 | AL16: 120 | AM16: 0 | AN16: 180 | AO16: 50.88 | AP16: 90.73 | AQ16: 116.5 | AR16: 166.21 | AS16: 177.84 | AT16: 190.29 | AU16: 0 | AV16: 127.258 | AW16: 600 | AX16: 10 | AY16: 2020.43 | AZ16: 10 | BA16: =ROUND((data.E[[#This Row],[أساسي 7/2025]]*2)/12,2) -> 466.61 | BE16: 9796.23 | BF16: 0 | BG16: =IF(data.E[[#This Row],[حالة العمل]]="إيقاف",data.E[[#This Row],[أساسي 7/2025]],ROUND(SUM(data.E[[#This Row],[بدل تمثيل]],BB16:BF16),2)) -> 9996.23 | BL16: =ROUND(data.E[[#This Row],[تامينات 2026]]/11%,2) -> 9439.91 | BM16: 1038.39 | BO16: =(data.E[[#This Row],[إجمالي المستحق]]-SUM(data.E[[#This Row],[الحافز]],data.E[[#This Row],[متوسط المنحة]:[الإضافي]]))/30*data.E[[#This Row],[أيام الغياب]] -> 0 | BP16: =(data.E[[#This Row],[إجمالي المستحق]]-SUM(data.E[[#This Row],[الحافز]],data.E[[#This Row],[متوسط المنحة]:[الإضافي]]))/30*data.E[[#This Row],[أيام جزاء]] -> 0 | BQ16: =IF(data.E[[#This Row],[أيام الغياب]]=1,data.E[[#This Row],[الحافز]]*20%,IF(data.E[[#This Row],[أيام الغياب]]=2,data.E[[#This Row],[الحافز]]*30%,IF(data.E[[#This Row],[أيام الغياب]]>2,data.E[[#This Row],[الحافز]]*100%,0))) -> 0 | BR16: =IF(data.E[[#This Row],[عدد أيام الأجازات]]<=4,data.E[[#This Row],[الحافز]]*0,IF(data.E[[#This Row],[عدد أيام الأجازات]]=5,data.E[[#This Row],[الحافز]]*20%,IF(data.E[[#This Row],[عدد أيام الأجازات]]=6,data.E[[#This Row],[الحافز]]*40%,IF(data.E[[#This Row],[عدد أيام الأجازات]]=7,data.E[[#This Row],[الحافز]]*50%,IF(data.E[[#This Row],[عدد أيام الأجازات]]>7,data.E[[#This Row],[الحافز]]*100%,0))))) -> 0 | BS16: 0 | BT16: 7.73 | BU16: 0 | BW16: 3 | BX16: 0 | BZ16: 0 | CD16: 0 | CE16: 0 | CG16: 0 | CJ16: 4.61 | CK16: 10 | CR16: 0 | CS16: 466.61 | CT16: 0 | CU16: =ROUND(IF($H16=data.E[[#Headers],[إيقاف]],$BG16-SUM(data.E[[#This Row],[تامينات 2026]:[تنفيذ أحكام]],data.E[[#This Row],[الشهداء]:[خصم 5% تأمين من العمولة]],0),0),2) -> 0 | CV16: =ROUND(IF($H16=data.E[[#Headers],[مرضي]],$BG16-SUM(data.E[[#This Row],[تامينات 2026]:[تنفيذ أحكام]],data.E[[#This Row],[الشهداء]:[خصم 5% تأمين من العمولة]],0),0),2) -> 0 | CW16: =ROUND(IF($H16=data.E[[#Headers],[أجازة]],$BG16-SUM(data.E[[#This Row],[تامينات 2026]:[تنفيذ أحكام]],data.E[[#This Row],[الشهداء]:[خصم 5% تأمين من العمولة]],0),0),2) -> 0 | CX16: =ROUND(IF($H16=data.E[[#Headers],[إعارة]],$BG16-SUM(data.E[[#This Row],[تامينات 2026]:[تنفيذ أحكام]],data.E[[#This Row],[الشهداء]:[خصم 5% تأمين من العمولة]],0),0),2) -> 0 | CY16: =ROUND(IF($H16=data.E[[#Headers],[إنهاء]],$BG16-SUM(data.E[[#This Row],[تامينات 2026]:[تنفيذ أحكام]],data.E[[#This Row],[الشهداء]:[خصم 5% تأمين من العمولة]],0),0),2) -> 0 | CZ16: =ROUND(IF($H16=data.E[[#Headers],[معاش]],$BG16-SUM(data.E[[#This Row],[تامينات 2026]:[تنفيذ أحكام]],data.E[[#This Row],[الشهداء]:[خصم 5% تأمين من العمولة]],0),0),2) -> 0 | DA16: =ROUND(SUM(data.E[[#This Row],[تامينات 2026]:[تنفيذ أحكام]],data.E[[#This Row],[الشهداء]:[معاش]]),2) -> 1530.34 | DB16: 8465.89
A17: =IF(data.E[[#This Row],[الموظف المختص]]=print.e!$E$2,COUNTIF('data.e'!$G$4:G17,G17),"") -> 14 | B17: 101003 | C17: 11307 | D17: بنك مصر 1 | E17: احمد السيد محمود حشيش | G17: منال | H17: دوام كامل | I17: ادارى | J17: م . عام | N17: الادارة العامة | O17: المنطقه المركزية | P17: 27007230102071 | Q17: 10100311307احمد السيد محمود حشيشمنالم . عام | S17: 3413.728 | T17: 3755.1008 | U17: 0 | V17: 5069.39 | W17: 563.27 | X17: 0 | Y17: 0 | Z17: 0 | AB17: 0 | AC17: 300 | AE17: 200 | AF17: 0 | AG17: 0 | AH17: 0 | AI17: =SUM(AA17:AH17)-data.E[[#This Row],[بدل تمثيل]] -> 300 | AJ17: 86.05 | AK17: 96.36 | AL17: 120 | AM17: 0 | AN17: 190 | AO17: 52.06 | AP17: 106.3 | AQ17: 136.48 | AR17: 194.72 | AS17: 208.35 | AT17: 238.53 | AU17: 0 | AV17: 170.6864 | AW17: 600 | AX17: 10 | AY17: 2209.54 | AZ17: 10 | BA17: =ROUND((data.E[[#This Row],[أساسي 7/2025]]*2)/12,2) -> 625.85 | BE17: 12533.15 | BF17: 0 | BG17: =IF(data.E[[#This Row],[حالة العمل]]="إيقاف",data.E[[#This Row],[أساسي 7/2025]],ROUND(SUM(data.E[[#This Row],[بدل تمثيل]],BB17:BF17),2)) -> 12733.15 | BL17: =ROUND(data.E[[#This Row],[تامينات 2026]]/11%,2) -> 12127.09 | BM17: 1333.98 | BO17: =(data.E[[#This Row],[إجمالي المستحق]]-SUM(data.E[[#This Row],[الحافز]],data.E[[#This Row],[متوسط المنحة]:[الإضافي]]))/30*data.E[[#This Row],[أيام الغياب]] -> 0 | BP17: =(data.E[[#This Row],[إجمالي المستحق]]-SUM(data.E[[#This Row],[الحافز]],data.E[[#This Row],[متوسط المنحة]:[الإضافي]]))/30*data.E[[#This Row],[أيام جزاء]] -> 0 | BQ17: =IF(data.E[[#This Row],[أيام الغياب]]=1,data.E[[#This Row],[الحافز]]*20%,IF(data.E[[#This Row],[أيام الغياب]]=2,data.E[[#This Row],[الحافز]]*30%,IF(data.E[[#This Row],[أيام الغياب]]>2,data.E[[#This Row],[الحافز]]*100%,0))) -> 0 | BR17: =IF(data.E[[#This Row],[عدد أيام الأجازات]]<=4,data.E[[#This Row],[الحافز]]*0,IF(data.E[[#This Row],[عدد أيام الأجازات]]=5,data.E[[#This Row],[الحافز]]*20%,IF(data.E[[#This Row],[عدد أيام الأجازات]]=6,data.E[[#This Row],[الحافز]]*40%,IF(data.E[[#This Row],[عدد أيام الأجازات]]=7,data.E[[#This Row],[الحافز]]*50%,IF(data.E[[#This Row],[عدد أيام الأجازات]]>7,data.E[[#This Row],[الحافز]]*100%,0))))) -> 0 | BS17: 0 | BT17: 0 | BU17: 0 | BV17: 0 | BW17: 3 | BX17: 0 | BZ17: 0 | CA17: 0 | CB17: 0 | CD17: 0 | CE17: 0 | CF17: 0 | CG17: 0 | CH17: 0 | CJ17: 5.9 | CK17: 10 | CN17: 0 | CO17: 0 | CR17: 0 | CS17: 625.85 | CT17: 0 | CU17: =ROUND(IF($H17=data.E[[#Headers],[إيقاف]],$BG17-SUM(data.E[[#This Row],[تامينات 2026]:[تنفيذ أحكام]],data.E[[#This Row],[الشهداء]:[خصم 5% تأمين من العمولة]],0),0),2) -> 0 | CV17: =ROUND(IF($H17=data.E[[#Headers],[مرضي]],$BG17-SUM(data.E[[#This Row],[تامينات 2026]:[تنفيذ أحكام]],data.E[[#This Row],[الشهداء]:[خصم 5% تأمين من العمولة]],0),0),2) -> 0 | CW17: =ROUND(IF($H17=data.E[[#Headers],[أجازة]],$BG17-SUM(data.E[[#This Row],[تامينات 2026]:[تنفيذ أحكام]],data.E[[#This Row],[الشهداء]:[خصم 5% تأمين من العمولة]],0),0),2) -> 0 | CX17: =ROUND(IF($H17=data.E[[#Headers],[إعارة]],$BG17-SUM(data.E[[#This Row],[تامينات 2026]:[تنفيذ أحكام]],data.E[[#This Row],[الشهداء]:[خصم 5% تأمين من العمولة]],0),0),2) -> 0 | CY17: =ROUND(IF($H17=data.E[[#Headers],[إنهاء]],$BG17-SUM(data.E[[#This Row],[تامينات 2026]:[تنفيذ أحكام]],data.E[[#This Row],[الشهداء]:[خصم 5% تأمين من العمولة]],0),0),2) -> 0 | CZ17: =ROUND(IF($H17=data.E[[#Headers],[معاش]],$BG17-SUM(data.E[[#This Row],[تامينات 2026]:[تنفيذ أحكام]],data.E[[#This Row],[الشهداء]:[خصم 5% تأمين من العمولة]],0),0),2) -> 0 | DA17: =ROUND(SUM(data.E[[#This Row],[تامينات 2026]:[تنفيذ أحكام]],data.E[[#This Row],[الشهداء]:[معاش]]),2) -> 1978.73 | DB17: 10754.42
A18: =IF(data.E[[#This Row],[الموظف المختص]]=print.e!$E$2,COUNTIF('data.e'!$G$4:G18,G18),"") -> 15 | B18: 101004 | C18: 11189 | D18: بنك مصر 1 | E18: جمال السيد محمود حشيش | G18: منال | H18: مرضي | I18: ادارى | J18: الاولى | N18: الادارة العامة | O18: المنطقه المركزية | P18: 26804150101255 | Q18: 10100411189جمال السيد محمود حشيشمنالالاولى | S18: 2998.93 | T18: 3298.823 | U18: 0 | V18: 4453.41 | W18: 494.82 | X18: 0 | Y18: 0 | Z18: 0 | AB18: 0 | AC18: 300 | AE18: 200 | AF18: 0 | AG18: 0 | AH18: 0 | AI18: =SUM(AA18:AH18)-data.E[[#This Row],[بدل تمثيل]] -> 300 | AJ18: 92.37 | AK18: 103.28 | AL18: 120 | AM18: 0 | AN18: 190 | AO18: 59.95 | AP18: 106.91 | AQ18: 137.27 | AR18: 195.84 | AS18: 209.55 | AT18: 224.22 | AU18: 0 | AV18: 149.9465 | AW18: 600 | AX18: 10 | AY18: 2199.34 | AZ18: 10 | BA18: =ROUND((data.E[[#This Row],[أساسي 7/2025]]*2)/12,2) -> 549.8 | BE18: 11306.19 | BF18: 0 | BG18: =IF(data.E[[#This Row],[حالة العمل]]="إيقاف",data.E[[#This Row],[أساسي 7/2025]],ROUND(SUM(data.E[[#This Row],[بدل تمثيل]],BB18:BF18),2)) -> 11506.19 | BL18: =ROUND(data.E[[#This Row],[تامينات 2026]]/11%,2) -> 10896.27 | BM18: 1198.59 | BO18: =(data.E[[#This Row],[إجمالي المستحق]]-SUM(data.E[[#This Row],[الحافز]],data.E[[#This Row],[متوسط المنحة]:[الإضافي]]))/30*data.E[[#This Row],[أيام الغياب]] -> 0 | BP18: =(data.E[[#This Row],[إجمالي المستحق]]-SUM(data.E[[#This Row],[الحافز]],data.E[[#This Row],[متوسط المنحة]:[الإضافي]]))/30*data.E[[#This Row],[أيام جزاء]] -> 0 | BQ18: =IF(data.E[[#This Row],[أيام الغياب]]=1,data.E[[#This Row],[الحافز]]*20%,IF(data.E[[#This Row],[أيام الغياب]]=2,data.E[[#This Row],[الحافز]]*30%,IF(data.E[[#This Row],[أيام الغياب]]>2,data.E[[#This Row],[الحافز]]*100%,0))) -> 0 | BR18: =IF(data.E[[#This Row],[عدد أيام الأجازات]]<=4,data.E[[#This Row],[الحافز]]*0,IF(data.E[[#This Row],[عدد أيام الأجازات]]=5,data.E[[#This Row],[الحافز]]*20%,IF(data.E[[#This Row],[عدد أيام الأجازات]]=6,data.E[[#This Row],[الحافز]]*40%,IF(data.E[[#This Row],[عدد أيام الأجازات]]=7,data.E[[#This Row],[الحافز]]*50%,IF(data.E[[#This Row],[عدد أيام الأجازات]]>7,data.E[[#This Row],[الحافز]]*100%,0))))) -> 0 | BS18: 0 | BT18: 0 | BU18: 0 | BV18: 0 | BW18: 3 | BX18: 0 | BZ18: 0 | CA18: 0 | CB18: 0 | CD18: 0 | CE18: 0 | CF18: 0 | CG18: 0 | CH18: 0 | CJ18: 0 | CK18: 5 | CN18: 0 | CO18: 0 | CR18: 0 | CS18: 549.8 | CT18: 0 | CU18: =ROUND(IF($H18=data.E[[#Headers],[إيقاف]],$BG18-SUM(data.E[[#This Row],[تامينات 2026]:[تنفيذ أحكام]],data.E[[#This Row],[الشهداء]:[خصم 5% تأمين من العمولة]],0),0),2) -> 0 | CV18: =ROUND(IF($H18=data.E[[#Headers],[مرضي]],$BG18-SUM(data.E[[#This Row],[تامينات 2026]:[تنفيذ أحكام]],data.E[[#This Row],[الشهداء]:[خصم 5% تأمين من العمولة]],0),0),2) -> 9749.8 | CW18: =ROUND(IF($H18=data.E[[#Headers],[أجازة]],$BG18-SUM(data.E[[#This Row],[تامينات 2026]:[تنفيذ أحكام]],data.E[[#This Row],[الشهداء]:[خصم 5% تأمين من العمولة]],0),0),2) -> 0 | CX18: =ROUND(IF($H18=data.E[[#Headers],[إعارة]],$BG18-SUM(data.E[[#This Row],[تامينات 2026]:[تنفيذ أحكام]],data.E[[#This Row],[الشهداء]:[خصم 5% تأمين من العمولة]],0),0),2) -> 0 | CY18: =ROUND(IF($H18=data.E[[#Headers],[إنهاء]],$BG18-SUM(data.E[[#This Row],[تامينات 2026]:[تنفيذ أحكام]],data.E[[#This Row],[الشهداء]:[خصم 5% تأمين من العمولة]],0),0),2) -> 0 | CZ18: =ROUND(IF($H18=data.E[[#Headers],[معاش]],$BG18-SUM(data.E[[#This Row],[تامينات 2026]:[تنفيذ أحكام]],data.E[[#This Row],[الشهداء]:[خصم 5% تأمين من العمولة]],0),0),2) -> 0 | DA18: =ROUND(SUM(data.E[[#This Row],[تامينات 2026]:[تنفيذ أحكام]],data.E[[#This Row],[الشهداء]:[معاش]]),2) -> 11506.19 | DB18: 0
A19: =IF(data.E[[#This Row],[الموظف المختص]]=print.e!$E$2,COUNTIF('data.e'!$G$4:G19,G19),"") -> 16 | B19: 101007 | C19: 22097 | D19: بنك مصر 1 | E19: خالد شوقى عبد المحسن ابراهيم | G19: منال | H19: إقاف | I19: ادارى | J19: الثانية | N19: ايقاف | O19: المنطقه المركزية | P19: 27108121402251 | Q19: 10100722097خالد شوقى عبد المحسن ابراهيممنالالثانية | S19: 0 | T19: 2445 | U19: 0 | V19: 3300.75 | W19: 366.75 | X19: 0 | Y19: 0 | Z19: 0 | AB19: 0 | AC19: 300 | AE19: 0 | AF19: 0 | AG19: 0 | AH19: 0 | AI19: =SUM(AA19:AH19)-data.E[[#This Row],[بدل تمثيل]] -> 300 | AJ19: 72.96 | AK19: 81.46 | AL19: 98.02 | AM19: 0 | AN19: 190 | AO19: 44.43 | AP19: 79.24 | AQ19: 101.74 | AR19: 145.15 | AS19: 155.31 | AT19: 166.19 | AU19: 0 | AV19: 111.1365 | AW19: 600 | AX19: 10 | AY19: 1855.64 | AZ19: 10 | BA19: =ROUND((data.E[[#This Row],[أساسي 7/2025]]*2)/12,2) -> 407.5 | BE19: 8685.64 | BF19: 0 | BG19: =IF(data.E[[#This Row],[حالة العمل]]="إيقاف",data.E[[#This Row],[أساسي 7/2025]],ROUND(SUM(data.E[[#This Row],[بدل تمثيل]],BB19:BF19),2)) -> 8685.64 | BL19: =ROUND(data.E[[#This Row],[تامينات 2026]]/11%,2) -> 2700 | BM19: 297 | BO19: =(data.E[[#This Row],[إجمالي المستحق]]-SUM(data.E[[#This Row],[الحافز]],data.E[[#This Row],[متوسط المنحة]:[الإضافي]]))/30*data.E[[#This Row],[أيام الغياب]] -> 0 | BP19: =(data.E[[#This Row],[إجمالي المستحق]]-SUM(data.E[[#This Row],[الحافز]],data.E[[#This Row],[متوسط المنحة]:[الإضافي]]))/30*data.E[[#This Row],[أيام جزاء]] -> 0 | BQ19: =IF(data.E[[#This Row],[أيام الغياب]]=1,data.E[[#This Row],[الحافز]]*20%,IF(data.E[[#This Row],[أيام الغياب]]=2,data.E[[#This Row],[الحافز]]*30%,IF(data.E[[#This Row],[أيام الغياب]]>2,data.E[[#This Row],[الحافز]]*100%,0))) -> 0 | BR19: 3300.75 | BS19: 0 | BT19: 21.34 | BU19: 0 | BV19: 0 | BW19: 3 | BX19: 0 | BY19: 2338.69 | BZ19: 0 | CA19: 0 | CB19: 0 | CD19: 0 | CE19: 0 | CF19: 0 | CG19: 0 | CH19: 0 | CJ19: 3.99 | CK19: 5 | CM19: 0 | CN19: 0 | CO19: 0 | CR19: 0 | CS19: 407.5 | CT19: 0 | CU19: =ROUND(IF($H19=data.E[[#Headers],[إيقاف]],$BG19-SUM(data.E[[#This Row],[تامينات 2026]:[تنفيذ أحكام]],data.E[[#This Row],[الشهداء]:[خصم 5% تأمين من العمولة]],0),0),2) -> 0 | CV19: =ROUND(IF($H19=data.E[[#Headers],[مرضي]],$BG19-SUM(data.E[[#This Row],[تامينات 2026]:[تنفيذ أحكام]],data.E[[#This Row],[الشهداء]:[خصم 5% تأمين من العمولة]],0),0),2) -> 0 | CW19: =ROUND(IF($H19=data.E[[#Headers],[أجازة]],$BG19-SUM(data.E[[#This Row],[تامينات 2026]:[تنفيذ أحكام]],data.E[[#This Row],[الشهداء]:[خصم 5% تأمين من العمولة]],0),0),2) -> 0 | CX19: =ROUND(IF($H19=data.E[[#Headers],[إعارة]],$BG19-SUM(data.E[[#This Row],[تامينات 2026]:[تنفيذ أحكام]],data.E[[#This Row],[الشهداء]:[خصم 5% تأمين من العمولة]],0),0),2) -> 0 | CY19: =ROUND(IF($H19=data.E[[#Headers],[إنهاء]],$BG19-SUM(data.E[[#This Row],[تامينات 2026]:[تنفيذ أحكام]],data.E[[#This Row],[الشهداء]:[خصم 5% تأمين من العمولة]],0),0),2) -> 0 | CZ19: =ROUND(IF($H19=data.E[[#Headers],[معاش]],$BG19-SUM(data.E[[#This Row],[تامينات 2026]:[تنفيذ أحكام]],data.E[[#This Row],[الشهداء]:[خصم 5% تأمين من العمولة]],0),0),2) -> 0 | DA19: =ROUND(SUM(data.E[[#This Row],[تامينات 2026]:[تنفيذ أحكام]],data.E[[#This Row],[الشهداء]:[معاش]]),2) -> 6377.27 | DB19: 2308.37
A20: =IF(data.E[[#This Row],[الموظف المختص]]=print.e!$E$2,COUNTIF('data.e'!$G$4:G20,G20),"") -> 17 | B20: 101008 | C20: 11047 | D20: نقدي | E20: طارق محمد عبد التواب احمد | G20: منال | H20: معاش | I20: ادارى | J20: الاولى | N20: الادارة العامة | O20: المنطقه المركزية | P20: 26512210103952 | Q20: 10100811047طارق محمد عبد التواب احمدمنالالاولى | S20: 2674.13 | T20: 2941.543 | U20: 0 | V20: 3971.08 | W20: 441.23 | X20: 0 | Y20: 0 | Z20: 0 | AB20: 0 | AC20: 300 | AE20: 200 | AF20: 0 | AG20: 0 | AH20: 0 | AI20: =SUM(AA20:AH20)-data.E[[#This Row],[بدل تمثيل]] -> 300 | AJ20: 93.74 | AK20: 104.69 | AL20: 120 | AM20: 0 | AN20: 190 | AO20: 53.47 | AP20: 95.33 | AQ20: 122.4 | AR20: 174.63 | AS20: 186.86 | AT20: 199.94 | AU20: 0 | AV20: 133.7065 | AW20: 600 | AX20: 10 | AY20: 2084.77 | AZ20: 10 | BA20: =ROUND((data.E[[#This Row],[أساسي 7/2025]]*2)/12,2) -> 490.26 | BE20: 10238.88 | BF20: 0 | BG20: =IF(data.E[[#This Row],[حالة العمل]]="إيقاف",data.E[[#This Row],[أساسي 7/2025]],ROUND(SUM(data.E[[#This Row],[بدل تمثيل]],BB20:BF20),2)) -> 10438.88 | BL20: =ROUND(data.E[[#This Row],[تامينات 2026]]/11%,2) -> 9850.64 | BM20: 1083.57 | BO20: =(data.E[[#This Row],[إجمالي المستحق]]-SUM(data.E[[#This Row],[الحافز]],data.E[[#This Row],[متوسط المنحة]:[الإضافي]]))/30*data.E[[#This Row],[أيام الغياب]] -> 0 | BP20: =(data.E[[#This Row],[إجمالي المستحق]]-SUM(data.E[[#This Row],[الحافز]],data.E[[#This Row],[متوسط المنحة]:[الإضافي]]))/30*data.E[[#This Row],[أيام جزاء]] -> 0 | BQ20: =IF(data.E[[#This Row],[أيام الغياب]]=1,data.E[[#This Row],[الحافز]]*20%,IF(data.E[[#This Row],[أيام الغياب]]=2,data.E[[#This Row],[الحافز]]*30%,IF(data.E[[#This Row],[أيام الغياب]]>2,data.E[[#This Row],[الحافز]]*100%,0))) -> 0 | BR20: =IF(data.E[[#This Row],[عدد أيام الأجازات]]<=4,data.E[[#This Row],[الحافز]]*0,IF(data.E[[#This Row],[عدد أيام الأجازات]]=5,data.E[[#This Row],[الحافز]]*20%,IF(data.E[[#This Row],[عدد أيام الأجازات]]=6,data.E[[#This Row],[الحافز]]*40%,IF(data.E[[#This Row],[عدد أيام الأجازات]]=7,data.E[[#This Row],[الحافز]]*50%,IF(data.E[[#This Row],[عدد أيام الأجازات]]>7,data.E[[#This Row],[الحافز]]*100%,0))))) -> 0 | BS20: 0 | BT20: 0 | BU20: 0 | BV20: 0 | BW20: 3 | BX20: 0 | BZ20: 0 | CA20: 0 | CB20: 0 | CD20: 0 | CE20: 0 | CF20: 0 | CG20: 0 | CH20: 0 | CJ20: 0 | CK20: 5 | CN20: 0 | CO20: 0 | CR20: 0 | CS20: 490.26 | CT20: 0 | CU20: =ROUND(IF($H20=data.E[[#Headers],[إيقاف]],$BG20-SUM(data.E[[#This Row],[تامينات 2026]:[تنفيذ أحكام]],data.E[[#This Row],[الشهداء]:[خصم 5% تأمين من العمولة]],0),0),2) -> 0 | CV20: =ROUND(IF($H20=data.E[[#Headers],[مرضي]],$BG20-SUM(data.E[[#This Row],[تامينات 2026]:[تنفيذ أحكام]],data.E[[#This Row],[الشهداء]:[خصم 5% تأمين من العمولة]],0),0),2) -> 0 | CW20: =ROUND(IF($H20=data.E[[#Headers],[أجازة]],$BG20-SUM(data.E[[#This Row],[تامينات 2026]:[تنفيذ أحكام]],data.E[[#This Row],[الشهداء]:[خصم 5% تأمين من العمولة]],0),0),2) -> 0 | CX20: =ROUND(IF($H20=data.E[[#Headers],[إعارة]],$BG20-SUM(data.E[[#This Row],[تامينات 2026]:[تنفيذ أحكام]],data.E[[#This Row],[الشهداء]:[خصم 5% تأمين من العمولة]],0),0),2) -> 0 | CY20: =ROUND(IF($H20=data.E[[#Headers],[إنهاء]],$BG20-SUM(data.E[[#This Row],[تامينات 2026]:[تنفيذ أحكام]],data.E[[#This Row],[الشهداء]:[خصم 5% تأمين من العمولة]],0),0),2) -> 0 | CZ20: =ROUND(IF($H20=data.E[[#Headers],[معاش]],$BG20-SUM(data.E[[#This Row],[تامينات 2026]:[تنفيذ أحكام]],data.E[[#This Row],[الشهداء]:[خصم 5% تأمين من العمولة]],0),0),2) -> 8857.05 | DA20: =ROUND(SUM(data.E[[#This Row],[تامينات 2026]:[تنفيذ أحكام]],data.E[[#This Row],[الشهداء]:[معاش]]),2) -> 10438.88 | DB20: 0
A21: =IF(data.E[[#This Row],[الموظف المختص]]=print.e!$E$2,COUNTIF('data.e'!$G$4:G21,G21),"") -> 18 | B21: 101009 | C21: 11054 | D21: بنك مصر 1 | E21: امل احمد عزت حسن | G21: منال | H21: دوام كامل | I21: ادارى | J21: الاولى | N21: الادارة العامة | O21: المنطقه المركزية | P21: 26605080102086 | Q21: 10100911054امل احمد عزت حسنمنالالاولى | S21: 2674.13 | T21: 2941.543 | U21: 0 | V21: 3971.08 | W21: 441.23 | X21: 0 | Y21: 0 | Z21: 0 | AB21: 0 | AC21: 300 | AE21: 0 | AF21: 0 | AG21: 0 | AH21: 0 | AI21: =SUM(AA21:AH21)-data.E[[#This Row],[بدل تمثيل]] -> 300 | AJ21: 93.74 | AK21: 104.69 | AL21: 120 | AM21: 0 | AN21: 190 | AO21: 53.46 | AP21: 95.33 | AQ21: 122.4 | AR21: 174.63 | AS21: 186.86 | AT21: 199.94 | AU21: 0 | AV21: 133.7065 | AW21: 600 | AX21: 6 | AY21: 2080.76 | AZ21: 10 | BA21: =ROUND((data.E[[#This Row],[أساسي 7/2025]]*2)/12,2) -> 490.26 | BE21: 10234.87 | BF21: 0 | BG21: =IF(data.E[[#This Row],[حالة العمل]]="إيقاف",data.E[[#This Row],[أساسي 7/2025]],ROUND(SUM(data.E[[#This Row],[بدل تمثيل]],BB21:BF21),2)) -> 10234.87 | BL21: =ROUND(data.E[[#This Row],[تامينات 2026]]/11%,2) -> 9746.64 | BM21: 1072.13 | BO21: =(data.E[[#This Row],[إجمالي المستحق]]-SUM(data.E[[#This Row],[الحافز]],data.E[[#This Row],[متوسط المنحة]:[الإضافي]]))/30*data.E[[#This Row],[أيام الغياب]] -> 0 | BP21: =(data.E[[#This Row],[إجمالي المستحق]]-SUM(data.E[[#This Row],[الحافز]],data.E[[#This Row],[متوسط المنحة]:[الإضافي]]))/30*data.E[[#This Row],[أيام جزاء]] -> 0 | BQ21: =IF(data.E[[#This Row],[أيام الغياب]]=1,data.E[[#This Row],[الحافز]]*20%,IF(data.E[[#This Row],[أيام الغياب]]=2,data.E[[#This Row],[الحافز]]*30%,IF(data.E[[#This Row],[أيام الغياب]]>2,data.E[[#This Row],[الحافز]]*100%,0))) -> 0 | BR21: =IF(data.E[[#This Row],[عدد أيام الأجازات]]<=4,data.E[[#This Row],[الحافز]]*0,IF(data.E[[#This Row],[عدد أيام الأجازات]]=5,data.E[[#This Row],[الحافز]]*20%,IF(data.E[[#This Row],[عدد أيام الأجازات]]=6,data.E[[#This Row],[الحافز]]*40%,IF(data.E[[#This Row],[عدد أيام الأجازات]]=7,data.E[[#This Row],[الحافز]]*50%,IF(data.E[[#This Row],[عدد أيام الأجازات]]>7,data.E[[#This Row],[الحافز]]*100%,0))))) -> 0 | BS21: 0 | BT21: 0 | BU21: 0 | BV21: 0 | BW21: 3 | BX21: 0 | BZ21: 0 | CA21: 0 | CB21: 0 | CD21: 0 | CE21: 0 | CF21: 0 | CG21: 0 | CH21: 0 | CJ21: 4.72 | CK21: 5 | CN21: 0 | CO21: 0 | CR21: 0 | CS21: 490.26 | CT21: 0 | CU21: =ROUND(IF($H21=data.E[[#Headers],[إيقاف]],$BG21-SUM(data.E[[#This Row],[تامينات 2026]:[تنفيذ أحكام]],data.E[[#This Row],[الشهداء]:[خصم 5% تأمين من العمولة]],0),0),2) -> 0 | CV21: =ROUND(IF($H21=data.E[[#Headers],[مرضي]],$BG21-SUM(data.E[[#This Row],[تامينات 2026]:[تنفيذ أحكام]],data.E[[#This Row],[الشهداء]:[خصم 5% تأمين من العمولة]],0),0),2) -> 0 | CW21: =ROUND(IF($H21=data.E[[#Headers],[أجازة]],$BG21-SUM(data.E[[#This Row],[تامينات 2026]:[تنفيذ أحكام]],data.E[[#This Row],[الشهداء]:[خصم 5% تأمين من العمولة]],0),0),2) -> 0 | CX21: =ROUND(IF($H21=data.E[[#Headers],[إعارة]],$BG21-SUM(data.E[[#This Row],[تامينات 2026]:[تنفيذ أحكام]],data.E[[#This Row],[الشهداء]:[خصم 5% تأمين من العمولة]],0),0),2) -> 0 | CY21: =ROUND(IF($H21=data.E[[#Headers],[إنهاء]],$BG21-SUM(data.E[[#This Row],[تامينات 2026]:[تنفيذ أحكام]],data.E[[#This Row],[الشهداء]:[خصم 5% تأمين من العمولة]],0),0),2) -> 0 | CZ21: =ROUND(IF($H21=data.E[[#Headers],[معاش]],$BG21-SUM(data.E[[#This Row],[تامينات 2026]:[تنفيذ أحكام]],data.E[[#This Row],[الشهداء]:[خصم 5% تأمين من العمولة]],0),0),2) -> 0 | DA21: =ROUND(SUM(data.E[[#This Row],[تامينات 2026]:[تنفيذ أحكام]],data.E[[#This Row],[الشهداء]:[معاش]]),2) -> 1575.11 | DB21: 8659.76
A22: =IF(data.E[[#This Row],[الموظف المختص]]=print.e!$E$2,COUNTIF('data.e'!$G$4:G22,G22),"") -> 19 | B22: 101010 | C22: 11122 | D22: بنك مصر 1 | E22: عزه عبد الرحيم محمد فراج | G22: منال | H22: دوام كامل | I22: ادارى | J22: الاولى | N22: الادارة العامة | O22: المنطقه المركزية | P22: 26703010105926 | Q22: 10101011122عزه عبد الرحيم محمد فراجمنالالاولى | S22: 3009.44 | T22: 3310.384 | U22: 0 | V22: 4469.02 | W22: 496.56 | X22: 0 | Y22: 0 | Z22: 0 | AB22: 0 | AC22: 300 | AE22: 100 | AF22: 0 | AG22: 0 | AH22: 0 | AI22: =SUM(AA22:AH22)-data.E[[#This Row],[بدل تمثيل]] -> 300 | AJ22: 88.14 | AK22: 98.75 | AL22: 120 | AM22: 0 | AN22: 190 | AO22: 56.22 | AP22: 107.28 | AQ22: 137.75 | AR22: 196.53 | AS22: 210.28 | AT22: 225 | AU22: 0 | AV22: 150.472 | AW22: 600 | AX22: 6 | AY22: 2186.42 | AZ22: 10 | BA22: =ROUND((data.E[[#This Row],[أساسي 7/2025]]*2)/12,2) -> 551.73 | BE22: 11324.11 | BF22: 0 | BG22: =IF(data.E[[#This Row],[حالة العمل]]="إيقاف",data.E[[#This Row],[أساسي 7/2025]],ROUND(SUM(data.E[[#This Row],[بدل تمثيل]],BB22:BF22),2)) -> 11424.11 | BL22: =ROUND(data.E[[#This Row],[تامينات 2026]]/11%,2) -> 10838.45 | BM22: 1192.23 | BO22: =(data.E[[#This Row],[إجمالي المستحق]]-SUM(data.E[[#This Row],[الحافز]],data.E[[#This Row],[متوسط المنحة]:[الإضافي]]))/30*data.E[[#This Row],[أيام الغياب]] -> 0 | BP22: =(data.E[[#This Row],[إجمالي المستحق]]-SUM(data.E[[#This Row],[الحافز]],data.E[[#This Row],[متوسط المنحة]:[الإضافي]]))/30*data.E[[#This Row],[أيام جزاء]] -> 0 | BQ22: =IF(data.E[[#This Row],[أيام الغياب]]=1,data.E[[#This Row],[الحافز]]*20%,IF(data.E[[#This Row],[أيام الغياب]]=2,data.E[[#This Row],[الحافز]]*30%,IF(data.E[[#This Row],[أيام الغياب]]>2,data.E[[#This Row],[الحافز]]*100%,0))) -> 0 | BR22: =IF(data.E[[#This Row],[عدد أيام الأجازات]]<=4,data.E[[#This Row],[الحافز]]*0,IF(data.E[[#This Row],[عدد أيام الأجازات]]=5,data.E[[#This Row],[الحافز]]*20%,IF(data.E[[#This Row],[عدد أيام الأجازات]]=6,data.E[[#This Row],[الحافز]]*40%,IF(data.E[[#This Row],[عدد أيام الأجازات]]=7,data.E[[#This Row],[الحافز]]*50%,IF(data.E[[#This Row],[عدد أيام الأجازات]]>7,data.E[[#This Row],[الحافز]]*100%,0))))) -> 0 | BS22: 0 | BT22: 0 | BU22: 0 | BV22: 0 | BW22: 3 | BX22: 0 | BZ22: 0 | CA22: 0 | CB22: 0 | CD22: 0 | CE22: 0 | CF22: 0 | CG22: 0 | CH22: 0 | CJ22: 5.29 | CK22: 5 | CN22: 0 | CO22: 0 | CR22: 0 | CS22: 551.73 | CT22: 0 | CU22: =ROUND(IF($H22=data.E[[#Headers],[إيقاف]],$BG22-SUM(data.E[[#This Row],[تامينات 2026]:[تنفيذ أحكام]],data.E[[#This Row],[الشهداء]:[خصم 5% تأمين من العمولة]],0),0),2) -> 0 | CV22: =ROUND(IF($H22=data.E[[#Headers],[مرضي]],$BG22-SUM(data.E[[#This Row],[تامينات 2026]:[تنفيذ أحكام]],data.E[[#This Row],[الشهداء]:[خصم 5% تأمين من العمولة]],0),0),2) -> 0 | CW22: =ROUND(IF($H22=data.E[[#Headers],[أجازة]],$BG22-SUM(data.E[[#This Row],[تامينات 2026]:[تنفيذ أحكام]],data.E[[#This Row],[الشهداء]:[خصم 5% تأمين من العمولة]],0),0),2) -> 0 | CX22: =ROUND(IF($H22=data.E[[#Headers],[إعارة]],$BG22-SUM(data.E[[#This Row],[تامينات 2026]:[تنفيذ أحكام]],data.E[[#This Row],[الشهداء]:[خصم 5% تأمين من العمولة]],0),0),2) -> 0 | CY22: =ROUND(IF($H22=data.E[[#Headers],[إنهاء]],$BG22-SUM(data.E[[#This Row],[تامينات 2026]:[تنفيذ أحكام]],data.E[[#This Row],[الشهداء]:[خصم 5% تأمين من العمولة]],0),0),2) -> 0 | CZ22: =ROUND(IF($H22=data.E[[#Headers],[معاش]],$BG22-SUM(data.E[[#This Row],[تامينات 2026]:[تنفيذ أحكام]],data.E[[#This Row],[الشهداء]:[خصم 5% تأمين من العمولة]],0),0),2) -> 0 | DA22: =ROUND(SUM(data.E[[#This Row],[تامينات 2026]:[تنفيذ أحكام]],data.E[[#This Row],[الشهداء]:[معاش]]),2) -> 1757.25 | DB22: 9666.86
A23: =IF(data.E[[#This Row],[الموظف المختص]]=print.e!$E$2,COUNTIF('data.e'!$G$4:G23,G23),"") -> 20 | B23: 101011 | C23: 11147 | D23: بنك مصر 1 | E23: امجد صلاح الدين السباعي خليل | G23: منال | H23: دوام كامل | I23: ادارى | J23: الاولى | N23: الادارة العامة | O23: المنطقه المركزية | P23: 26809212102051 | Q23: 10101111147امجد صلاح الدين السباعي خليلمنالالاولى | S23: 2674.13 | T23: 2941.543 | U23: 0 | V23: 3971.08 | W23: 441.23 | X23: 0 | Y23: 0 | Z23: 0 | AB23: 0 | AC23: 300 | AE23: 200 | AF23: 0 | AG23: 0 | AH23: 0 | AI23: =SUM(AA23:AH23)-data.E[[#This Row],[بدل تمثيل]] -> 300 | AJ23: 93.74 | AK23: 104.69 | AL23: 120 | AM23: 0 | AN23: 190 | AO23: 53.46 | AP23: 95.33 | AQ23: 122.4 | AR23: 174.63 | AS23: 186.86 | AT23: 199.94 | AU23: 0 | AV23: 133.7065 | AW23: 600 | AX23: 10 | AY23: 2084.76 | AZ23: 10 | BA23: =ROUND((data.E[[#This Row],[أساسي 7/2025]]*2)/12,2) -> 490.26 | BE23: 10238.87 | BF23: 0 | BG23: =IF(data.E[[#This Row],[حالة العمل]]="إيقاف",data.E[[#This Row],[أساسي 7/2025]],ROUND(SUM(data.E[[#This Row],[بدل تمثيل]],BB23:BF23),2)) -> 10438.87 | BL23: =ROUND(data.E[[#This Row],[تامينات 2026]]/11%,2) -> 9775.64 | BM23: 1075.32 | BO23: =(data.E[[#This Row],[إجمالي المستحق]]-SUM(data.E[[#This Row],[الحافز]],data.E[[#This Row],[متوسط المنحة]:[الإضافي]]))/30*data.E[[#This Row],[أيام الغياب]] -> 0 | BP23: =(data.E[[#This Row],[إجمالي المستحق]]-SUM(data.E[[#This Row],[الحافز]],data.E[[#This Row],[متوسط المنحة]:[الإضافي]]))/30*data.E[[#This Row],[أيام جزاء]] -> 0 | BQ23: =IF(data.E[[#This Row],[أيام الغياب]]=1,data.E[[#This Row],[الحافز]]*20%,IF(data.E[[#This Row],[أيام الغياب]]=2,data.E[[#This Row],[الحافز]]*30%,IF(data.E[[#This Row],[أيام الغياب]]>2,data.E[[#This Row],[الحافز]]*100%,0))) -> 0 | BR23: =IF(data.E[[#This Row],[عدد أيام الأجازات]]<=4,data.E[[#This Row],[الحافز]]*0,IF(data.E[[#This Row],[عدد أيام الأجازات]]=5,data.E[[#This Row],[الحافز]]*20%,IF(data.E[[#This Row],[عدد أيام الأجازات]]=6,data.E[[#This Row],[الحافز]]*40%,IF(data.E[[#This Row],[عدد أيام الأجازات]]=7,data.E[[#This Row],[الحافز]]*50%,IF(data.E[[#This Row],[عدد أيام الأجازات]]>7,data.E[[#This Row],[الحافز]]*100%,0))))) -> 0 | BS23: 0 | BT23: 0 | BU23: 0 | BV23: 0 | BW23: 3 | BX23: 0 | BZ23: 0 | CA23: 0 | CB23: 0 | CD23: 0 | CE23: 0 | CF23: 0 | CG23: 0 | CH23: 0 | CJ23: 4.87 | CK23: 5 | CN23: 0 | CO23: 0 | CR23: 0 | CS23: 490.26 | CT23: 0 | CU23: =ROUND(IF($H23=data.E[[#Headers],[إيقاف]],$BG23-SUM(data.E[[#This Row],[تامينات 2026]:[تنفيذ أحكام]],data.E[[#This Row],[الشهداء]:[خصم 5% تأمين من العمولة]],0),0),2) -> 0 | CV23: =ROUND(IF($H23=data.E[[#Headers],[مرضي]],$BG23-SUM(data.E[[#This Row],[تامينات 2026]:[تنفيذ أحكام]],data.E[[#This Row],[الشهداء]:[خصم 5% تأمين من العمولة]],0),0),2) -> 0 | CW23: =ROUND(IF($H23=data.E[[#Headers],[أجازة]],$BG23-SUM(data.E[[#This Row],[تامينات 2026]:[تنفيذ أحكام]],data.E[[#This Row],[الشهداء]:[خصم 5% تأمين من العمولة]],0),0),2) -> 0 | CX23: =ROUND(IF($H23=data.E[[#Headers],[إعارة]],$BG23-SUM(data.E[[#This Row],[تامينات 2026]:[تنفيذ أحكام]],data.E[[#This Row],[الشهداء]:[خصم 5% تأمين من العمولة]],0),0),2) -> 0 | CY23: =ROUND(IF($H23=data.E[[#Headers],[إنهاء]],$BG23-SUM(data.E[[#This Row],[تامينات 2026]:[تنفيذ أحكام]],data.E[[#This Row],[الشهداء]:[خصم 5% تأمين من العمولة]],0),0),2) -> 0 | CZ23: =ROUND(IF($H23=data.E[[#Headers],[معاش]],$BG23-SUM(data.E[[#This Row],[تامينات 2026]:[تنفيذ أحكام]],data.E[[#This Row],[الشهداء]:[خصم 5% تأمين من العمولة]],0),0),2) -> 0 | DA23: =ROUND(SUM(data.E[[#This Row],[تامينات 2026]:[تنفيذ أحكام]],data.E[[#This Row],[الشهداء]:[معاش]]),2) -> 1578.45 | DB23: 8860.42
A24: =IF(data.E[[#This Row],[الموظف المختص]]=print.e!$E$2,COUNTIF('data.e'!$G$4:G24,G24),"") -> 21 | B24: 101012 | C24: 11168 | D24: بنك مصر 1 | E24: ماجد كامل احمد رضوان | G24: منال | H24: معاش | I24: ادارى | J24: الاولى | N24: الادارة العامة | O24: المنطقه المركزية | P24: 26601010101133 | Q24: 10101211168ماجد كامل احمد رضوانمنالالاولى | S24: 2987.26 | T24: 3285.986 | U24: 0 | V24: 4436.08 | W24: 492.9 | X24: 0 | Y24: 0 | Z24: 0 | AB24: 0 | AC24: 300 | AE24: 0 | AF24: 0 | AG24: 0 | AH24: 0 | AI24: =SUM(AA24:AH24)-data.E[[#This Row],[بدل تمثيل]] -> 300 | AJ24: 104.65 | AK24: 116.91 | AL24: 120 | AM24: 0 | AN24: 190 | AO24: 59.72 | AP24: 106.49 | AQ24: 136.74 | AR24: 195.08 | AS24: 208.74 | AT24: 223.35 | AU24: 0 | AV24: 149.363 | AW24: 600 | AX24: 4 | AY24: 2215.04 | AZ24: 10 | BA24: =ROUND((data.E[[#This Row],[أساسي 7/2025]]*2)/12,2) -> 547.66 | BE24: 11287.67 | BF24: 0 | BG24: =IF(data.E[[#This Row],[حالة العمل]]="إيقاف",data.E[[#This Row],[أساسي 7/2025]],ROUND(SUM(data.E[[#This Row],[بدل تمثيل]],BB24:BF24),2)) -> 11287.67 | BL24: =ROUND(data.E[[#This Row],[تامينات 2026]]/11%,2) -> 10795.18 | BM24: 1187.47 | BO24: =(data.E[[#This Row],[إجمالي المستحق]]-SUM(data.E[[#This Row],[الحافز]],data.E[[#This Row],[متوسط المنحة]:[الإضافي]]))/30*data.E[[#This Row],[أيام الغياب]] -> 0 | BP24: =(data.E[[#This Row],[إجمالي المستحق]]-SUM(data.E[[#This Row],[الحافز]],data.E[[#This Row],[متوسط المنحة]:[الإضافي]]))/30*data.E[[#This Row],[أيام جزاء]] -> 0 | BQ24: =IF(data.E[[#This Row],[أيام الغياب]]=1,data.E[[#This Row],[الحافز]]*20%,IF(data.E[[#This Row],[أيام الغياب]]=2,data.E[[#This Row],[الحافز]]*30%,IF(data.E[[#This Row],[أيام الغياب]]>2,data.E[[#This Row],[الحافز]]*100%,0))) -> 0 | BR24: =IF(data.E[[#This Row],[عدد أيام الأجازات]]<=4,data.E[[#This Row],[الحافز]]*0,IF(data.E[[#This Row],[عدد أيام الأجازات]]=5,data.E[[#This Row],[الحافز]]*20%,IF(data.E[[#This Row],[عدد أيام الأجازات]]=6,data.E[[#This Row],[الحافز]]*40%,IF(data.E[[#This Row],[عدد أيام الأجازات]]=7,data.E[[#This Row],[الحافز]]*50%,IF(data.E[[#This Row],[عدد أيام الأجازات]]>7,data.E[[#This Row],[الحافز]]*100%,0))))) -> 0 | BS24: 0 | BT24: 0 | BU24: 0 | BV24: 0 | BW24: 3 | BX24: 0 | BZ24: 0 | CA24: 0 | CB24: 0 | CD24: 0 | CE24: 0 | CF24: 0 | CG24: 0 | CH24: 0 | CJ24: 0 | CK24: 5 | CN24: 0 | CO24: 0 | CR24: 0 | CS24: 547.66 | CT24: 0 | CU24: =ROUND(IF($H24=data.E[[#Headers],[إيقاف]],$BG24-SUM(data.E[[#This Row],[تامينات 2026]:[تنفيذ أحكام]],data.E[[#This Row],[الشهداء]:[خصم 5% تأمين من العمولة]],0),0),2) -> 0 | CV24: =ROUND(IF($H24=data.E[[#Headers],[مرضي]],$BG24-SUM(data.E[[#This Row],[تامينات 2026]:[تنفيذ أحكام]],data.E[[#This Row],[الشهداء]:[خصم 5% تأمين من العمولة]],0),0),2) -> 0 | CW24: =ROUND(IF($H24=data.E[[#Headers],[أجازة]],$BG24-SUM(data.E[[#This Row],[تامينات 2026]:[تنفيذ أحكام]],data.E[[#This Row],[الشهداء]:[خصم 5% تأمين من العمولة]],0),0),2) -> 0 | CX24: =ROUND(IF($H24=data.E[[#Headers],[إعارة]],$BG24-SUM(data.E[[#This Row],[تامينات 2026]:[تنفيذ أحكام]],data.E[[#This Row],[الشهداء]:[خصم 5% تأمين من العمولة]],0),0),2) -> 0 | CY24: =ROUND(IF($H24=data.E[[#Headers],[إنهاء]],$BG24-SUM(data.E[[#This Row],[تامينات 2026]:[تنفيذ أحكام]],data.E[[#This Row],[الشهداء]:[خصم 5% تأمين من العمولة]],0),0),2) -> 0 | CZ24: =ROUND(IF($H24=data.E[[#Headers],[معاش]],$BG24-SUM(data.E[[#This Row],[تامينات 2026]:[تنفيذ أحكام]],data.E[[#This Row],[الشهداء]:[خصم 5% تأمين من العمولة]],0),0),2) -> 9544.54 | DA24: =ROUND(SUM(data.E[[#This Row],[تامينات 2026]:[تنفيذ أحكام]],data.E[[#This Row],[الشهداء]:[معاش]]),2) -> 11287.67 | DB24: 0
A25: =IF(data.E[[#This Row],[الموظف المختص]]=print.e!$E$2,COUNTIF('data.e'!$G$4:G25,G25),"") -> 22 | B25: 101013 | C25: 11196 | D25: بنك مصر 1 | E25: عصمت عبد الرحيم محمد فراج | G25: منال | H25: دوام كامل | I25: ادارى | J25: الاولى | L25: الأولى | M25: كاتب شئون تجارية | N25: الادارة العامة | O25: المنطقه المركزية | P25: 26811210100268 | Q25: 10101311196عصمت عبد الرحيم محمد فراجمنالالاولىالأولىكاتب شئون تجاريةقطاع مالى | R25: نعم | S25: 2538.76 | T25: 2970.3492 | U25: 0 | V25: 4009.97 | W25: 445.55 | X25: 0 | Y25: 0 | Z25: 0 | AB25: 0 | AC25: 300 | AE25: 0 | AF25: 0 | AG25: 0 | AH25: 0 | AI25: =SUM(AA25:AH25)-data.E[[#This Row],[بدل تمثيل]] -> 300 | AJ25: 89.99 | AK25: 100.44 | AL25: 119.89 | AM25: 0 | AN25: 190 | AO25: 50.75 | AP25: 90.51 | AQ25: 116.21 | AR25: 165.79 | AS25: 177.4 | AT25: 189.81 | AU25: 0 | AV25: 126.938 | AW25: 600 | AX25: 4 | AY25: 2021.73 | AZ25: 10 | BA25: =ROUND((data.E[[#This Row],[أساسي 7/2025]]*2)/12,2) -> 495.06 | BE25: 10252.66 | BF25: 0 | BG25: =IF(data.E[[#This Row],[حالة العمل]]="إيقاف",data.E[[#This Row],[أساسي 7/2025]],ROUND(SUM(data.E[[#This Row],[بدل تمثيل]],BB25:BF25),2)) -> 10252.66 | BL25: =ROUND(data.E[[#This Row],[تامينات 2026]]/11%,2) -> 9499.45 | BM25: 1044.94 | BO25: =(data.E[[#This Row],[إجمالي المستحق]]-SUM(data.E[[#This Row],[الحافز]],data.E[[#This Row],[متوسط المنحة]:[الإضافي]]))/30*data.E[[#This Row],[أيام الغياب]] -> 0 | BP25: =(data.E[[#This Row],[إجمالي المستحق]]-SUM(data.E[[#This Row],[الحافز]],data.E[[#This Row],[متوسط المنحة]:[الإضافي]]))/30*data.E[[#This Row],[أيام جزاء]] -> 0 | BQ25: =IF(data.E[[#This Row],[أيام الغياب]]=1,data.E[[#This Row],[الحافز]]*20%,IF(data.E[[#This Row],[أيام الغياب]]=2,data.E[[#This Row],[الحافز]]*30%,IF(data.E[[#This Row],[أيام الغياب]]>2,data.E[[#This Row],[الحافز]]*100%,0))) -> 0 | BR25: =IF(data.E[[#This Row],[عدد أيام الأجازات]]<=4,data.E[[#This Row],[الحافز]]*0,IF(data.E[[#This Row],[عدد أيام الأجازات]]=5,data.E[[#This Row],[الحافز]]*20%,IF(data.E[[#This Row],[عدد أيام الأجازات]]=6,data.E[[#This Row],[الحافز]]*40%,IF(data.E[[#This Row],[عدد أيام الأجازات]]=7,data.E[[#This Row],[الحافز]]*50%,IF(data.E[[#This Row],[عدد أيام الأجازات]]>7,data.E[[#This Row],[الحافز]]*100%,0))))) -> 0 | BS25: 0 | BT25: 20.75 | BU25: 0 | BV25: 0 | BW25: 3 | BX25: 0 | BZ25: 0 | CA25: 0 | CB25: 0 | CD25: 0 | CE25: 0 | CF25: 0 | CG25: 0 | CH25: 0 | CJ25: 4.73 | CK25: 5 | CN25: 0 | CO25: 0 | CR25: 0 | CS25: 495.06 | CT25: 0 | CU25: =ROUND(IF($H25=data.E[[#Headers],[إيقاف]],$BG25-SUM(data.E[[#This Row],[تامينات 2026]:[تنفيذ أحكام]],data.E[[#This Row],[الشهداء]:[خصم 5% تأمين من العمولة]],0),0),2) -> 0 | CV25: =ROUND(IF($H25=data.E[[#Headers],[مرضي]],$BG25-SUM(data.E[[#This Row],[تامينات 2026]:[تنفيذ أحكام]],data.E[[#This Row],[الشهداء]:[خصم 5% تأمين من العمولة]],0),0),2) -> 0 | CW25: =ROUND(IF($H25=data.E[[#Headers],[أجازة]],$BG25-SUM(data.E[[#This Row],[تامينات 2026]:[تنفيذ أحكام]],data.E[[#This Row],[الشهداء]:[خصم 5% تأمين من العمولة]],0),0),2) -> 0 | CX25: =ROUND(IF($H25=data.E[[#Headers],[إعارة]],$BG25-SUM(data.E[[#This Row],[تامينات 2026]:[تنفيذ أحكام]],data.E[[#This Row],[الشهداء]:[خصم 5% تأمين من العمولة]],0),0),2) -> 0 | CY25: =ROUND(IF($H25=data.E[[#Headers],[إنهاء]],$BG25-SUM(data.E[[#This Row],[تامينات 2026]:[تنفيذ أحكام]],data.E[[#This Row],[الشهداء]:[خصم 5% تأمين من العمولة]],0),0),2) -> 0 | CZ25: =ROUND(IF($H25=data.E[[#Headers],[معاش]],$BG25-SUM(data.E[[#This Row],[تامينات 2026]:[تنفيذ أحكام]],data.E[[#This Row],[الشهداء]:[خصم 5% تأمين من العمولة]],0),0),2) -> 0 | DA25: =ROUND(SUM(data.E[[#This Row],[تامينات 2026]:[تنفيذ أحكام]],data.E[[#This Row],[الشهداء]:[معاش]]),2) -> 1573.48 | DB25: 8679.18
A26: =IF(data.E[[#This Row],[الموظف المختص]]=print.e!$E$2,COUNTIF('data.e'!$G$4:G26,G26),"") -> 23 | B26: 101014 | C26: 11336 | D26: بنك مصر 1 | E26: نعمه عباس حسن شحاته | G26: منال | H26: دوام كامل | I26: ادارى | J26: الاولى | N26: الادارة العامة | O26: المنطقه المركزية | P26: 26702080101042 | Q26: 10101411336نعمه عباس حسن شحاتهمنالالاولى | S26: 2630.88 | T26: 2893.968 | U26: 0 | V26: 3906.86 | W26: 434.1 | X26: 0 | Y26: 0 | Z26: 0 | AB26: 0 | AC26: 300 | AE26: 0 | AF26: 0 | AG26: 0 | AH26: 0 | AI26: =SUM(AA26:AH26)-data.E[[#This Row],[بدل تمثيل]] -> 300 | AJ26: 86.95 | AK26: 97.13 | AL26: 120 | AM26: 0 | AN26: 190 | AO26: 52.59 | AP26: 93.79 | AQ26: 120.43 | AR26: 171.81 | AS26: 183.83 | AT26: 196.7 | AU26: 0 | AV26: 131.544 | AW26: 600 | AX26: 6 | AY26: 2050.77 | AZ26: 10 | BA26: =ROUND((data.E[[#This Row],[أساسي 7/2025]]*2)/12,2) -> 482.33 | BE26: 10078.03 | BF26: 0 | BG26: =IF(data.E[[#This Row],[حالة العمل]]="إيقاف",data.E[[#This Row],[أساسي 7/2025]],ROUND(SUM(data.E[[#This Row],[بدل تمثيل]],BB26:BF26),2)) -> 10078.03 | BL26: =ROUND(data.E[[#This Row],[تامينات 2026]]/11%,2) -> 9592.64 | BM26: 1055.19 | BO26: =(data.E[[#This Row],[إجمالي المستحق]]-SUM(data.E[[#This Row],[الحافز]],data.E[[#This Row],[متوسط المنحة]:[الإضافي]]))/30*data.E[[#This Row],[أيام الغياب]] -> 0 | BP26: =(data.E[[#This Row],[إجمالي المستحق]]-SUM(data.E[[#This Row],[الحافز]],data.E[[#This Row],[متوسط المنحة]:[الإضافي]]))/30*data.E[[#This Row],[أيام جزاء]] -> 0 | BQ26: =IF(data.E[[#This Row],[أيام الغياب]]=1,data.E[[#This Row],[الحافز]]*20%,IF(data.E[[#This Row],[أيام الغياب]]=2,data.E[[#This Row],[الحافز]]*30%,IF(data.E[[#This Row],[أيام الغياب]]>2,data.E[[#This Row],[الحافز]]*100%,0))) -> 0 | BR26: =IF(data.E[[#This Row],[عدد أيام الأجازات]]<=4,data.E[[#This Row],[الحافز]]*0,IF(data.E[[#This Row],[عدد أيام الأجازات]]=5,data.E[[#This Row],[الحافز]]*20%,IF(data.E[[#This Row],[عدد أيام الأجازات]]=6,data.E[[#This Row],[الحافز]]*40%,IF(data.E[[#This Row],[عدد أيام الأجازات]]=7,data.E[[#This Row],[الحافز]]*50%,IF(data.E[[#This Row],[عدد أيام الأجازات]]>7,data.E[[#This Row],[الحافز]]*100%,0))))) -> 0 | BS26: 0 | BT26: 13.07 | BU26: 0 | BV26: 0 | BW26: 3 | BX26: 0 | BZ26: 0 | CA26: 0 | CB26: 0 | CD26: 0 | CE26: 0 | CF26: 0 | CG26: 0 | CH26: 0 | CJ26: 4.65 | CK26: 5 | CN26: 0 | CO26: 0 | CR26: 0 | CS26: 482.33 | CT26: 0 | CU26: =ROUND(IF($H26=data.E[[#Headers],[إيقاف]],$BG26-SUM(data.E[[#This Row],[تامينات 2026]:[تنفيذ أحكام]],data.E[[#This Row],[الشهداء]:[خصم 5% تأمين من العمولة]],0),0),2) -> 0 | CV26: =ROUND(IF($H26=data.E[[#Headers],[مرضي]],$BG26-SUM(data.E[[#This Row],[تامينات 2026]:[تنفيذ أحكام]],data.E[[#This Row],[الشهداء]:[خصم 5% تأمين من العمولة]],0),0),2) -> 0 | CW26: =ROUND(IF($H26=data.E[[#Headers],[أجازة]],$BG26-SUM(data.E[[#This Row],[تامينات 2026]:[تنفيذ أحكام]],data.E[[#This Row],[الشهداء]:[خصم 5% تأمين من العمولة]],0),0),2) -> 0 | CX26: =ROUND(IF($H26=data.E[[#Headers],[إعارة]],$BG26-SUM(data.E[[#This Row],[تامينات 2026]:[تنفيذ أحكام]],data.E[[#This Row],[الشهداء]:[خصم 5% تأمين من العمولة]],0),0),2) -> 0 | CY26: =ROUND(IF($H26=data.E[[#Headers],[إنهاء]],$BG26-SUM(data.E[[#This Row],[تامينات 2026]:[تنفيذ أحكام]],data.E[[#This Row],[الشهداء]:[خصم 5% تأمين من العمولة]],0),0),2) -> 0 | CZ26: =ROUND(IF($H26=data.E[[#Headers],[معاش]],$BG26-SUM(data.E[[#This Row],[تامينات 2026]:[تنفيذ أحكام]],data.E[[#This Row],[الشهداء]:[خصم 5% تأمين من العمولة]],0),0),2) -> 0 | DA26: =ROUND(SUM(data.E[[#This Row],[تامينات 2026]:[تنفيذ أحكام]],data.E[[#This Row],[الشهداء]:[معاش]]),2) -> 1563.24 | DB26: 8514.79
A27: =IF(data.E[[#This Row],[الموظف المختص]]=print.e!$E$2,COUNTIF('data.e'!$G$4:G27,G27),"") -> 24 | B27: 101015 | C27: 11201 | D27: بنك مصر 1 | E27: مرفت محمد زينهم الواحد | G27: منال | H27: دوام كامل | I27: ادارى | J27: الاولى | N27: الادارة العامة | O27: المنطقه المركزية | P27: 26704081700741 | Q27: 10101511201مرفت محمد زينهم الواحدمنالالاولى | S27: 2627.11 | T27: 2889.821 | U27: 0 | V27: 3901.26 | W27: 433.47 | X27: 0 | Y27: 0 | Z27: 0 | AB27: 0 | AC27: 300 | AE27: 0 | AF27: 0 | AG27: 0 | AH27: 0 | AI27: =SUM(AA27:AH27)-data.E[[#This Row],[بدل تمثيل]] -> 300 | AJ27: 86.84 | AK27: 96.99 | AL27: 120 | AM27: 0 | AN27: 190 | AO27: 52.52 | AP27: 93.65 | AQ27: 120.25 | AR27: 171.56 | AS27: 183.57 | AT27: 196.42 | AU27: 0 | AV27: 131.3555 | AW27: 600 | AX27: 6 | AY27: 2049.16 | AZ27: 10 | BA27: =ROUND((data.E[[#This Row],[أساسي 7/2025]]*2)/12,2) -> 481.64 | BE27: 10065.35 | BF27: 0 | BG27: =IF(data.E[[#This Row],[حالة العمل]]="إيقاف",data.E[[#This Row],[أساسي 7/2025]],ROUND(SUM(data.E[[#This Row],[بدل تمثيل]],BB27:BF27),2)) -> 10065.35 | BL27: =ROUND(data.E[[#This Row],[تامينات 2026]]/11%,2) -> 9580.18 | BM27: 1053.82 | BO27: =(data.E[[#This Row],[إجمالي المستحق]]-SUM(data.E[[#This Row],[الحافز]],data.E[[#This Row],[متوسط المنحة]:[الإضافي]]))/30*data.E[[#This Row],[أيام الغياب]] -> 0 | BP27: =(data.E[[#This Row],[إجمالي المستحق]]-SUM(data.E[[#This Row],[الحافز]],data.E[[#This Row],[متوسط المنحة]:[الإضافي]]))/30*data.E[[#This Row],[أيام جزاء]] -> 0 | BQ27: =IF(data.E[[#This Row],[أيام الغياب]]=1,data.E[[#This Row],[الحافز]]*20%,IF(data.E[[#This Row],[أيام الغياب]]=2,data.E[[#This Row],[الحافز]]*30%,IF(data.E[[#This Row],[أيام الغياب]]>2,data.E[[#This Row],[الحافز]]*100%,0))) -> 0 | BR27: =IF(data.E[[#This Row],[عدد أيام الأجازات]]<=4,data.E[[#This Row],[الحافز]]*0,IF(data.E[[#This Row],[عدد أيام الأجازات]]=5,data.E[[#This Row],[الحافز]]*20%,IF(data.E[[#This Row],[عدد أيام الأجازات]]=6,data.E[[#This Row],[الحافز]]*40%,IF(data.E[[#This Row],[عدد أيام الأجازات]]=7,data.E[[#This Row],[الحافز]]*50%,IF(data.E[[#This Row],[عدد أيام الأجازات]]>7,data.E[[#This Row],[الحافز]]*100%,0))))) -> 0 | BS27: 0 | BT27: 0 | BU27: 0 | BV27: 0 | BW27: 3 | BX27: 0 | BZ27: 0 | CA27: 0 | CB27: 0 | CD27: 0 | CE27: 0 | CF27: 0 | CG27: 0 | CH27: 0 | CJ27: 4.64 | CK27: 5 | CN27: 0 | CO27: 0 | CR27: 0 | CS27: 481.64 | CT27: 0 | CU27: =ROUND(IF($H27=data.E[[#Headers],[إيقاف]],$BG27-SUM(data.E[[#This Row],[تامينات 2026]:[تنفيذ أحكام]],data.E[[#This Row],[الشهداء]:[خصم 5% تأمين من العمولة]],0),0),2) -> 0 | CV27: =ROUND(IF($H27=data.E[[#Headers],[مرضي]],$BG27-SUM(data.E[[#This Row],[تامينات 2026]:[تنفيذ أحكام]],data.E[[#This Row],[الشهداء]:[خصم 5% تأمين من العمولة]],0),0),2) -> 0 | CW27: =ROUND(IF($H27=data.E[[#Headers],[أجازة]],$BG27-SUM(data.E[[#This Row],[تامينات 2026]:[تنفيذ أحكام]],data.E[[#This Row],[الشهداء]:[خصم 5% تأمين من العمولة]],0),0),2) -> 0 | CX27: =ROUND(IF($H27=data.E[[#Headers],[إعارة]],$BG27-SUM(data.E[[#This Row],[تامينات 2026]:[تنفيذ أحكام]],data.E[[#This Row],[الشهداء]:[خصم 5% تأمين من العمولة]],0),0),2) -> 0 | CY27: =ROUND(IF($H27=data.E[[#Headers],[إنهاء]],$BG27-SUM(data.E[[#This Row],[تامينات 2026]:[تنفيذ أحكام]],data.E[[#This Row],[الشهداء]:[خصم 5% تأمين من العمولة]],0),0),2) -> 0 | CZ27: =ROUND(IF($H27=data.E[[#Headers],[معاش]],$BG27-SUM(data.E[[#This Row],[تامينات 2026]:[تنفيذ أحكام]],data.E[[#This Row],[الشهداء]:[خصم 5% تأمين من العمولة]],0),0),2) -> 0 | DA27: =ROUND(SUM(data.E[[#This Row],[تامينات 2026]:[تنفيذ أحكام]],data.E[[#This Row],[الشهداء]:[معاش]]),2) -> 1548.1 | DB27: 8517.25
A28: =IF(data.E[[#This Row],[الموظف المختص]]=print.e!$E$2,COUNTIF('data.e'!$G$4:G28,G28),"") -> 25 | B28: 101018 | C28: 11249 | D28: بنك مصر 1 | E28: محمد رمضان السيد مصطفى | G28: منال | H28: دوام كامل | I28: ادارى | J28: الاولى | K28: 0.05 | N28: الادارة العامة | O28: المنطقه المركزية | P28: 26610200104839 | Q28: 10101811249محمد رمضان السيد مصطفىمنالالاولى | S28: 2886.58 | T28: 3175.238 | U28: 0 | V28: 4286.57 | W28: 476.29 | X28: 0 | Y28: 0 | Z28: 0 | AB28: 0 | AC28: 300 | AE28: 0 | AF28: 0 | AG28: 0 | AH28: 0 | AI28: =SUM(AA28:AH28)-data.E[[#This Row],[بدل تمثيل]] -> 300 | AJ28: 101.14 | AK28: 112.98 | AL28: 120 | AM28: 0 | AN28: 190 | AO28: 57.7 | AP28: 110.11 | AQ28: 132.13 | AR28: 188.5 | AS28: 201.7 | AT28: 215.82 | AU28: 0 | AV28: 144.329 | AW28: 600 | AX28: 10 | AY28: 2184.41 | AZ28: 10 | BA28: =ROUND((data.E[[#This Row],[أساسي 7/2025]]*2)/12,2) -> 529.21 | BE28: 10961.72 | BF28: 0 | BG28: =IF(data.E[[#This Row],[حالة العمل]]="إيقاف",data.E[[#This Row],[أساسي 7/2025]],ROUND(SUM(data.E[[#This Row],[بدل تمثيل]],BB28:BF28),2)) -> 10961.72 | BL28: =ROUND(data.E[[#This Row],[تامينات 2026]]/11%,2) -> 10475.91 | BM28: 1152.35 | BO28: =(data.E[[#This Row],[إجمالي المستحق]]-SUM(data.E[[#This Row],[الحافز]],data.E[[#This Row],[متوسط المنحة]:[الإضافي]]))/30*data.E[[#This Row],[أيام الغياب]] -> 0 | BP28: =(data.E[[#This Row],[إجمالي المستحق]]-SUM(data.E[[#This Row],[الحافز]],data.E[[#This Row],[متوسط المنحة]:[الإضافي]]))/30*data.E[[#This Row],[أيام جزاء]] -> 0 | BQ28: =IF(data.E[[#This Row],[أيام الغياب]]=1,data.E[[#This Row],[الحافز]]*20%,IF(data.E[[#This Row],[أيام الغياب]]=2,data.E[[#This Row],[الحافز]]*30%,IF(data.E[[#This Row],[أيام الغياب]]>2,data.E[[#This Row],[الحافز]]*100%,0))) -> 0 | BR28: =IF(data.E[[#This Row],[عدد أيام الأجازات]]<=4,data.E[[#This Row],[الحافز]]*0,IF(data.E[[#This Row],[عدد أيام الأجازات]]=5,data.E[[#This Row],[الحافز]]*20%,IF(data.E[[#This Row],[عدد أيام الأجازات]]=6,data.E[[#This Row],[الحافز]]*40%,IF(data.E[[#This Row],[عدد أيام الأجازات]]=7,data.E[[#This Row],[الحافز]]*50%,IF(data.E[[#This Row],[عدد أيام الأجازات]]>7,data.E[[#This Row],[الحافز]]*100%,0))))) -> 0 | BS28: 0 | BT28: 0 | BU28: 0 | BV28: 0 | BW28: 3 | BX28: 0 | BZ28: 0 | CA28: 0 | CB28: 0 | CD28: 0 | CE28: 0 | CF28: 0 | CG28: 0 | CH28: 0 | CJ28: 5.12 | CK28: 5 | CN28: 0 | CO28: 0 | CR28: 0 | CS28: 529.21 | CT28: 0 | CU28: =ROUND(IF($H28=data.E[[#Headers],[إيقاف]],$BG28-SUM(data.E[[#This Row],[تامينات 2026]:[تنفيذ أحكام]],data.E[[#This Row],[الشهداء]:[خصم 5% تأمين من العمولة]],0),0),2) -> 0 | CV28: =ROUND(IF($H28=data.E[[#Headers],[مرضي]],$BG28-SUM(data.E[[#This Row],[تامينات 2026]:[تنفيذ أحكام]],data.E[[#This Row],[الشهداء]:[خصم 5% تأمين من العمولة]],0),0),2) -> 0 | CW28: =ROUND(IF($H28=data.E[[#Headers],[أجازة]],$BG28-SUM(data.E[[#This Row],[تامينات 2026]:[تنفيذ أحكام]],data.E[[#This Row],[الشهداء]:[خصم 5% تأمين من العمولة]],0),0),2) -> 0 | CX28: =ROUND(IF($H28=data.E[[#Headers],[إعارة]],$BG28-SUM(data.E[[#This Row],[تامينات 2026]:[تنفيذ أحكام]],data.E[[#This Row],[الشهداء]:[خصم 5% تأمين من العمولة]],0),0),2) -> 0 | CY28: =ROUND(IF($H28=data.E[[#Headers],[إنهاء]],$BG28-SUM(data.E[[#This Row],[تامينات 2026]:[تنفيذ أحكام]],data.E[[#This Row],[الشهداء]:[خصم 5% تأمين من العمولة]],0),0),2) -> 0 | CZ28: =ROUND(IF($H28=data.E[[#Headers],[معاش]],$BG28-SUM(data.E[[#This Row],[تامينات 2026]:[تنفيذ أحكام]],data.E[[#This Row],[الشهداء]:[خصم 5% تأمين من العمولة]],0),0),2) -> 0 | DA28: =ROUND(SUM(data.E[[#This Row],[تامينات 2026]:[تنفيذ أحكام]],data.E[[#This Row],[الشهداء]:[معاش]]),2) -> 1694.68 | DB28: 9267.04
A29: =IF(data.E[[#This Row],[الموظف المختص]]=print.e!$E$2,COUNTIF('data.e'!$G$4:G29,G29),"") -> 26 | B29: 101019 | C29: 11276 | D29: بنك مصر 1 | E29: مها خليل عبد الرسول | G29: منال | H29: دوام كامل | I29: ادارى | J29: الاولى | L29: الأولى | M29: كاتب شئون ادارية | N29: الادارة العامة | O29: المنطقه المركزية | P29: 27004030100481 | Q29: 10101911276مها خليل عبد الرسولمنالالاولىالأولىكاتب شئون ادارية قطاع الموارد البشرية | R29: نعم | S29: 2139.25 | T29: 2502.9225 | U29: 0 | V29: 3378.95 | W29: 375.44 | X29: 0 | Y29: 0 | Z29: 0 | AB29: 0 | AC29: 300 | AE29: 0 | AF29: 0 | AG29: 0 | AH29: 0 | AI29: =SUM(AA29:AH29)-data.E[[#This Row],[بدل تمثيل]] -> 300 | AJ29: 70.22 | AK29: 78.59 | AL29: 94.4 | AM29: 0 | AN29: 190 | AO29: 42.76 | AP29: 76.26 | AQ29: 97.92 | AR29: 139.7 | AS29: 149.48 | AT29: 159.94 | AU29: 0 | AV29: 106.9625 | AW29: 600 | AX29: 6 | AY29: 1812.23 | AZ29: 10 | BA29: =ROUND((data.E[[#This Row],[أساسي 7/2025]]*2)/12,2) -> 417.15 | BE29: 8796.69 | BF29: 0 | BG29: =IF(data.E[[#This Row],[حالة العمل]]="إيقاف",data.E[[#This Row],[أساسي 7/2025]],ROUND(SUM(data.E[[#This Row],[بدل تمثيل]],BB29:BF29),2)) -> 8796.69 | BL29: =ROUND(data.E[[#This Row],[تامينات 2026]]/11%,2) -> 8113.18 | BM29: 892.45 | BO29: =(data.E[[#This Row],[إجمالي المستحق]]-SUM(data.E[[#This Row],[الحافز]],data.E[[#This Row],[متوسط المنحة]:[الإضافي]]))/30*data.E[[#This Row],[أيام الغياب]] -> 0 | BP29: =(data.E[[#This Row],[إجمالي المستحق]]-SUM(data.E[[#This Row],[الحافز]],data.E[[#This Row],[متوسط المنحة]:[الإضافي]]))/30*data.E[[#This Row],[أيام جزاء]] -> 0 | BQ29: =IF(data.E[[#This Row],[أيام الغياب]]=1,data.E[[#This Row],[الحافز]]*20%,IF(data.E[[#This Row],[أيام الغياب]]=2,data.E[[#This Row],[الحافز]]*30%,IF(data.E[[#This Row],[أيام الغياب]]>2,data.E[[#This Row],[الحافز]]*100%,0))) -> 0 | BR29: =IF(data.E[[#This Row],[عدد أيام الأجازات]]<=4,data.E[[#This Row],[الحافز]]*0,IF(data.E[[#This Row],[عدد أيام الأجازات]]=5,data.E[[#This Row],[الحافز]]*20%,IF(data.E[[#This Row],[عدد أيام الأجازات]]=6,data.E[[#This Row],[الحافز]]*40%,IF(data.E[[#This Row],[عدد أيام الأجازات]]=7,data.E[[#This Row],[الحافز]]*50%,IF(data.E[[#This Row],[عدد أيام الأجازات]]>7,data.E[[#This Row],[الحافز]]*100%,0))))) -> 0 | BS29: 0 | BT29: 0 | BU29: 0 | BV29: 0 | BW29: 3 | BX29: 0 | BZ29: 0 | CA29: 0 | CB29: 0 | CD29: 0 | CE29: 0 | CF29: 0 | CG29: 0 | CH29: 0 | CJ29: 4.04 | CK29: 5 | CN29: 0 | CO29: 0 | CR29: 0 | CS29: 417.15 | CT29: 0 | CU29: =ROUND(IF($H29=data.E[[#Headers],[إيقاف]],$BG29-SUM(data.E[[#This Row],[تامينات 2026]:[تنفيذ أحكام]],data.E[[#This Row],[الشهداء]:[خصم 5% تأمين من العمولة]],0),0),2) -> 0 | CV29: =ROUND(IF($H29=data.E[[#Headers],[مرضي]],$BG29-SUM(data.E[[#This Row],[تامينات 2026]:[تنفيذ أحكام]],data.E[[#This Row],[الشهداء]:[خصم 5% تأمين من العمولة]],0),0),2) -> 0 | CW29: =ROUND(IF($H29=data.E[[#Headers],[أجازة]],$BG29-SUM(data.E[[#This Row],[تامينات 2026]:[تنفيذ أحكام]],data.E[[#This Row],[الشهداء]:[خصم 5% تأمين من العمولة]],0),0),2) -> 0 | CX29: =ROUND(IF($H29=data.E[[#Headers],[إعارة]],$BG29-SUM(data.E[[#This Row],[تامينات 2026]:[تنفيذ أحكام]],data.E[[#This Row],[الشهداء]:[خصم 5% تأمين من العمولة]],0),0),2) -> 0 | CY29: =ROUND(IF($H29=data.E[[#Headers],[إنهاء]],$BG29-SUM(data.E[[#This Row],[تامينات 2026]:[تنفيذ أحكام]],data.E[[#This Row],[الشهداء]:[خصم 5% تأمين من العمولة]],0),0),2) -> 0 | CZ29: =ROUND(IF($H29=data.E[[#Headers],[معاش]],$BG29-SUM(data.E[[#This Row],[تامينات 2026]:[تنفيذ أحكام]],data.E[[#This Row],[الشهداء]:[خصم 5% تأمين من العمولة]],0),0),2) -> 0 | DA29: =ROUND(SUM(data.E[[#This Row],[تامينات 2026]:[تنفيذ أحكام]],data.E[[#This Row],[الشهداء]:[معاش]]),2) -> 1321.64 | DB29: 7475.05
A30: =IF(data.E[[#This Row],[الموظف المختص]]=print.e!$E$2,COUNTIF('data.e'!$G$4:G30,G30),"") -> 27 | B30: 101020 | C30: 11296 | D30: بنك مصر 1 | E30: هند سيد احمد موسي | G30: منال | H30: دوام كامل | I30: ادارى | J30: الاولى | L30: الأولى | M30: كاتب شئون مالية | N30: الادارة العامة | O30: المنطقه المركزية | P30: 27004110101241 | Q30: 10102011296هند سيد احمد موسيمنالالاولىالأولىكاتب شئون ماليةقطاع المالى | R30: نعم | S30: 2233.06 | T30: 2612.6802 | U30: 0 | V30: 3527.12 | W30: 391.9 | X30: 0 | Y30: 0 | Z30: 0 | AB30: 0 | AC30: 300 | AE30: 0 | AF30: 0 | AG30: 0 | AH30: 0 | AI30: =SUM(AA30:AH30)-data.E[[#This Row],[بدل تمثيل]] -> 300 | AJ30: 73.27 | AK30: 82.02 | AL30: 98.55 | AM30: 0 | AN30: 190 | AO30: 44.64 | AP30: 79.61 | AQ30: 102.22 | AR30: 145.83 | AS30: 156.04 | AT30: 166.69 | AU30: 0 | AV30: 111.653 | AW30: 600 | AX30: 4 | AY30: 1854.52 | AZ30: 10 | BA30: =ROUND((data.E[[#This Row],[أساسي 7/2025]]*2)/12,2) -> 435.45 | BE30: 9131.67 | BF30: 0 | BG30: =IF(data.E[[#This Row],[حالة العمل]]="إيقاف",data.E[[#This Row],[أساسي 7/2025]],ROUND(SUM(data.E[[#This Row],[بدل تمثيل]],BB30:BF30),2)) -> 9131.67 | BL30: =ROUND(data.E[[#This Row],[تامينات 2026]]/11%,2) -> 8432 | BM30: 927.52 | BO30: =(data.E[[#This Row],[إجمالي المستحق]]-SUM(data.E[[#This Row],[الحافز]],data.E[[#This Row],[متوسط المنحة]:[الإضافي]]))/30*data.E[[#This Row],[أيام الغياب]] -> 0 | BP30: =(data.E[[#This Row],[إجمالي المستحق]]-SUM(data.E[[#This Row],[الحافز]],data.E[[#This Row],[متوسط المنحة]:[الإضافي]]))/30*data.E[[#This Row],[أيام جزاء]] -> 0 | BQ30: =IF(data.E[[#This Row],[أيام الغياب]]=1,data.E[[#This Row],[الحافز]]*20%,IF(data.E[[#This Row],[أيام الغياب]]=2,data.E[[#This Row],[الحافز]]*30%,IF(data.E[[#This Row],[أيام الغياب]]>2,data.E[[#This Row],[الحافز]]*100%,0))) -> 0 | BR30: =IF(data.E[[#This Row],[عدد أيام الأجازات]]<=4,data.E[[#This Row],[الحافز]]*0,IF(data.E[[#This Row],[عدد أيام الأجازات]]=5,data.E[[#This Row],[الحافز]]*20%,IF(data.E[[#This Row],[عدد أيام الأجازات]]=6,data.E[[#This Row],[الحافز]]*40%,IF(data.E[[#This Row],[عدد أيام الأجازات]]=7,data.E[[#This Row],[الحافز]]*50%,IF(data.E[[#This Row],[عدد أيام الأجازات]]>7,data.E[[#This Row],[الحافز]]*100%,0))))) -> 0 | BS30: 0 | BT30: 0 | BU30: 0 | BV30: 0 | BW30: 3 | BX30: 0 | BZ30: 0 | CA30: 0 | CB30: 0 | CD30: 0 | CE30: 0 | CF30: 0 | CG30: 0 | CH30: 0 | CJ30: 4.2 | CK30: 5 | CN30: 0 | CO30: 0 | CR30: 0 | CS30: 435.45 | CT30: 0 | CU30: =ROUND(IF($H30=data.E[[#Headers],[إيقاف]],$BG30-SUM(data.E[[#This Row],[تامينات 2026]:[تنفيذ أحكام]],data.E[[#This Row],[الشهداء]:[خصم 5% تأمين من العمولة]],0),0),2) -> 0 | CV30: =ROUND(IF($H30=data.E[[#Headers],[مرضي]],$BG30-SUM(data.E[[#This Row],[تامينات 2026]:[تنفيذ أحكام]],data.E[[#This Row],[الشهداء]:[خصم 5% تأمين من العمولة]],0),0),2) -> 0 | CW30: =ROUND(IF($H30=data.E[[#Headers],[أجازة]],$BG30-SUM(data.E[[#This Row],[تامينات 2026]:[تنفيذ أحكام]],data.E[[#This Row],[الشهداء]:[خصم 5% تأمين من العمولة]],0),0),2) -> 0 | CX30: =ROUND(IF($H30=data.E[[#Headers],[إعارة]],$BG30-SUM(data.E[[#This Row],[تامينات 2026]:[تنفيذ أحكام]],data.E[[#This Row],[الشهداء]:[خصم 5% تأمين من العمولة]],0),0),2) -> 0 | CY30: =ROUND(IF($H30=data.E[[#Headers],[إنهاء]],$BG30-SUM(data.E[[#This Row],[تامينات 2026]:[تنفيذ أحكام]],data.E[[#This Row],[الشهداء]:[خصم 5% تأمين من العمولة]],0),0),2) -> 0 | CZ30: =ROUND(IF($H30=data.E[[#Headers],[معاش]],$BG30-SUM(data.E[[#This Row],[تامينات 2026]:[تنفيذ أحكام]],data.E[[#This Row],[الشهداء]:[خصم 5% تأمين من العمولة]],0),0),2) -> 0 | DA30: =ROUND(SUM(data.E[[#This Row],[تامينات 2026]:[تنفيذ أحكام]],data.E[[#This Row],[الشهداء]:[معاش]]),2) -> 1375.17 | DB30: 7756.5
A31: =IF(data.E[[#This Row],[الموظف المختص]]=print.e!$E$2,COUNTIF('data.e'!$G$4:G31,G31),"") -> 28 | B31: 101021 | C31: 11298 | D31: بنك مصر 1 | E31: منال محمد طايع السيد | G31: منال | H31: دوام كامل | I31: ادارى | J31: الاولى | L31: الأولى | M31: كاتب حركة وتشغيل | N31: الادارة العامة | O31: المنطقه المركزية | P31: 27010261302141 | Q31: 10102111298منال محمد طايع السيدمنالالاولىالأولىكاتب حركة وتشغيل قطاع التشغيل | R31: نعم | S31: 2211.95 | T31: 2587.9815 | U31: 0 | V31: 3493.78 | W31: 388.2 | X31: 0 | Y31: 0 | Z31: 0 | AB31: 0 | AC31: 300 | AE31: 0 | AF31: 0 | AG31: 0 | AH31: 0 | AI31: =SUM(AA31:AH31)-data.E[[#This Row],[بدل تمثيل]] -> 300 | AJ31: 78.48 | AK31: 87.56 | AL31: 104.43 | AM31: 0 | AN31: 190 | AO31: 44.22 | AP31: 78.85 | AQ31: 101.25 | AR31: 144.45 | AS31: 154.56 | AT31: 165.38 | AU31: 0 | AV31: 110.5975 | AW31: 600 | AX31: 6 | AY31: 1865.78 | AZ31: 10 | BA31: =ROUND((data.E[[#This Row],[أساسي 7/2025]]*2)/12,2) -> 431.33 | BE31: 9077.07 | BF31: 0 | BG31: =IF(data.E[[#This Row],[حالة العمل]]="إيقاف",data.E[[#This Row],[أساسي 7/2025]],ROUND(SUM(data.E[[#This Row],[بدل تمثيل]],BB31:BF31),2)) -> 9077.07 | BL31: =ROUND(data.E[[#This Row],[تامينات 2026]]/11%,2) -> 8380.91 | BM31: 921.9 | BO31: =(data.E[[#This Row],[إجمالي المستحق]]-SUM(data.E[[#This Row],[الحافز]],data.E[[#This Row],[متوسط المنحة]:[الإضافي]]))/30*data.E[[#This Row],[أيام الغياب]] -> 0 | BP31: =(data.E[[#This Row],[إجمالي المستحق]]-SUM(data.E[[#This Row],[الحافز]],data.E[[#This Row],[متوسط المنحة]:[الإضافي]]))/30*data.E[[#This Row],[أيام جزاء]] -> 0 | BQ31: =IF(data.E[[#This Row],[أيام الغياب]]=1,data.E[[#This Row],[الحافز]]*20%,IF(data.E[[#This Row],[أيام الغياب]]=2,data.E[[#This Row],[الحافز]]*30%,IF(data.E[[#This Row],[أيام الغياب]]>2,data.E[[#This Row],[الحافز]]*100%,0))) -> 0 | BR31: =IF(data.E[[#This Row],[عدد أيام الأجازات]]<=4,data.E[[#This Row],[الحافز]]*0,IF(data.E[[#This Row],[عدد أيام الأجازات]]=5,data.E[[#This Row],[الحافز]]*20%,IF(data.E[[#This Row],[عدد أيام الأجازات]]=6,data.E[[#This Row],[الحافز]]*40%,IF(data.E[[#This Row],[عدد أيام الأجازات]]=7,data.E[[#This Row],[الحافز]]*50%,IF(data.E[[#This Row],[عدد أيام الأجازات]]>7,data.E[[#This Row],[الحافز]]*100%,0))))) -> 0 | BS31: 0 | BT31: 0 | BU31: 0 | BV31: 0 | BW31: 3 | BX31: 0 | BZ31: 0 | CA31: 0 | CB31: 0 | CD31: 0 | CE31: 0 | CF31: 0 | CG31: 0 | CH31: 0 | CJ31: 4.17 | CK31: 5 | CN31: 0 | CO31: 0 | CR31: 0 | CS31: 431.33 | CT31: 0 | CU31: =ROUND(IF($H31=data.E[[#Headers],[إيقاف]],$BG31-SUM(data.E[[#This Row],[تامينات 2026]:[تنفيذ أحكام]],data.E[[#This Row],[الشهداء]:[خصم 5% تأمين من العمولة]],0),0),2) -> 0 | CV31: =ROUND(IF($H31=data.E[[#Headers],[مرضي]],$BG31-SUM(data.E[[#This Row],[تامينات 2026]:[تنفيذ أحكام]],data.E[[#This Row],[الشهداء]:[خصم 5% تأمين من العمولة]],0),0),2) -> 0 | CW31: =ROUND(IF($H31=data.E[[#Headers],[أجازة]],$BG31-SUM(data.E[[#This Row],[تامينات 2026]:[تنفيذ أحكام]],data.E[[#This Row],[الشهداء]:[خصم 5% تأمين من العمولة]],0),0),2) -> 0 | CX31: =ROUND(IF($H31=data.E[[#Headers],[إعارة]],$BG31-SUM(data.E[[#This Row],[تامينات 2026]:[تنفيذ أحكام]],data.E[[#This Row],[الشهداء]:[خصم 5% تأمين من العمولة]],0),0),2) -> 0 | CY31: =ROUND(IF($H31=data.E[[#Headers],[إنهاء]],$BG31-SUM(data.E[[#This Row],[تامينات 2026]:[تنفيذ أحكام]],data.E[[#This Row],[الشهداء]:[خصم 5% تأمين من العمولة]],0),0),2) -> 0 | CZ31: =ROUND(IF($H31=data.E[[#Headers],[معاش]],$BG31-SUM(data.E[[#This Row],[تامينات 2026]:[تنفيذ أحكام]],data.E[[#This Row],[الشهداء]:[خصم 5% تأمين من العمولة]],0),0),2) -> 0 | DA31: =ROUND(SUM(data.E[[#This Row],[تامينات 2026]:[تنفيذ أحكام]],data.E[[#This Row],[الشهداء]:[معاش]]),2) -> 1365.4 | DB31: 7711.67
A32: =IF(data.E[[#This Row],[الموظف المختص]]=print.e!$E$2,COUNTIF('data.e'!$G$4:G32,G32),"") -> 29 | B32: 101023 | C32: 11305 | D32: بنك مصر 1 | E32: وائل محمد السيد الدبيكى | G32: منال | H32: دوام كامل | I32: ادارى | J32: الاولى | L32: الأولى | M32: كاتب شئون موارد بشرية | N32: الادارة العامة | O32: المنطقه المركزية | P32: 27101010107931 | Q32: 10102311305وائل محمد السيد الدبيكىمنالالاولىالأولىكاتب شئون موارد بشريةقطاع الموارد البشرية | R32: نعم | S32: 2139.19 | T32: 2502.8523 | U32: 0 | V32: 3378.85 | W32: 375.43 | X32: 0 | Y32: 0 | Z32: 0 | AB32: 0 | AC32: 300 | AE32: 0 | AF32: 0 | AG32: 0 | AH32: 0 | AI32: =SUM(AA32:AH32)-data.E[[#This Row],[بدل تمثيل]] -> 300 | AJ32: 70.21 | AK32: 78.58 | AL32: 94.4 | AM32: 0 | AN32: 190 | AO32: 42.76 | AP32: 76.26 | AQ32: 97.92 | AR32: 139.7 | AS32: 149.48 | AT32: 159.94 | AU32: 0 | AV32: 106.9595 | AW32: 600 | AX32: 10 | AY32: 1816.21 | AZ32: 10 | BA32: =ROUND((data.E[[#This Row],[أساسي 7/2025]]*2)/12,2) -> 417.14 | BE32: 8800.48 | BF32: 0 | BG32: =IF(data.E[[#This Row],[حالة العمل]]="إيقاف",data.E[[#This Row],[أساسي 7/2025]],ROUND(SUM(data.E[[#This Row],[بدل تمثيل]],BB32:BF32),2)) -> 8800.48 | BL32: =ROUND(data.E[[#This Row],[تامينات 2026]]/11%,2) -> 8117 | BM32: 892.87 | BO32: =(data.E[[#This Row],[إجمالي المستحق]]-SUM(data.E[[#This Row],[الحافز]],data.E[[#This Row],[متوسط المنحة]:[الإضافي]]))/30*data.E[[#This Row],[أيام الغياب]] -> 0 | BP32: =(data.E[[#This Row],[إجمالي المستحق]]-SUM(data.E[[#This Row],[الحافز]],data.E[[#This Row],[متوسط المنحة]:[الإضافي]]))/30*data.E[[#This Row],[أيام جزاء]] -> 0 | BQ32: =IF(data.E[[#This Row],[أيام الغياب]]=1,data.E[[#This Row],[الحافز]]*20%,IF(data.E[[#This Row],[أيام الغياب]]=2,data.E[[#This Row],[الحافز]]*30%,IF(data.E[[#This Row],[أيام الغياب]]>2,data.E[[#This Row],[الحافز]]*100%,0))) -> 0 | BR32: =IF(data.E[[#This Row],[عدد أيام الأجازات]]<=4,data.E[[#This Row],[الحافز]]*0,IF(data.E[[#This Row],[عدد أيام الأجازات]]=5,data.E[[#This Row],[الحافز]]*20%,IF(data.E[[#This Row],[عدد أيام الأجازات]]=6,data.E[[#This Row],[الحافز]]*40%,IF(data.E[[#This Row],[عدد أيام الأجازات]]=7,data.E[[#This Row],[الحافز]]*50%,IF(data.E[[#This Row],[عدد أيام الأجازات]]>7,data.E[[#This Row],[الحافز]]*100%,0))))) -> 0 | BS32: 0 | BT32: 4.14 | BU32: 0 | BV32: 0 | BW32: 3 | BX32: 0 | BZ32: 0 | CA32: 0 | CB32: 0 | CD32: 0 | CE32: 0 | CF32: 0 | CG32: 0 | CH32: 0 | CJ32: 4.04 | CK32: 5 | CN32: 0 | CO32: 0 | CR32: 0 | CS32: 417.14 | CT32: 0 | CU32: =ROUND(IF($H32=data.E[[#Headers],[إيقاف]],$BG32-SUM(data.E[[#This Row],[تامينات 2026]:[تنفيذ أحكام]],data.E[[#This Row],[الشهداء]:[خصم 5% تأمين من العمولة]],0),0),2) -> 0 | CV32: =ROUND(IF($H32=data.E[[#Headers],[مرضي]],$BG32-SUM(data.E[[#This Row],[تامينات 2026]:[تنفيذ أحكام]],data.E[[#This Row],[الشهداء]:[خصم 5% تأمين من العمولة]],0),0),2) -> 0 | CW32: =ROUND(IF($H32=data.E[[#Headers],[أجازة]],$BG32-SUM(data.E[[#This Row],[تامينات 2026]:[تنفيذ أحكام]],data.E[[#This Row],[الشهداء]:[خصم 5% تأمين من العمولة]],0),0),2) -> 0 | CX32: =ROUND(IF($H32=data.E[[#Headers],[إعارة]],$BG32-SUM(data.E[[#This Row],[تامينات 2026]:[تنفيذ أحكام]],data.E[[#This Row],[الشهداء]:[خصم 5% تأمين من العمولة]],0),0),2) -> 0 | CY32: =ROUND(IF($H32=data.E[[#Headers],[إنهاء]],$BG32-SUM(data.E[[#This Row],[تامينات 2026]:[تنفيذ أحكام]],data.E[[#This Row],[الشهداء]:[خصم 5% تأمين من العمولة]],0),0),2) -> 0 | CZ32: =ROUND(IF($H32=data.E[[#Headers],[معاش]],$BG32-SUM(data.E[[#This Row],[تامينات 2026]:[تنفيذ أحكام]],data.E[[#This Row],[الشهداء]:[خصم 5% تأمين من العمولة]],0),0),2) -> 0 | DA32: =ROUND(SUM(data.E[[#This Row],[تامينات 2026]:[تنفيذ أحكام]],data.E[[#This Row],[الشهداء]:[معاش]]),2) -> 1326.19 | DB32: 7474.29
A33: =IF(data.E[[#This Row],[الموظف المختص]]=print.e!$E$2,COUNTIF('data.e'!$G$4:G33,G33),"") -> 30 | B33: 101024 | C33: 11308 | D33: بنك مصر 1 | E33: سماح مختار عبد المطلب الدواخلى | G33: منال | H33: دوام كامل | I33: ادارى | J33: الاولى | K33: 0.05 | L33: الأولى | M33: محاسب | N33: الادارة العامة | O33: المنطقه المركزية | P33: 27008250101263 | Q33: 10102411308سماح مختار عبد المطلب الدواخلىمنالالاولىالأولىمحاسبقطاع التشغيل | R33: نعم | S33: 2213.31 | T33: 2589.5727 | U33: 0 | V33: 3495.92 | W33: 388.44 | X33: 0 | Y33: 0 | Z33: 0 | AB33: 0 | AC33: 300 | AE33: 0 | AF33: 0 | AG33: 0 | AH33: 0 | AI33: =SUM(AA33:AH33)-data.E[[#This Row],[بدل تمثيل]] -> 300 | AJ33: 72.69 | AK33: 81.33 | AL33: 97.68 | AM33: 0 | AN33: 190 | AO33: 44.24 | AP33: 78.9 | AQ33: 101.31 | AR33: 144.54 | AS33: 154.66 | AT33: 165.48 | AU33: 0 | AV33: 110.6655 | AW33: 600 | AX33: 6 | AY33: 1847.5 | AZ33: 10 | BA33: =ROUND((data.E[[#This Row],[أساسي 7/2025]]*2)/12,2) -> 431.6 | BE33: 9063.03 | BF33: 0 | BG33: =IF(data.E[[#This Row],[حالة العمل]]="إيقاف",data.E[[#This Row],[أساسي 7/2025]],ROUND(SUM(data.E[[#This Row],[بدل تمثيل]],BB33:BF33),2)) -> 9063.03 | BL33: =ROUND(data.E[[#This Row],[تامينات 2026]]/11%,2) -> 8182.18 | BM33: 900.04 | BO33: =(data.E[[#This Row],[إجمالي المستحق]]-SUM(data.E[[#This Row],[الحافز]],data.E[[#This Row],[متوسط المنحة]:[الإضافي]]))/30*data.E[[#This Row],[أيام الغياب]] -> 0 | BP33: =(data.E[[#This Row],[إجمالي المستحق]]-SUM(data.E[[#This Row],[الحافز]],data.E[[#This Row],[متوسط المنحة]:[الإضافي]]))/30*data.E[[#This Row],[أيام جزاء]] -> 0 | BQ33: =IF(data.E[[#This Row],[أيام الغياب]]=1,data.E[[#This Row],[الحافز]]*20%,IF(data.E[[#This Row],[أيام الغياب]]=2,data.E[[#This Row],[الحافز]]*30%,IF(data.E[[#This Row],[أيام الغياب]]>2,data.E[[#This Row],[الحافز]]*100%,0))) -> 0 | BR33: =IF(data.E[[#This Row],[عدد أيام الأجازات]]<=4,data.E[[#This Row],[الحافز]]*0,IF(data.E[[#This Row],[عدد أيام الأجازات]]=5,data.E[[#This Row],[الحافز]]*20%,IF(data.E[[#This Row],[عدد أيام الأجازات]]=6,data.E[[#This Row],[الحافز]]*40%,IF(data.E[[#This Row],[عدد أيام الأجازات]]=7,data.E[[#This Row],[الحافز]]*50%,IF(data.E[[#This Row],[عدد أيام الأجازات]]>7,data.E[[#This Row],[الحافز]]*100%,0))))) -> 0 | BS33: 0 | BT33: 321 | BU33: 0 | BV33: 0 | BW33: 3 | BX33: 0 | BZ33: 0 | CA33: 0 | CB33: 0 | CD33: 0 | CE33: 0 | CF33: 0 | CG33: 0 | CH33: 0 | CJ33: 4.17 | CK33: 5 | CN33: 0 | CO33: 0 | CR33: 0 | CS33: 431.6 | CT33: 0 | CU33: =ROUND(IF($H33=data.E[[#Headers],[إيقاف]],$BG33-SUM(data.E[[#This Row],[تامينات 2026]:[تنفيذ أحكام]],data.E[[#This Row],[الشهداء]:[خصم 5% تأمين من العمولة]],0),0),2) -> 0 | CV33: =ROUND(IF($H33=data.E[[#Headers],[مرضي]],$BG33-SUM(data.E[[#This Row],[تامينات 2026]:[تنفيذ أحكام]],data.E[[#This Row],[الشهداء]:[خصم 5% تأمين من العمولة]],0),0),2) -> 0 | CW33: =ROUND(IF($H33=data.E[[#Headers],[أجازة]],$BG33-SUM(data.E[[#This Row],[تامينات 2026]:[تنفيذ أحكام]],data.E[[#This Row],[الشهداء]:[خصم 5% تأمين من العمولة]],0),0),2) -> 0 | CX33: =ROUND(IF($H33=data.E[[#Headers],[إعارة]],$BG33-SUM(data.E[[#This Row],[تامينات 2026]:[تنفيذ أحكام]],data.E[[#This Row],[الشهداء]:[خصم 5% تأمين من العمولة]],0),0),2) -> 0 | CY33: =ROUND(IF($H33=data.E[[#Headers],[إنهاء]],$BG33-SUM(data.E[[#This Row],[تامينات 2026]:[تنفيذ أحكام]],data.E[[#This Row],[الشهداء]:[خصم 5% تأمين من العمولة]],0),0),2) -> 0 | CZ33: =ROUND(IF($H33=data.E[[#Headers],[معاش]],$BG33-SUM(data.E[[#This Row],[تامينات 2026]:[تنفيذ أحكام]],data.E[[#This Row],[الشهداء]:[خصم 5% تأمين من العمولة]],0),0),2) -> 0 | DA33: =ROUND(SUM(data.E[[#This Row],[تامينات 2026]:[تنفيذ أحكام]],data.E[[#This Row],[الشهداء]:[معاش]]),2) -> 1664.81 | DB33: 7398.22
A34: =IF(data.E[[#This Row],[الموظف المختص]]=print.e!$E$2,COUNTIF('data.e'!$G$4:G34,G34),"") -> 31 | B34: 101025 | C34: 11328 | D34: بنك مصر 1 | E34: خالد احمد محمد حامد | G34: منال | H34: دوام كامل | I34: ادارى | J34: الاولى | K34: 0.05 | L34: الأولى | M34: كاتب شئون مالية | N34: الادارة العامة | O34: المنطقه المركزية | P34: 27404170103179 | Q34: 10102511328خالد احمد محمد حامدمنالالاولىالأولىكاتب شئون مالية قطاع مالى | R34: نعم | S34: 1616.72 | T34: 1891.5624 | U34: 0 | V34: 2553.61 | W34: 283.73 | X34: 0 | Y34: 0 | Z34: 0 | AB34: 0 | AC34: 300 | AE34: 0 | AF34: 0 | AG34: 0 | AH34: 0 | AI34: =SUM(AA34:AH34)-data.E[[#This Row],[بدل تمثيل]] -> 300 | AJ34: 53.23 | AK34: 59.36 | AL34: 71.24 | AM34: 0 | AN34: 190 | AO34: 32.32 | AP34: 57.63 | AQ34: 74 | AR34: 105.58 | AS34: 112.97 | AT34: 120.88 | AU34: 0 | AV34: 80.836 | AW34: 600 | AX34: 6 | AY34: 1564.05 | AZ34: 10 | BA34: =ROUND((data.E[[#This Row],[أساسي 7/2025]]*2)/12,2) -> 315.26 | BE34: 6918.21 | BF34: 81.79 | BG34: =IF(data.E[[#This Row],[حالة العمل]]="إيقاف",data.E[[#This Row],[أساسي 7/2025]],ROUND(SUM(data.E[[#This Row],[بدل تمثيل]],BB34:BF34),2)) -> 7000 | BL34: =ROUND(data.E[[#This Row],[تامينات 2026]]/11%,2) -> 6349.55 | BM34: 698.45 | BO34: =(data.E[[#This Row],[إجمالي المستحق]]-SUM(data.E[[#This Row],[الحافز]],data.E[[#This Row],[متوسط المنحة]:[الإضافي]]))/30*data.E[[#This Row],[أيام الغياب]] -> 0 | BP34: =(data.E[[#This Row],[إجمالي المستحق]]-SUM(data.E[[#This Row],[الحافز]],data.E[[#This Row],[متوسط المنحة]:[الإضافي]]))/30*data.E[[#This Row],[أيام جزاء]] -> 0 | BQ34: =IF(data.E[[#This Row],[أيام الغياب]]=1,data.E[[#This Row],[الحافز]]*20%,IF(data.E[[#This Row],[أيام الغياب]]=2,data.E[[#This Row],[الحافز]]*30%,IF(data.E[[#This Row],[أيام الغياب]]>2,data.E[[#This Row],[الحافز]]*100%,0))) -> 0 | BR34: =IF(data.E[[#This Row],[عدد أيام الأجازات]]<=4,data.E[[#This Row],[الحافز]]*0,IF(data.E[[#This Row],[عدد أيام الأجازات]]=5,data.E[[#This Row],[الحافز]]*20%,IF(data.E[[#This Row],[عدد أيام الأجازات]]=6,data.E[[#This Row],[الحافز]]*40%,IF(data.E[[#This Row],[عدد أيام الأجازات]]=7,data.E[[#This Row],[الحافز]]*50%,IF(data.E[[#This Row],[عدد أيام الأجازات]]>7,data.E[[#This Row],[الحافز]]*100%,0))))) -> 0 | BS34: 0 | BT34: 0 | BU34: 0 | BV34: 0 | BW34: 3 | BX34: 0 | BZ34: 0 | CA34: 0 | CB34: 0 | CD34: 0 | CE34: 0 | CF34: 0 | CG34: 0 | CH34: 0 | CJ34: 3.19 | CK34: 5 | CN34: 0 | CO34: 0 | CR34: 0 | CS34: 315.26 | CT34: 0 | CU34: =ROUND(IF($H34=data.E[[#Headers],[إيقاف]],$BG34-SUM(data.E[[#This Row],[تامينات 2026]:[تنفيذ أحكام]],data.E[[#This Row],[الشهداء]:[خصم 5% تأمين من العمولة]],0),0),2) -> 0 | CV34: =ROUND(IF($H34=data.E[[#Headers],[مرضي]],$BG34-SUM(data.E[[#This Row],[تامينات 2026]:[تنفيذ أحكام]],data.E[[#This Row],[الشهداء]:[خصم 5% تأمين من العمولة]],0),0),2) -> 0 | CW34: =ROUND(IF($H34=data.E[[#Headers],[أجازة]],$BG34-SUM(data.E[[#This Row],[تامينات 2026]:[تنفيذ أحكام]],data.E[[#This Row],[الشهداء]:[خصم 5% تأمين من العمولة]],0),0),2) -> 0 | CX34: =ROUND(IF($H34=data.E[[#Headers],[إعارة]],$BG34-SUM(data.E[[#This Row],[تامينات 2026]:[تنفيذ أحكام]],data.E[[#This Row],[الشهداء]:[خصم 5% تأمين من العمولة]],0),0),2) -> 0 | CY34: =ROUND(IF($H34=data.E[[#Headers],[إنهاء]],$BG34-SUM(data.E[[#This Row],[تامينات 2026]:[تنفيذ أحكام]],data.E[[#This Row],[الشهداء]:[خصم 5% تأمين من العمولة]],0),0),2) -> 0 | CZ34: =ROUND(IF($H34=data.E[[#Headers],[معاش]],$BG34-SUM(data.E[[#This Row],[تامينات 2026]:[تنفيذ أحكام]],data.E[[#This Row],[الشهداء]:[خصم 5% تأمين من العمولة]],0),0),2) -> 0 | DA34: =ROUND(SUM(data.E[[#This Row],[تامينات 2026]:[تنفيذ أحكام]],data.E[[#This Row],[الشهداء]:[معاش]]),2) -> 1024.9 | DB34: 5975.1
A35: =IF(data.E[[#This Row],[الموظف المختص]]=print.e!$E$2,COUNTIF('data.e'!$G$4:G35,G35),"") -> 32 | B35: 101026 | C35: 11198 | D35: بنك مصر 1 | E35: هبه محمد احمد على | G35: منال | H35: دوام كامل | I35: ادارى | J35: الاولى | L35: الأولى | M35: اخصائى نظم معلومات والتحول الرقمى | N35: الادارة العامة | O35: المنطقه المركزية | P35: 27708100202641 | Q35: 10102611198هبه محمد احمد علىمنالالاولىالأولىاخصائى نظم معلومات والتحول الرقمى ادارة النظم المعلومات | R35: نعم | S35: 1420.26 | T35: 1661.7042 | U35: 0 | V35: 2243.3 | W35: 249.26 | X35: 0 | Y35: 0 | Z35: 0 | AB35: 0 | AC35: 300 | AE35: 0 | AF35: 0 | AG35: 0 | AH35: 0 | AI35: =SUM(AA35:AH35)-data.E[[#This Row],[بدل تمثيل]] -> 300 | AJ35: 47.36 | AK35: 52.81 | AL35: 65 | AM35: 0 | AN35: 190 | AO35: 28.39 | AP35: 50.63 | AQ35: 65.01 | AR35: 92.75 | AS35: 99.24 | AT35: 106.19 | AU35: 0 | AV35: 71.013 | AW35: 600 | AX35: 6 | AY35: 1474.39 | AZ35: 10 | BA35: =ROUND((data.E[[#This Row],[أساسي 7/2025]]*2)/12,2) -> 276.95 | BE35: 6215.6 | BF35: 784.4 | BG35: =IF(data.E[[#This Row],[حالة العمل]]="إيقاف",data.E[[#This Row],[أساسي 7/2025]],ROUND(SUM(data.E[[#This Row],[بدل تمثيل]],BB35:BF35),2)) -> 7000 | BL35: =ROUND(data.E[[#This Row],[تامينات 2026]]/11%,2) -> 5982.45 | BM35: 658.07 | BO35: =(data.E[[#This Row],[إجمالي المستحق]]-SUM(data.E[[#This Row],[الحافز]],data.E[[#This Row],[متوسط المنحة]:[الإضافي]]))/30*data.E[[#This Row],[أيام الغياب]] -> 0 | BP35: =(data.E[[#This Row],[إجمالي المستحق]]-SUM(data.E[[#This Row],[الحافز]],data.E[[#This Row],[متوسط المنحة]:[الإضافي]]))/30*data.E[[#This Row],[أيام جزاء]] -> 0 | BQ35: =IF(data.E[[#This Row],[أيام الغياب]]=1,data.E[[#This Row],[الحافز]]*20%,IF(data.E[[#This Row],[أيام الغياب]]=2,data.E[[#This Row],[الحافز]]*30%,IF(data.E[[#This Row],[أيام الغياب]]>2,data.E[[#This Row],[الحافز]]*100%,0))) -> 0 | BR35: =IF(data.E[[#This Row],[عدد أيام الأجازات]]<=4,data.E[[#This Row],[الحافز]]*0,IF(data.E[[#This Row],[عدد أيام الأجازات]]=5,data.E[[#This Row],[الحافز]]*20%,IF(data.E[[#This Row],[عدد أيام الأجازات]]=6,data.E[[#This Row],[الحافز]]*40%,IF(data.E[[#This Row],[عدد أيام الأجازات]]=7,data.E[[#This Row],[الحافز]]*50%,IF(data.E[[#This Row],[عدد أيام الأجازات]]>7,data.E[[#This Row],[الحافز]]*100%,0))))) -> 0 | BS35: 0 | BT35: 0 | BU35: 0 | BV35: 0 | BW35: 3 | BX35: 0 | BZ35: 0 | CA35: 0 | CB35: 0 | CD35: 0 | CE35: 0 | CF35: 0 | CG35: 0 | CH35: 0 | CJ35: 3.21 | CK35: 5 | CN35: 0 | CO35: 0 | CR35: 0 | CS35: 276.95 | CT35: 0 | CU35: =ROUND(IF($H35=data.E[[#Headers],[إيقاف]],$BG35-SUM(data.E[[#This Row],[تامينات 2026]:[تنفيذ أحكام]],data.E[[#This Row],[الشهداء]:[خصم 5% تأمين من العمولة]],0),0),2) -> 0 | CV35: =ROUND(IF($H35=data.E[[#Headers],[مرضي]],$BG35-SUM(data.E[[#This Row],[تامينات 2026]:[تنفيذ أحكام]],data.E[[#This Row],[الشهداء]:[خصم 5% تأمين من العمولة]],0),0),2) -> 0 | CW35: =ROUND(IF($H35=data.E[[#Headers],[أجازة]],$BG35-SUM(data.E[[#This Row],[تامينات 2026]:[تنفيذ أحكام]],data.E[[#This Row],[الشهداء]:[خصم 5% تأمين من العمولة]],0),0),2) -> 0 | CX35: =ROUND(IF($H35=data.E[[#Headers],[إعارة]],$BG35-SUM(data.E[[#This Row],[تامينات 2026]:[تنفيذ أحكام]],data.E[[#This Row],[الشهداء]:[خصم 5% تأمين من العمولة]],0),0),2) -> 0 | CY35: =ROUND(IF($H35=data.E[[#Headers],[إنهاء]],$BG35-SUM(data.E[[#This Row],[تامينات 2026]:[تنفيذ أحكام]],data.E[[#This Row],[الشهداء]:[خصم 5% تأمين من العمولة]],0),0),2) -> 0 | CZ35: =ROUND(IF($H35=data.E[[#Headers],[معاش]],$BG35-SUM(data.E[[#This Row],[تامينات 2026]:[تنفيذ أحكام]],data.E[[#This Row],[الشهداء]:[خصم 5% تأمين من العمولة]],0),0),2) -> 0 | DA35: =ROUND(SUM(data.E[[#This Row],[تامينات 2026]:[تنفيذ أحكام]],data.E[[#This Row],[الشهداء]:[معاش]]),2) -> 946.23 | DB35: 6053.77
A36: =IF(data.E[[#This Row],[الموظف المختص]]=print.e!$E$2,COUNTIF('data.e'!$G$4:G36,G36),"") -> 33 | B36: 101027 | C36: 11347 | D36: بنك مصر 1 | E36: طارق سيد قرنى احمد | G36: منال | H36: دوام كامل | I36: ادارى | J36: الثانية | L36: الثانية | M36: كاتب شئون مالية | N36: الادارة العامة | O36: المنطقه المركزية | P36: 27712030105976 | Q36: 10102711347طارق سيد قرنى احمدمنالالثانيةالثانيةكاتب شئون مالية قطاع مالى | R36: نعم | S36: 1170.62 | T36: 1369.6254 | U36: 0 | V36: 1848.99 | W36: 205.44 | X36: 0 | Y36: 0 | Z36: 0 | AB36: 0 | AC36: 300 | AE36: 0 | AF36: 0 | AG36: 0 | AH36: 0 | AI36: =SUM(AA36:AH36)-data.E[[#This Row],[بدل تمثيل]] -> 300 | AJ36: 41.94 | AK36: 46.57 | AL36: 65 | AM36: 0 | AN36: 190 | AO36: 23.4 | AP36: 41.73 | AQ36: 53.58 | AR36: 76.45 | AS36: 81.8 | AT36: 87.52 | AU36: 0 | AV36: 58.531 | AW36: 600 | AX36: 10 | AY36: 1376.52 | AZ36: 10 | BA36: =ROUND((data.E[[#This Row],[أساسي 7/2025]]*2)/12,2) -> 228.27 | BE36: 5338.85 | BF36: 1661.15 | BG36: =IF(data.E[[#This Row],[حالة العمل]]="إيقاف",data.E[[#This Row],[أساسي 7/2025]],ROUND(SUM(data.E[[#This Row],[بدل تمثيل]],BB36:BF36),2)) -> 7000 | BL36: =ROUND(data.E[[#This Row],[تامينات 2026]]/11%,2) -> 5830.64 | BM36: 641.37 | BO36: =(data.E[[#This Row],[إجمالي المستحق]]-SUM(data.E[[#This Row],[الحافز]],data.E[[#This Row],[متوسط المنحة]:[الإضافي]]))/30*data.E[[#This Row],[أيام الغياب]] -> 0 | BP36: =(data.E[[#This Row],[إجمالي المستحق]]-SUM(data.E[[#This Row],[الحافز]],data.E[[#This Row],[متوسط المنحة]:[الإضافي]]))/30*data.E[[#This Row],[أيام جزاء]] -> 0 | BQ36: =IF(data.E[[#This Row],[أيام الغياب]]=1,data.E[[#This Row],[الحافز]]*20%,IF(data.E[[#This Row],[أيام الغياب]]=2,data.E[[#This Row],[الحافز]]*30%,IF(data.E[[#This Row],[أيام الغياب]]>2,data.E[[#This Row],[الحافز]]*100%,0))) -> 0 | BR36: =IF(data.E[[#This Row],[عدد أيام الأجازات]]<=4,data.E[[#This Row],[الحافز]]*0,IF(data.E[[#This Row],[عدد أيام الأجازات]]=5,data.E[[#This Row],[الحافز]]*20%,IF(data.E[[#This Row],[عدد أيام الأجازات]]=6,data.E[[#This Row],[الحافز]]*40%,IF(data.E[[#This Row],[عدد أيام الأجازات]]=7,data.E[[#This Row],[الحافز]]*50%,IF(data.E[[#This Row],[عدد أيام الأجازات]]>7,data.E[[#This Row],[الحافز]]*100%,0))))) -> 0 | BS36: 0 | BT36: 0 | BU36: 0 | BV36: 0 | BW36: 3 | BX36: 0 | BZ36: 0 | CA36: 0 | CB36: 0 | CD36: 0 | CE36: 0 | CF36: 0 | CG36: 0 | CH36: 0 | CJ36: 3.24 | CK36: 3 | CN36: 0 | CO36: 0 | CR36: 0 | CS36: 228.27 | CT36: 0 | CU36: =ROUND(IF($H36=data.E[[#Headers],[إيقاف]],$BG36-SUM(data.E[[#This Row],[تامينات 2026]:[تنفيذ أحكام]],data.E[[#This Row],[الشهداء]:[خصم 5% تأمين من العمولة]],0),0),2) -> 0 | CV36: =ROUND(IF($H36=data.E[[#Headers],[مرضي]],$BG36-SUM(data.E[[#This Row],[تامينات 2026]:[تنفيذ أحكام]],data.E[[#This Row],[الشهداء]:[خصم 5% تأمين من العمولة]],0),0),2) -> 0 | CW36: =ROUND(IF($H36=data.E[[#Headers],[أجازة]],$BG36-SUM(data.E[[#This Row],[تامينات 2026]:[تنفيذ أحكام]],data.E[[#This Row],[الشهداء]:[خصم 5% تأمين من العمولة]],0),0),2) -> 0 | CX36: =ROUND(IF($H36=data.E[[#Headers],[إعارة]],$BG36-SUM(data.E[[#This Row],[تامينات 2026]:[تنفيذ أحكام]],data.E[[#This Row],[الشهداء]:[خصم 5% تأمين من العمولة]],0),0),2) -> 0 | CY36: =ROUND(IF($H36=data.E[[#Headers],[إنهاء]],$BG36-SUM(data.E[[#This Row],[تامينات 2026]:[تنفيذ أحكام]],data.E[[#This Row],[الشهداء]:[خصم 5% تأمين من العمولة]],0),0),2) -> 0 | CZ36: =ROUND(IF($H36=data.E[[#Headers],[معاش]],$BG36-SUM(data.E[[#This Row],[تامينات 2026]:[تنفيذ أحكام]],data.E[[#This Row],[الشهداء]:[خصم 5% تأمين من العمولة]],0),0),2) -> 0 | DA36: =ROUND(SUM(data.E[[#This Row],[تامينات 2026]:[تنفيذ أحكام]],data.E[[#This Row],[الشهداء]:[معاش]]),2) -> 878.88 | DB36: 6121.12
A37: =IF(data.E[[#This Row],[الموظف المختص]]=print.e!$E$2,COUNTIF('data.e'!$G$4:G37,G37),"") -> 34 | B37: 101028 | C37: 1349 | D37: بنك مصر 1 | E37: منار عبد الفتاح عبد الفتاح ابو العنين | G37: منال | H37: دوام كامل | I37: ادارى | J37: الثانية | L37: الثانية | M37: كاتب حركة وتراخيص | N37: الادارة العامة | O37: المنطقه المركزية | P37: 26908290103606 | Q37: 1010281349منار عبد الفتاح عبد الفتاح ابو العنينمنالالثانيةالثانيةكاتب حركة وتراخيصقطاع تشغيل | R37: نعم | S37: 1269.24 | T37: 1485.0108 | U37: 0 | V37: 2004.76 | W37: 222.75 | X37: 0 | Y37: 0 | Z37: 0 | AB37: 0 | AC37: 300 | AE37: 0 | AF37: 0 | AG37: 0 | AH37: 0 | AI37: =SUM(AA37:AH37)-data.E[[#This Row],[بدل تمثيل]] -> 300 | AJ37: 45.41 | AK37: 50.46 | AL37: 65 | AM37: 0 | AN37: 190 | AO37: 25.37 | AP37: 45.25 | AQ37: 58.1 | AR37: 82.89 | AS37: 88.69 | AT37: 94.9 | AU37: 0 | AV37: 63.462 | AW37: 600 | AX37: 8 | AY37: 1417.53 | AZ37: 10 | BA37: =ROUND((data.E[[#This Row],[أساسي 7/2025]]*2)/12,2) -> 247.5 | BE37: 5687.55 | BF37: 1312.45 | BG37: =IF(data.E[[#This Row],[حالة العمل]]="إيقاف",data.E[[#This Row],[أساسي 7/2025]],ROUND(SUM(data.E[[#This Row],[بدل تمثيل]],BB37:BF37),2)) -> 7000 | BL37: =ROUND(data.E[[#This Row],[تامينات 2026]]/11%,2) -> 5876.18 | BM37: 646.38 | BO37: =(data.E[[#This Row],[إجمالي المستحق]]-SUM(data.E[[#This Row],[الحافز]],data.E[[#This Row],[متوسط المنحة]:[الإضافي]]))/30*data.E[[#This Row],[أيام الغياب]] -> 0 | BP37: =(data.E[[#This Row],[إجمالي المستحق]]-SUM(data.E[[#This Row],[الحافز]],data.E[[#This Row],[متوسط المنحة]:[الإضافي]]))/30*data.E[[#This Row],[أيام جزاء]] -> 0 | BQ37: =IF(data.E[[#This Row],[أيام الغياب]]=1,data.E[[#This Row],[الحافز]]*20%,IF(data.E[[#This Row],[أيام الغياب]]=2,data.E[[#This Row],[الحافز]]*30%,IF(data.E[[#This Row],[أيام الغياب]]>2,data.E[[#This Row],[الحافز]]*100%,0))) -> 0 | BR37: =IF(data.E[[#This Row],[عدد أيام الأجازات]]<=4,data.E[[#This Row],[الحافز]]*0,IF(data.E[[#This Row],[عدد أيام الأجازات]]=5,data.E[[#This Row],[الحافز]]*20%,IF(data.E[[#This Row],[عدد أيام الأجازات]]=6,data.E[[#This Row],[الحافز]]*40%,IF(data.E[[#This Row],[عدد أيام الأجازات]]=7,data.E[[#This Row],[الحافز]]*50%,IF(data.E[[#This Row],[عدد أيام الأجازات]]>7,data.E[[#This Row],[الحافز]]*100%,0))))) -> 0 | BS37: 0 | BT37: 0 | BU37: 0 | BV37: 0 | BW37: 3 | BX37: 0 | BZ37: 0 | CA37: 0 | CB37: 0 | CD37: 0 | CE37: 0 | CF37: 0 | CG37: 0 | CH37: 0 | CJ37: 3.23 | CK37: 3 | CN37: 0 | CO37: 0 | CR37: 0 | CS37: 247.5 | CT37: 0 | CU37: =ROUND(IF($H37=data.E[[#Headers],[إيقاف]],$BG37-SUM(data.E[[#This Row],[تامينات 2026]:[تنفيذ أحكام]],data.E[[#This Row],[الشهداء]:[خصم 5% تأمين من العمولة]],0),0),2) -> 0 | CV37: =ROUND(IF($H37=data.E[[#Headers],[مرضي]],$BG37-SUM(data.E[[#This Row],[تامينات 2026]:[تنفيذ أحكام]],data.E[[#This Row],[الشهداء]:[خصم 5% تأمين من العمولة]],0),0),2) -> 0 | CW37: =ROUND(IF($H37=data.E[[#Headers],[أجازة]],$BG37-SUM(data.E[[#This Row],[تامينات 2026]:[تنفيذ أحكام]],data.E[[#This Row],[الشهداء]:[خصم 5% تأمين من العمولة]],0),0),2) -> 0 | CX37: =ROUND(IF($H37=data.E[[#Headers],[إعارة]],$BG37-SUM(data.E[[#This Row],[تامينات 2026]:[تنفيذ أحكام]],data.E[[#This Row],[الشهداء]:[خصم 5% تأمين من العمولة]],0),0),2) -> 0 | CY37: =ROUND(IF($H37=data.E[[#Headers],[إنهاء]],$BG37-SUM(data.E[[#This Row],[تامينات 2026]:[تنفيذ أحكام]],data.E[[#This Row],[الشهداء]:[خصم 5% تأمين من العمولة]],0),0),2) -> 0 | CZ37: =ROUND(IF($H37=data.E[[#Headers],[معاش]],$BG37-SUM(data.E[[#This Row],[تامينات 2026]:[تنفيذ أحكام]],data.E[[#This Row],[الشهداء]:[خصم 5% تأمين من العمولة]],0),0),2) -> 0 | DA37: =ROUND(SUM(data.E[[#This Row],[تامينات 2026]:[تنفيذ أحكام]],data.E[[#This Row],[الشهداء]:[معاش]]),2) -> 903.11 | DB37: 6096.89
A38: =IF(data.E[[#This Row],[الموظف المختص]]=print.e!$E$2,COUNTIF('data.e'!$G$4:G38,G38),"") -> 35 | B38: 101029 | C38: 11350 | D38: بنك مصر 1 | E38: فاطمه محسن ابو الفضل ايوب | G38: منال | H38: دوام كامل | I38: ادارى | J38: الثانية | L38: الثانية | M38: كاتب شئون ادارية | N38: الادارة العامة | O38: المنطقه المركزية | P38: 28601140100985 | Q38: 10102911350فاطمه محسن ابو الفضل ايوبمنالالثانيةالثانيةكاتب شئون ادارية قطاع الموار بشرية | R38: نعم | S38: 1171.72 | T38: 1370.9124 | U38: 0 | V38: 1850.73 | W38: 205.64 | X38: 0 | Y38: 0 | Z38: 0 | AB38: 0 | AC38: 300 | AE38: 0 | AF38: 0 | AG38: 0 | AH38: 0 | AI38: =SUM(AA38:AH38)-data.E[[#This Row],[بدل تمثيل]] -> 300 | AJ38: 39.2 | AK38: 43.63 | AL38: 65 | AM38: 0 | AN38: 190 | AO38: 23.42 | AP38: 41.77 | AQ38: 53.63 | AR38: 76.52 | AS38: 81.87 | AT38: 87.61 | AU38: 0 | AV38: 58.586 | AW38: 600 | AX38: 6 | AY38: 1367.24 | AZ38: 10 | BA38: =ROUND((data.E[[#This Row],[أساسي 7/2025]]*2)/12,2) -> 228.49 | BE38: 5333.01 | BF38: 1666.99 | BG38: =IF(data.E[[#This Row],[حالة العمل]]="إيقاف",data.E[[#This Row],[أساسي 7/2025]],ROUND(SUM(data.E[[#This Row],[بدل تمثيل]],BB38:BF38),2)) -> 7000 | BL38: =ROUND(data.E[[#This Row],[تامينات 2026]]/11%,2) -> 5830.27 | BM38: 641.33 | BO38: =(data.E[[#This Row],[إجمالي المستحق]]-SUM(data.E[[#This Row],[الحافز]],data.E[[#This Row],[متوسط المنحة]:[الإضافي]]))/30*data.E[[#This Row],[أيام الغياب]] -> 0 | BP38: =(data.E[[#This Row],[إجمالي المستحق]]-SUM(data.E[[#This Row],[الحافز]],data.E[[#This Row],[متوسط المنحة]:[الإضافي]]))/30*data.E[[#This Row],[أيام جزاء]] -> 0 | BQ38: =IF(data.E[[#This Row],[أيام الغياب]]=1,data.E[[#This Row],[الحافز]]*20%,IF(data.E[[#This Row],[أيام الغياب]]=2,data.E[[#This Row],[الحافز]]*30%,IF(data.E[[#This Row],[أيام الغياب]]>2,data.E[[#This Row],[الحافز]]*100%,0))) -> 0 | BR38: =IF(data.E[[#This Row],[عدد أيام الأجازات]]<=4,data.E[[#This Row],[الحافز]]*0,IF(data.E[[#This Row],[عدد أيام الأجازات]]=5,data.E[[#This Row],[الحافز]]*20%,IF(data.E[[#This Row],[عدد أيام الأجازات]]=6,data.E[[#This Row],[الحافز]]*40%,IF(data.E[[#This Row],[عدد أيام الأجازات]]=7,data.E[[#This Row],[الحافز]]*50%,IF(data.E[[#This Row],[عدد أيام الأجازات]]>7,data.E[[#This Row],[الحافز]]*100%,0))))) -> 0 | BS38: 0 | BT38: 50.5 | BU38: 0 | BV38: 0 | BW38: 3 | BX38: 0 | BZ38: 0 | CA38: 0 | CB38: 0 | CD38: 0 | CE38: 0 | CF38: 0 | CG38: 0 | CH38: 0 | CJ38: 3.24 | CK38: 3 | CN38: 0 | CO38: 0 | CR38: 0 | CS38: 228.49 | CT38: 0 | CU38: =ROUND(IF($H38=data.E[[#Headers],[إيقاف]],$BG38-SUM(data.E[[#This Row],[تامينات 2026]:[تنفيذ أحكام]],data.E[[#This Row],[الشهداء]:[خصم 5% تأمين من العمولة]],0),0),2) -> 0 | CV38: =ROUND(IF($H38=data.E[[#Headers],[مرضي]],$BG38-SUM(data.E[[#This Row],[تامينات 2026]:[تنفيذ أحكام]],data.E[[#This Row],[الشهداء]:[خصم 5% تأمين من العمولة]],0),0),2) -> 0 | CW38: =ROUND(IF($H38=data.E[[#Headers],[أجازة]],$BG38-SUM(data.E[[#This Row],[تامينات 2026]:[تنفيذ أحكام]],data.E[[#This Row],[الشهداء]:[خصم 5% تأمين من العمولة]],0),0),2) -> 0 | CX38: =ROUND(IF($H38=data.E[[#Headers],[إعارة]],$BG38-SUM(data.E[[#This Row],[تامينات 2026]:[تنفيذ أحكام]],data.E[[#This Row],[الشهداء]:[خصم 5% تأمين من العمولة]],0),0),2) -> 0 | CY38: =ROUND(IF($H38=data.E[[#Headers],[إنهاء]],$BG38-SUM(data.E[[#This Row],[تامينات 2026]:[تنفيذ أحكام]],data.E[[#This Row],[الشهداء]:[خصم 5% تأمين من العمولة]],0),0),2) -> 0 | CZ38: =ROUND(IF($H38=data.E[[#Headers],[معاش]],$BG38-SUM(data.E[[#This Row],[تامينات 2026]:[تنفيذ أحكام]],data.E[[#This Row],[الشهداء]:[خصم 5% تأمين من العمولة]],0),0),2) -> 0 | DA38: =ROUND(SUM(data.E[[#This Row],[تامينات 2026]:[تنفيذ أحكام]],data.E[[#This Row],[الشهداء]:[معاش]]),2) -> 929.56 | DB38: 6070.44
A39: =IF(data.E[[#This Row],[الموظف المختص]]=print.e!$E$2,COUNTIF('data.e'!$G$4:G39,G39),"") ->  | B39: 101030 | C39: 0 | D39: أجازة | E39: عبد الحميد شحاته عبد الحميد مصطفى | G39: خاصة | H39: أجازة | I39: ادارى | J39: الثانية | L39: الثانية | M39: محام | N39: أجازة خاصة | O39: المنطقه المركزية | P39: 28404251401739 | Q39: 101030عبد الحميد شحاته عبد الحميد مصطفىخاصةالثانيةالثانيةمحام أجازة سنة | R39: نعم | S39: 1143.9 | T39: 1338.363 | U39: 0 | V39: 1806.79 | W39: 200.75 | X39: 0 | Y39: 0 | Z39: 0 | AB39: 0 | AC39: 300 | AE39: 0 | AF39: 0 | AG39: 21 | AH39: 0 | AI39: =SUM(AA39:AH39)-data.E[[#This Row],[بدل تمثيل]] -> 321 | AJ39: 36.22 | AK39: 40.89 | AL39: 65 | AM39: 0 | AN39: 190 | AO39: 25.13 | AP39: 38.11 | AQ39: 48.94 | AR39: 69.81 | AS39: 74.7 | AT39: 85.53 | AU39: 0 | AV39: 57.195 | AW39: 600 | AX39: 6 | AY39: 1337.53 | AZ39: 10 | BA39: =ROUND((data.E[[#This Row],[أساسي 7/2025]]*2)/12,2) -> 223.06 | BE39: 5237.49 | BF39: 1762.51 | BG39: =IF(data.E[[#This Row],[حالة العمل]]="إيقاف",data.E[[#This Row],[أساسي 7/2025]],ROUND(SUM(data.E[[#This Row],[بدل تمثيل]],BB39:BF39),2)) -> 7000 | BL39: =ROUND(data.E[[#This Row],[تامينات 2026]]/11%,2) -> 4195.91 | BM39: 461.55 | BO39: =(data.E[[#This Row],[إجمالي المستحق]]-SUM(data.E[[#This Row],[الحافز]],data.E[[#This Row],[متوسط المنحة]:[الإضافي]]))/30*data.E[[#This Row],[أيام الغياب]] -> 0 | BP39: =(data.E[[#This Row],[إجمالي المستحق]]-SUM(data.E[[#This Row],[الحافز]],data.E[[#This Row],[متوسط المنحة]:[الإضافي]]))/30*data.E[[#This Row],[أيام جزاء]] -> 0 | BQ39: =IF(data.E[[#This Row],[أيام الغياب]]=1,data.E[[#This Row],[الحافز]]*20%,IF(data.E[[#This Row],[أيام الغياب]]=2,data.E[[#This Row],[الحافز]]*30%,IF(data.E[[#This Row],[أيام الغياب]]>2,data.E[[#This Row],[الحافز]]*100%,0))) -> 0 | BR39: =IF(data.E[[#This Row],[عدد أيام الأجازات]]<=4,data.E[[#This Row],[الحافز]]*0,IF(data.E[[#This Row],[عدد أيام الأجازات]]=5,data.E[[#This Row],[الحافز]]*20%,IF(data.E[[#This Row],[عدد أيام الأجازات]]=6,data.E[[#This Row],[الحافز]]*40%,IF(data.E[[#This Row],[عدد أيام الأجازات]]=7,data.E[[#This Row],[الحافز]]*50%,IF(data.E[[#This Row],[عدد أيام الأجازات]]>7,data.E[[#This Row],[الحافز]]*100%,0))))) -> 0 | BS39: 0 | BT39: 0 | BU39: 0 | BV39: 0 | BW39: 3 | BX39: 0 | BZ39: 0 | CA39: 0 | CB39: 0 | CD39: 0 | CE39: 0 | CF39: 0 | CG39: 0 | CH39: 0 | CJ39: 0 | CK39: 3 | CN39: 0 | CO39: 0 | CR39: 0 | CS39: 223.06 | CT39: 0 | CU39: =ROUND(IF($H39=data.E[[#Headers],[إيقاف]],$BG39-SUM(data.E[[#This Row],[تامينات 2026]:[تنفيذ أحكام]],data.E[[#This Row],[الشهداء]:[خصم 5% تأمين من العمولة]],0),0),2) -> 0 | CV39: =ROUND(IF($H39=data.E[[#Headers],[مرضي]],$BG39-SUM(data.E[[#This Row],[تامينات 2026]:[تنفيذ أحكام]],data.E[[#This Row],[الشهداء]:[خصم 5% تأمين من العمولة]],0),0),2) -> 0 | CW39: =ROUND(IF($H39=data.E[[#Headers],[أجازة]],$BG39-SUM(data.E[[#This Row],[تامينات 2026]:[تنفيذ أحكام]],data.E[[#This Row],[الشهداء]:[خصم 5% تأمين من العمولة]],0),0),2) -> 6309.39 | CX39: =ROUND(IF($H39=data.E[[#Headers],[إعارة]],$BG39-SUM(data.E[[#This Row],[تامينات 2026]:[تنفيذ أحكام]],data.E[[#This Row],[الشهداء]:[خصم 5% تأمين من العمولة]],0),0),2) -> 0 | CY39: =ROUND(IF($H39=data.E[[#Headers],[إنهاء]],$BG39-SUM(data.E[[#This Row],[تامينات 2026]:[تنفيذ أحكام]],data.E[[#This Row],[الشهداء]:[خصم 5% تأمين من العمولة]],0),0),2) -> 0 | CZ39: =ROUND(IF($H39=data.E[[#Headers],[معاش]],$BG39-SUM(data.E[[#This Row],[تامينات 2026]:[تنفيذ أحكام]],data.E[[#This Row],[الشهداء]:[خصم 5% تأمين من العمولة]],0),0),2) -> 0 | DA39: =ROUND(SUM(data.E[[#This Row],[تامينات 2026]:[تنفيذ أحكام]],data.E[[#This Row],[الشهداء]:[معاش]]),2) -> 7000 | DB39: 0
A40: =IF(data.E[[#This Row],[الموظف المختص]]=print.e!$E$2,COUNTIF('data.e'!$G$4:G40,G40),"") -> 36 | B40: 101031 | C40: 10031 | D40: بنك مصر 1 | E40: شفيقة ابو الخير أحمد رشدي | G40: منال | H40: دوام كامل | I40: ادارى | J40: م . عام | N40: الادارة العامة | O40: المنطقه المركزية | P40: 26609200103745 | Q40: 10103110031شفيقة ابو الخير أحمد رشديمنالم . عام | S40: 3099.924 | T40: 3409.9164 | U40: 0 | V40: 4603.39 | W40: 511.49 | X40: 0 | Y40: 0 | Z40: 0 | AB40: 0 | AC40: 300 | AE40: 200 | AG40: 0 | AH40: 0 | AI40: =SUM(AA40:AH40)-data.E[[#This Row],[بدل تمثيل]] -> 300 | AJ40: 107.3053 | AK40: 120.1688 | AL40: 120 | AM40: 0 | AN40: 180 | AO40: 61.97 | AP40: 110.5101 | AQ40: 141.895 | AR40: 202.4369 | AS40: 216.6075 | AT40: 231.77 | AU40: 0 | AV40: 154.9962 | AW40: 600 | AX40: 6 | AY40: 2253.66 | AZ40: 10 | BA40: =ROUND((data.E[[#This Row],[أساسي 7/2025]]*2)/12,2) -> 568.32 | BE40: 11656.78 | BF40: 0 | BG40: =IF(data.E[[#This Row],[حالة العمل]]="إيقاف",data.E[[#This Row],[أساسي 7/2025]],ROUND(SUM(data.E[[#This Row],[بدل تمثيل]],BB40:BF40),2)) -> 11856.78 | BL40: =ROUND(data.E[[#This Row],[تامينات 2026]]/11%,2) -> 11213.45 | BM40: 1233.48 | BO40: =(data.E[[#This Row],[إجمالي المستحق]]-SUM(data.E[[#This Row],[الحافز]],data.E[[#This Row],[متوسط المنحة]:[الإضافي]]))/30*data.E[[#This Row],[أيام الغياب]] -> 0 | BP40: =(data.E[[#This Row],[إجمالي المستحق]]-SUM(data.E[[#This Row],[الحافز]],data.E[[#This Row],[متوسط المنحة]:[الإضافي]]))/30*data.E[[#This Row],[أيام جزاء]] -> 0 | BQ40: =IF(data.E[[#This Row],[أيام الغياب]]=1,data.E[[#This Row],[الحافز]]*20%,IF(data.E[[#This Row],[أيام الغياب]]=2,data.E[[#This Row],[الحافز]]*30%,IF(data.E[[#This Row],[أيام الغياب]]>2,data.E[[#This Row],[الحافز]]*100%,0))) -> 0 | BR40: =IF(data.E[[#This Row],[عدد أيام الأجازات]]<=4,data.E[[#This Row],[الحافز]]*0,IF(data.E[[#This Row],[عدد أيام الأجازات]]=5,data.E[[#This Row],[الحافز]]*20%,IF(data.E[[#This Row],[عدد أيام الأجازات]]=6,data.E[[#This Row],[الحافز]]*40%,IF(data.E[[#This Row],[عدد أيام الأجازات]]=7,data.E[[#This Row],[الحافز]]*50%,IF(data.E[[#This Row],[عدد أيام الأجازات]]>7,data.E[[#This Row],[الحافز]]*100%,0))))) -> 0 | BS40: 0 | BT40: 0 | BU40: 0 | BW40: 3 | BX40: 0 | BZ40: 0 | CD40: 0 | CE40: 0 | CG40: 0 | CJ40: 5.49 | CK40: 10 | CR40: 0 | CS40: 568.32 | CT40: 0 | CU40: =ROUND(IF($H40=data.E[[#Headers],[إيقاف]],$BG40-SUM(data.E[[#This Row],[تامينات 2026]:[تنفيذ أحكام]],data.E[[#This Row],[الشهداء]:[خصم 5% تأمين من العمولة]],0),0),2) -> 0 | CV40: =ROUND(IF($H40=data.E[[#Headers],[مرضي]],$BG40-SUM(data.E[[#This Row],[تامينات 2026]:[تنفيذ أحكام]],data.E[[#This Row],[الشهداء]:[خصم 5% تأمين من العمولة]],0),0),2) -> 0 | CW40: =ROUND(IF($H40=data.E[[#Headers],[أجازة]],$BG40-SUM(data.E[[#This Row],[تامينات 2026]:[تنفيذ أحكام]],data.E[[#This Row],[الشهداء]:[خصم 5% تأمين من العمولة]],0),0),2) -> 0 | CX40: =ROUND(IF($H40=data.E[[#Headers],[إعارة]],$BG40-SUM(data.E[[#This Row],[تامينات 2026]:[تنفيذ أحكام]],data.E[[#This Row],[الشهداء]:[خصم 5% تأمين من العمولة]],0),0),2) -> 0 | CY40: =ROUND(IF($H40=data.E[[#Headers],[إنهاء]],$BG40-SUM(data.E[[#This Row],[تامينات 2026]:[تنفيذ أحكام]],data.E[[#This Row],[الشهداء]:[خصم 5% تأمين من العمولة]],0),0),2) -> 0 | CZ40: =ROUND(IF($H40=data.E[[#Headers],[معاش]],$BG40-SUM(data.E[[#This Row],[تامينات 2026]:[تنفيذ أحكام]],data.E[[#This Row],[الشهداء]:[خصم 5% تأمين من العمولة]],0),0),2) -> 0 | DA40: =ROUND(SUM(data.E[[#This Row],[تامينات 2026]:[تنفيذ أحكام]],data.E[[#This Row],[الشهداء]:[معاش]]),2) -> 1820.29 | DB40: 10036.49
A41: =IF(data.E[[#This Row],[الموظف المختص]]=print.e!$E$2,COUNTIF('data.e'!$G$4:G41,G41),"") -> 37 | B41: 101032 | C41: 11362 | D41: بنك مصر 1 | E41: حسن عبد الصبور السيد | G41: منال | H41: نصف وقت | I41: ادارى | J41: الثانية | L41: الثانية | M41: محام | N41: الادارة العامة | O41: المنطقه المركزية | P41: 28707170104856 | Q41: 10103211362حسن عبد الصبور السيدمنالالثانيةالثانيةمحام نصف وقت | R41: نعم | S41: 1223.97 | T41: 1532.28 | U41: 0 | V41: 2068.58 | W41: 229.84 | X41: 0 | Y41: 0 | Z41: 0 | AB41: 0 | AC41: 300 | AE41: 0 | AF41: 0 | AG41: 21 | AH41: 0 | AI41: =SUM(AA41:AH41)-data.E[[#This Row],[بدل تمثيل]] -> 321 | AJ41: 36.22 | AK41: 40.89 | AL41: 65 | AM41: 0 | AN41: 190 | AO41: 25.13 | AP41: 38.11 | AQ41: 48.94 | AR41: 69.81 | AS41: 79.93 | AT41: 91.51 | AU41: 0 | AV41: 61.1985 | AW41: 600 | AX41: 10 | AY41: 1356.74 | AZ41: 10 | BA41: =ROUND((data.E[[#This Row],[أساسي 7/2025]]*2)/12,2) -> 255.38 | BE41: 5773.82 | BF41: 1226.18 | BG41: =IF(data.E[[#This Row],[حالة العمل]]="إيقاف",data.E[[#This Row],[أساسي 7/2025]],ROUND(SUM(data.E[[#This Row],[بدل تمثيل]],BB41:BF41),2)) -> 7000 | BL41: =ROUND(data.E[[#This Row],[تامينات 2026]]/11%,2) -> 5841.27 | BM41: 642.54 | BO41: =(data.E[[#This Row],[إجمالي المستحق]]-SUM(data.E[[#This Row],[الحافز]],data.E[[#This Row],[متوسط المنحة]:[الإضافي]]))/30*data.E[[#This Row],[أيام الغياب]] -> 0 | BP41: =(data.E[[#This Row],[إجمالي المستحق]]-SUM(data.E[[#This Row],[الحافز]],data.E[[#This Row],[متوسط المنحة]:[الإضافي]]))/30*data.E[[#This Row],[أيام جزاء]] -> 0 | BQ41: =IF(data.E[[#This Row],[أيام الغياب]]=1,data.E[[#This Row],[الحافز]]*20%,IF(data.E[[#This Row],[أيام الغياب]]=2,data.E[[#This Row],[الحافز]]*30%,IF(data.E[[#This Row],[أيام الغياب]]>2,data.E[[#This Row],[الحافز]]*100%,0))) -> 0 | BR41: =IF(data.E[[#This Row],[عدد أيام الأجازات]]<=4,data.E[[#This Row],[الحافز]]*0,IF(data.E[[#This Row],[عدد أيام الأجازات]]=5,data.E[[#This Row],[الحافز]]*20%,IF(data.E[[#This Row],[عدد أيام الأجازات]]=6,data.E[[#This Row],[الحافز]]*40%,IF(data.E[[#This Row],[عدد أيام الأجازات]]=7,data.E[[#This Row],[الحافز]]*50%,IF(data.E[[#This Row],[عدد أيام الأجازات]]>7,data.E[[#This Row],[الحافز]]*100%,0))))) -> 0 | BS41: 0 | BT41: 0 | BU41: 0 | BV41: 0 | BW41: 3 | BX41: 0 | BZ41: 0 | CA41: 0 | CB41: 0 | CD41: 0 | CE41: 0 | CF41: 0 | CG41: 0 | CH41: 0 | CJ41: 3.21 | CK41: 3 | CN41: 0 | CO41: 0 | CR41: 2696.93 | CS41: 255.38 | CT41: 0 | CU41: =ROUND(IF($H41=data.E[[#Headers],[إيقاف]],$BG41-SUM(data.E[[#This Row],[تامينات 2026]:[تنفيذ أحكام]],data.E[[#This Row],[الشهداء]:[خصم 5% تأمين من العمولة]],0),0),2) -> 0 | CV41: =ROUND(IF($H41=data.E[[#Headers],[مرضي]],$BG41-SUM(data.E[[#This Row],[تامينات 2026]:[تنفيذ أحكام]],data.E[[#This Row],[الشهداء]:[خصم 5% تأمين من العمولة]],0),0),2) -> 0 | CW41: =ROUND(IF($H41=data.E[[#Headers],[أجازة]],$BG41-SUM(data.E[[#This Row],[تامينات 2026]:[تنفيذ أحكام]],data.E[[#This Row],[الشهداء]:[خصم 5% تأمين من العمولة]],0),0),2) -> 0 | CX41: =ROUND(IF($H41=data.E[[#Headers],[إعارة]],$BG41-SUM(data.E[[#This Row],[تامينات 2026]:[تنفيذ أحكام]],data.E[[#This Row],[الشهداء]:[خصم 5% تأمين من العمولة]],0),0),2) -> 0 | CY41: =ROUND(IF($H41=data.E[[#Headers],[إنهاء]],$BG41-SUM(data.E[[#This Row],[تامينات 2026]:[تنفيذ أحكام]],data.E[[#This Row],[الشهداء]:[خصم 5% تأمين من العمولة]],0),0),2) -> 0 | CZ41: =ROUND(IF($H41=data.E[[#Headers],[معاش]],$BG41-SUM(data.E[[#This Row],[تامينات 2026]:[تنفيذ أحكام]],data.E[[#This Row],[الشهداء]:[خصم 5% تأمين من العمولة]],0),0),2) -> 0 | DA41: =ROUND(SUM(data.E[[#This Row],[تامينات 2026]:[تنفيذ أحكام]],data.E[[#This Row],[الشهداء]:[معاش]]),2) -> 3604.06 | DB41: 3395.94
A42: =IF(data.E[[#This Row],[الموظف المختص]]=print.e!$E$2,COUNTIF('data.e'!$G$4:G42,G42),"") -> 38 | B42: 101033 | C42: 11364 | D42: بنك مصر 1 | E42: محمد حسين محمد عثمان | G42: منال | H42: دوام كامل | I42: ادارى | J42: الثانية | L42: الثانية | M42: محاسب | N42: الادارة العامة | O42: المنطقه المركزية | P42: 28304140101294 | Q42: 10103311364محمد حسين محمد عثمانمنالالثانيةالثانيةمحاسب قطاع مالى | R42: نعم | S42: 1069.06 | T42: 1250.8002 | U42: 0 | V42: 1688.58 | W42: 187.62 | X42: 0 | Y42: 0 | Z42: 0 | AB42: 0 | AC42: 300 | AE42: 0 | AF42: 0 | AG42: 0 | AH42: 0 | AI42: =SUM(AA42:AH42)-data.E[[#This Row],[بدل تمثيل]] -> 300 | AJ42: 36.22 | AK42: 40.9 | AL42: 65 | AM42: 0 | AN42: 190 | AO42: 25.14 | AP42: 38.11 | AQ42: 48.93 | AR42: 69.81 | AS42: 74.7 | AT42: 80.07 | AU42: 0 | AV42: 53.453 | AW42: 600 | AX42: 8 | AY42: 1330.33 | AZ42: 10 | BA42: =ROUND((data.E[[#This Row],[أساسي 7/2025]]*2)/12,2) -> 208.47 | BE42: 4975.8 | BF42: 2024.2 | BG42: =IF(data.E[[#This Row],[حالة العمل]]="إيقاف",data.E[[#This Row],[أساسي 7/2025]],ROUND(SUM(data.E[[#This Row],[بدل تمثيل]],BB42:BF42),2)) -> 7000 | BL42: =ROUND(data.E[[#This Row],[تامينات 2026]]/11%,2) -> 5804.73 | BM42: 638.52 | BO42: =(data.E[[#This Row],[إجمالي المستحق]]-SUM(data.E[[#This Row],[الحافز]],data.E[[#This Row],[متوسط المنحة]:[الإضافي]]))/30*data.E[[#This Row],[أيام الغياب]] -> 0 | BP42: =(data.E[[#This Row],[إجمالي المستحق]]-SUM(data.E[[#This Row],[الحافز]],data.E[[#This Row],[متوسط المنحة]:[الإضافي]]))/30*data.E[[#This Row],[أيام جزاء]] -> 0 | BQ42: =IF(data.E[[#This Row],[أيام الغياب]]=1,data.E[[#This Row],[الحافز]]*20%,IF(data.E[[#This Row],[أيام الغياب]]=2,data.E[[#This Row],[الحافز]]*30%,IF(data.E[[#This Row],[أيام الغياب]]>2,data.E[[#This Row],[الحافز]]*100%,0))) -> 0 | BR42: =IF(data.E[[#This Row],[عدد أيام الأجازات]]<=4,data.E[[#This Row],[الحافز]]*0,IF(data.E[[#This Row],[عدد أيام الأجازات]]=5,data.E[[#This Row],[الحافز]]*20%,IF(data.E[[#This Row],[عدد أيام الأجازات]]=6,data.E[[#This Row],[الحافز]]*40%,IF(data.E[[#This Row],[عدد أيام الأجازات]]=7,data.E[[#This Row],[الحافز]]*50%,IF(data.E[[#This Row],[عدد أيام الأجازات]]>7,data.E[[#This Row],[الحافز]]*100%,0))))) -> 0 | BS42: 0 | BT42: 0 | BU42: 0 | BV42: 0 | BW42: 3 | BX42: 0 | BZ42: 0 | CA42: 0 | CB42: 0 | CD42: 0 | CE42: 0 | CF42: 0 | CG42: 0 | CH42: 0 | CJ42: 3.25 | CK42: 3 | CN42: 0 | CO42: 0 | CR42: =ROUND(IF(H42=$CR$3,(BG42-BA42)*40%,0),2) -> 0 | CS42: 208.47 | CT42: 0 | CU42: =ROUND(IF($H42=data.E[[#Headers],[إيقاف]],$BG42-SUM(data.E[[#This Row],[تامينات 2026]:[تنفيذ أحكام]],data.E[[#This Row],[الشهداء]:[خصم 5% تأمين من العمولة]],0),0),2) -> 0 | CV42: =ROUND(IF($H42=data.E[[#Headers],[مرضي]],$BG42-SUM(data.E[[#This Row],[تامينات 2026]:[تنفيذ أحكام]],data.E[[#This Row],[الشهداء]:[خصم 5% تأمين من العمولة]],0),0),2) -> 0 | CW42: =ROUND(IF($H42=data.E[[#Headers],[أجازة]],$BG42-SUM(data.E[[#This Row],[تامينات 2026]:[تنفيذ أحكام]],data.E[[#This Row],[الشهداء]:[خصم 5% تأمين من العمولة]],0),0),2) -> 0 | CX42: =ROUND(IF($H42=data.E[[#Headers],[إعارة]],$BG42-SUM(data.E[[#This Row],[تامينات 2026]:[تنفيذ أحكام]],data.E[[#This Row],[الشهداء]:[خصم 5% تأمين من العمولة]],0),0),2) -> 0 | CY42: =ROUND(IF($H42=data.E[[#Headers],[إنهاء]],$BG42-SUM(data.E[[#This Row],[تامينات 2026]:[تنفيذ أحكام]],data.E[[#This Row],[الشهداء]:[خصم 5% تأمين من العمولة]],0),0),2) -> 0 | CZ42: =ROUND(IF($H42=data.E[[#Headers],[معاش]],$BG42-SUM(data.E[[#This Row],[تامينات 2026]:[تنفيذ أحكام]],data.E[[#This Row],[الشهداء]:[خصم 5% تأمين من العمولة]],0),0),2) -> 0 | DA42: =ROUND(SUM(data.E[[#This Row],[تامينات 2026]:[تنفيذ أحكام]],data.E[[#This Row],[الشهداء]:[معاش]]),2) -> 856.24 | DB42: 6143.76
A43: =IF(data.E[[#This Row],[الموظف المختص]]=print.e!$E$2,COUNTIF('data.e'!$G$4:G43,G43),"") -> 39 | B43: 101034 | C43: 11366 | D43: بنك مصر 1 | E43: ريهام محمد كمال السيد | G43: منال | H43: دوام كامل | I43: ادارى | J43: الثانية | L43: الثانية | M43: اخصائى شئون تجارية | N43: الادارة العامة | O43: المنطقه المركزية | P43: 28809300104001 | Q43: 10103411366ريهام محمد كمال السيدمنالالثانيةالثانيةاخصائى شئون تجارية قطاع مالى | R43: نعم | S43: 1019.87 | T43: 1193.2479 | U43: 0 | V43: 1610.88 | W43: 178.99 | X43: 0 | Y43: 0 | Z43: 0 | AB43: 0 | AC43: 300 | AE43: 0 | AF43: 0 | AG43: 0 | AH43: 0 | AI43: =SUM(AA43:AH43)-data.E[[#This Row],[بدل تمثيل]] -> 300 | AJ43: 36.22 | AK43: 38.22 | AL43: 65 | AM43: 0 | AN43: 190 | AO43: 27.43 | AP43: 36.36 | AQ43: 46.68 | AR43: 66.6 | AS43: 71.26 | AT43: 83.28 | AU43: 0 | AV43: 50.9935 | AW43: 600 | AX43: 6 | AY43: 1318.04 | AZ43: 10 | BA43: =ROUND((data.E[[#This Row],[أساسي 7/2025]]*2)/12,2) -> 198.87 | BE43: 4810.03 | BF43: 2189.97 | BG43: =IF(data.E[[#This Row],[حالة العمل]]="إيقاف",data.E[[#This Row],[أساسي 7/2025]],ROUND(SUM(data.E[[#This Row],[بدل تمثيل]],BB43:BF43),2)) -> 7000 | BL43: =ROUND(data.E[[#This Row],[تامينات 2026]]/11%,2) -> 5795.82 | BM43: 637.54 | BO43: =(data.E[[#This Row],[إجمالي المستحق]]-SUM(data.E[[#This Row],[الحافز]],data.E[[#This Row],[متوسط المنحة]:[الإضافي]]))/30*data.E[[#This Row],[أيام الغياب]] -> 0 | BP43: =(data.E[[#This Row],[إجمالي المستحق]]-SUM(data.E[[#This Row],[الحافز]],data.E[[#This Row],[متوسط المنحة]:[الإضافي]]))/30*data.E[[#This Row],[أيام جزاء]] -> 0 | BQ43: =IF(data.E[[#This Row],[أيام الغياب]]=1,data.E[[#This Row],[الحافز]]*20%,IF(data.E[[#This Row],[أيام الغياب]]=2,data.E[[#This Row],[الحافز]]*30%,IF(data.E[[#This Row],[أيام الغياب]]>2,data.E[[#This Row],[الحافز]]*100%,0))) -> 0 | BR43: =IF(data.E[[#This Row],[عدد أيام الأجازات]]<=4,data.E[[#This Row],[الحافز]]*0,IF(data.E[[#This Row],[عدد أيام الأجازات]]=5,data.E[[#This Row],[الحافز]]*20%,IF(data.E[[#This Row],[عدد أيام الأجازات]]=6,data.E[[#This Row],[الحافز]]*40%,IF(data.E[[#This Row],[عدد أيام الأجازات]]=7,data.E[[#This Row],[الحافز]]*50%,IF(data.E[[#This Row],[عدد أيام الأجازات]]>7,data.E[[#This Row],[الحافز]]*100%,0))))) -> 0 | BS43: 0 | BT43: 48 | BU43: 0 | BV43: 0 | BW43: 3 | BX43: 0 | BZ43: 0 | CA43: 0 | CB43: 0 | CD43: 0 | CE43: 0 | CF43: 0 | CG43: 0 | CH43: 0 | CJ43: 3.25 | CK43: 3 | CN43: 0 | CO43: 0 | CR43: 0 | CS43: 198.87 | CT43: 0 | CU43: =ROUND(IF($H43=data.E[[#Headers],[إيقاف]],$BG43-SUM(data.E[[#This Row],[تامينات 2026]:[تنفيذ أحكام]],data.E[[#This Row],[الشهداء]:[خصم 5% تأمين من العمولة]],0),0),2) -> 0 | CV43: =ROUND(IF($H43=data.E[[#Headers],[مرضي]],$BG43-SUM(data.E[[#This Row],[تامينات 2026]:[تنفيذ أحكام]],data.E[[#This Row],[الشهداء]:[خصم 5% تأمين من العمولة]],0),0),2) -> 0 | CW43: =ROUND(IF($H43=data.E[[#Headers],[أجازة]],$BG43-SUM(data.E[[#This Row],[تامينات 2026]:[تنفيذ أحكام]],data.E[[#This Row],[الشهداء]:[خصم 5% تأمين من العمولة]],0),0),2) -> 0 | CX43: =ROUND(IF($H43=data.E[[#Headers],[إعارة]],$BG43-SUM(data.E[[#This Row],[تامينات 2026]:[تنفيذ أحكام]],data.E[[#This Row],[الشهداء]:[خصم 5% تأمين من العمولة]],0),0),2) -> 0 | CY43: =ROUND(IF($H43=data.E[[#Headers],[إنهاء]],$BG43-SUM(data.E[[#This Row],[تامينات 2026]:[تنفيذ أحكام]],data.E[[#This Row],[الشهداء]:[خصم 5% تأمين من العمولة]],0),0),2) -> 0 | CZ43: =ROUND(IF($H43=data.E[[#Headers],[معاش]],$BG43-SUM(data.E[[#This Row],[تامينات 2026]:[تنفيذ أحكام]],data.E[[#This Row],[الشهداء]:[خصم 5% تأمين من العمولة]],0),0),2) -> 0 | DA43: =ROUND(SUM(data.E[[#This Row],[تامينات 2026]:[تنفيذ أحكام]],data.E[[#This Row],[الشهداء]:[معاش]]),2) -> 893.66 | DB43: 6106.34
A44: =IF(data.E[[#This Row],[الموظف المختص]]=print.e!$E$2,COUNTIF('data.e'!$G$4:G44,G44),"") -> 40 | B44: 101035 | C44: 10035 | D44: بنك مصر 1 | E44: امال عبدالله محمد محمد رسلان | G44: منال | H44: دوام كامل | I44: ادارى | J44: الاولى | L44: الأولى | M44: اخصائى نظم معلومات والتحول الرقمى | N44: الادارة العامة | O44: المنطقه المركزية | P44: 27708152101826 | Q44: 10103510035امال عبدالله محمد محمد رسلانمنالالاولىالأولىاخصائى نظم معلومات والتحول الرقمى ادارة النظم المعلومات | R44: نعم | S44: 1173.704 | T44: 1373.23368 | U44: 0 | V44: 1853.87 | W44: 205.99 | X44: 0 | Y44: 0 | Z44: 0 | AB44: 0 | AC44: 300 | AE44: 0 | AG44: 0 | AH44: 0 | AI44: =SUM(AA44:AH44)-data.E[[#This Row],[بدل تمثيل]] -> 300 | AJ44: 38.9 | AK44: 46.95488 | AL44: 65 | AN44: 190 | AO44: 23.94938 | AP44: 41.747 | AQ44: 53.96 | AR44: 76.76 | AS44: 81.96628 | AT44: 87.7536 | AU44: 0 | AV44: 58.6852 | AW44: 600 | AX44: 6 | AY44: 1371.68 | AZ44: 10 | BA44: =ROUND((data.E[[#This Row],[أساسي 7/2025]]*2)/12,2) -> 228.87 | BE44: 5343.64 | BF44: 1656.36 | BG44: =IF(data.E[[#This Row],[حالة العمل]]="إيقاف",data.E[[#This Row],[أساسي 7/2025]],ROUND(SUM(data.E[[#This Row],[بدل تمثيل]],BB44:BF44),2)) -> 7000 | BL44: =ROUND(data.E[[#This Row],[تامينات 2026]]/11%,2) -> 5820.64 | BM44: 640.27 | BO44: =(data.E[[#This Row],[إجمالي المستحق]]-SUM(data.E[[#This Row],[الحافز]],data.E[[#This Row],[متوسط المنحة]:[الإضافي]]))/30*data.E[[#This Row],[أيام الغياب]] -> 0 | BP44: =(data.E[[#This Row],[إجمالي المستحق]]-SUM(data.E[[#This Row],[الحافز]],data.E[[#This Row],[متوسط المنحة]:[الإضافي]]))/30*data.E[[#This Row],[أيام جزاء]] -> 0 | BQ44: =IF(data.E[[#This Row],[أيام الغياب]]=1,data.E[[#This Row],[الحافز]]*20%,IF(data.E[[#This Row],[أيام الغياب]]=2,data.E[[#This Row],[الحافز]]*30%,IF(data.E[[#This Row],[أيام الغياب]]>2,data.E[[#This Row],[الحافز]]*100%,0))) -> 0 | BR44: =IF(data.E[[#This Row],[عدد أيام الأجازات]]<=4,data.E[[#This Row],[الحافز]]*0,IF(data.E[[#This Row],[عدد أيام الأجازات]]=5,data.E[[#This Row],[الحافز]]*20%,IF(data.E[[#This Row],[عدد أيام الأجازات]]=6,data.E[[#This Row],[الحافز]]*40%,IF(data.E[[#This Row],[عدد أيام الأجازات]]=7,data.E[[#This Row],[الحافز]]*50%,IF(data.E[[#This Row],[عدد أيام الأجازات]]>7,data.E[[#This Row],[الحافز]]*100%,0))))) -> 0 | BS44: 0 | BT44: 0 | BU44: 18.21 | BW44: 3 | BX44: 0 | BZ44: 0 | CD44: 0 | CE44: 0 | CG44: 0 | CJ44: 3.23 | CK44: 5 | CR44: 0 | CS44: 228.87 | CT44: 0 | CU44: =ROUND(IF($H44=data.E[[#Headers],[إيقاف]],$BG44-SUM(data.E[[#This Row],[تامينات 2026]:[تنفيذ أحكام]],data.E[[#This Row],[الشهداء]:[خصم 5% تأمين من العمولة]],0),0),2) -> 0 | CV44: =ROUND(IF($H44=data.E[[#Headers],[مرضي]],$BG44-SUM(data.E[[#This Row],[تامينات 2026]:[تنفيذ أحكام]],data.E[[#This Row],[الشهداء]:[خصم 5% تأمين من العمولة]],0),0),2) -> 0 | CW44: =ROUND(IF($H44=data.E[[#Headers],[أجازة]],$BG44-SUM(data.E[[#This Row],[تامينات 2026]:[تنفيذ أحكام]],data.E[[#This Row],[الشهداء]:[خصم 5% تأمين من العمولة]],0),0),2) -> 0 | CX44: =ROUND(IF($H44=data.E[[#Headers],[إعارة]],$BG44-SUM(data.E[[#This Row],[تامينات 2026]:[تنفيذ أحكام]],data.E[[#This Row],[الشهداء]:[خصم 5% تأمين من العمولة]],0),0),2) -> 0 | CY44: =ROUND(IF($H44=data.E[[#Headers],[إنهاء]],$BG44-SUM(data.E[[#This Row],[تامينات 2026]:[تنفيذ أحكام]],data.E[[#This Row],[الشهداء]:[خصم 5% تأمين من العمولة]],0),0),2) -> 0 | CZ44: =ROUND(IF($H44=data.E[[#Headers],[معاش]],$BG44-SUM(data.E[[#This Row],[تامينات 2026]:[تنفيذ أحكام]],data.E[[#This Row],[الشهداء]:[خصم 5% تأمين من العمولة]],0),0),2) -> 0 | DA44: =ROUND(SUM(data.E[[#This Row],[تامينات 2026]:[تنفيذ أحكام]],data.E[[#This Row],[الشهداء]:[معاش]]),2) -> 898.58 | DB44: 6101.42
A45: =IF(data.E[[#This Row],[الموظف المختص]]=print.e!$E$2,COUNTIF('data.e'!$G$4:G45,G45),"") ->  | B45: 101036 | C45: 10036 | D45: بنك مصر 1 | E45: سلوى السيد عبد اللطيف قناوى | G45: ترددى | H45: إعارة | I45: إداري | J45: الثانية | L45: الثانية | M45: اخصائى شئون موارد بشرية | N45: الادارة العامة | O45: المنطقه المركزية | P45: 28608040103281 | Q45: 10103610036سلوى السيد عبد اللطيف قناوىمنالالثانيةالثانيةاخصائى شئون موارد بشرية قطاع الموارد بشرية | R45: نعم | S45: 968.4455 | T45: 1133.081235 | U45: 0 | V45: 1529.66 | W45: 169.96 | X45: 0 | Y45: 0 | Z45: 0 | AB45: 0 | AC45: 300 | AE45: 0 | AG45: 0 | AH45: 0 | AI45: =SUM(AA45:AH45)-data.E[[#This Row],[بدل تمثيل]] -> 300 | AJ45: 34.04 | AK45: 40.89301 | AL45: 65 | AM45: 0 | AN45: 190 | AO45: 26.66604 | AP45: 36.94096 | AQ45: 0 | AR45: 63.2432 | AS45: 67.67023 | AT45: 86.6 | AU45: 0 | AV45: 53.15545 | AW45: 600 | AX45: 6 | AY45: 1270.21 | AZ45: 10 | BA45: =ROUND((data.E[[#This Row],[أساسي 7/2025]]*2)/12,2) -> 188.85 | BE45: 4601.76 | BF45: 2398.24 | BG45: =IF(data.E[[#This Row],[حالة العمل]]="إيقاف",data.E[[#This Row],[أساسي 7/2025]],ROUND(SUM(data.E[[#This Row],[بدل تمثيل]],BB45:BF45),2)) -> 7000 | BL45: =ROUND(data.E[[#This Row],[تامينات 2026]]/11%,2) -> 5774.45 | BM45: 635.19 | BO45: =(data.E[[#This Row],[إجمالي المستحق]]-SUM(data.E[[#This Row],[الحافز]],data.E[[#This Row],[متوسط المنحة]:[الإضافي]]))/30*data.E[[#This Row],[أيام الغياب]] -> 0 | BP45: =(data.E[[#This Row],[إجمالي المستحق]]-SUM(data.E[[#This Row],[الحافز]],data.E[[#This Row],[متوسط المنحة]:[الإضافي]]))/30*data.E[[#This Row],[أيام جزاء]] -> 0 | BQ45: =IF(data.E[[#This Row],[أيام الغياب]]=1,data.E[[#This Row],[الحافز]]*20%,IF(data.E[[#This Row],[أيام الغياب]]=2,data.E[[#This Row],[الحافز]]*30%,IF(data.E[[#This Row],[أيام الغياب]]>2,data.E[[#This Row],[الحافز]]*100%,0))) -> 0 | BR45: =IF(data.E[[#This Row],[عدد أيام الأجازات]]<=4,data.E[[#This Row],[الحافز]]*0,IF(data.E[[#This Row],[عدد أيام الأجازات]]=5,data.E[[#This Row],[الحافز]]*20%,IF(data.E[[#This Row],[عدد أيام الأجازات]]=6,data.E[[#This Row],[الحافز]]*40%,IF(data.E[[#This Row],[عدد أيام الأجازات]]=7,data.E[[#This Row],[الحافز]]*50%,IF(data.E[[#This Row],[عدد أيام الأجازات]]>7,data.E[[#This Row],[الحافز]]*100%,0))))) -> 0 | BS45: 0 | BT45: 0 | BU45: 0 | BW45: 3 | BX45: 0 | BZ45: 0 | CD45: 0 | CE45: 0 | CG45: 0 | CJ45: 0 | CK45: 5 | CR45: 0 | CS45: 188.85 | CT45: 0 | CU45: =ROUND(IF($H45=data.E[[#Headers],[إيقاف]],$BG45-SUM(data.E[[#This Row],[تامينات 2026]:[تنفيذ أحكام]],data.E[[#This Row],[الشهداء]:[خصم 5% تأمين من العمولة]],0),0),2) -> 0 | CV45: =ROUND(IF($H45=data.E[[#Headers],[مرضي]],$BG45-SUM(data.E[[#This Row],[تامينات 2026]:[تنفيذ أحكام]],data.E[[#This Row],[الشهداء]:[خصم 5% تأمين من العمولة]],0),0),2) -> 0 | CW45: =ROUND(IF($H45=data.E[[#Headers],[أجازة]],$BG45-SUM(data.E[[#This Row],[تامينات 2026]:[تنفيذ أحكام]],data.E[[#This Row],[الشهداء]:[خصم 5% تأمين من العمولة]],0),0),2) -> 0 | CX45: =ROUND(IF($H45=data.E[[#Headers],[إعارة]],$BG45-SUM(data.E[[#This Row],[تامينات 2026]:[تنفيذ أحكام]],data.E[[#This Row],[الشهداء]:[خصم 5% تأمين من العمولة]],0),0),2) -> 6167.96 | CY45: =ROUND(IF($H45=data.E[[#Headers],[إنهاء]],$BG45-SUM(data.E[[#This Row],[تامينات 2026]:[تنفيذ أحكام]],data.E[[#This Row],[الشهداء]:[خصم 5% تأمين من العمولة]],0),0),2) -> 0 | CZ45: =ROUND(IF($H45=data.E[[#Headers],[معاش]],$BG45-SUM(data.E[[#This Row],[تامينات 2026]:[تنفيذ أحكام]],data.E[[#This Row],[الشهداء]:[خصم 5% تأمين من العمولة]],0),0),2) -> 0 | DA45: =ROUND(SUM(data.E[[#This Row],[تامينات 2026]:[تنفيذ أحكام]],data.E[[#This Row],[الشهداء]:[معاش]]),2) -> 7000 | DB45: 0
A46: =IF(data.E[[#This Row],[الموظف المختص]]=print.e!$E$2,COUNTIF('data.e'!$G$4:G46,G46),"") -> 41 | B46: 101037 | C46: 10037 | D46: بنك مصر 1 | E46: نشوى محمد مصطفى سرور | G46: منال | H46: دوام كامل | I46: ادارى | J46: الاولى | L46: الأولى | M46: اخصائى شئون موارد بشرية | N46: الادارة العامة | O46: المنطقه المركزية | P46: 28104120100683 | Q46: 10103710037نشوى محمد مصطفى سرورمنالالاولىالأولىاخصائى شئون موارد بشرية قطاع الموارد البشرية | R46: نعم | S46: 1242.373 | T46: 1453.57641 | U46: 0 | V46: 1962.33 | W46: 218.04 | X46: 0 | Y46: 0 | Z46: 0 | AB46: 0 | AC46: 300 | AE46: 0 | AG46: 0 | AH46: 0 | AI46: =SUM(AA46:AH46)-data.E[[#This Row],[بدل تمثيل]] -> 300 | AJ46: 41.05273 | AK46: 46.06278 | AL46: 65 | AM46: 0 | AN46: 190 | AO46: 24.83538 | AP46: 44.28976 | AQ46: 56.86805 | AR46: 81.13174 | AS46: 86.81097 | AT46: 92.88773 | AU46: 0 | AV46: 62.11865 | AW46: 600 | AX46: 6 | AY46: 1397.06 | AZ46: 10 | BA46: =ROUND((data.E[[#This Row],[أساسي 7/2025]]*2)/12,2) -> 242.26 | BE46: 5583.27 | BF46: 1416.73 | BG46: =IF(data.E[[#This Row],[حالة العمل]]="إيقاف",data.E[[#This Row],[أساسي 7/2025]],ROUND(SUM(data.E[[#This Row],[بدل تمثيل]],BB46:BF46),2)) -> 7000 | BL46: =ROUND(data.E[[#This Row],[تامينات 2026]]/11%,2) -> 5851.18 | BM46: 643.63 | BO46: =(data.E[[#This Row],[إجمالي المستحق]]-SUM(data.E[[#This Row],[الحافز]],data.E[[#This Row],[متوسط المنحة]:[الإضافي]]))/30*data.E[[#This Row],[أيام الغياب]] -> 0 | BP46: =(data.E[[#This Row],[إجمالي المستحق]]-SUM(data.E[[#This Row],[الحافز]],data.E[[#This Row],[متوسط المنحة]:[الإضافي]]))/30*data.E[[#This Row],[أيام جزاء]] -> 0 | BQ46: =IF(data.E[[#This Row],[أيام الغياب]]=1,data.E[[#This Row],[الحافز]]*20%,IF(data.E[[#This Row],[أيام الغياب]]=2,data.E[[#This Row],[الحافز]]*30%,IF(data.E[[#This Row],[أيام الغياب]]>2,data.E[[#This Row],[الحافز]]*100%,0))) -> 0 | BR46: =IF(data.E[[#This Row],[عدد أيام الأجازات]]<=4,data.E[[#This Row],[الحافز]]*0,IF(data.E[[#This Row],[عدد أيام الأجازات]]=5,data.E[[#This Row],[الحافز]]*20%,IF(data.E[[#This Row],[عدد أيام الأجازات]]=6,data.E[[#This Row],[الحافز]]*40%,IF(data.E[[#This Row],[عدد أيام الأجازات]]=7,data.E[[#This Row],[الحافز]]*50%,IF(data.E[[#This Row],[عدد أيام الأجازات]]>7,data.E[[#This Row],[الحافز]]*100%,0))))) -> 0 | BS46: 0 | BT46: 0 | BU46: 0 | BW46: 3 | BX46: 0 | BZ46: 0 | CD46: 0 | CE46: 0 | CG46: 0 | CJ46: 3.23 | CK46: 5 | CR46: 0 | CS46: 242.26 | CT46: 0 | CU46: =ROUND(IF($H46=data.E[[#Headers],[إيقاف]],$BG46-SUM(data.E[[#This Row],[تامينات 2026]:[تنفيذ أحكام]],data.E[[#This Row],[الشهداء]:[خصم 5% تأمين من العمولة]],0),0),2) -> 0 | CV46: =ROUND(IF($H46=data.E[[#Headers],[مرضي]],$BG46-SUM(data.E[[#This Row],[تامينات 2026]:[تنفيذ أحكام]],data.E[[#This Row],[الشهداء]:[خصم 5% تأمين من العمولة]],0),0),2) -> 0 | CW46: =ROUND(IF($H46=data.E[[#Headers],[أجازة]],$BG46-SUM(data.E[[#This Row],[تامينات 2026]:[تنفيذ أحكام]],data.E[[#This Row],[الشهداء]:[خصم 5% تأمين من العمولة]],0),0),2) -> 0 | CX46: =ROUND(IF($H46=data.E[[#Headers],[إعارة]],$BG46-SUM(data.E[[#This Row],[تامينات 2026]:[تنفيذ أحكام]],data.E[[#This Row],[الشهداء]:[خصم 5% تأمين من العمولة]],0),0),2) -> 0 | CY46: =ROUND(IF($H46=data.E[[#Headers],[إنهاء]],$BG46-SUM(data.E[[#This Row],[تامينات 2026]:[تنفيذ أحكام]],data.E[[#This Row],[الشهداء]:[خصم 5% تأمين من العمولة]],0),0),2) -> 0 | CZ46: =ROUND(IF($H46=data.E[[#Headers],[معاش]],$BG46-SUM(data.E[[#This Row],[تامينات 2026]:[تنفيذ أحكام]],data.E[[#This Row],[الشهداء]:[خصم 5% تأمين من العمولة]],0),0),2) -> 0 | DA46: =ROUND(SUM(data.E[[#This Row],[تامينات 2026]:[تنفيذ أحكام]],data.E[[#This Row],[الشهداء]:[معاش]]),2) -> 897.12 | DB46: 6102.88
A47: =IF(data.E[[#This Row],[الموظف المختص]]=print.e!$E$2,COUNTIF('data.e'!$G$4:G47,G47),"") -> 42 | B47: 101038 | C47: 13037 | D47: بنك مصر 1 | E47: محمد عبد الجواد قناوى صالح | G47: منال | H47: نصف وقت | I47: ادارى | J47: الاولى | N47: الادارة العامة | O47: المنطقه المركزية | P47: 27501180102478 | Q47: 10103813037محمد عبد الجواد قناوى صالحمنالالاولى | S47: 1654.286 | T47: 1819.7146 | U47: 0 | V47: 2456.61 | W47: 272.96 | X47: 0 | Y47: 0 | Z47: 0 | AB47: 0 | AC47: 300 | AE47: 0 | AG47: 0 | AH47: 0 | AI47: =SUM(AA47:AH47)-data.E[[#This Row],[بدل تمثيل]] -> 300 | AJ47: 52.09372 | AK47: 58.02259 | AL47: 69.44112 | AM47: 0 | AN47: 190 | AO47: 33.49458 | AP47: 58.97416 | AQ47: 75.72282 | AR47: 108.0312 | AS47: 115.5934 | AT47: 123.685 | AU47: 0 | AV47: 82.7143 | AW47: 600 | AX47: 10 | AY47: 1577.77 | AZ47: 10 | BA47: =ROUND((data.E[[#This Row],[أساسي 7/2025]]*2)/12,2) -> 303.29 | BE47: 6740.34 | BF47: 259.66 | BG47: =IF(data.E[[#This Row],[حالة العمل]]="إيقاف",data.E[[#This Row],[أساسي 7/2025]],ROUND(SUM(data.E[[#This Row],[بدل تمثيل]],BB47:BF47),2)) -> 7000 | BL47: =ROUND(data.E[[#This Row],[تامينات 2026]]/11%,2) -> 6409.55 | BM47: 705.05 | BO47: =(data.E[[#This Row],[إجمالي المستحق]]-SUM(data.E[[#This Row],[الحافز]],data.E[[#This Row],[متوسط المنحة]:[الإضافي]]))/30*data.E[[#This Row],[أيام الغياب]] -> 0 | BP47: =(data.E[[#This Row],[إجمالي المستحق]]-SUM(data.E[[#This Row],[الحافز]],data.E[[#This Row],[متوسط المنحة]:[الإضافي]]))/30*data.E[[#This Row],[أيام جزاء]] -> 0 | BQ47: =IF(data.E[[#This Row],[أيام الغياب]]=1,data.E[[#This Row],[الحافز]]*20%,IF(data.E[[#This Row],[أيام الغياب]]=2,data.E[[#This Row],[الحافز]]*30%,IF(data.E[[#This Row],[أيام الغياب]]>2,data.E[[#This Row],[الحافز]]*100%,0))) -> 0 | BR47: =IF(data.E[[#This Row],[عدد أيام الأجازات]]<=4,data.E[[#This Row],[الحافز]]*0,IF(data.E[[#This Row],[عدد أيام الأجازات]]=5,data.E[[#This Row],[الحافز]]*20%,IF(data.E[[#This Row],[عدد أيام الأجازات]]=6,data.E[[#This Row],[الحافز]]*40%,IF(data.E[[#This Row],[عدد أيام الأجازات]]=7,data.E[[#This Row],[الحافز]]*50%,IF(data.E[[#This Row],[عدد أيام الأجازات]]>7,data.E[[#This Row],[الحافز]]*100%,0))))) -> 0 | BS47: 0 | BT47: 0 | BU47: 0 | BW47: 3 | BX47: 0 | BZ47: 0 | CD47: 0 | CE47: 0 | CG47: 0 | CJ47: 3.2 | CK47: 5 | CR47: 0 | CS47: 303.29 | CT47: 0 | CU47: =ROUND(IF($H47=data.E[[#Headers],[إيقاف]],$BG47-SUM(data.E[[#This Row],[تامينات 2026]:[تنفيذ أحكام]],data.E[[#This Row],[الشهداء]:[خصم 5% تأمين من العمولة]],0),0),2) -> 0 | CV47: =ROUND(IF($H47=data.E[[#Headers],[مرضي]],$BG47-SUM(data.E[[#This Row],[تامينات 2026]:[تنفيذ أحكام]],data.E[[#This Row],[الشهداء]:[خصم 5% تأمين من العمولة]],0),0),2) -> 0 | CW47: =ROUND(IF($H47=data.E[[#Headers],[أجازة]],$BG47-SUM(data.E[[#This Row],[تامينات 2026]:[تنفيذ أحكام]],data.E[[#This Row],[الشهداء]:[خصم 5% تأمين من العمولة]],0),0),2) -> 0 | CX47: =ROUND(IF($H47=data.E[[#Headers],[إعارة]],$BG47-SUM(data.E[[#This Row],[تامينات 2026]:[تنفيذ أحكام]],data.E[[#This Row],[الشهداء]:[خصم 5% تأمين من العمولة]],0),0),2) -> 0 | CY47: =ROUND(IF($H47=data.E[[#Headers],[إنهاء]],$BG47-SUM(data.E[[#This Row],[تامينات 2026]:[تنفيذ أحكام]],data.E[[#This Row],[الشهداء]:[خصم 5% تأمين من العمولة]],0),0),2) -> 0 | CZ47: =ROUND(IF($H47=data.E[[#Headers],[معاش]],$BG47-SUM(data.E[[#This Row],[تامينات 2026]:[تنفيذ أحكام]],data.E[[#This Row],[الشهداء]:[خصم 5% تأمين من العمولة]],0),0),2) -> 0 | DA47: =ROUND(SUM(data.E[[#This Row],[تامينات 2026]:[تنفيذ أحكام]],data.E[[#This Row],[الشهداء]:[معاش]]),2) -> 1019.54 | DB47: 5980.46
A48: =IF(data.E[[#This Row],[الموظف المختص]]=print.e!$E$2,COUNTIF('data.e'!$G$4:G48,G48),"") -> 43 | B48: 101039 | C48: 10039 | D48: بنك مصر 1 | E48: محمد الهادى يونس ابو القتوح | G48: منال | H48: نصف وقت | I48: ادارى | J48: الثانية | L48: الثانية | M48: كاتب شئون مالية | N48: الادارة العامة | O48: المنطقه المركزية | P48: 28301020101518 | Q48: 10103910039محمد الهادى يونس ابو القتوحمنالالثانيةالثانيةكاتب شئون مالية نصف وقت | R48: نعم | S48: 1161.864 | T48: 1454.54 | U48: 0 | V48: 1963.63 | W48: 218.18 | X48: 0 | Y48: 0 | Z48: 0 | AB48: 0 | AC48: 300 | AE48: 0 | AG48: 0 | AH48: 0 | AI48: =SUM(AA48:AH48)-data.E[[#This Row],[بدل تمثيل]] -> 300 | AJ48: 40.53535 | AK48: 45.30097 | AL48: 65 | AM48: 0 | AN48: 190 | AO48: 23.22597 | AP48: 41.41964 | AQ48: 53.18282 | AR48: 75.87416 | AS48: 81.18535 | AT48: 86.86833 | AU48: 0 | AV48: 58.0932 | AW48: 600 | AX48: 10 | AY48: 1370.69 | AZ48: 10 | BA48: =ROUND((data.E[[#This Row],[أساسي 7/2025]]*2)/12,2) -> 242.42 | BE48: 5559.46 | BF48: 1440.54 | BG48: =IF(data.E[[#This Row],[حالة العمل]]="إيقاف",data.E[[#This Row],[أساسي 7/2025]],ROUND(SUM(data.E[[#This Row],[بدل تمثيل]],BB48:BF48),2)) -> 7000 | BL48: =ROUND(data.E[[#This Row],[تامينات 2026]]/11%,2) -> 5811.91 | BM48: 639.31 | BO48: =(data.E[[#This Row],[إجمالي المستحق]]-SUM(data.E[[#This Row],[الحافز]],data.E[[#This Row],[متوسط المنحة]:[الإضافي]]))/30*data.E[[#This Row],[أيام الغياب]] -> 0 | BP48: =(data.E[[#This Row],[إجمالي المستحق]]-SUM(data.E[[#This Row],[الحافز]],data.E[[#This Row],[متوسط المنحة]:[الإضافي]]))/30*data.E[[#This Row],[أيام جزاء]] -> 0 | BQ48: =IF(data.E[[#This Row],[أيام الغياب]]=1,data.E[[#This Row],[الحافز]]*20%,IF(data.E[[#This Row],[أيام الغياب]]=2,data.E[[#This Row],[الحافز]]*30%,IF(data.E[[#This Row],[أيام الغياب]]>2,data.E[[#This Row],[الحافز]]*100%,0))) -> 0 | BR48: =IF(data.E[[#This Row],[عدد أيام الأجازات]]<=4,data.E[[#This Row],[الحافز]]*0,IF(data.E[[#This Row],[عدد أيام الأجازات]]=5,data.E[[#This Row],[الحافز]]*20%,IF(data.E[[#This Row],[عدد أيام الأجازات]]=6,data.E[[#This Row],[الحافز]]*40%,IF(data.E[[#This Row],[عدد أيام الأجازات]]=7,data.E[[#This Row],[الحافز]]*50%,IF(data.E[[#This Row],[عدد أيام الأجازات]]>7,data.E[[#This Row],[الحافز]]*100%,0))))) -> 0 | BS48: 0 | BT48: 0 | BU48: 0 | BW48: 3 | BX48: 0 | BZ48: 0 | CD48: 0 | CE48: 0 | CG48: 0 | CJ48: 3.24 | CK48: 5 | CR48: 2751.08 | CS48: 242.42 | CT48: 0 | CU48: =ROUND(IF($H48=data.E[[#Headers],[إيقاف]],$BG48-SUM(data.E[[#This Row],[تامينات 2026]:[تنفيذ أحكام]],data.E[[#This Row],[الشهداء]:[خصم 5% تأمين من العمولة]],0),0),2) -> 0 | CV48: =ROUND(IF($H48=data.E[[#Headers],[مرضي]],$BG48-SUM(data.E[[#This Row],[تامينات 2026]:[تنفيذ أحكام]],data.E[[#This Row],[الشهداء]:[خصم 5% تأمين من العمولة]],0),0),2) -> 0 | CW48: =ROUND(IF($H48=data.E[[#Headers],[أجازة]],$BG48-SUM(data.E[[#This Row],[تامينات 2026]:[تنفيذ أحكام]],data.E[[#This Row],[الشهداء]:[خصم 5% تأمين من العمولة]],0),0),2) -> 0 | CX48: =ROUND(IF($H48=data.E[[#Headers],[إعارة]],$BG48-SUM(data.E[[#This Row],[تامينات 2026]:[تنفيذ أحكام]],data.E[[#This Row],[الشهداء]:[خصم 5% تأمين من العمولة]],0),0),2) -> 0 | CY48: =ROUND(IF($H48=data.E[[#Headers],[إنهاء]],$BG48-SUM(data.E[[#This Row],[تامينات 2026]:[تنفيذ أحكام]],data.E[[#This Row],[الشهداء]:[خصم 5% تأمين من العمولة]],0),0),2) -> 0 | CZ48: =ROUND(IF($H48=data.E[[#Headers],[معاش]],$BG48-SUM(data.E[[#This Row],[تامينات 2026]:[تنفيذ أحكام]],data.E[[#This Row],[الشهداء]:[خصم 5% تأمين من العمولة]],0),0),2) -> 0 | DA48: =ROUND(SUM(data.E[[#This Row],[تامينات 2026]:[تنفيذ أحكام]],data.E[[#This Row],[الشهداء]:[معاش]]),2) -> 3644.05 | DB48: 3355.95
A49: =IF(data.E[[#This Row],[الموظف المختص]]=print.e!$E$2,COUNTIF('data.e'!$G$4:G49,G49),"") -> 44 | B49: 101040 | C49: 21130 | D49: بنك مصر 1 | E49: محمد كمال على مواس | G49: منال | H49: دوام كامل | I49: ادارى | J49: الاولى | N49: الادارة العامة | O49: المنطقه المركزية | P49: 26702262101919 | Q49: 10104021130محمد كمال على مواسمنالالاولى | S49: 2730.45 | T49: 3003.495 | U49: 0 | V49: 4054.72 | W49: 450.52 | X49: 0 | Y49: 0 | Z49: 0 | AB49: 0 | AC49: 300 | AE49: 0 | AF49: 0 | AG49: 0 | AH49: 0 | AI49: =SUM(AA49:AH49)-data.E[[#This Row],[بدل تمثيل]] -> 300 | AJ49: 90.23 | AK49: 100.79 | AL49: 120 | AM49: 0 | AN49: 190 | AO49: 54.58 | AP49: 97.34 | AQ49: 124.98 | AR49: 178.31 | AS49: 190.79 | AT49: 204.15 | AU49: 0 | AV49: 136.5225 | AW49: 600 | AX49: 10 | AY49: 2097.69 | AZ49: 10 | BA49: =ROUND((data.E[[#This Row],[أساسي 7/2025]]*2)/12,2) -> 500.58 | BE49: 10417.01 | BF49: 0 | BG49: =IF(data.E[[#This Row],[حالة العمل]]="إيقاف",data.E[[#This Row],[أساسي 7/2025]],ROUND(SUM(data.E[[#This Row],[بدل تمثيل]],BB49:BF49),2)) -> 10417.01 | BL49: =ROUND(data.E[[#This Row],[تامينات 2026]]/11%,2) -> 9941.64 | BM49: 1093.58 | BO49: =(data.E[[#This Row],[إجمالي المستحق]]-SUM(data.E[[#This Row],[الحافز]],data.E[[#This Row],[متوسط المنحة]:[الإضافي]]))/30*data.E[[#This Row],[أيام الغياب]] -> 0 | BP49: =(data.E[[#This Row],[إجمالي المستحق]]-SUM(data.E[[#This Row],[الحافز]],data.E[[#This Row],[متوسط المنحة]:[الإضافي]]))/30*data.E[[#This Row],[أيام جزاء]] -> 0 | BQ49: =IF(data.E[[#This Row],[أيام الغياب]]=1,data.E[[#This Row],[الحافز]]*20%,IF(data.E[[#This Row],[أيام الغياب]]=2,data.E[[#This Row],[الحافز]]*30%,IF(data.E[[#This Row],[أيام الغياب]]>2,data.E[[#This Row],[الحافز]]*100%,0))) -> 0 | BR49: =IF(data.E[[#This Row],[عدد أيام الأجازات]]<=4,data.E[[#This Row],[الحافز]]*0,IF(data.E[[#This Row],[عدد أيام الأجازات]]=5,data.E[[#This Row],[الحافز]]*20%,IF(data.E[[#This Row],[عدد أيام الأجازات]]=6,data.E[[#This Row],[الحافز]]*40%,IF(data.E[[#This Row],[عدد أيام الأجازات]]=7,data.E[[#This Row],[الحافز]]*50%,IF(data.E[[#This Row],[عدد أيام الأجازات]]>7,data.E[[#This Row],[الحافز]]*100%,0))))) -> 0 | BS49: 0 | BT49: 0 | BU49: 0 | BV49: 0 | BW49: 3 | BX49: 0 | BZ49: 0 | CA49: 0 | CB49: 0 | CD49: 0 | CE49: 0 | CF49: 0 | CG49: 0 | CH49: 0 | CJ49: 4.86 | CK49: 5 | CN49: 0 | CO49: 0 | CR49: 0 | CS49: 500.58 | CT49: 0 | CU49: =ROUND(IF($H49=data.E[[#Headers],[إيقاف]],$BG49-SUM(data.E[[#This Row],[تامينات 2026]:[تنفيذ أحكام]],data.E[[#This Row],[الشهداء]:[خصم 5% تأمين من العمولة]],0),0),2) -> 0 | CV49: =ROUND(IF($H49=data.E[[#Headers],[مرضي]],$BG49-SUM(data.E[[#This Row],[تامينات 2026]:[تنفيذ أحكام]],data.E[[#This Row],[الشهداء]:[خصم 5% تأمين من العمولة]],0),0),2) -> 0 | CW49: =ROUND(IF($H49=data.E[[#Headers],[أجازة]],$BG49-SUM(data.E[[#This Row],[تامينات 2026]:[تنفيذ أحكام]],data.E[[#This Row],[الشهداء]:[خصم 5% تأمين من العمولة]],0),0),2) -> 0 | CX49: =ROUND(IF($H49=data.E[[#Headers],[إعارة]],$BG49-SUM(data.E[[#This Row],[تامينات 2026]:[تنفيذ أحكام]],data.E[[#This Row],[الشهداء]:[خصم 5% تأمين من العمولة]],0),0),2) -> 0 | CY49: =ROUND(IF($H49=data.E[[#Headers],[إنهاء]],$BG49-SUM(data.E[[#This Row],[تامينات 2026]:[تنفيذ أحكام]],data.E[[#This Row],[الشهداء]:[خصم 5% تأمين من العمولة]],0),0),2) -> 0 | CZ49: =ROUND(IF($H49=data.E[[#Headers],[معاش]],$BG49-SUM(data.E[[#This Row],[تامينات 2026]:[تنفيذ أحكام]],data.E[[#This Row],[الشهداء]:[خصم 5% تأمين من العمولة]],0),0),2) -> 0 | DA49: =ROUND(SUM(data.E[[#This Row],[تامينات 2026]:[تنفيذ أحكام]],data.E[[#This Row],[الشهداء]:[معاش]]),2) -> 1607.02 | DB49: 8809.99
A50: =IF(data.E[[#This Row],[الموظف المختص]]=print.e!$E$2,COUNTIF('data.e'!$G$4:G50,G50),"") -> 45 | B50: 101041 | C50: 21135 | D50: بنك مصر 1 | E50: طارق عبد الغفار على محمود | G50: منال | H50: دوام كامل | I50: ادارى | J50: الاولى | N50: الادارة العامة | O50: المنطقه المركزية | P50: 2661112010898 | Q50: 10104121135طارق عبد الغفار على محمودمنالالاولى | S50: 2568.85 | T50: 2825.735 | U50: 0 | V50: 3814.74 | W50: 423.86 | X50: 0 | Y50: 0 | Z50: 0 | AB50: 0 | AC50: 300 | AE50: 0 | AF50: 0 | AG50: 0 | AH50: 0 | AI50: =SUM(AA50:AH50)-data.E[[#This Row],[بدل تمثيل]] -> 300 | AJ50: 84.46 | AK50: 94.31 | AL50: 113.27 | AM50: 0 | AN50: 190 | AO50: 51.35 | AP50: 91.58 | AQ50: 117.59 | AR50: 167.76 | AS50: 179.5 | AT50: 192.06 | AU50: 0 | AV50: 128.4425 | AW50: 600 | AX50: 10 | AY50: 2020.32 | AZ50: 10 | BA50: =ROUND((data.E[[#This Row],[أساسي 7/2025]]*2)/12,2) -> 470.96 | BE50: 9865.62 | BF50: 0 | BG50: =IF(data.E[[#This Row],[حالة العمل]]="إيقاف",data.E[[#This Row],[أساسي 7/2025]],ROUND(SUM(data.E[[#This Row],[بدل تمثيل]],BB50:BF50),2)) -> 9865.62 | BL50: =ROUND(data.E[[#This Row],[تامينات 2026]]/11%,2) -> 9401 | BM50: 1034.11 | BO50: =(data.E[[#This Row],[إجمالي المستحق]]-SUM(data.E[[#This Row],[الحافز]],data.E[[#This Row],[متوسط المنحة]:[الإضافي]]))/30*data.E[[#This Row],[أيام الغياب]] -> 0 | BP50: =(data.E[[#This Row],[إجمالي المستحق]]-SUM(data.E[[#This Row],[الحافز]],data.E[[#This Row],[متوسط المنحة]:[الإضافي]]))/30*data.E[[#This Row],[أيام جزاء]] -> 0 | BQ50: =IF(data.E[[#This Row],[أيام الغياب]]=1,data.E[[#This Row],[الحافز]]*20%,IF(data.E[[#This Row],[أيام الغياب]]=2,data.E[[#This Row],[الحافز]]*30%,IF(data.E[[#This Row],[أيام الغياب]]>2,data.E[[#This Row],[الحافز]]*100%,0))) -> 0 | BR50: =IF(data.E[[#This Row],[عدد أيام الأجازات]]<=4,data.E[[#This Row],[الحافز]]*0,IF(data.E[[#This Row],[عدد أيام الأجازات]]=5,data.E[[#This Row],[الحافز]]*20%,IF(data.E[[#This Row],[عدد أيام الأجازات]]=6,data.E[[#This Row],[الحافز]]*40%,IF(data.E[[#This Row],[عدد أيام الأجازات]]=7,data.E[[#This Row],[الحافز]]*50%,IF(data.E[[#This Row],[عدد أيام الأجازات]]>7,data.E[[#This Row],[الحافز]]*100%,0))))) -> 0 | BS50: 0 | BT50: 7.79 | BU50: 0 | BV50: 0 | BW50: 3 | BX50: 0 | BZ50: 0 | CA50: 0 | CB50: 0 | CD50: 0 | CE50: 0 | CF50: 0 | CG50: 0 | CH50: 0 | CJ50: 4.6 | CK50: 5 | CN50: 0 | CO50: 0 | CR50: 0 | CS50: 470.96 | CT50: 0 | CU50: =ROUND(IF($H50=data.E[[#Headers],[إيقاف]],$BG50-SUM(data.E[[#This Row],[تامينات 2026]:[تنفيذ أحكام]],data.E[[#This Row],[الشهداء]:[خصم 5% تأمين من العمولة]],0),0),2) -> 0 | CV50: =ROUND(IF($H50=data.E[[#Headers],[مرضي]],$BG50-SUM(data.E[[#This Row],[تامينات 2026]:[تنفيذ أحكام]],data.E[[#This Row],[الشهداء]:[خصم 5% تأمين من العمولة]],0),0),2) -> 0 | CW50: =ROUND(IF($H50=data.E[[#Headers],[أجازة]],$BG50-SUM(data.E[[#This Row],[تامينات 2026]:[تنفيذ أحكام]],data.E[[#This Row],[الشهداء]:[خصم 5% تأمين من العمولة]],0),0),2) -> 0 | CX50: =ROUND(IF($H50=data.E[[#Headers],[إعارة]],$BG50-SUM(data.E[[#This Row],[تامينات 2026]:[تنفيذ أحكام]],data.E[[#This Row],[الشهداء]:[خصم 5% تأمين من العمولة]],0),0),2) -> 0 | CY50: =ROUND(IF($H50=data.E[[#Headers],[إنهاء]],$BG50-SUM(data.E[[#This Row],[تامينات 2026]:[تنفيذ أحكام]],data.E[[#This Row],[الشهداء]:[خصم 5% تأمين من العمولة]],0),0),2) -> 0 | CZ50: =ROUND(IF($H50=data.E[[#Headers],[معاش]],$BG50-SUM(data.E[[#This Row],[تامينات 2026]:[تنفيذ أحكام]],data.E[[#This Row],[الشهداء]:[خصم 5% تأمين من العمولة]],0),0),2) -> 0 | DA50: =ROUND(SUM(data.E[[#This Row],[تامينات 2026]:[تنفيذ أحكام]],data.E[[#This Row],[الشهداء]:[معاش]]),2) -> 1525.46 | DB50: 8340.16
A51: =IF(data.E[[#This Row],[الموظف المختص]]=print.e!$E$2,COUNTIF('data.e'!$G$4:G51,G51),"") -> 46 | B51: 101042 | C51: 10042 | D51: بنك مصر 1 | E51: وائل محمد محمود محمد | G51: منال | H51: دوام كامل | I51: ادارى | J51: الاولى | N51: الادارة العامة | O51: المنطقه المركزية | P51: 27303311402557 | Q51: 10104210042وائل محمد محمود محمدمنالالاولى | S51: 1645.585 | T51: 1810.1435 | U51: 0 | V51: 2443.69 | W51: 271.52 | X51: 0 | Y51: 0 | Z51: 0 | AB51: 0 | AC51: 300 | AE51: 0 | AG51: 0 | AH51: 0 | AI51: =SUM(AA51:AH51)-data.E[[#This Row],[بدل تمثيل]] -> 300 | AJ51: 51.43103 | AK51: 57.07597 | AL51: 67.7511 | AM51: 0 | AN51: 190 | AO51: 32.89568 | AP51: 58.66396 | AQ51: 75.32453 | AR51: 107.463 | AS51: 114.9854 | AT51: 123.0344 | AU51: 0 | AV51: 82.27925 | AW51: 600 | AX51: 10 | AY51: 1570.9 | AZ51: 10 | BA51: =ROUND((data.E[[#This Row],[أساسي 7/2025]]*2)/12,2) -> 301.69 | BE51: 6707.94 | BF51: 292.06 | BG51: =IF(data.E[[#This Row],[حالة العمل]]="إيقاف",data.E[[#This Row],[أساسي 7/2025]],ROUND(SUM(data.E[[#This Row],[بدل تمثيل]],BB51:BF51),2)) -> 7000 | BL51: =ROUND(data.E[[#This Row],[تامينات 2026]]/11%,2) -> 6391.27 | BM51: 703.04 | BO51: =(data.E[[#This Row],[إجمالي المستحق]]-SUM(data.E[[#This Row],[الحافز]],data.E[[#This Row],[متوسط المنحة]:[الإضافي]]))/30*data.E[[#This Row],[أيام الغياب]] -> 0 | BP51: =(data.E[[#This Row],[إجمالي المستحق]]-SUM(data.E[[#This Row],[الحافز]],data.E[[#This Row],[متوسط المنحة]:[الإضافي]]))/30*data.E[[#This Row],[أيام جزاء]] -> 0 | BQ51: =IF(data.E[[#This Row],[أيام الغياب]]=1,data.E[[#This Row],[الحافز]]*20%,IF(data.E[[#This Row],[أيام الغياب]]=2,data.E[[#This Row],[الحافز]]*30%,IF(data.E[[#This Row],[أيام الغياب]]>2,data.E[[#This Row],[الحافز]]*100%,0))) -> 0 | BR51: =IF(data.E[[#This Row],[عدد أيام الأجازات]]<=4,data.E[[#This Row],[الحافز]]*0,IF(data.E[[#This Row],[عدد أيام الأجازات]]=5,data.E[[#This Row],[الحافز]]*20%,IF(data.E[[#This Row],[عدد أيام الأجازات]]=6,data.E[[#This Row],[الحافز]]*40%,IF(data.E[[#This Row],[عدد أيام الأجازات]]=7,data.E[[#This Row],[الحافز]]*50%,IF(data.E[[#This Row],[عدد أيام الأجازات]]>7,data.E[[#This Row],[الحافز]]*100%,0))))) -> 0 | BS51: 0 | BT51: 0 | BU51: 0 | BW51: 3 | BX51: 0 | BZ51: 0 | CD51: 0 | CE51: 0 | CG51: 0 | CJ51: 3.2 | CK51: 5 | CR51: 0 | CS51: 301.69 | CT51: 0 | CU51: =ROUND(IF($H51=data.E[[#Headers],[إيقاف]],$BG51-SUM(data.E[[#This Row],[تامينات 2026]:[تنفيذ أحكام]],data.E[[#This Row],[الشهداء]:[خصم 5% تأمين من العمولة]],0),0),2) -> 0 | CV51: =ROUND(IF($H51=data.E[[#Headers],[مرضي]],$BG51-SUM(data.E[[#This Row],[تامينات 2026]:[تنفيذ أحكام]],data.E[[#This Row],[الشهداء]:[خصم 5% تأمين من العمولة]],0),0),2) -> 0 | CW51: =ROUND(IF($H51=data.E[[#Headers],[أجازة]],$BG51-SUM(data.E[[#This Row],[تامينات 2026]:[تنفيذ أحكام]],data.E[[#This Row],[الشهداء]:[خصم 5% تأمين من العمولة]],0),0),2) -> 0 | CX51: =ROUND(IF($H51=data.E[[#Headers],[إعارة]],$BG51-SUM(data.E[[#This Row],[تامينات 2026]:[تنفيذ أحكام]],data.E[[#This Row],[الشهداء]:[خصم 5% تأمين من العمولة]],0),0),2) -> 0 | CY51: =ROUND(IF($H51=data.E[[#Headers],[إنهاء]],$BG51-SUM(data.E[[#This Row],[تامينات 2026]:[تنفيذ أحكام]],data.E[[#This Row],[الشهداء]:[خصم 5% تأمين من العمولة]],0),0),2) -> 0 | CZ51: =ROUND(IF($H51=data.E[[#Headers],[معاش]],$BG51-SUM(data.E[[#This Row],[تامينات 2026]:[تنفيذ أحكام]],data.E[[#This Row],[الشهداء]:[خصم 5% تأمين من العمولة]],0),0),2) -> 0 | DA51: =ROUND(SUM(data.E[[#This Row],[تامينات 2026]:[تنفيذ أحكام]],data.E[[#This Row],[الشهداء]:[معاش]]),2) -> 1015.93 | DB51: 5984.07
A52: =IF(data.E[[#This Row],[الموظف المختص]]=print.e!$E$2,COUNTIF('data.e'!$G$4:G52,G52),"") -> 47 | B52: 101044 | C52: 10044 | D52: بنك مصر 1 | E52: منى عبد العليم عبد العزيز ابراهيم | G52: منال | H52: دوام كامل | I52: ادارى | J52: الاولى | L52: الأولى | M52: كاتب اول | N52: الادارة العامة | O52: المنطقه المركزية | P52: 27907140104806 | Q52: 10104410044منى عبد العليم عبد العزيز ابراهيممنالالاولىالأولىكاتب اولاجهزة الريس | R52: نعم | S52: 1245.5 | T52: 1457.235 | U52: 0 | V52: 1967.27 | W52: 218.59 | X52: 0 | Y52: 0 | Z52: 0 | AB52: 0 | AC52: 300 | AE52: 0 | AG52: 0 | AH52: 0 | AI52: =SUM(AA52:AH52)-data.E[[#This Row],[بدل تمثيل]] -> 300 | AJ52: 40.74096 | AK52: 45.40245 | AL52: 65 | AM52: 0 | AN52: 190 | AO52: 24.89787 | AP52: 44.4012 | AQ52: 57.01114 | AR52: 81.33589 | AS52: 87.0294 | AT52: 93.12147 | AU52: 0 | AV52: 62.275 | AW52: 600 | AX52: 6 | AY52: 1397.22 | AZ52: 10 | BA52: =ROUND((data.E[[#This Row],[أساسي 7/2025]]*2)/12,2) -> 242.87 | BE52: 5593.19 | BF52: 1406.81 | BG52: =IF(data.E[[#This Row],[حالة العمل]]="إيقاف",data.E[[#This Row],[أساسي 7/2025]],ROUND(SUM(data.E[[#This Row],[بدل تمثيل]],BB52:BF52),2)) -> 7000 | BL52: =ROUND(data.E[[#This Row],[تامينات 2026]]/11%,2) -> 5845.09 | BM52: 642.96 | BO52: =(data.E[[#This Row],[إجمالي المستحق]]-SUM(data.E[[#This Row],[الحافز]],data.E[[#This Row],[متوسط المنحة]:[الإضافي]]))/30*data.E[[#This Row],[أيام الغياب]] -> 0 | BP52: =(data.E[[#This Row],[إجمالي المستحق]]-SUM(data.E[[#This Row],[الحافز]],data.E[[#This Row],[متوسط المنحة]:[الإضافي]]))/30*data.E[[#This Row],[أيام جزاء]] -> 0 | BQ52: =IF(data.E[[#This Row],[أيام الغياب]]=1,data.E[[#This Row],[الحافز]]*20%,IF(data.E[[#This Row],[أيام الغياب]]=2,data.E[[#This Row],[الحافز]]*30%,IF(data.E[[#This Row],[أيام الغياب]]>2,data.E[[#This Row],[الحافز]]*100%,0))) -> 0 | BR52: =IF(data.E[[#This Row],[عدد أيام الأجازات]]<=4,data.E[[#This Row],[الحافز]]*0,IF(data.E[[#This Row],[عدد أيام الأجازات]]=5,data.E[[#This Row],[الحافز]]*20%,IF(data.E[[#This Row],[عدد أيام الأجازات]]=6,data.E[[#This Row],[الحافز]]*40%,IF(data.E[[#This Row],[عدد أيام الأجازات]]=7,data.E[[#This Row],[الحافز]]*50%,IF(data.E[[#This Row],[عدد أيام الأجازات]]>7,data.E[[#This Row],[الحافز]]*100%,0))))) -> 0 | BS52: 0 | BT52: 0 | BU52: 0 | BW52: 3 | BX52: 0 | BZ52: 0 | CD52: 0 | CE52: 0 | CG52: 0 | CJ52: 3.23 | CK52: 5 | CR52: 0 | CS52: 242.87 | CT52: 0 | CU52: =ROUND(IF($H52=data.E[[#Headers],[إيقاف]],$BG52-SUM(data.E[[#This Row],[تامينات 2026]:[تنفيذ أحكام]],data.E[[#This Row],[الشهداء]:[خصم 5% تأمين من العمولة]],0),0),2) -> 0 | CV52: =ROUND(IF($H52=data.E[[#Headers],[مرضي]],$BG52-SUM(data.E[[#This Row],[تامينات 2026]:[تنفيذ أحكام]],data.E[[#This Row],[الشهداء]:[خصم 5% تأمين من العمولة]],0),0),2) -> 0 | CW52: =ROUND(IF($H52=data.E[[#Headers],[أجازة]],$BG52-SUM(data.E[[#This Row],[تامينات 2026]:[تنفيذ أحكام]],data.E[[#This Row],[الشهداء]:[خصم 5% تأمين من العمولة]],0),0),2) -> 0 | CX52: =ROUND(IF($H52=data.E[[#Headers],[إعارة]],$BG52-SUM(data.E[[#This Row],[تامينات 2026]:[تنفيذ أحكام]],data.E[[#This Row],[الشهداء]:[خصم 5% تأمين من العمولة]],0),0),2) -> 0 | CY52: =ROUND(IF($H52=data.E[[#Headers],[إنهاء]],$BG52-SUM(data.E[[#This Row],[تامينات 2026]:[تنفيذ أحكام]],data.E[[#This Row],[الشهداء]:[خصم 5% تأمين من العمولة]],0),0),2) -> 0 | CZ52: =ROUND(IF($H52=data.E[[#Headers],[معاش]],$BG52-SUM(data.E[[#This Row],[تامينات 2026]:[تنفيذ أحكام]],data.E[[#This Row],[الشهداء]:[خصم 5% تأمين من العمولة]],0),0),2) -> 0 | DA52: =ROUND(SUM(data.E[[#This Row],[تامينات 2026]:[تنفيذ أحكام]],data.E[[#This Row],[الشهداء]:[معاش]]),2) -> 897.06 | DB52: 6102.94
A53: =IF(data.E[[#This Row],[الموظف المختص]]=print.e!$E$2,COUNTIF('data.e'!$G$4:G53,G53),"") -> 48 | B53: 101045 | C53: 10045 | D53: بنك مصر 1 | E53: اشرف محمود ابراهيم محمد | G53: منال | H53: دوام كامل | I53: ادارى | J53: الثانية | L53: الثانية | M53: كاتب شئون موارد بشرية | N53: الادارة العامة | O53: المنطقه المركزية | P53: 28312140100797 | Q53: 10104510045اشرف محمود ابراهيم محمدمنالالثانيةالثانيةكاتب شئون موارد بشرية قطاع الموارد بشرية | R53: نعم | S53: 985.1828 | T53: 1152.663876 | U53: 0 | V53: 1556.1 | W53: 172.9 | X53: 0 | Y53: 0 | Z53: 0 | AB53: 0 | AC53: 300 | AE53: 0 | AG53: 0 | AH53: 0 | AI53: =SUM(AA53:AH53)-data.E[[#This Row],[بدل تمثيل]] -> 300 | AJ53: 34.04168 | AK53: 38.11584 | AL53: 65 | AM53: 0 | AN53: 190 | AO53: 29.04718 | AP53: 35.12109 | AQ53: 45.09547 | AR53: 64.3362 | AS53: 68.83974 | AT53: 85.5 | AU53: 0 | AV53: 51.48172 | AW53: 600 | AX53: 10 | AY53: 1316.58 | AZ53: 10 | BA53: =ROUND((data.E[[#This Row],[أساسي 7/2025]]*2)/12,2) -> 192.11 | BE53: 4700.35 | BF53: 2299.65 | BG53: =IF(data.E[[#This Row],[حالة العمل]]="إيقاف",data.E[[#This Row],[أساسي 7/2025]],ROUND(SUM(data.E[[#This Row],[بدل تمثيل]],BB53:BF53),2)) -> 7000 | BL53: =ROUND(data.E[[#This Row],[تامينات 2026]]/11%,2) -> 5778.91 | BM53: 635.68 | BO53: =(data.E[[#This Row],[إجمالي المستحق]]-SUM(data.E[[#This Row],[الحافز]],data.E[[#This Row],[متوسط المنحة]:[الإضافي]]))/30*data.E[[#This Row],[أيام الغياب]] -> 0 | BP53: =(data.E[[#This Row],[إجمالي المستحق]]-SUM(data.E[[#This Row],[الحافز]],data.E[[#This Row],[متوسط المنحة]:[الإضافي]]))/30*data.E[[#This Row],[أيام جزاء]] -> 0 | BQ53: =IF(data.E[[#This Row],[أيام الغياب]]=1,data.E[[#This Row],[الحافز]]*20%,IF(data.E[[#This Row],[أيام الغياب]]=2,data.E[[#This Row],[الحافز]]*30%,IF(data.E[[#This Row],[أيام الغياب]]>2,data.E[[#This Row],[الحافز]]*100%,0))) -> 0 | BR53: =IF(data.E[[#This Row],[عدد أيام الأجازات]]<=4,data.E[[#This Row],[الحافز]]*0,IF(data.E[[#This Row],[عدد أيام الأجازات]]=5,data.E[[#This Row],[الحافز]]*20%,IF(data.E[[#This Row],[عدد أيام الأجازات]]=6,data.E[[#This Row],[الحافز]]*40%,IF(data.E[[#This Row],[عدد أيام الأجازات]]=7,data.E[[#This Row],[الحافز]]*50%,IF(data.E[[#This Row],[عدد أيام الأجازات]]>7,data.E[[#This Row],[الحافز]]*100%,0))))) -> 0 | BS53: 0 | BT53: 0 | BU53: 0 | BW53: 3 | BX53: 0 | BZ53: 0 | CD53: 0 | CE53: 0 | CG53: 0 | CJ53: 3.25 | CK53: 5 | CR53: 0 | CS53: 192.11 | CT53: 0 | CU53: =ROUND(IF($H53=data.E[[#Headers],[إيقاف]],$BG53-SUM(data.E[[#This Row],[تامينات 2026]:[تنفيذ أحكام]],data.E[[#This Row],[الشهداء]:[خصم 5% تأمين من العمولة]],0),0),2) -> 0 | CV53: =ROUND(IF($H53=data.E[[#Headers],[مرضي]],$BG53-SUM(data.E[[#This Row],[تامينات 2026]:[تنفيذ أحكام]],data.E[[#This Row],[الشهداء]:[خصم 5% تأمين من العمولة]],0),0),2) -> 0 | CW53: =ROUND(IF($H53=data.E[[#Headers],[أجازة]],$BG53-SUM(data.E[[#This Row],[تامينات 2026]:[تنفيذ أحكام]],data.E[[#This Row],[الشهداء]:[خصم 5% تأمين من العمولة]],0),0),2) -> 0 | CX53: =ROUND(IF($H53=data.E[[#Headers],[إعارة]],$BG53-SUM(data.E[[#This Row],[تامينات 2026]:[تنفيذ أحكام]],data.E[[#This Row],[الشهداء]:[خصم 5% تأمين من العمولة]],0),0),2) -> 0 | CY53: =ROUND(IF($H53=data.E[[#Headers],[إنهاء]],$BG53-SUM(data.E[[#This Row],[تامينات 2026]:[تنفيذ أحكام]],data.E[[#This Row],[الشهداء]:[خصم 5% تأمين من العمولة]],0),0),2) -> 0 | CZ53: =ROUND(IF($H53=data.E[[#Headers],[معاش]],$BG53-SUM(data.E[[#This Row],[تامينات 2026]:[تنفيذ أحكام]],data.E[[#This Row],[الشهداء]:[خصم 5% تأمين من العمولة]],0),0),2) -> 0 | DA53: =ROUND(SUM(data.E[[#This Row],[تامينات 2026]:[تنفيذ أحكام]],data.E[[#This Row],[الشهداء]:[معاش]]),2) -> 839.04 | DB53: 6160.96
A54: =IF(data.E[[#This Row],[الموظف المختص]]=print.e!$E$2,COUNTIF('data.e'!$G$4:G54,G54),"") -> 49 | B54: 101046 | C54: 21147 | D54: بنك مصر 1 | E54: صابر عبد الرؤوف عبد الوهاب | G54: منال | H54: دوام كامل | I54: ادارى | J54: الاولى | L54: الأولى | M54: كاتب امن | N54: الادارة العامة | O54: المنطقه المركزية | P54: 26701180100276 | Q54: 10104621147صابر عبد الرؤوف عبد الوهابمنالالاولىالأولىكاتب امنادارة الامن | R54: نعم | S54: 2644.84 | T54: 3094.4628 | U54: 0 | V54: 4177.52 | W54: 464.17 | X54: 0 | Y54: 0 | Z54: 0 | AB54: 0 | AC54: 300 | AE54: 0 | AF54: 0 | AG54: 0 | AH54: 0 | AI54: =SUM(AA54:AH54)-data.E[[#This Row],[بدل تمثيل]] -> 300 | AJ54: 86.52 | AK54: 96.94 | AL54: 116.71 | AM54: 0 | AN54: 190 | AO54: 52.87 | AP54: 94.29 | AQ54: 121.06 | AR54: 172.72 | AS54: 184.81 | AT54: 197.74 | AU54: 0 | AV54: 132.242 | AW54: 600 | AX54: 10 | AY54: 2055.9 | AZ54: 10 | BA54: =ROUND((data.E[[#This Row],[أساسي 7/2025]]*2)/12,2) -> 515.74 | BE54: 10617.79 | BF54: 0 | BG54: =IF(data.E[[#This Row],[حالة العمل]]="إيقاف",data.E[[#This Row],[أساسي 7/2025]],ROUND(SUM(data.E[[#This Row],[بدل تمثيل]],BB54:BF54),2)) -> 10617.79 | BL54: =ROUND(data.E[[#This Row],[تامينات 2026]]/11%,2) -> 9846.09 | BM54: 1083.07 | BO54: =(data.E[[#This Row],[إجمالي المستحق]]-SUM(data.E[[#This Row],[الحافز]],data.E[[#This Row],[متوسط المنحة]:[الإضافي]]))/30*data.E[[#This Row],[أيام الغياب]] -> 0 | BP54: =(data.E[[#This Row],[إجمالي المستحق]]-SUM(data.E[[#This Row],[الحافز]],data.E[[#This Row],[متوسط المنحة]:[الإضافي]]))/30*data.E[[#This Row],[أيام جزاء]] -> 0 | BQ54: =IF(data.E[[#This Row],[أيام الغياب]]=1,data.E[[#This Row],[الحافز]]*20%,IF(data.E[[#This Row],[أيام الغياب]]=2,data.E[[#This Row],[الحافز]]*30%,IF(data.E[[#This Row],[أيام الغياب]]>2,data.E[[#This Row],[الحافز]]*100%,0))) -> 0 | BR54: =IF(data.E[[#This Row],[عدد أيام الأجازات]]<=4,data.E[[#This Row],[الحافز]]*0,IF(data.E[[#This Row],[عدد أيام الأجازات]]=5,data.E[[#This Row],[الحافز]]*20%,IF(data.E[[#This Row],[عدد أيام الأجازات]]=6,data.E[[#This Row],[الحافز]]*40%,IF(data.E[[#This Row],[عدد أيام الأجازات]]=7,data.E[[#This Row],[الحافز]]*50%,IF(data.E[[#This Row],[عدد أيام الأجازات]]>7,data.E[[#This Row],[الحافز]]*100%,0))))) -> 0 | BS54: 0 | BT54: 14.28 | BU54: 0 | BV54: 0 | BW54: 3 | BX54: 0 | BZ54: 0 | CA54: 0 | CB54: 0 | CD54: 0 | CE54: 0 | CF54: 0 | CG54: 0 | CH54: 0 | CJ54: 4.9 | CK54: 5 | CN54: 0 | CO54: 0 | CR54: 0 | CS54: 515.74 | CT54: 0 | CU54: =ROUND(IF($H54=data.E[[#Headers],[إيقاف]],$BG54-SUM(data.E[[#This Row],[تامينات 2026]:[تنفيذ أحكام]],data.E[[#This Row],[الشهداء]:[خصم 5% تأمين من العمولة]],0),0),2) -> 0 | CV54: =ROUND(IF($H54=data.E[[#Headers],[مرضي]],$BG54-SUM(data.E[[#This Row],[تامينات 2026]:[تنفيذ أحكام]],data.E[[#This Row],[الشهداء]:[خصم 5% تأمين من العمولة]],0),0),2) -> 0 | CW54: =ROUND(IF($H54=data.E[[#Headers],[أجازة]],$BG54-SUM(data.E[[#This Row],[تامينات 2026]:[تنفيذ أحكام]],data.E[[#This Row],[الشهداء]:[خصم 5% تأمين من العمولة]],0),0),2) -> 0 | CX54: =ROUND(IF($H54=data.E[[#Headers],[إعارة]],$BG54-SUM(data.E[[#This Row],[تامينات 2026]:[تنفيذ أحكام]],data.E[[#This Row],[الشهداء]:[خصم 5% تأمين من العمولة]],0),0),2) -> 0 | CY54: =ROUND(IF($H54=data.E[[#Headers],[إنهاء]],$BG54-SUM(data.E[[#This Row],[تامينات 2026]:[تنفيذ أحكام]],data.E[[#This Row],[الشهداء]:[خصم 5% تأمين من العمولة]],0),0),2) -> 0 | CZ54: =ROUND(IF($H54=data.E[[#Headers],[معاش]],$BG54-SUM(data.E[[#This Row],[تامينات 2026]:[تنفيذ أحكام]],data.E[[#This Row],[الشهداء]:[خصم 5% تأمين من العمولة]],0),0),2) -> 0 | DA54: =ROUND(SUM(data.E[[#This Row],[تامينات 2026]:[تنفيذ أحكام]],data.E[[#This Row],[الشهداء]:[معاش]]),2) -> 1625.99 | DB54: 8991.8
A55: =IF(data.E[[#This Row],[الموظف المختص]]=print.e!$E$2,COUNTIF('data.e'!$G$4:G55,G55),"") -> 50 | B55: 101047 | C55: 21387 | D55: بنك مصر 1 | E55: وليد محمد حسن عثمان | G55: منال | H55: دوام كامل | I55: ادارى | J55: الثانية | L55: الثانية | M55: كاتب شئون ادارية | N55: الادارة العامة | O55: المنطقه المركزية | P55: 26903040105415 | Q55: 10104721387وليد محمد حسن عثمانمنالالثانيةالثانيةكاتب شئون ادارية قطاع الموار بشرية | R55: نعم | S55: 2269.89 | T55: 2655.7713 | U55: 0 | V55: 3585.29 | W55: 398.37 | X55: 0 | Y55: 0 | Z55: 0 | AB55: 0 | AC55: 300 | AE55: 0 | AF55: 0 | AG55: 0 | AH55: 0 | AI55: =SUM(AA55:AH55)-data.E[[#This Row],[بدل تمثيل]] -> 300 | AJ55: 75.13 | AK55: 84.06 | AL55: 107.57 | AM55: 0 | AN55: 190 | AO55: 45.38 | AP55: 80.92 | AQ55: 103.9 | AR55: 148.23 | AS55: 158.61 | AT55: 169.71 | AU55: 0 | AV55: 113.4945 | AW55: 600 | AX55: 10 | AY55: 1887 | AZ55: 10 | BA55: =ROUND((data.E[[#This Row],[أساسي 7/2025]]*2)/12,2) -> 442.63 | BE55: 9279.06 | BF55: 0 | BG55: =IF(data.E[[#This Row],[حالة العمل]]="إيقاف",data.E[[#This Row],[أساسي 7/2025]],ROUND(SUM(data.E[[#This Row],[بدل تمثيل]],BB55:BF55),2)) -> 9279.06 | BL55: =ROUND(data.E[[#This Row],[تامينات 2026]]/11%,2) -> 8572.82 | BM55: 943.01 | BO55: =(data.E[[#This Row],[إجمالي المستحق]]-SUM(data.E[[#This Row],[الحافز]],data.E[[#This Row],[متوسط المنحة]:[الإضافي]]))/30*data.E[[#This Row],[أيام الغياب]] -> 0 | BP55: =(data.E[[#This Row],[إجمالي المستحق]]-SUM(data.E[[#This Row],[الحافز]],data.E[[#This Row],[متوسط المنحة]:[الإضافي]]))/30*data.E[[#This Row],[أيام جزاء]] -> 0 | BQ55: =IF(data.E[[#This Row],[أيام الغياب]]=1,data.E[[#This Row],[الحافز]]*20%,IF(data.E[[#This Row],[أيام الغياب]]=2,data.E[[#This Row],[الحافز]]*30%,IF(data.E[[#This Row],[أيام الغياب]]>2,data.E[[#This Row],[الحافز]]*100%,0))) -> 0 | BR55: =IF(data.E[[#This Row],[عدد أيام الأجازات]]<=4,data.E[[#This Row],[الحافز]]*0,IF(data.E[[#This Row],[عدد أيام الأجازات]]=5,data.E[[#This Row],[الحافز]]*20%,IF(data.E[[#This Row],[عدد أيام الأجازات]]=6,data.E[[#This Row],[الحافز]]*40%,IF(data.E[[#This Row],[عدد أيام الأجازات]]=7,data.E[[#This Row],[الحافز]]*50%,IF(data.E[[#This Row],[عدد أيام الأجازات]]>7,data.E[[#This Row],[الحافز]]*100%,0))))) -> 0 | BS55: 0 | BT55: 133.5 | BU55: 0 | BV55: 0 | BW55: 3 | BX55: 0 | BZ55: 0 | CA55: 0 | CB55: 0 | CD55: 0 | CE55: 0 | CF55: 0 | CG55: 0 | CH55: 0 | CJ55: 4.27 | CK55: 3 | CN55: 0 | CO55: 0 | CR55: 0 | CS55: 442.63 | CT55: 0 | CU55: =ROUND(IF($H55=data.E[[#Headers],[إيقاف]],$BG55-SUM(data.E[[#This Row],[تامينات 2026]:[تنفيذ أحكام]],data.E[[#This Row],[الشهداء]:[خصم 5% تأمين من العمولة]],0),0),2) -> 0 | CV55: =ROUND(IF($H55=data.E[[#Headers],[مرضي]],$BG55-SUM(data.E[[#This Row],[تامينات 2026]:[تنفيذ أحكام]],data.E[[#This Row],[الشهداء]:[خصم 5% تأمين من العمولة]],0),0),2) -> 0 | CW55: =ROUND(IF($H55=data.E[[#Headers],[أجازة]],$BG55-SUM(data.E[[#This Row],[تامينات 2026]:[تنفيذ أحكام]],data.E[[#This Row],[الشهداء]:[خصم 5% تأمين من العمولة]],0),0),2) -> 0 | CX55: =ROUND(IF($H55=data.E[[#Headers],[إعارة]],$BG55-SUM(data.E[[#This Row],[تامينات 2026]:[تنفيذ أحكام]],data.E[[#This Row],[الشهداء]:[خصم 5% تأمين من العمولة]],0),0),2) -> 0 | CY55: =ROUND(IF($H55=data.E[[#Headers],[إنهاء]],$BG55-SUM(data.E[[#This Row],[تامينات 2026]:[تنفيذ أحكام]],data.E[[#This Row],[الشهداء]:[خصم 5% تأمين من العمولة]],0),0),2) -> 0 | CZ55: =ROUND(IF($H55=data.E[[#Headers],[معاش]],$BG55-SUM(data.E[[#This Row],[تامينات 2026]:[تنفيذ أحكام]],data.E[[#This Row],[الشهداء]:[خصم 5% تأمين من العمولة]],0),0),2) -> 0 | DA55: =ROUND(SUM(data.E[[#This Row],[تامينات 2026]:[تنفيذ أحكام]],data.E[[#This Row],[الشهداء]:[معاش]]),2) -> 1529.41 | DB55: 7749.65
A56: =IF(data.E[[#This Row],[الموظف المختص]]=print.e!$E$2,COUNTIF('data.e'!$G$4:G56,G56),"") -> 51 | B56: 101048 | C56: 21538 | D56: بنك مصر 1 | E56: احمد صلاح نصر السيد محمد | G56: منال | H56: دوام كامل | I56: ادارى | J56: الثالثة | L56: الثالثة | M56: امين مخزن | N56: الادارة العامة | O56: المنطقه المركزية | P56: 27305260102131 | Q56: 10104821538احمد صلاح نصر السيد محمدمنالالثالثةالثالثةامين مخزنالاميرية | R56: نعم | S56: 2070.44 | T56: 2422.4148 | U56: 0 | V56: 3270.26 | W56: 363.36 | X56: 0 | Y56: 0 | Z56: 0 | AB56: 0 | AC56: 300 | AE56: 0 | AF56: 0 | AG56: 0 | AH56: 0 | AI56: =SUM(AA56:AH56)-data.E[[#This Row],[بدل تمثيل]] -> 300 | AJ56: 73.3 | AK56: 81.83 | AL56: 97.69 | AM56: 0 | AN56: 200 | AO56: 41.39 | AP56: 73.81 | AQ56: 94.77 | AR56: 135.21 | AS56: 144.67 | AT56: 154.8 | AU56: 0 | AV56: 103.522 | AW56: 600 | AX56: 10 | AY56: 1810.99 | AZ56: 10 | BA56: =ROUND((data.E[[#This Row],[أساسي 7/2025]]*2)/12,2) -> 403.74 | BE56: 8580.76 | BF56: 0 | BG56: =IF(data.E[[#This Row],[حالة العمل]]="إيقاف",data.E[[#This Row],[أساسي 7/2025]],ROUND(SUM(data.E[[#This Row],[بدل تمثيل]],BB56:BF56),2)) -> 8580.76 | BL56: =ROUND(data.E[[#This Row],[تامينات 2026]]/11%,2) -> 7909.27 | BM56: 870.02 | BO56: =(data.E[[#This Row],[إجمالي المستحق]]-SUM(data.E[[#This Row],[الحافز]],data.E[[#This Row],[متوسط المنحة]:[الإضافي]]))/30*data.E[[#This Row],[أيام الغياب]] -> 0 | BP56: =(data.E[[#This Row],[إجمالي المستحق]]-SUM(data.E[[#This Row],[الحافز]],data.E[[#This Row],[متوسط المنحة]:[الإضافي]]))/30*data.E[[#This Row],[أيام جزاء]] -> 0 | BQ56: =IF(data.E[[#This Row],[أيام الغياب]]=1,data.E[[#This Row],[الحافز]]*20%,IF(data.E[[#This Row],[أيام الغياب]]=2,data.E[[#This Row],[الحافز]]*30%,IF(data.E[[#This Row],[أيام الغياب]]>2,data.E[[#This Row],[الحافز]]*100%,0))) -> 0 | BR56: =IF(data.E[[#This Row],[عدد أيام الأجازات]]<=4,data.E[[#This Row],[الحافز]]*0,IF(data.E[[#This Row],[عدد أيام الأجازات]]=5,data.E[[#This Row],[الحافز]]*20%,IF(data.E[[#This Row],[عدد أيام الأجازات]]=6,data.E[[#This Row],[الحافز]]*40%,IF(data.E[[#This Row],[عدد أيام الأجازات]]=7,data.E[[#This Row],[الحافز]]*50%,IF(data.E[[#This Row],[عدد أيام الأجازات]]>7,data.E[[#This Row],[الحافز]]*100%,0))))) -> 0 | BS56: 0 | BT56: 0 | BU56: 1.33 | BV56: 0 | BW56: 3 | BX56: 0 | BZ56: 0 | CA56: 0 | CB56: 0 | CD56: 0 | CE56: 0 | CF56: 0 | CG56: 0 | CH56: 0 | CJ56: 3.94 | CK56: 3 | CN56: 0 | CO56: 0 | CR56: 0 | CS56: 403.74 | CT56: 0 | CU56: =ROUND(IF($H56=data.E[[#Headers],[إيقاف]],$BG56-SUM(data.E[[#This Row],[تامينات 2026]:[تنفيذ أحكام]],data.E[[#This Row],[الشهداء]:[خصم 5% تأمين من العمولة]],0),0),2) -> 0 | CV56: =ROUND(IF($H56=data.E[[#Headers],[مرضي]],$BG56-SUM(data.E[[#This Row],[تامينات 2026]:[تنفيذ أحكام]],data.E[[#This Row],[الشهداء]:[خصم 5% تأمين من العمولة]],0),0),2) -> 0 | CW56: =ROUND(IF($H56=data.E[[#Headers],[أجازة]],$BG56-SUM(data.E[[#This Row],[تامينات 2026]:[تنفيذ أحكام]],data.E[[#This Row],[الشهداء]:[خصم 5% تأمين من العمولة]],0),0),2) -> 0 | CX56: =ROUND(IF($H56=data.E[[#Headers],[إعارة]],$BG56-SUM(data.E[[#This Row],[تامينات 2026]:[تنفيذ أحكام]],data.E[[#This Row],[الشهداء]:[خصم 5% تأمين من العمولة]],0),0),2) -> 0 | CY56: =ROUND(IF($H56=data.E[[#Headers],[إنهاء]],$BG56-SUM(data.E[[#This Row],[تامينات 2026]:[تنفيذ أحكام]],data.E[[#This Row],[الشهداء]:[خصم 5% تأمين من العمولة]],0),0),2) -> 0 | CZ56: =ROUND(IF($H56=data.E[[#Headers],[معاش]],$BG56-SUM(data.E[[#This Row],[تامينات 2026]:[تنفيذ أحكام]],data.E[[#This Row],[الشهداء]:[خصم 5% تأمين من العمولة]],0),0),2) -> 0 | DA56: =ROUND(SUM(data.E[[#This Row],[تامينات 2026]:[تنفيذ أحكام]],data.E[[#This Row],[الشهداء]:[معاش]]),2) -> 1285.03 | DB56: 7295.73
A57: =IF(data.E[[#This Row],[الموظف المختص]]=print.e!$E$2,COUNTIF('data.e'!$G$4:G57,G57),"") -> 52 | B57: 101049 | C57: 21663 | D57: بنك مصر 1 | E57: ماهر سعيد عبد النبي | G57: منال | H57: دوام كامل | I57: ادارى | J57: الثانية | K57: 0.05 | L57: الثانية | M57: امين مخزن | N57: الادارة العامة | O57: المنطقه المركزية | P57: 27201121401239 | Q57: 10104921663ماهر سعيد عبد النبيمنالالثانيةالثانيةامين مخزن قطاع مالى | R57: نعم | S57: 2118.21 | T57: 2478.3057 | U57: 0 | V57: 3345.71 | W57: 371.75 | X57: 0 | Y57: 0 | Z57: 0 | AB57: 371.75 | AC57: 300 | AE57: 0 | AF57: 0 | AG57: 0 | AH57: 0 | AI57: =SUM(AA57:AH57)-data.E[[#This Row],[بدل تمثيل]] -> 671.75 | AJ57: 70.12 | AK57: 78.28 | AL57: 100.31 | AM57: 0 | AN57: 190 | AO57: 42.34 | AP57: 75.51 | AQ57: 96.96 | AR57: 138.33 | AS57: 148.31 | AT57: 158.37 | AU57: 0 | AV57: 105.9105 | AW57: 600 | AX57: 10 | AY57: 1814.44 | AZ57: 10 | BA57: =ROUND((data.E[[#This Row],[أساسي 7/2025]]*2)/12,2) -> 413.05 | BE57: 9105.01 | BF57: 0 | BG57: =IF(data.E[[#This Row],[حالة العمل]]="إيقاف",data.E[[#This Row],[أساسي 7/2025]],ROUND(SUM(data.E[[#This Row],[بدل تمثيل]],BB57:BF57),2)) -> 9105.01 | BL57: =ROUND(data.E[[#This Row],[تامينات 2026]]/11%,2) -> 8237.18 | BM57: 906.09 | BO57: =(data.E[[#This Row],[إجمالي المستحق]]-SUM(data.E[[#This Row],[الحافز]],data.E[[#This Row],[متوسط المنحة]:[الإضافي]]))/30*data.E[[#This Row],[أيام الغياب]] -> 0 | BP57: =(data.E[[#This Row],[إجمالي المستحق]]-SUM(data.E[[#This Row],[الحافز]],data.E[[#This Row],[متوسط المنحة]:[الإضافي]]))/30*data.E[[#This Row],[أيام جزاء]] -> 0 | BQ57: =IF(data.E[[#This Row],[أيام الغياب]]=1,data.E[[#This Row],[الحافز]]*20%,IF(data.E[[#This Row],[أيام الغياب]]=2,data.E[[#This Row],[الحافز]]*30%,IF(data.E[[#This Row],[أيام الغياب]]>2,data.E[[#This Row],[الحافز]]*100%,0))) -> 0 | BR57: =IF(data.E[[#This Row],[عدد أيام الأجازات]]<=4,data.E[[#This Row],[الحافز]]*0,IF(data.E[[#This Row],[عدد أيام الأجازات]]=5,data.E[[#This Row],[الحافز]]*20%,IF(data.E[[#This Row],[عدد أيام الأجازات]]=6,data.E[[#This Row],[الحافز]]*40%,IF(data.E[[#This Row],[عدد أيام الأجازات]]=7,data.E[[#This Row],[الحافز]]*50%,IF(data.E[[#This Row],[عدد أيام الأجازات]]>7,data.E[[#This Row],[الحافز]]*100%,0))))) -> 0 | BS57: 0 | BT57: 33.02 | BU57: 0 | BV57: 0 | BW57: 3 | BX57: 0 | BZ57: 0 | CA57: 0 | CB57: 0 | CD57: 0 | CE57: 0 | CF57: 0 | CG57: 0 | CH57: 0 | CJ57: 4.2 | CK57: 3 | CN57: 0 | CO57: 0 | CR57: 0 | CS57: 413.05 | CT57: 0 | CU57: =ROUND(IF($H57=data.E[[#Headers],[إيقاف]],$BG57-SUM(data.E[[#This Row],[تامينات 2026]:[تنفيذ أحكام]],data.E[[#This Row],[الشهداء]:[خصم 5% تأمين من العمولة]],0),0),2) -> 0 | CV57: =ROUND(IF($H57=data.E[[#Headers],[مرضي]],$BG57-SUM(data.E[[#This Row],[تامينات 2026]:[تنفيذ أحكام]],data.E[[#This Row],[الشهداء]:[خصم 5% تأمين من العمولة]],0),0),2) -> 0 | CW57: =ROUND(IF($H57=data.E[[#Headers],[أجازة]],$BG57-SUM(data.E[[#This Row],[تامينات 2026]:[تنفيذ أحكام]],data.E[[#This Row],[الشهداء]:[خصم 5% تأمين من العمولة]],0),0),2) -> 0 | CX57: =ROUND(IF($H57=data.E[[#Headers],[إعارة]],$BG57-SUM(data.E[[#This Row],[تامينات 2026]:[تنفيذ أحكام]],data.E[[#This Row],[الشهداء]:[خصم 5% تأمين من العمولة]],0),0),2) -> 0 | CY57: =ROUND(IF($H57=data.E[[#Headers],[إنهاء]],$BG57-SUM(data.E[[#This Row],[تامينات 2026]:[تنفيذ أحكام]],data.E[[#This Row],[الشهداء]:[خصم 5% تأمين من العمولة]],0),0),2) -> 0 | CZ57: =ROUND(IF($H57=data.E[[#Headers],[معاش]],$BG57-SUM(data.E[[#This Row],[تامينات 2026]:[تنفيذ أحكام]],data.E[[#This Row],[الشهداء]:[خصم 5% تأمين من العمولة]],0),0),2) -> 0 | DA57: =ROUND(SUM(data.E[[#This Row],[تامينات 2026]:[تنفيذ أحكام]],data.E[[#This Row],[الشهداء]:[معاش]]),2) -> 1362.36 | DB57: 7742.65
A58: =IF(data.E[[#This Row],[الموظف المختص]]=print.e!$E$2,COUNTIF('data.e'!$G$4:G58,G58),"") -> 53 | B58: 101050 | C58: 10050 | D58: بنك مصر 1 | E58: هبة حسن علي عبد الغفار | G58: منال | H58: دوام كامل | I58: ادارى | J58: الاولى | K58: 0.05 | N58: الادارة العامة | O58: المنطقه المركزية | P58: 27008030102269 | Q58: 10105010050هبة حسن علي عبد الغفارمنالالاولى | S58: 2133.364 | T58: 2346.7004 | U58: 0 | V58: 3168.05 | W58: 352.01 | X58: 0 | Y58: 0 | Z58: 0 | AB58: 0 | AC58: 300 | AE58: 0 | AG58: 0 | AH58: 0 | AI58: =SUM(AA58:AH58)-data.E[[#This Row],[بدل تمثيل]] -> 300 | AJ58: 74.03146 | AK58: 82.8549 | AL58: 99.52118 | AM58: 0 | AN58: 190 | AO58: 42.64652 | AP58: 76.05296 | AQ58: 97.65201 | AR58: 139.3169 | AS58: 149.069 | AT58: 159.5039 | AU58: 0 | AV58: 106.6682 | AW58: 600 | AX58: 6 | AY58: 1823.32 | AZ58: 10 | BA58: =ROUND((data.E[[#This Row],[أساسي 7/2025]]*2)/12,2) -> 391.12 | BE58: 8391.2 | BF58: 0 | BG58: =IF(data.E[[#This Row],[حالة العمل]]="إيقاف",data.E[[#This Row],[أساسي 7/2025]],ROUND(SUM(data.E[[#This Row],[بدل تمثيل]],BB58:BF58),2)) -> 8391.2 | BL58: =ROUND(data.E[[#This Row],[تامينات 2026]]/11%,2) -> 7939 | BM58: 873.29 | BO58: =(data.E[[#This Row],[إجمالي المستحق]]-SUM(data.E[[#This Row],[الحافز]],data.E[[#This Row],[متوسط المنحة]:[الإضافي]]))/30*data.E[[#This Row],[أيام الغياب]] -> 0 | BP58: =(data.E[[#This Row],[إجمالي المستحق]]-SUM(data.E[[#This Row],[الحافز]],data.E[[#This Row],[متوسط المنحة]:[الإضافي]]))/30*data.E[[#This Row],[أيام جزاء]] -> 0 | BQ58: =IF(data.E[[#This Row],[أيام الغياب]]=1,data.E[[#This Row],[الحافز]]*20%,IF(data.E[[#This Row],[أيام الغياب]]=2,data.E[[#This Row],[الحافز]]*30%,IF(data.E[[#This Row],[أيام الغياب]]>2,data.E[[#This Row],[الحافز]]*100%,0))) -> 0 | BR58: =IF(data.E[[#This Row],[عدد أيام الأجازات]]<=4,data.E[[#This Row],[الحافز]]*0,IF(data.E[[#This Row],[عدد أيام الأجازات]]=5,data.E[[#This Row],[الحافز]]*20%,IF(data.E[[#This Row],[عدد أيام الأجازات]]=6,data.E[[#This Row],[الحافز]]*40%,IF(data.E[[#This Row],[عدد أيام الأجازات]]=7,data.E[[#This Row],[الحافز]]*50%,IF(data.E[[#This Row],[عدد أيام الأجازات]]>7,data.E[[#This Row],[الحافز]]*100%,0))))) -> 0 | BS58: 0 | BT58: 0 | BU58: 0 | BW58: 3 | BX58: 0 | BZ58: 0 | CD58: 0 | CE58: 0 | CG58: 0 | CJ58: 3.85 | CK58: 5 | CR58: 0 | CS58: 391.12 | CT58: 0 | CU58: =ROUND(IF($H58=data.E[[#Headers],[إيقاف]],$BG58-SUM(data.E[[#This Row],[تامينات 2026]:[تنفيذ أحكام]],data.E[[#This Row],[الشهداء]:[خصم 5% تأمين من العمولة]],0),0),2) -> 0 | CV58: =ROUND(IF($H58=data.E[[#Headers],[مرضي]],$BG58-SUM(data.E[[#This Row],[تامينات 2026]:[تنفيذ أحكام]],data.E[[#This Row],[الشهداء]:[خصم 5% تأمين من العمولة]],0),0),2) -> 0 | CW58: =ROUND(IF($H58=data.E[[#Headers],[أجازة]],$BG58-SUM(data.E[[#This Row],[تامينات 2026]:[تنفيذ أحكام]],data.E[[#This Row],[الشهداء]:[خصم 5% تأمين من العمولة]],0),0),2) -> 0 | CX58: =ROUND(IF($H58=data.E[[#Headers],[إعارة]],$BG58-SUM(data.E[[#This Row],[تامينات 2026]:[تنفيذ أحكام]],data.E[[#This Row],[الشهداء]:[خصم 5% تأمين من العمولة]],0),0),2) -> 0 | CY58: =ROUND(IF($H58=data.E[[#Headers],[إنهاء]],$BG58-SUM(data.E[[#This Row],[تامينات 2026]:[تنفيذ أحكام]],data.E[[#This Row],[الشهداء]:[خصم 5% تأمين من العمولة]],0),0),2) -> 0 | CZ58: =ROUND(IF($H58=data.E[[#Headers],[معاش]],$BG58-SUM(data.E[[#This Row],[تامينات 2026]:[تنفيذ أحكام]],data.E[[#This Row],[الشهداء]:[خصم 5% تأمين من العمولة]],0),0),2) -> 0 | DA58: =ROUND(SUM(data.E[[#This Row],[تامينات 2026]:[تنفيذ أحكام]],data.E[[#This Row],[الشهداء]:[معاش]]),2) -> 1276.26 | DB58: 7114.94
A59: =IF(data.E[[#This Row],[الموظف المختص]]=print.e!$E$2,COUNTIF('data.e'!$G$4:G59,G59),"") -> 54 | B59: 101053 | C59: 13053 | D59: بنك مصر 1 | E59: حسنى محمد السيد عبد الفتاح | G59: منال | H59: دوام كامل | I59: ادارى | J59: الثانية | L59: الثانية | M59: اخصائى حركة وتشغيل | N59: الادارة العامة | O59: المنطقه المركزية | P59: 27812101302195 | Q59: 10105313053حسنى محمد السيد عبد الفتاحمنالالثانيةالثانيةاخصائى حركة وتشغيلقطاع التشغيل | R59: نعم | S59: 1368.335 | T59: 1600.95195 | U59: 0 | V59: 2161.29 | W59: 240.14 | X59: 0 | Y59: 0 | Z59: 0 | AB59: 0 | AC59: 300 | AE59: 0 | AG59: 0 | AH59: 0 | AI59: =SUM(AA59:AH59)-data.E[[#This Row],[بدل تمثيل]] -> 300 | AJ59: 47.29447 | AK59: 52.97728 | AL59: 65 | AM59: 0 | AN59: 190 | AO59: 35.91056 | AP59: 48.78021 | AQ59: 62.63379 | AR59: 89.35754 | AS59: 95.61257 | AT59: 102.3055 | AU59: 0 | AV59: 68.41675 | AW59: 600 | AX59: 8 | AY59: 1466.29 | AZ59: 10 | BA59: =ROUND((data.E[[#This Row],[أساسي 7/2025]]*2)/12,2) -> 266.83 | BE59: 6045.5 | BF59: 954.5 | BG59: =IF(data.E[[#This Row],[حالة العمل]]="إيقاف",data.E[[#This Row],[أساسي 7/2025]],ROUND(SUM(data.E[[#This Row],[بدل تمثيل]],BB59:BF59),2)) -> 7000 | BL59: =ROUND(data.E[[#This Row],[تامينات 2026]]/11%,2) -> 5928.82 | BM59: 652.17 | BO59: =(data.E[[#This Row],[إجمالي المستحق]]-SUM(data.E[[#This Row],[الحافز]],data.E[[#This Row],[متوسط المنحة]:[الإضافي]]))/30*data.E[[#This Row],[أيام الغياب]] -> 0 | BP59: =(data.E[[#This Row],[إجمالي المستحق]]-SUM(data.E[[#This Row],[الحافز]],data.E[[#This Row],[متوسط المنحة]:[الإضافي]]))/30*data.E[[#This Row],[أيام جزاء]] -> 0 | BQ59: =IF(data.E[[#This Row],[أيام الغياب]]=1,data.E[[#This Row],[الحافز]]*20%,IF(data.E[[#This Row],[أيام الغياب]]=2,data.E[[#This Row],[الحافز]]*30%,IF(data.E[[#This Row],[أيام الغياب]]>2,data.E[[#This Row],[الحافز]]*100%,0))) -> 0 | BR59: =IF(data.E[[#This Row],[عدد أيام الأجازات]]<=4,data.E[[#This Row],[الحافز]]*0,IF(data.E[[#This Row],[عدد أيام الأجازات]]=5,data.E[[#This Row],[الحافز]]*20%,IF(data.E[[#This Row],[عدد أيام الأجازات]]=6,data.E[[#This Row],[الحافز]]*40%,IF(data.E[[#This Row],[عدد أيام الأجازات]]=7,data.E[[#This Row],[الحافز]]*50%,IF(data.E[[#This Row],[عدد أيام الأجازات]]>7,data.E[[#This Row],[الحافز]]*100%,0))))) -> 0 | BS59: 0 | BT59: 0 | BU59: 0 | BW59: 3 | BX59: 0 | BZ59: 0 | CD59: 0 | CE59: 0 | CG59: 0 | CJ59: 3.22 | CK59: 5 | CR59: 0 | CS59: 266.83 | CT59: 0 | CU59: =ROUND(IF($H59=data.E[[#Headers],[إيقاف]],$BG59-SUM(data.E[[#This Row],[تامينات 2026]:[تنفيذ أحكام]],data.E[[#This Row],[الشهداء]:[خصم 5% تأمين من العمولة]],0),0),2) -> 0 | CV59: =ROUND(IF($H59=data.E[[#Headers],[مرضي]],$BG59-SUM(data.E[[#This Row],[تامينات 2026]:[تنفيذ أحكام]],data.E[[#This Row],[الشهداء]:[خصم 5% تأمين من العمولة]],0),0),2) -> 0 | CW59: =ROUND(IF($H59=data.E[[#Headers],[أجازة]],$BG59-SUM(data.E[[#This Row],[تامينات 2026]:[تنفيذ أحكام]],data.E[[#This Row],[الشهداء]:[خصم 5% تأمين من العمولة]],0),0),2) -> 0 | CX59: =ROUND(IF($H59=data.E[[#Headers],[إعارة]],$BG59-SUM(data.E[[#This Row],[تامينات 2026]:[تنفيذ أحكام]],data.E[[#This Row],[الشهداء]:[خصم 5% تأمين من العمولة]],0),0),2) -> 0 | CY59: =ROUND(IF($H59=data.E[[#Headers],[إنهاء]],$BG59-SUM(data.E[[#This Row],[تامينات 2026]:[تنفيذ أحكام]],data.E[[#This Row],[الشهداء]:[خصم 5% تأمين من العمولة]],0),0),2) -> 0 | CZ59: =ROUND(IF($H59=data.E[[#Headers],[معاش]],$BG59-SUM(data.E[[#This Row],[تامينات 2026]:[تنفيذ أحكام]],data.E[[#This Row],[الشهداء]:[خصم 5% تأمين من العمولة]],0),0),2) -> 0 | DA59: =ROUND(SUM(data.E[[#This Row],[تامينات 2026]:[تنفيذ أحكام]],data.E[[#This Row],[الشهداء]:[معاش]]),2) -> 930.22 | DB59: 6069.78
A60: =IF(data.E[[#This Row],[الموظف المختص]]=print.e!$E$2,COUNTIF('data.e'!$G$4:G60,G60),"") -> 55 | B60: 101054 | C60: 10054 | D60: بنك مصر 1 | E60: اسماء احمد ابراهيم السيد | G60: منال | H60: دوام كامل | I60: ادارى | J60: الثانية | L60: الثانية | M60: كاتب شئون ادارية | N60: الادارة العامة | O60: المنطقه المركزية | P60: 27609050101483 | Q60: 10105410054اسماء احمد ابراهيم السيدمنالالثانيةالثانيةكاتب شئون ادارية قطاع الموارد البشرية | R60: نعم | S60: 952.949 | T60: 1114.95033 | U60: 0 | V60: 1505.18 | W60: 167.24 | X60: 0 | Y60: 0 | Z60: 0 | AB60: 0 | AC60: 300 | AE60: 0 | AG60: 0 | AH60: 0 | AI60: =SUM(AA60:AH60)-data.E[[#This Row],[بدل تمثيل]] -> 300 | AJ60: 34.04168 | AK60: 38.11584 | AL60: 65 | AM60: 0 | AN60: 190 | AO60: 29.04718 | AP60: 35.12109 | AQ60: 45.09547 | AR60: 64.3362 | AS60: 66.7441 | AT60: 87.6 | AU60: 0 | AV60: 54.7051 | AW60: 600 | AX60: 6 | AY60: 1315.81 | AZ60: 10 | BA60: =ROUND((data.E[[#This Row],[أساسي 7/2025]]*2)/12,2) -> 185.83 | BE60: 4599.01 | BF60: 2400.99 | BG60: =IF(data.E[[#This Row],[حالة العمل]]="إيقاف",data.E[[#This Row],[أساسي 7/2025]],ROUND(SUM(data.E[[#This Row],[بدل تمثيل]],BB60:BF60),2)) -> 7000 | BL60: =ROUND(data.E[[#This Row],[تامينات 2026]]/11%,2) -> 5771.73 | BM60: 634.89 | BO60: 2996.52 | BP60: =(data.E[[#This Row],[إجمالي المستحق]]-SUM(data.E[[#This Row],[الحافز]],data.E[[#This Row],[متوسط المنحة]:[الإضافي]]))/30*data.E[[#This Row],[أيام جزاء]] -> 0 | BQ60: =IF(data.E[[#This Row],[أيام الغياب]]=1,data.E[[#This Row],[الحافز]]*20%,IF(data.E[[#This Row],[أيام الغياب]]=2,data.E[[#This Row],[الحافز]]*30%,IF(data.E[[#This Row],[أيام الغياب]]>2,data.E[[#This Row],[الحافز]]*100%,0))) -> 0 | BR60: 1505.18 | BS60: 0 | BT60: 0 | BU60: 0 | BW60: 3 | BX60: 0 | BZ60: 0 | CD60: 0 | CE60: 0 | CG60: 0 | CJ60: 3.26 | CK60: 5 | CR60: 0 | CS60: 185.83 | CT60: 0 | CU60: =ROUND(IF($H60=data.E[[#Headers],[إيقاف]],$BG60-SUM(data.E[[#This Row],[تامينات 2026]:[تنفيذ أحكام]],data.E[[#This Row],[الشهداء]:[خصم 5% تأمين من العمولة]],0),0),2) -> 0 | CV60: =ROUND(IF($H60=data.E[[#Headers],[مرضي]],$BG60-SUM(data.E[[#This Row],[تامينات 2026]:[تنفيذ أحكام]],data.E[[#This Row],[الشهداء]:[خصم 5% تأمين من العمولة]],0),0),2) -> 0 | CW60: =ROUND(IF($H60=data.E[[#Headers],[أجازة]],$BG60-SUM(data.E[[#This Row],[تامينات 2026]:[تنفيذ أحكام]],data.E[[#This Row],[الشهداء]:[خصم 5% تأمين من العمولة]],0),0),2) -> 0 | CX60: =ROUND(IF($H60=data.E[[#Headers],[إعارة]],$BG60-SUM(data.E[[#This Row],[تامينات 2026]:[تنفيذ أحكام]],data.E[[#This Row],[الشهداء]:[خصم 5% تأمين من العمولة]],0),0),2) -> 0 | CY60: =ROUND(IF($H60=data.E[[#Headers],[إنهاء]],$BG60-SUM(data.E[[#This Row],[تامينات 2026]:[تنفيذ أحكام]],data.E[[#This Row],[الشهداء]:[خصم 5% تأمين من العمولة]],0),0),2) -> 0 | CZ60: =ROUND(IF($H60=data.E[[#Headers],[معاش]],$BG60-SUM(data.E[[#This Row],[تامينات 2026]:[تنفيذ أحكام]],data.E[[#This Row],[الشهداء]:[خصم 5% تأمين من العمولة]],0),0),2) -> 0 | DA60: =ROUND(SUM(data.E[[#This Row],[تامينات 2026]:[تنفيذ أحكام]],data.E[[#This Row],[الشهداء]:[معاش]]),2) -> 5333.68 | DB60: 1666.32
A61: =IF(data.E[[#This Row],[الموظف المختص]]=print.e!$E$2,COUNTIF('data.e'!$G$4:G61,G61),"") ->  | B61: 101055 | C61: 10055 | D61: بنك مصر 1 | E61: ايمن مصطفى عبد القادر محمد | G61: ترددى | H61: إعارة | I61: ادارى | J61: الثانية | L61: الثانية | M61: كاتب شئون موارد بشرية | N61: الادارة العامة | O61: المنطقه المركزية | P61: 27905010110631 | Q61: 10105510055ايمن مصطفى عبد القادر محمدمنالالثانيةالثانيةكاتب شئون موارد بشرية قطاع الموارد بشرية | R61: نعم | S61: 1306.77 | T61: 1528.9209 | U61: 0 | V61: 2064.04 | W61: 229.34 | X61: 0 | Y61: 0 | Z61: 0 | AB61: 0 | AC61: 300 | AE61: 0 | AG61: 0 | AH61: 0 | AI61: =SUM(AA61:AH61)-data.E[[#This Row],[بدل تمثيل]] -> 300 | AJ61: 45.58633 | AK61: 50.88056 | AL61: 65 | AM61: 0 | AN61: 190 | AO61: 26.12268 | AP61: 46.58546 | AQ61: 59.81573 | AR61: 85.3371 | AS61: 91.31069 | AT61: 97.70244 | AU61: 0 | AV61: 65.3385 | AW61: 600 | AX61: 10 | AY61: 1433.68 | AZ61: 10 | BA61: =ROUND((data.E[[#This Row],[أساسي 7/2025]]*2)/12,2) -> 254.82 | BE61: 5820.8 | BF61: 1179.2 | BG61: =IF(data.E[[#This Row],[حالة العمل]]="إيقاف",data.E[[#This Row],[أساسي 7/2025]],ROUND(SUM(data.E[[#This Row],[بدل تمثيل]],BB61:BF61),2)) -> 7000 | BL61: =ROUND(data.E[[#This Row],[تامينات 2026]]/11%,2) -> 5881.73 | BM61: 646.99 | BO61: =(data.E[[#This Row],[إجمالي المستحق]]-SUM(data.E[[#This Row],[الحافز]],data.E[[#This Row],[متوسط المنحة]:[الإضافي]]))/30*data.E[[#This Row],[أيام الغياب]] -> 0 | BP61: =(data.E[[#This Row],[إجمالي المستحق]]-SUM(data.E[[#This Row],[الحافز]],data.E[[#This Row],[متوسط المنحة]:[الإضافي]]))/30*data.E[[#This Row],[أيام جزاء]] -> 0 | BQ61: =IF(data.E[[#This Row],[أيام الغياب]]=1,data.E[[#This Row],[الحافز]]*20%,IF(data.E[[#This Row],[أيام الغياب]]=2,data.E[[#This Row],[الحافز]]*30%,IF(data.E[[#This Row],[أيام الغياب]]>2,data.E[[#This Row],[الحافز]]*100%,0))) -> 0 | BR61: =IF(data.E[[#This Row],[عدد أيام الأجازات]]<=4,data.E[[#This Row],[الحافز]]*0,IF(data.E[[#This Row],[عدد أيام الأجازات]]=5,data.E[[#This Row],[الحافز]]*20%,IF(data.E[[#This Row],[عدد أيام الأجازات]]=6,data.E[[#This Row],[الحافز]]*40%,IF(data.E[[#This Row],[عدد أيام الأجازات]]=7,data.E[[#This Row],[الحافز]]*50%,IF(data.E[[#This Row],[عدد أيام الأجازات]]>7,data.E[[#This Row],[الحافز]]*100%,0))))) -> 0 | BS61: 0 | BT61: 0 | BU61: 0 | BW61: 3 | BX61: 0 | BZ61: 0 | CD61: 0 | CE61: 0 | CG61: 0 | CJ61: 0 | CK61: 5 | CR61: 0 | CS61: 254.82 | CT61: 0 | CU61: =ROUND(IF($H61=data.E[[#Headers],[إيقاف]],$BG61-SUM(data.E[[#This Row],[تامينات 2026]:[تنفيذ أحكام]],data.E[[#This Row],[الشهداء]:[خصم 5% تأمين من العمولة]],0),0),2) -> 0 | CV61: =ROUND(IF($H61=data.E[[#Headers],[مرضي]],$BG61-SUM(data.E[[#This Row],[تامينات 2026]:[تنفيذ أحكام]],data.E[[#This Row],[الشهداء]:[خصم 5% تأمين من العمولة]],0),0),2) -> 0 | CW61: =ROUND(IF($H61=data.E[[#Headers],[أجازة]],$BG61-SUM(data.E[[#This Row],[تامينات 2026]:[تنفيذ أحكام]],data.E[[#This Row],[الشهداء]:[خصم 5% تأمين من العمولة]],0),0),2) -> 0 | CX61: =ROUND(IF($H61=data.E[[#Headers],[إعارة]],$BG61-SUM(data.E[[#This Row],[تامينات 2026]:[تنفيذ أحكام]],data.E[[#This Row],[الشهداء]:[خصم 5% تأمين من العمولة]],0),0),2) -> 6090.19 | CY61: =ROUND(IF($H61=data.E[[#Headers],[إنهاء]],$BG61-SUM(data.E[[#This Row],[تامينات 2026]:[تنفيذ أحكام]],data.E[[#This Row],[الشهداء]:[خصم 5% تأمين من العمولة]],0),0),2) -> 0 | CZ61: =ROUND(IF($H61=data.E[[#Headers],[معاش]],$BG61-SUM(data.E[[#This Row],[تامينات 2026]:[تنفيذ أحكام]],data.E[[#This Row],[الشهداء]:[خصم 5% تأمين من العمولة]],0),0),2) -> 0 | DA61: =ROUND(SUM(data.E[[#This Row],[تامينات 2026]:[تنفيذ أحكام]],data.E[[#This Row],[الشهداء]:[معاش]]),2) -> 7000 | DB61: 0
A62: =IF(data.E[[#This Row],[الموظف المختص]]=print.e!$E$2,COUNTIF('data.e'!$G$4:G62,G62),"") -> 56 | B62: 101056 | C62: 21823 | D62: بنك مصر 1 | E62: حسام الدين حسن كامل | G62: منال | H62: دوام كامل | I62: ادارى | J62: الاولى | L62: الأولى | M62: كاتب شئون فنية ومتابعة | N62: الادارة العامة | O62: المنطقه المركزية | P62: 26705030101377 | Q62: 10105621823حسام الدين حسن كاملمنالالاولىالأولىكاتب شئون فنية ومتابعةقطاع شئون الفنية | R62: نعم | S62: 2330.39 | T62: 2726.5563 | U62: 0 | V62: 3680.85 | W62: 408.98 | X62: 0 | Y62: 0 | Z62: 0 | AB62: 0 | AC62: 300 | AE62: 0 | AF62: 0 | AG62: 0 | AH62: 0 | AI62: =SUM(AA62:AH62)-data.E[[#This Row],[بدل تمثيل]] -> 300 | AJ62: 76.44 | AK62: 85.75 | AL62: 102.85 | AM62: 0 | AN62: 190 | AO62: 46.85 | AP62: 83.08 | AQ62: 106.67 | AR62: 152.18 | AS62: 162.84 | AT62: 174.23 | AU62: 0 | AV62: 116.5195 | AW62: 600 | AX62: 10 | AY62: 1907.41 | AZ62: 10 | BA62: =ROUND((data.E[[#This Row],[أساسي 7/2025]]*2)/12,2) -> 454.43 | BE62: 9488.23 | BF62: 0 | BG62: =IF(data.E[[#This Row],[حالة العمل]]="إيقاف",data.E[[#This Row],[أساسي 7/2025]],ROUND(SUM(data.E[[#This Row],[بدل تمثيل]],BB62:BF62),2)) -> 9488.23 | BL62: =ROUND(data.E[[#This Row],[تامينات 2026]]/11%,2) -> 8771.27 | BM62: 964.84 | BO62: =(data.E[[#This Row],[إجمالي المستحق]]-SUM(data.E[[#This Row],[الحافز]],data.E[[#This Row],[متوسط المنحة]:[الإضافي]]))/30*data.E[[#This Row],[أيام الغياب]] -> 0 | BP62: =(data.E[[#This Row],[إجمالي المستحق]]-SUM(data.E[[#This Row],[الحافز]],data.E[[#This Row],[متوسط المنحة]:[الإضافي]]))/30*data.E[[#This Row],[أيام جزاء]] -> 0 | BQ62: =IF(data.E[[#This Row],[أيام الغياب]]=1,data.E[[#This Row],[الحافز]]*20%,IF(data.E[[#This Row],[أيام الغياب]]=2,data.E[[#This Row],[الحافز]]*30%,IF(data.E[[#This Row],[أيام الغياب]]>2,data.E[[#This Row],[الحافز]]*100%,0))) -> 0 | BR62: =IF(data.E[[#This Row],[عدد أيام الأجازات]]<=4,data.E[[#This Row],[الحافز]]*0,IF(data.E[[#This Row],[عدد أيام الأجازات]]=5,data.E[[#This Row],[الحافز]]*20%,IF(data.E[[#This Row],[عدد أيام الأجازات]]=6,data.E[[#This Row],[الحافز]]*40%,IF(data.E[[#This Row],[عدد أيام الأجازات]]=7,data.E[[#This Row],[الحافز]]*50%,IF(data.E[[#This Row],[عدد أيام الأجازات]]>7,data.E[[#This Row],[الحافز]]*100%,0))))) -> 0 | BS62: 0 | BT62: 0 | BU62: 0 | BV62: 0 | BW62: 3 | BX62: 0 | BZ62: 0 | CA62: 0 | CB62: 0 | CD62: 0 | CE62: 0 | CF62: 0 | CG62: 0 | CH62: 0 | CJ62: 4.37 | CK62: 5 | CN62: 0 | CO62: 0 | CR62: 0 | CS62: 454.43 | CT62: 0 | CU62: =ROUND(IF($H62=data.E[[#Headers],[إيقاف]],$BG62-SUM(data.E[[#This Row],[تامينات 2026]:[تنفيذ أحكام]],data.E[[#This Row],[الشهداء]:[خصم 5% تأمين من العمولة]],0),0),2) -> 0 | CV62: =ROUND(IF($H62=data.E[[#Headers],[مرضي]],$BG62-SUM(data.E[[#This Row],[تامينات 2026]:[تنفيذ أحكام]],data.E[[#This Row],[الشهداء]:[خصم 5% تأمين من العمولة]],0),0),2) -> 0 | CW62: =ROUND(IF($H62=data.E[[#Headers],[أجازة]],$BG62-SUM(data.E[[#This Row],[تامينات 2026]:[تنفيذ أحكام]],data.E[[#This Row],[الشهداء]:[خصم 5% تأمين من العمولة]],0),0),2) -> 0 | CX62: =ROUND(IF($H62=data.E[[#Headers],[إعارة]],$BG62-SUM(data.E[[#This Row],[تامينات 2026]:[تنفيذ أحكام]],data.E[[#This Row],[الشهداء]:[خصم 5% تأمين من العمولة]],0),0),2) -> 0 | CY62: =ROUND(IF($H62=data.E[[#Headers],[إنهاء]],$BG62-SUM(data.E[[#This Row],[تامينات 2026]:[تنفيذ أحكام]],data.E[[#This Row],[الشهداء]:[خصم 5% تأمين من العمولة]],0),0),2) -> 0 | CZ62: =ROUND(IF($H62=data.E[[#Headers],[معاش]],$BG62-SUM(data.E[[#This Row],[تامينات 2026]:[تنفيذ أحكام]],data.E[[#This Row],[الشهداء]:[خصم 5% تأمين من العمولة]],0),0),2) -> 0 | DA62: =ROUND(SUM(data.E[[#This Row],[تامينات 2026]:[تنفيذ أحكام]],data.E[[#This Row],[الشهداء]:[معاش]]),2) -> 1431.64 | DB62: 8056.59
A63: =IF(data.E[[#This Row],[الموظف المختص]]=print.e!$E$2,COUNTIF('data.e'!$G$4:G63,G63),"") -> 57 | B63: 101058 | C63: 21839 | D63: بنك مصر 1 | E63: ماهر محب شرقاوى حسين | G63: منال | H63: دوام كامل | I63: ادارى | J63: الاولى | L63: الأولى | M63: كاتب شئون فنية ومتابعة | N63: الادارة العامة | O63: المنطقه المركزية | P63: 26708192102716 | Q63: 10105821839ماهر محب شرقاوى حسينمنالالاولىالأولىكاتب شئون فنية ومتابعةقطاع شئون الفنية | R63: نعم | S63: 2328.07 | T63: 2723.8419 | U63: 0 | V63: 3677.19 | W63: 408.58 | X63: 0 | Y63: 0 | Z63: 0 | AB63: 0 | AC63: 300 | AE63: 0 | AF63: 0 | AG63: 0 | AH63: 0 | AI63: =SUM(AA63:AH63)-data.E[[#This Row],[بدل تمثيل]] -> 300 | AJ63: 76.43 | AK63: 85.55 | AL63: 102.77 | AM63: 0 | AN63: 190 | AO63: 46.54 | AP63: 82.99 | AQ63: 106.56 | AR63: 152.03 | AS63: 162.67 | AT63: 174.06 | AU63: 0 | AV63: 116.4035 | AW63: 600 | AX63: 10 | AY63: 1906 | AZ63: 10 | BA63: =ROUND((data.E[[#This Row],[أساسي 7/2025]]*2)/12,2) -> 453.97 | BE63: 9479.58 | BF63: 0 | BG63: =IF(data.E[[#This Row],[حالة العمل]]="إيقاف",data.E[[#This Row],[أساسي 7/2025]],ROUND(SUM(data.E[[#This Row],[بدل تمثيل]],BB63:BF63),2)) -> 9479.58 | BL63: =ROUND(data.E[[#This Row],[تامينات 2026]]/11%,2) -> 8763.18 | BM63: 963.95 | BO63: =(data.E[[#This Row],[إجمالي المستحق]]-SUM(data.E[[#This Row],[الحافز]],data.E[[#This Row],[متوسط المنحة]:[الإضافي]]))/30*data.E[[#This Row],[أيام الغياب]] -> 0 | BP63: =(data.E[[#This Row],[إجمالي المستحق]]-SUM(data.E[[#This Row],[الحافز]],data.E[[#This Row],[متوسط المنحة]:[الإضافي]]))/30*data.E[[#This Row],[أيام جزاء]] -> 0 | BQ63: =IF(data.E[[#This Row],[أيام الغياب]]=1,data.E[[#This Row],[الحافز]]*20%,IF(data.E[[#This Row],[أيام الغياب]]=2,data.E[[#This Row],[الحافز]]*30%,IF(data.E[[#This Row],[أيام الغياب]]>2,data.E[[#This Row],[الحافز]]*100%,0))) -> 0 | BR63: =IF(data.E[[#This Row],[عدد أيام الأجازات]]<=4,data.E[[#This Row],[الحافز]]*0,IF(data.E[[#This Row],[عدد أيام الأجازات]]=5,data.E[[#This Row],[الحافز]]*20%,IF(data.E[[#This Row],[عدد أيام الأجازات]]=6,data.E[[#This Row],[الحافز]]*40%,IF(data.E[[#This Row],[عدد أيام الأجازات]]=7,data.E[[#This Row],[الحافز]]*50%,IF(data.E[[#This Row],[عدد أيام الأجازات]]>7,data.E[[#This Row],[الحافز]]*100%,0))))) -> 0 | BS63: 0 | BT63: 0 | BU63: 0 | BV63: 0 | BW63: 3 | BX63: 0 | BZ63: 0 | CA63: 0 | CB63: 0 | CD63: 0 | CE63: 0 | CF63: 0 | CG63: 0 | CH63: 0 | CJ63: 4.36 | CK63: 5 | CN63: 0 | CO63: 0 | CR63: 0 | CS63: 453.97 | CT63: 0 | CU63: =ROUND(IF($H63=data.E[[#Headers],[إيقاف]],$BG63-SUM(data.E[[#This Row],[تامينات 2026]:[تنفيذ أحكام]],data.E[[#This Row],[الشهداء]:[خصم 5% تأمين من العمولة]],0),0),2) -> 0 | CV63: =ROUND(IF($H63=data.E[[#Headers],[مرضي]],$BG63-SUM(data.E[[#This Row],[تامينات 2026]:[تنفيذ أحكام]],data.E[[#This Row],[الشهداء]:[خصم 5% تأمين من العمولة]],0),0),2) -> 0 | CW63: =ROUND(IF($H63=data.E[[#Headers],[أجازة]],$BG63-SUM(data.E[[#This Row],[تامينات 2026]:[تنفيذ أحكام]],data.E[[#This Row],[الشهداء]:[خصم 5% تأمين من العمولة]],0),0),2) -> 0 | CX63: =ROUND(IF($H63=data.E[[#Headers],[إعارة]],$BG63-SUM(data.E[[#This Row],[تامينات 2026]:[تنفيذ أحكام]],data.E[[#This Row],[الشهداء]:[خصم 5% تأمين من العمولة]],0),0),2) -> 0 | CY63: =ROUND(IF($H63=data.E[[#Headers],[إنهاء]],$BG63-SUM(data.E[[#This Row],[تامينات 2026]:[تنفيذ أحكام]],data.E[[#This Row],[الشهداء]:[خصم 5% تأمين من العمولة]],0),0),2) -> 0 | CZ63: =ROUND(IF($H63=data.E[[#Headers],[معاش]],$BG63-SUM(data.E[[#This Row],[تامينات 2026]:[تنفيذ أحكام]],data.E[[#This Row],[الشهداء]:[خصم 5% تأمين من العمولة]],0),0),2) -> 0 | DA63: =ROUND(SUM(data.E[[#This Row],[تامينات 2026]:[تنفيذ أحكام]],data.E[[#This Row],[الشهداء]:[معاش]]),2) -> 1430.28 | DB63: 8049.3
A64: =IF(data.E[[#This Row],[الموظف المختص]]=print.e!$E$2,COUNTIF('data.e'!$G$4:G64,G64),"") -> 58 | B64: 101060 | C64: 21895 | D64: بنك مصر 1 | E64: صلاح احمد عبد الجواد احمد | G64: منال | H64: دوام كامل | I64: ادارى | J64: الاولى | L64: الأولى | M64: كاتب شئون فنية ومتابعة | N64: الادارة العامة | O64: المنطقه المركزية | P64: 26601290103993 | Q64: 10106021895صلاح احمد عبد الجواد احمدمنالالاولىالأولىكاتب شئون فنية ومتابعةقطاع شئون الفنية | R64: نعم | S64: 2369.05 | T64: 2771.7885 | U64: 0 | V64: 3741.91 | W64: 415.77 | X64: 0 | Y64: 0 | Z64: 0 | AB64: 0 | AC64: 300 | AE64: 0 | AF64: 0 | AG64: 0 | AH64: 0 | AI64: =SUM(AA64:AH64)-data.E[[#This Row],[بدل تمثيل]] -> 300 | AJ64: 84 | AK64: 93.73 | AL64: 111.86 | AM64: 0 | AN64: 190 | AO64: 47.36 | AP64: 84.46 | AQ64: 108.44 | AR64: 154.71 | AS64: 165.54 | AT64: 177.13 | AU64: 0 | AV64: 118.4525 | AW64: 600 | AX64: 10 | AY64: 1945.68 | AZ64: 10 | BA64: =ROUND((data.E[[#This Row],[أساسي 7/2025]]*2)/12,2) -> 461.96 | BE64: 9647.11 | BF64: 0 | BG64: =IF(data.E[[#This Row],[حالة العمل]]="إيقاف",data.E[[#This Row],[أساسي 7/2025]],ROUND(SUM(data.E[[#This Row],[بدل تمثيل]],BB64:BF64),2)) -> 9647.11 | BL64: =ROUND(data.E[[#This Row],[تامينات 2026]]/11%,2) -> 8923.55 | BM64: 981.59 | BO64: =(data.E[[#This Row],[إجمالي المستحق]]-SUM(data.E[[#This Row],[الحافز]],data.E[[#This Row],[متوسط المنحة]:[الإضافي]]))/30*data.E[[#This Row],[أيام الغياب]] -> 0 | BP64: =(data.E[[#This Row],[إجمالي المستحق]]-SUM(data.E[[#This Row],[الحافز]],data.E[[#This Row],[متوسط المنحة]:[الإضافي]]))/30*data.E[[#This Row],[أيام جزاء]] -> 0 | BQ64: =IF(data.E[[#This Row],[أيام الغياب]]=1,data.E[[#This Row],[الحافز]]*20%,IF(data.E[[#This Row],[أيام الغياب]]=2,data.E[[#This Row],[الحافز]]*30%,IF(data.E[[#This Row],[أيام الغياب]]>2,data.E[[#This Row],[الحافز]]*100%,0))) -> 0 | BR64: 342.88 | BS64: 0 | BT64: 42.54 | BU64: 0 | BV64: 0 | BW64: 3 | BX64: 0 | BZ64: 0 | CA64: 0 | CB64: 0 | CD64: 0 | CE64: 0 | CF64: 0 | CG64: 0 | CH64: 0 | CJ64: 4.44 | CK64: 5 | CN64: 0 | CO64: 0 | CR64: 0 | CS64: 461.96 | CT64: 0 | CU64: =ROUND(IF($H64=data.E[[#Headers],[إيقاف]],$BG64-SUM(data.E[[#This Row],[تامينات 2026]:[تنفيذ أحكام]],data.E[[#This Row],[الشهداء]:[خصم 5% تأمين من العمولة]],0),0),2) -> 0 | CV64: =ROUND(IF($H64=data.E[[#Headers],[مرضي]],$BG64-SUM(data.E[[#This Row],[تامينات 2026]:[تنفيذ أحكام]],data.E[[#This Row],[الشهداء]:[خصم 5% تأمين من العمولة]],0),0),2) -> 0 | CW64: =ROUND(IF($H64=data.E[[#Headers],[أجازة]],$BG64-SUM(data.E[[#This Row],[تامينات 2026]:[تنفيذ أحكام]],data.E[[#This Row],[الشهداء]:[خصم 5% تأمين من العمولة]],0),0),2) -> 0 | CX64: =ROUND(IF($H64=data.E[[#Headers],[إعارة]],$BG64-SUM(data.E[[#This Row],[تامينات 2026]:[تنفيذ أحكام]],data.E[[#This Row],[الشهداء]:[خصم 5% تأمين من العمولة]],0),0),2) -> 0 | CY64: =ROUND(IF($H64=data.E[[#Headers],[إنهاء]],$BG64-SUM(data.E[[#This Row],[تامينات 2026]:[تنفيذ أحكام]],data.E[[#This Row],[الشهداء]:[خصم 5% تأمين من العمولة]],0),0),2) -> 0 | CZ64: =ROUND(IF($H64=data.E[[#Headers],[معاش]],$BG64-SUM(data.E[[#This Row],[تامينات 2026]:[تنفيذ أحكام]],data.E[[#This Row],[الشهداء]:[خصم 5% تأمين من العمولة]],0),0),2) -> 0 | DA64: =ROUND(SUM(data.E[[#This Row],[تامينات 2026]:[تنفيذ أحكام]],data.E[[#This Row],[الشهداء]:[معاش]]),2) -> 1841.41 | DB64: 7805.7
A65: =IF(data.E[[#This Row],[الموظف المختص]]=print.e!$E$2,COUNTIF('data.e'!$G$4:G65,G65),"") -> 59 | B65: 101061 | C65: 21916 | D65: بنك مصر 1 | E65: عادل محي الدين محم عبد الله | G65: منال | H65: دوام كامل | I65: ادارى | J65: الاولى | L65: الأولى | M65: امين مخزن | N65: الادارة العامة | O65: المنطقه المركزية | P65: 26805160102353 | Q65: 10106121916عادل محي الدين محم عبد اللهمنالالاولىالأولىامين مخزنقطاع مالى | R65: نعم | S65: 2289.66 | T65: 2678.9022 | U65: 0 | V65: 3616.52 | W65: 401.84 | X65: 0 | Y65: 0 | Z65: 0 | AB65: 401.84 | AC65: 300 | AE65: 0 | AF65: 0 | AG65: 0 | AH65: 0 | AI65: =SUM(AA65:AH65)-data.E[[#This Row],[بدل تمثيل]] -> 701.84 | AJ65: 81.21 | AK65: 90.62 | AL65: 108.11 | AM65: 0 | AN65: 190 | AO65: 45.77 | AP65: 81.63 | AQ65: 104.81 | AR65: 149.52 | AS65: 159.99 | AT65: 171.19 | AU65: 0 | AV65: 114.483 | AW65: 600 | AX65: 8 | AY65: 1905.33 | AZ65: 10 | BA65: =ROUND((data.E[[#This Row],[أساسي 7/2025]]*2)/12,2) -> 446.48 | BE65: 9760.91 | BF65: 0 | BG65: =IF(data.E[[#This Row],[حالة العمل]]="إيقاف",data.E[[#This Row],[أساسي 7/2025]],ROUND(SUM(data.E[[#This Row],[بدل تمثيل]],BB65:BF65),2)) -> 9760.91 | BL65: =ROUND(data.E[[#This Row],[تامينات 2026]]/11%,2) -> 8848.27 | BM65: 973.31 | BO65: =(data.E[[#This Row],[إجمالي المستحق]]-SUM(data.E[[#This Row],[الحافز]],data.E[[#This Row],[متوسط المنحة]:[الإضافي]]))/30*data.E[[#This Row],[أيام الغياب]] -> 0 | BP65: =(data.E[[#This Row],[إجمالي المستحق]]-SUM(data.E[[#This Row],[الحافز]],data.E[[#This Row],[متوسط المنحة]:[الإضافي]]))/30*data.E[[#This Row],[أيام جزاء]] -> 0 | BQ65: =IF(data.E[[#This Row],[أيام الغياب]]=1,data.E[[#This Row],[الحافز]]*20%,IF(data.E[[#This Row],[أيام الغياب]]=2,data.E[[#This Row],[الحافز]]*30%,IF(data.E[[#This Row],[أيام الغياب]]>2,data.E[[#This Row],[الحافز]]*100%,0))) -> 0 | BR65: =IF(data.E[[#This Row],[عدد أيام الأجازات]]<=4,data.E[[#This Row],[الحافز]]*0,IF(data.E[[#This Row],[عدد أيام الأجازات]]=5,data.E[[#This Row],[الحافز]]*20%,IF(data.E[[#This Row],[عدد أيام الأجازات]]=6,data.E[[#This Row],[الحافز]]*40%,IF(data.E[[#This Row],[عدد أيام الأجازات]]=7,data.E[[#This Row],[الحافز]]*50%,IF(data.E[[#This Row],[عدد أيام الأجازات]]>7,data.E[[#This Row],[الحافز]]*100%,0))))) -> 0 | BS65: 0 | BT65: 0 | BU65: 0 | BV65: 0 | BW65: 3 | BX65: 0 | BZ65: 0 | CA65: 0 | CB65: 0 | CD65: 0 | CE65: 0 | CF65: 0 | CG65: 0 | CH65: 0 | CJ65: 4.51 | CK65: 5 | CN65: 0 | CO65: 0 | CR65: 0 | CS65: 446.48 | CT65: 0 | CU65: =ROUND(IF($H65=data.E[[#Headers],[إيقاف]],$BG65-SUM(data.E[[#This Row],[تامينات 2026]:[تنفيذ أحكام]],data.E[[#This Row],[الشهداء]:[خصم 5% تأمين من العمولة]],0),0),2) -> 0 | CV65: =ROUND(IF($H65=data.E[[#Headers],[مرضي]],$BG65-SUM(data.E[[#This Row],[تامينات 2026]:[تنفيذ أحكام]],data.E[[#This Row],[الشهداء]:[خصم 5% تأمين من العمولة]],0),0),2) -> 0 | CW65: =ROUND(IF($H65=data.E[[#Headers],[أجازة]],$BG65-SUM(data.E[[#This Row],[تامينات 2026]:[تنفيذ أحكام]],data.E[[#This Row],[الشهداء]:[خصم 5% تأمين من العمولة]],0),0),2) -> 0 | CX65: =ROUND(IF($H65=data.E[[#Headers],[إعارة]],$BG65-SUM(data.E[[#This Row],[تامينات 2026]:[تنفيذ أحكام]],data.E[[#This Row],[الشهداء]:[خصم 5% تأمين من العمولة]],0),0),2) -> 0 | CY65: =ROUND(IF($H65=data.E[[#Headers],[إنهاء]],$BG65-SUM(data.E[[#This Row],[تامينات 2026]:[تنفيذ أحكام]],data.E[[#This Row],[الشهداء]:[خصم 5% تأمين من العمولة]],0),0),2) -> 0 | CZ65: =ROUND(IF($H65=data.E[[#Headers],[معاش]],$BG65-SUM(data.E[[#This Row],[تامينات 2026]:[تنفيذ أحكام]],data.E[[#This Row],[الشهداء]:[خصم 5% تأمين من العمولة]],0),0),2) -> 0 | DA65: =ROUND(SUM(data.E[[#This Row],[تامينات 2026]:[تنفيذ أحكام]],data.E[[#This Row],[الشهداء]:[معاش]]),2) -> 1432.3 | DB65: 8328.61
A66: =IF(data.E[[#This Row],[الموظف المختص]]=print.e!$E$2,COUNTIF('data.e'!$G$4:G66,G66),"") -> 60 | B66: 101062 | C66: 21918 | D66: بنك مصر 1 | E66: عماد طلعت عبد الوهاب يوسف | G66: منال | H66: دوام كامل | I66: ادارى | J66: الاولى | L66: الأولى | M66: كاتب شئون فنية ومتابعة | N66: الادارة العامة | O66: المنطقه المركزية | P66: 26809050103252 | Q66: 10106221918عماد طلعت عبد الوهاب يوسفمنالالاولىالأولىكاتب شئون فنية ومتابعةقطاع شئون الفنية | R66: نعم | S66: 2147.45 | T66: 2512.5165 | U66: 0 | V66: 3391.9 | W66: 376.88 | X66: 0 | Y66: 0 | Z66: 0 | AB66: 0 | AC66: 300 | AE66: 0 | AF66: 0 | AG66: 0 | AH66: 0 | AI66: =SUM(AA66:AH66)-data.E[[#This Row],[بدل تمثيل]] -> 300 | AJ66: 70.51 | AK66: 78.72 | AL66: 101.33 | AM66: 0 | AN66: 190 | AO66: 42.93 | AP66: 76.56 | AQ66: 98.3 | AR66: 140.24 | AS66: 150.05 | AT66: 160.56 | AU66: 0 | AV66: 107.3725 | AW66: 600 | AX66: 10 | AY66: 1826.57 | AZ66: 10 | BA66: =ROUND((data.E[[#This Row],[أساسي 7/2025]]*2)/12,2) -> 418.75 | BE66: 8836.62 | BF66: 0 | BG66: =IF(data.E[[#This Row],[حالة العمل]]="إيقاف",data.E[[#This Row],[أساسي 7/2025]],ROUND(SUM(data.E[[#This Row],[بدل تمثيل]],BB66:BF66),2)) -> 8836.62 | BL66: =ROUND(data.E[[#This Row],[تامينات 2026]]/11%,2) -> 8151.73 | BM66: 896.69 | BO66: =(data.E[[#This Row],[إجمالي المستحق]]-SUM(data.E[[#This Row],[الحافز]],data.E[[#This Row],[متوسط المنحة]:[الإضافي]]))/30*data.E[[#This Row],[أيام الغياب]] -> 0 | BP66: =(data.E[[#This Row],[إجمالي المستحق]]-SUM(data.E[[#This Row],[الحافز]],data.E[[#This Row],[متوسط المنحة]:[الإضافي]]))/30*data.E[[#This Row],[أيام جزاء]] -> 0 | BQ66: =IF(data.E[[#This Row],[أيام الغياب]]=1,data.E[[#This Row],[الحافز]]*20%,IF(data.E[[#This Row],[أيام الغياب]]=2,data.E[[#This Row],[الحافز]]*30%,IF(data.E[[#This Row],[أيام الغياب]]>2,data.E[[#This Row],[الحافز]]*100%,0))) -> 0 | BR66: =IF(data.E[[#This Row],[عدد أيام الأجازات]]<=4,data.E[[#This Row],[الحافز]]*0,IF(data.E[[#This Row],[عدد أيام الأجازات]]=5,data.E[[#This Row],[الحافز]]*20%,IF(data.E[[#This Row],[عدد أيام الأجازات]]=6,data.E[[#This Row],[الحافز]]*40%,IF(data.E[[#This Row],[عدد أيام الأجازات]]=7,data.E[[#This Row],[الحافز]]*50%,IF(data.E[[#This Row],[عدد أيام الأجازات]]>7,data.E[[#This Row],[الحافز]]*100%,0))))) -> 0 | BS66: 0 | BT66: 0 | BU66: 0 | BV66: 0 | BW66: 3 | BX66: 0 | BZ66: 0 | CA66: 0 | CB66: 0 | CD66: 0 | CE66: 0 | CF66: 0 | CG66: 0 | CH66: 0 | CJ66: 4.06 | CK66: 5 | CN66: 0 | CO66: 0 | CR66: 0 | CS66: 418.75 | CT66: 0 | CU66: =ROUND(IF($H66=data.E[[#Headers],[إيقاف]],$BG66-SUM(data.E[[#This Row],[تامينات 2026]:[تنفيذ أحكام]],data.E[[#This Row],[الشهداء]:[خصم 5% تأمين من العمولة]],0),0),2) -> 0 | CV66: =ROUND(IF($H66=data.E[[#Headers],[مرضي]],$BG66-SUM(data.E[[#This Row],[تامينات 2026]:[تنفيذ أحكام]],data.E[[#This Row],[الشهداء]:[خصم 5% تأمين من العمولة]],0),0),2) -> 0 | CW66: =ROUND(IF($H66=data.E[[#Headers],[أجازة]],$BG66-SUM(data.E[[#This Row],[تامينات 2026]:[تنفيذ أحكام]],data.E[[#This Row],[الشهداء]:[خصم 5% تأمين من العمولة]],0),0),2) -> 0 | CX66: =ROUND(IF($H66=data.E[[#Headers],[إعارة]],$BG66-SUM(data.E[[#This Row],[تامينات 2026]:[تنفيذ أحكام]],data.E[[#This Row],[الشهداء]:[خصم 5% تأمين من العمولة]],0),0),2) -> 0 | CY66: =ROUND(IF($H66=data.E[[#Headers],[إنهاء]],$BG66-SUM(data.E[[#This Row],[تامينات 2026]:[تنفيذ أحكام]],data.E[[#This Row],[الشهداء]:[خصم 5% تأمين من العمولة]],0),0),2) -> 0 | CZ66: =ROUND(IF($H66=data.E[[#Headers],[معاش]],$BG66-SUM(data.E[[#This Row],[تامينات 2026]:[تنفيذ أحكام]],data.E[[#This Row],[الشهداء]:[خصم 5% تأمين من العمولة]],0),0),2) -> 0 | DA66: =ROUND(SUM(data.E[[#This Row],[تامينات 2026]:[تنفيذ أحكام]],data.E[[#This Row],[الشهداء]:[معاش]]),2) -> 1327.5 | DB66: 7509.12
A67: =IF(data.E[[#This Row],[الموظف المختص]]=print.e!$E$2,COUNTIF('data.e'!$G$4:G67,G67),"") -> 61 | B67: 101063 | C67: 21938 | D67: بنك مصر 1 | E67: حامد يحيي حامد ابو عيشه | G67: منال | H67: دوام كامل | I67: ادارى | J67: الاولى | L67: الأولى | M67: كاتب حركة وتشغيل | N67: الادارة العامة | O67: المنطقه المركزية | P67: 26810102201094 | Q67: 10106321938حامد يحيي حامد ابو عيشهمنالالاولىالأولىكاتب حركة وتشغيل جسر السويس | R67: نعم | S67: 2233.09 | T67: 2612.7153 | U67: 0 | V67: 3527.17 | W67: 391.91 | X67: 0 | Y67: 0 | Z67: 0 | AB67: 0 | AC67: 300 | AE67: 0 | AF67: 0 | AG67: 0 | AH67: 0 | AI67: =SUM(AA67:AH67)-data.E[[#This Row],[بدل تمثيل]] -> 300 | AJ67: 73.27 | AK67: 82.02 | AL67: 98.55 | AM67: 0 | AN67: 190 | AO67: 44.64 | AP67: 79.6 | AQ67: 102.22 | AR67: 145.83 | AS67: 156.04 | AT67: 166.96 | AU67: 0 | AV67: 111.6545 | AW67: 600 | AX67: 10 | AY67: 1860.78 | AZ67: 10 | BA67: =ROUND((data.E[[#This Row],[أساسي 7/2025]]*2)/12,2) -> 435.45 | BE67: 9138.03 | BF67: 0 | BG67: =IF(data.E[[#This Row],[حالة العمل]]="إيقاف",data.E[[#This Row],[أساسي 7/2025]],ROUND(SUM(data.E[[#This Row],[بدل تمثيل]],BB67:BF67),2)) -> 9138.03 | BL67: =ROUND(data.E[[#This Row],[تامينات 2026]]/11%,2) -> 8438.18 | BM67: 928.2 | BO67: =(data.E[[#This Row],[إجمالي المستحق]]-SUM(data.E[[#This Row],[الحافز]],data.E[[#This Row],[متوسط المنحة]:[الإضافي]]))/30*data.E[[#This Row],[أيام الغياب]] -> 0 | BP67: =(data.E[[#This Row],[إجمالي المستحق]]-SUM(data.E[[#This Row],[الحافز]],data.E[[#This Row],[متوسط المنحة]:[الإضافي]]))/30*data.E[[#This Row],[أيام جزاء]] -> 0 | BQ67: =IF(data.E[[#This Row],[أيام الغياب]]=1,data.E[[#This Row],[الحافز]]*20%,IF(data.E[[#This Row],[أيام الغياب]]=2,data.E[[#This Row],[الحافز]]*30%,IF(data.E[[#This Row],[أيام الغياب]]>2,data.E[[#This Row],[الحافز]]*100%,0))) -> 0 | BR67: =IF(data.E[[#This Row],[عدد أيام الأجازات]]<=4,data.E[[#This Row],[الحافز]]*0,IF(data.E[[#This Row],[عدد أيام الأجازات]]=5,data.E[[#This Row],[الحافز]]*20%,IF(data.E[[#This Row],[عدد أيام الأجازات]]=6,data.E[[#This Row],[الحافز]]*40%,IF(data.E[[#This Row],[عدد أيام الأجازات]]=7,data.E[[#This Row],[الحافز]]*50%,IF(data.E[[#This Row],[عدد أيام الأجازات]]>7,data.E[[#This Row],[الحافز]]*100%,0))))) -> 0 | BS67: 0 | BT67: 0 | BU67: 0 | BV67: 0 | BW67: 3 | BX67: 0 | BZ67: 0 | CA67: 0 | CB67: 0 | CD67: 0 | CE67: 0 | CF67: 0 | CG67: 0 | CH67: 0 | CJ67: 4.2 | CK67: 5 | CN67: 0 | CO67: 0 | CR67: 0 | CS67: 435.45 | CT67: 0 | CU67: =ROUND(IF($H67=data.E[[#Headers],[إيقاف]],$BG67-SUM(data.E[[#This Row],[تامينات 2026]:[تنفيذ أحكام]],data.E[[#This Row],[الشهداء]:[خصم 5% تأمين من العمولة]],0),0),2) -> 0 | CV67: =ROUND(IF($H67=data.E[[#Headers],[مرضي]],$BG67-SUM(data.E[[#This Row],[تامينات 2026]:[تنفيذ أحكام]],data.E[[#This Row],[الشهداء]:[خصم 5% تأمين من العمولة]],0),0),2) -> 0 | CW67: =ROUND(IF($H67=data.E[[#Headers],[أجازة]],$BG67-SUM(data.E[[#This Row],[تامينات 2026]:[تنفيذ أحكام]],data.E[[#This Row],[الشهداء]:[خصم 5% تأمين من العمولة]],0),0),2) -> 0 | CX67: =ROUND(IF($H67=data.E[[#Headers],[إعارة]],$BG67-SUM(data.E[[#This Row],[تامينات 2026]:[تنفيذ أحكام]],data.E[[#This Row],[الشهداء]:[خصم 5% تأمين من العمولة]],0),0),2) -> 0 | CY67: =ROUND(IF($H67=data.E[[#Headers],[إنهاء]],$BG67-SUM(data.E[[#This Row],[تامينات 2026]:[تنفيذ أحكام]],data.E[[#This Row],[الشهداء]:[خصم 5% تأمين من العمولة]],0),0),2) -> 0 | CZ67: =ROUND(IF($H67=data.E[[#Headers],[معاش]],$BG67-SUM(data.E[[#This Row],[تامينات 2026]:[تنفيذ أحكام]],data.E[[#This Row],[الشهداء]:[خصم 5% تأمين من العمولة]],0),0),2) -> 0 | DA67: =ROUND(SUM(data.E[[#This Row],[تامينات 2026]:[تنفيذ أحكام]],data.E[[#This Row],[الشهداء]:[معاش]]),2) -> 1375.85 | DB67: 7762.18
A68: =IF(data.E[[#This Row],[الموظف المختص]]=print.e!$E$2,COUNTIF('data.e'!$G$4:G68,G68),"") -> 62 | B68: 101064 | C68: 10064 | D68: بنك مصر 1 | E68: عمرو صلاح عبد الرحمن احمد | G68: منال | H68: مرضي | I68: ادارى | J68: الثالثة | N68: الادارة العامة | O68: المنطقه المركزية | P68: 27108090102491 | Q68: 10106410064عمرو صلاح عبد الرحمن احمدمنالالثالثة | S68: 1001.916 | T68: 1102.1076 | U68: 0 | V68: =ROUND(T68*135%,2) -> 1487.85 | W68: =ROUND(T68*15%,2) -> 165.32 | X68: 0 | Y68: 0 | Z68: 0 | AB68: 0 | AC68: 300 | AE68: 0 | AG68: 0 | AH68: 0 | AI68: =SUM(AA68:AH68)-data.E[[#This Row],[بدل تمثيل]] -> 300 | AJ68: 37.63445 | AK68: 41.96053 | AL68: 65 | AM68: 0 | AN68: 190 | AO68: 24.9952 | AP68: 38.21795 | AQ68: 49.07185 | AR68: 70.00917 | AS68: 0 | AT68: 84.4 | AU68: 0 | AV68: 50.0958 | AW68: 600 | AX68: 10 | AY68: =ROUND(SUM(AJ68:AX68),2) -> 1261.38 | AZ68: 10 | BA68: =ROUND((data.E[[#This Row],[أساسي 7/2025]]*2)/12,2) -> 183.68 | BE68: =ROUND(SUM(T68:Z68,AI68,AY68,AZ68:BA68),2) -> 4510.34 | BF68: =IF(BE68<7000,7000-BE68,0) -> 2489.66 | BG68: =IF(data.E[[#This Row],[حالة العمل]]="إيقاف",data.E[[#This Row],[أساسي 7/2025]],ROUND(SUM(data.E[[#This Row],[بدل تمثيل]],BB68:BF68),2)) -> 7000 | BL68: =ROUND(data.E[[#This Row],[تامينات 2026]]/11%,2) -> 6009.18 | BM68: 661.01 | BO68: 1005.69 | BP68: =(data.E[[#This Row],[إجمالي المستحق]]-SUM(data.E[[#This Row],[الحافز]],data.E[[#This Row],[متوسط المنحة]:[الإضافي]]))/30*data.E[[#This Row],[أيام جزاء]] -> 0 | BQ68: =IF(data.E[[#This Row],[أيام الغياب]]=1,data.E[[#This Row],[الحافز]]*20%,IF(data.E[[#This Row],[أيام الغياب]]=2,data.E[[#This Row],[الحافز]]*30%,IF(data.E[[#This Row],[أيام الغياب]]>2,data.E[[#This Row],[الحافز]]*100%,0))) -> 0 | BR68: =IF(data.E[[#This Row],[عدد أيام الأجازات]]<=4,data.E[[#This Row],[الحافز]]*0,IF(data.E[[#This Row],[عدد أيام الأجازات]]=5,data.E[[#This Row],[الحافز]]*20%,IF(data.E[[#This Row],[عدد أيام الأجازات]]=6,data.E[[#This Row],[الحافز]]*40%,IF(data.E[[#This Row],[عدد أيام الأجازات]]=7,data.E[[#This Row],[الحافز]]*50%,IF(data.E[[#This Row],[عدد أيام الأجازات]]>7,data.E[[#This Row],[الحافز]]*100%,0))))) -> 0 | BS68: 1487.85 | BT68: 0 | BU68: 0 | BW68: 3 | BX68: 200 | BZ68: 0 | CD68: 0 | CE68: 0 | CG68: 0 | CJ68: 0 | CK68: 5 | CR68: 0 | CS68: =BA68 -> 183.68 | CT68: 0 | CU68: =ROUND(IF($H68=data.E[[#Headers],[إيقاف]],$BG68-SUM(data.E[[#This Row],[تامينات 2026]:[تنفيذ أحكام]],data.E[[#This Row],[الشهداء]:[خصم 5% تأمين من العمولة]],0),0),2) -> 0 | CV68: =ROUND(IF($H68=data.E[[#Headers],[مرضي]],$BG68-SUM(data.E[[#This Row],[تامينات 2026]:[تنفيذ أحكام]],data.E[[#This Row],[الشهداء]:[خصم 5% تأمين من العمولة]],0),0),2) -> 3453.77 | CW68: =ROUND(IF($H68=data.E[[#Headers],[أجازة]],$BG68-SUM(data.E[[#This Row],[تامينات 2026]:[تنفيذ أحكام]],data.E[[#This Row],[الشهداء]:[خصم 5% تأمين من العمولة]],0),0),2) -> 0 | CX68: =ROUND(IF($H68=data.E[[#Headers],[إعارة]],$BG68-SUM(data.E[[#This Row],[تامينات 2026]:[تنفيذ أحكام]],data.E[[#This Row],[الشهداء]:[خصم 5% تأمين من العمولة]],0),0),2) -> 0 | CY68: =ROUND(IF($H68=data.E[[#Headers],[إنهاء]],$BG68-SUM(data.E[[#This Row],[تامينات 2026]:[تنفيذ أحكام]],data.E[[#This Row],[الشهداء]:[خصم 5% تأمين من العمولة]],0),0),2) -> 0 | CZ68: =ROUND(IF($H68=data.E[[#Headers],[معاش]],$BG68-SUM(data.E[[#This Row],[تامينات 2026]:[تنفيذ أحكام]],data.E[[#This Row],[الشهداء]:[خصم 5% تأمين من العمولة]],0),0),2) -> 0 | DA68: =ROUND(SUM(data.E[[#This Row],[تامينات 2026]:[تنفيذ أحكام]],data.E[[#This Row],[الشهداء]:[معاش]]),2) -> 7000 | DB68: =ROUND(BG68-DA68,2) -> 0
A69: =IF(data.E[[#This Row],[الموظف المختص]]=print.e!$E$2,COUNTIF('data.e'!$G$4:G69,G69),"") -> 63 | B69: 101066 | C69: 21954 | D69: بنك مصر 1 | E69: ماهر عبد السميع محمد القصاص | G69: منال | H69: دوام كامل | I69: ادارى | J69: الاولى | L69: الأولى | M69: كاتب حركة وتشغيل | N69: الادارة العامة | O69: المنطقه المركزية | P69: 26809221500255 | Q69: 10106621954ماهر عبد السميع محمد القصاصمنالالاولىالأولىكاتب حركة وتشغيل مواني | R69: نعم | S69: 2427.38 | T69: 2840.0346 | U69: 0 | V69: 3834.05 | W69: 426.01 | X69: 426.005188 | Y69: 0 | Z69: 0 | AA69: 852.01038 | AB69: 0 | AC69: 300 | AE69: 0 | AF69: 0 | AG69: 0 | AH69: 0 | AI69: =SUM(AA69:AH69)-data.E[[#This Row],[بدل تمثيل]] -> 1152.01038 | AJ69: 79.6 | AK69: 89.12 | AL69: 107.14 | AM69: 0 | AN69: 190 | AO69: 48.52 | AP69: 86.53 | AQ69: 111.11 | AR69: 158.52 | AS69: 169.61 | AT69: 181.49 | AU69: 0 | AV69: 121.369 | AW69: 600 | AX69: 10 | AY69: 1953.01 | AZ69: 10 | BA69: =ROUND((data.E[[#This Row],[أساسي 7/2025]]*2)/12,2) -> 473.34 | BE69: 11114.46 | BF69: 0 | BG69: =IF(data.E[[#This Row],[حالة العمل]]="إيقاف",data.E[[#This Row],[أساسي 7/2025]],ROUND(SUM(data.E[[#This Row],[بدل تمثيل]],BB69:BF69),2)) -> 11114.46 | BL69: =ROUND(data.E[[#This Row],[تامينات 2026]]/11%,2) -> 9735.27 | BM69: 1070.88 | BO69: =(data.E[[#This Row],[إجمالي المستحق]]-SUM(data.E[[#This Row],[الحافز]],data.E[[#This Row],[متوسط المنحة]:[الإضافي]]))/30*data.E[[#This Row],[أيام الغياب]] -> 0 | BP69: =(data.E[[#This Row],[إجمالي المستحق]]-SUM(data.E[[#This Row],[الحافز]],data.E[[#This Row],[متوسط المنحة]:[الإضافي]]))/30*data.E[[#This Row],[أيام جزاء]] -> 0 | BQ69: =IF(data.E[[#This Row],[أيام الغياب]]=1,data.E[[#This Row],[الحافز]]*20%,IF(data.E[[#This Row],[أيام الغياب]]=2,data.E[[#This Row],[الحافز]]*30%,IF(data.E[[#This Row],[أيام الغياب]]>2,data.E[[#This Row],[الحافز]]*100%,0))) -> 0 | BR69: =IF(data.E[[#This Row],[عدد أيام الأجازات]]<=4,data.E[[#This Row],[الحافز]]*0,IF(data.E[[#This Row],[عدد أيام الأجازات]]=5,data.E[[#This Row],[الحافز]]*20%,IF(data.E[[#This Row],[عدد أيام الأجازات]]=6,data.E[[#This Row],[الحافز]]*40%,IF(data.E[[#This Row],[عدد أيام الأجازات]]=7,data.E[[#This Row],[الحافز]]*50%,IF(data.E[[#This Row],[عدد أيام الأجازات]]>7,data.E[[#This Row],[الحافز]]*100%,0))))) -> 0 | BS69: 0 | BT69: 0 | BU69: 0 | BV69: 0 | BW69: 3 | BX69: 0 | BZ69: 0 | CA69: 0 | CB69: 0 | CD69: 0 | CE69: 0 | CF69: 0 | CG69: 0 | CH69: 0 | CJ69: 4.74 | CK69: 5 | CN69: 0 | CO69: 0 | CR69: 0 | CS69: 473.34 | CT69: 0 | CU69: =ROUND(IF($H69=data.E[[#Headers],[إيقاف]],$BG69-SUM(data.E[[#This Row],[تامينات 2026]:[تنفيذ أحكام]],data.E[[#This Row],[الشهداء]:[خصم 5% تأمين من العمولة]],0),0),2) -> 0 | CV69: =ROUND(IF($H69=data.E[[#Headers],[مرضي]],$BG69-SUM(data.E[[#This Row],[تامينات 2026]:[تنفيذ أحكام]],data.E[[#This Row],[الشهداء]:[خصم 5% تأمين من العمولة]],0),0),2) -> 0 | CW69: =ROUND(IF($H69=data.E[[#Headers],[أجازة]],$BG69-SUM(data.E[[#This Row],[تامينات 2026]:[تنفيذ أحكام]],data.E[[#This Row],[الشهداء]:[خصم 5% تأمين من العمولة]],0),0),2) -> 0 | CX69: =ROUND(IF($H69=data.E[[#Headers],[إعارة]],$BG69-SUM(data.E[[#This Row],[تامينات 2026]:[تنفيذ أحكام]],data.E[[#This Row],[الشهداء]:[خصم 5% تأمين من العمولة]],0),0),2) -> 0 | CY69: =ROUND(IF($H69=data.E[[#Headers],[إنهاء]],$BG69-SUM(data.E[[#This Row],[تامينات 2026]:[تنفيذ أحكام]],data.E[[#This Row],[الشهداء]:[خصم 5% تأمين من العمولة]],0),0),2) -> 0 | CZ69: =ROUND(IF($H69=data.E[[#Headers],[معاش]],$BG69-SUM(data.E[[#This Row],[تامينات 2026]:[تنفيذ أحكام]],data.E[[#This Row],[الشهداء]:[خصم 5% تأمين من العمولة]],0),0),2) -> 0 | DA69: =ROUND(SUM(data.E[[#This Row],[تامينات 2026]:[تنفيذ أحكام]],data.E[[#This Row],[الشهداء]:[معاش]]),2) -> 1556.96 | DB69: 9557.5
A70: =IF(data.E[[#This Row],[الموظف المختص]]=print.e!$E$2,COUNTIF('data.e'!$G$4:G70,G70),"") -> 64 | B70: 101067 | C70: 22000 | D70: بنك مصر 1 | E70: ياسر محمد ابراهيم فراج | G70: منال | H70: دوام كامل | I70: ادارى | J70: الاولى | L70: الأولى | M70: كاتب حركة وتشغيل | N70: الادارة العامة | O70: المنطقه المركزية | P70: 26904170103135 | Q70: 10106722000ياسر محمد ابراهيم فراجمنالالاولىالأولىكاتب حركة وتشغيل جسر السويس | R70: نعم | S70: 2233.33 | T70: 2612.9961 | U70: 0 | V70: 3527.54 | W70: 391.95 | X70: 0 | Y70: 0 | Z70: 0 | AB70: 0 | AC70: 300 | AE70: 100 | AF70: 0 | AG70: 0 | AH70: 0 | AI70: =SUM(AA70:AH70)-data.E[[#This Row],[بدل تمثيل]] -> 300 | AJ70: 73.27 | AK70: 82.02 | AL70: 98.55 | AM70: 0 | AN70: 190 | AO70: 44.65 | AP70: 79.62 | AQ70: 102.23 | AR70: 145.84 | AS70: 156.05 | AT70: 166.98 | AU70: 0 | AV70: 111.6665 | AW70: 600 | AX70: 4 | AY70: 1854.88 | AZ70: 10 | BA70: =ROUND((data.E[[#This Row],[أساسي 7/2025]]*2)/12,2) -> 435.5 | BE70: 9132.87 | BF70: 0 | BG70: =IF(data.E[[#This Row],[حالة العمل]]="إيقاف",data.E[[#This Row],[أساسي 7/2025]],ROUND(SUM(data.E[[#This Row],[بدل تمثيل]],BB70:BF70),2)) -> 9232.87 | BL70: =ROUND(data.E[[#This Row],[تامينات 2026]]/11%,2) -> 8446.73 | BM70: 929.14 | BO70: =(data.E[[#This Row],[إجمالي المستحق]]-SUM(data.E[[#This Row],[الحافز]],data.E[[#This Row],[متوسط المنحة]:[الإضافي]]))/30*data.E[[#This Row],[أيام الغياب]] -> 0 | BP70: =(data.E[[#This Row],[إجمالي المستحق]]-SUM(data.E[[#This Row],[الحافز]],data.E[[#This Row],[متوسط المنحة]:[الإضافي]]))/30*data.E[[#This Row],[أيام جزاء]] -> 0 | BQ70: =IF(data.E[[#This Row],[أيام الغياب]]=1,data.E[[#This Row],[الحافز]]*20%,IF(data.E[[#This Row],[أيام الغياب]]=2,data.E[[#This Row],[الحافز]]*30%,IF(data.E[[#This Row],[أيام الغياب]]>2,data.E[[#This Row],[الحافز]]*100%,0))) -> 0 | BR70: =IF(data.E[[#This Row],[عدد أيام الأجازات]]<=4,data.E[[#This Row],[الحافز]]*0,IF(data.E[[#This Row],[عدد أيام الأجازات]]=5,data.E[[#This Row],[الحافز]]*20%,IF(data.E[[#This Row],[عدد أيام الأجازات]]=6,data.E[[#This Row],[الحافز]]*40%,IF(data.E[[#This Row],[عدد أيام الأجازات]]=7,data.E[[#This Row],[الحافز]]*50%,IF(data.E[[#This Row],[عدد أيام الأجازات]]>7,data.E[[#This Row],[الحافز]]*100%,0))))) -> 0 | BS70: 0 | BT70: 0 | BU70: 0 | BV70: 0 | BW70: 3 | BX70: 0 | BZ70: 0 | CA70: 0 | CB70: 0 | CD70: 0 | CE70: 0 | CF70: 0 | CG70: 0 | CH70: 0 | CJ70: 4.25 | CK70: 5 | CN70: 0 | CO70: 0 | CR70: 0 | CS70: 435.5 | CT70: 0 | CU70: =ROUND(IF($H70=data.E[[#Headers],[إيقاف]],$BG70-SUM(data.E[[#This Row],[تامينات 2026]:[تنفيذ أحكام]],data.E[[#This Row],[الشهداء]:[خصم 5% تأمين من العمولة]],0),0),2) -> 0 | CV70: =ROUND(IF($H70=data.E[[#Headers],[مرضي]],$BG70-SUM(data.E[[#This Row],[تامينات 2026]:[تنفيذ أحكام]],data.E[[#This Row],[الشهداء]:[خصم 5% تأمين من العمولة]],0),0),2) -> 0 | CW70: =ROUND(IF($H70=data.E[[#Headers],[أجازة]],$BG70-SUM(data.E[[#This Row],[تامينات 2026]:[تنفيذ أحكام]],data.E[[#This Row],[الشهداء]:[خصم 5% تأمين من العمولة]],0),0),2) -> 0 | CX70: =ROUND(IF($H70=data.E[[#Headers],[إعارة]],$BG70-SUM(data.E[[#This Row],[تامينات 2026]:[تنفيذ أحكام]],data.E[[#This Row],[الشهداء]:[خصم 5% تأمين من العمولة]],0),0),2) -> 0 | CY70: =ROUND(IF($H70=data.E[[#Headers],[إنهاء]],$BG70-SUM(data.E[[#This Row],[تامينات 2026]:[تنفيذ أحكام]],data.E[[#This Row],[الشهداء]:[خصم 5% تأمين من العمولة]],0),0),2) -> 0 | CZ70: =ROUND(IF($H70=data.E[[#Headers],[معاش]],$BG70-SUM(data.E[[#This Row],[تامينات 2026]:[تنفيذ أحكام]],data.E[[#This Row],[الشهداء]:[خصم 5% تأمين من العمولة]],0),0),2) -> 0 | DA70: =ROUND(SUM(data.E[[#This Row],[تامينات 2026]:[تنفيذ أحكام]],data.E[[#This Row],[الشهداء]:[معاش]]),2) -> 1376.89 | DB70: 7855.98
A71: =IF(data.E[[#This Row],[الموظف المختص]]=print.e!$E$2,COUNTIF('data.e'!$G$4:G71,G71),"") -> 65 | B71: 101068 | C71: 10068 | D71: بنك مصر 1 | E71: حسين على حسين كامل | G71: منال | H71: دوام كامل | I71: ادارى | J71: الاولى | L71: الأولى | M71: كاتب شئون مالية | N71: الادارة العامة | O71: المنطقه المركزية | P71: 27005020100277 | Q71: 10106810068حسين على حسين كاملمنالالاولىالأولىكاتب شئون ماليةقطاع مالى | R71: نعم | S71: 1582.374 | T71: 1851.37758 | U71: 0 | V71: 2499.36 | W71: 277.71 | X71: 0 | Y71: 0 | Z71: 0 | AB71: 0 | AC71: 300 | AE71: 0 | AG71: 0 | AH71: 0 | AI71: =SUM(AA71:AH71)-data.E[[#This Row],[بدل تمثيل]] -> 300 | AJ71: 55.07036 | AK71: 61.40447 | AL71: 73.69666 | AM71: 0 | AN71: 190 | AO71: 31.63207 | AP71: 56.41053 | AQ71: 72.43112 | AR71: 103.3351 | AS71: 110.5685 | AT71: 118.3083 | AU71: 0 | AV71: 79.1187 | AW71: 600 | AX71: 8 | AY71: 1559.98 | AZ71: 10 | BA71: =ROUND((data.E[[#This Row],[أساسي 7/2025]]*2)/12,2) -> 308.56 | BE71: 6806.99 | BF71: 193.01 | BG71: =IF(data.E[[#This Row],[حالة العمل]]="إيقاف",data.E[[#This Row],[أساسي 7/2025]],ROUND(SUM(data.E[[#This Row],[بدل تمثيل]],BB71:BF71),2)) -> 7000 | BL71: =ROUND(data.E[[#This Row],[تامينات 2026]]/11%,2) -> 6290.91 | BM71: 692 | BO71: =(data.E[[#This Row],[إجمالي المستحق]]-SUM(data.E[[#This Row],[الحافز]],data.E[[#This Row],[متوسط المنحة]:[الإضافي]]))/30*data.E[[#This Row],[أيام الغياب]] -> 0 | BP71: =(data.E[[#This Row],[إجمالي المستحق]]-SUM(data.E[[#This Row],[الحافز]],data.E[[#This Row],[متوسط المنحة]:[الإضافي]]))/30*data.E[[#This Row],[أيام جزاء]] -> 0 | BQ71: =IF(data.E[[#This Row],[أيام الغياب]]=1,data.E[[#This Row],[الحافز]]*20%,IF(data.E[[#This Row],[أيام الغياب]]=2,data.E[[#This Row],[الحافز]]*30%,IF(data.E[[#This Row],[أيام الغياب]]>2,data.E[[#This Row],[الحافز]]*100%,0))) -> 0 | BR71: =IF(data.E[[#This Row],[عدد أيام الأجازات]]<=4,data.E[[#This Row],[الحافز]]*0,IF(data.E[[#This Row],[عدد أيام الأجازات]]=5,data.E[[#This Row],[الحافز]]*20%,IF(data.E[[#This Row],[عدد أيام الأجازات]]=6,data.E[[#This Row],[الحافز]]*40%,IF(data.E[[#This Row],[عدد أيام الأجازات]]=7,data.E[[#This Row],[الحافز]]*50%,IF(data.E[[#This Row],[عدد أيام الأجازات]]>7,data.E[[#This Row],[الحافز]]*100%,0))))) -> 0 | BS71: 0 | BT71: 0 | BU71: 14.51 | BW71: 3 | BX71: 0 | BZ71: 0 | CD71: 0 | CE71: 0 | CG71: 0 | CJ71: 3.2 | CK71: 5 | CR71: 0 | CS71: 308.56 | CT71: 0 | CU71: =ROUND(IF($H71=data.E[[#Headers],[إيقاف]],$BG71-SUM(data.E[[#This Row],[تامينات 2026]:[تنفيذ أحكام]],data.E[[#This Row],[الشهداء]:[خصم 5% تأمين من العمولة]],0),0),2) -> 0 | CV71: =ROUND(IF($H71=data.E[[#Headers],[مرضي]],$BG71-SUM(data.E[[#This Row],[تامينات 2026]:[تنفيذ أحكام]],data.E[[#This Row],[الشهداء]:[خصم 5% تأمين من العمولة]],0),0),2) -> 0 | CW71: =ROUND(IF($H71=data.E[[#Headers],[أجازة]],$BG71-SUM(data.E[[#This Row],[تامينات 2026]:[تنفيذ أحكام]],data.E[[#This Row],[الشهداء]:[خصم 5% تأمين من العمولة]],0),0),2) -> 0 | CX71: =ROUND(IF($H71=data.E[[#Headers],[إعارة]],$BG71-SUM(data.E[[#This Row],[تامينات 2026]:[تنفيذ أحكام]],data.E[[#This Row],[الشهداء]:[خصم 5% تأمين من العمولة]],0),0),2) -> 0 | CY71: =ROUND(IF($H71=data.E[[#Headers],[إنهاء]],$BG71-SUM(data.E[[#This Row],[تامينات 2026]:[تنفيذ أحكام]],data.E[[#This Row],[الشهداء]:[خصم 5% تأمين من العمولة]],0),0),2) -> 0 | CZ71: =ROUND(IF($H71=data.E[[#Headers],[معاش]],$BG71-SUM(data.E[[#This Row],[تامينات 2026]:[تنفيذ أحكام]],data.E[[#This Row],[الشهداء]:[خصم 5% تأمين من العمولة]],0),0),2) -> 0 | DA71: =ROUND(SUM(data.E[[#This Row],[تامينات 2026]:[تنفيذ أحكام]],data.E[[#This Row],[الشهداء]:[معاش]]),2) -> 1026.27 | DB71: 5973.73
A72: =IF(data.E[[#This Row],[الموظف المختص]]=print.e!$E$2,COUNTIF('data.e'!$G$4:G72,G72),"") -> 66 | B72: 101069 | C72: 22020 | D72: البنك الاهلى | E72: سامح حمزه احمد الحافظ | G72: منال | H72: دوام كامل | I72: ادارى | J72: الاولى | L72: الأولى | M72: كاتب شئون فنية ومتابعة | N72: الادارة العامة | O72: المنطقه المركزية | P72: 26802260102777 | Q72: 10106922020سامح حمزه احمد الحافظمنالالاولىالأولىكاتب شئون فنية ومتابعةقطاع شئون الفنية | R72: نعم | S72: 2232.94 | T72: 2612.5398 | U72: 0 | V72: 3526.93 | W72: 391.88 | X72: 0 | Y72: 0 | Z72: 0 | AB72: 0 | AC72: 300 | AE72: 0 | AF72: 0 | AG72: 0 | AH72: 0 | AI72: =SUM(AA72:AH72)-data.E[[#This Row],[بدل تمثيل]] -> 300 | AJ72: 73.27 | AK72: 82.01 | AL72: 98.55 | AM72: 0 | AN72: 190 | AO72: 44.64 | AP72: 79.6 | AQ72: 102.21 | AR72: 145.82 | AS72: 156.03 | AT72: 166.95 | AU72: 0 | AV72: 111.647 | AW72: 600 | AX72: 10 | AY72: 1860.73 | AZ72: 10 | BA72: =ROUND((data.E[[#This Row],[أساسي 7/2025]]*2)/12,2) -> 435.42 | BE72: 9137.5 | BF72: 0 | BG72: =IF(data.E[[#This Row],[حالة العمل]]="إيقاف",data.E[[#This Row],[أساسي 7/2025]],ROUND(SUM(data.E[[#This Row],[بدل تمثيل]],BB72:BF72),2)) -> 9137.5 | BL72: =ROUND(data.E[[#This Row],[تامينات 2026]]/11%,2) -> 8443.64 | BM72: 928.8 | BO72: =(data.E[[#This Row],[إجمالي المستحق]]-SUM(data.E[[#This Row],[الحافز]],data.E[[#This Row],[متوسط المنحة]:[الإضافي]]))/30*data.E[[#This Row],[أيام الغياب]] -> 0 | BP72: =(data.E[[#This Row],[إجمالي المستحق]]-SUM(data.E[[#This Row],[الحافز]],data.E[[#This Row],[متوسط المنحة]:[الإضافي]]))/30*data.E[[#This Row],[أيام جزاء]] -> 0 | BQ72: =IF(data.E[[#This Row],[أيام الغياب]]=1,data.E[[#This Row],[الحافز]]*20%,IF(data.E[[#This Row],[أيام الغياب]]=2,data.E[[#This Row],[الحافز]]*30%,IF(data.E[[#This Row],[أيام الغياب]]>2,data.E[[#This Row],[الحافز]]*100%,0))) -> 0 | BR72: =IF(data.E[[#This Row],[عدد أيام الأجازات]]<=4,data.E[[#This Row],[الحافز]]*0,IF(data.E[[#This Row],[عدد أيام الأجازات]]=5,data.E[[#This Row],[الحافز]]*20%,IF(data.E[[#This Row],[عدد أيام الأجازات]]=6,data.E[[#This Row],[الحافز]]*40%,IF(data.E[[#This Row],[عدد أيام الأجازات]]=7,data.E[[#This Row],[الحافز]]*50%,IF(data.E[[#This Row],[عدد أيام الأجازات]]>7,data.E[[#This Row],[الحافز]]*100%,0))))) -> 0 | BS72: 0 | BT72: 3.68 | BU72: 0 | BV72: 0 | BW72: 3 | BX72: 0 | BZ72: 0 | CA72: 0 | CB72: 0 | CD72: 0 | CE72: 0 | CF72: 0 | CG72: 0 | CH72: 0 | CJ72: 4.2 | CK72: 3 | CN72: 0 | CO72: 0 | CR72: 0 | CS72: 435.42 | CT72: 0 | CU72: =ROUND(IF($H72=data.E[[#Headers],[إيقاف]],$BG72-SUM(data.E[[#This Row],[تامينات 2026]:[تنفيذ أحكام]],data.E[[#This Row],[الشهداء]:[خصم 5% تأمين من العمولة]],0),0),2) -> 0 | CV72: =ROUND(IF($H72=data.E[[#Headers],[مرضي]],$BG72-SUM(data.E[[#This Row],[تامينات 2026]:[تنفيذ أحكام]],data.E[[#This Row],[الشهداء]:[خصم 5% تأمين من العمولة]],0),0),2) -> 0 | CW72: =ROUND(IF($H72=data.E[[#Headers],[أجازة]],$BG72-SUM(data.E[[#This Row],[تامينات 2026]:[تنفيذ أحكام]],data.E[[#This Row],[الشهداء]:[خصم 5% تأمين من العمولة]],0),0),2) -> 0 | CX72: =ROUND(IF($H72=data.E[[#Headers],[إعارة]],$BG72-SUM(data.E[[#This Row],[تامينات 2026]:[تنفيذ أحكام]],data.E[[#This Row],[الشهداء]:[خصم 5% تأمين من العمولة]],0),0),2) -> 0 | CY72: =ROUND(IF($H72=data.E[[#Headers],[إنهاء]],$BG72-SUM(data.E[[#This Row],[تامينات 2026]:[تنفيذ أحكام]],data.E[[#This Row],[الشهداء]:[خصم 5% تأمين من العمولة]],0),0),2) -> 0 | CZ72: =ROUND(IF($H72=data.E[[#Headers],[معاش]],$BG72-SUM(data.E[[#This Row],[تامينات 2026]:[تنفيذ أحكام]],data.E[[#This Row],[الشهداء]:[خصم 5% تأمين من العمولة]],0),0),2) -> 0 | DA72: =ROUND(SUM(data.E[[#This Row],[تامينات 2026]:[تنفيذ أحكام]],data.E[[#This Row],[الشهداء]:[معاش]]),2) -> 1378.1 | DB72: 7759.4
A73: =IF(data.E[[#This Row],[الموظف المختص]]=print.e!$E$2,COUNTIF('data.e'!$G$4:G73,G73),"") -> 67 | B73: 101070 | C73: 22024 | D73: بنك مصر 1 | E73: مشهور السيد احمد الجابرى | G73: منال | H73: دوام كامل | I73: ادارى | J73: الاولى | N73: الادارة العامة | O73: المنطقه المركزية | P73: 27001191702393 | Q73: 10107022024مشهور السيد احمد الجابرىمنالالاولى | S73: 2411.52 | T73: 2652.672 | U73: 0 | V73: 3581.11 | W73: 397.9 | X73: 0 | Y73: 0 | Z73: 0 | AB73: 0 | AC73: 300 | AE73: 0 | AF73: 0 | AG73: 0 | AH73: 0 | AI73: =SUM(AA73:AH73)-data.E[[#This Row],[بدل تمثيل]] -> 300 | AJ73: 79.33 | AK73: 88.56 | AL73: 106.32 | AM73: 0 | AN73: 190 | AO73: 48.21 | AP73: 85.97 | AQ73: 110.38 | AR73: 157.48 | AS73: 168.51 | AT73: 180.3 | AU73: 0 | AV73: 120.576 | AW73: 600 | AX73: 10 | AY73: 1945.64 | AZ73: 10 | BA73: =ROUND((data.E[[#This Row],[أساسي 7/2025]]*2)/12,2) -> 442.11 | BE73: 9329.43 | BF73: 0 | BG73: =IF(data.E[[#This Row],[حالة العمل]]="إيقاف",data.E[[#This Row],[أساسي 7/2025]],ROUND(SUM(data.E[[#This Row],[بدل تمثيل]],BB73:BF73),2)) -> 9329.43 | BL73: =ROUND(data.E[[#This Row],[تامينات 2026]]/11%,2) -> 8858.64 | BM73: 974.45 | BO73: =(data.E[[#This Row],[إجمالي المستحق]]-SUM(data.E[[#This Row],[الحافز]],data.E[[#This Row],[متوسط المنحة]:[الإضافي]]))/30*data.E[[#This Row],[أيام الغياب]] -> 0 | BP73: =(data.E[[#This Row],[إجمالي المستحق]]-SUM(data.E[[#This Row],[الحافز]],data.E[[#This Row],[متوسط المنحة]:[الإضافي]]))/30*data.E[[#This Row],[أيام جزاء]] -> 0 | BQ73: =IF(data.E[[#This Row],[أيام الغياب]]=1,data.E[[#This Row],[الحافز]]*20%,IF(data.E[[#This Row],[أيام الغياب]]=2,data.E[[#This Row],[الحافز]]*30%,IF(data.E[[#This Row],[أيام الغياب]]>2,data.E[[#This Row],[الحافز]]*100%,0))) -> 0 | BR73: =IF(data.E[[#This Row],[عدد أيام الأجازات]]<=4,data.E[[#This Row],[الحافز]]*0,IF(data.E[[#This Row],[عدد أيام الأجازات]]=5,data.E[[#This Row],[الحافز]]*20%,IF(data.E[[#This Row],[عدد أيام الأجازات]]=6,data.E[[#This Row],[الحافز]]*40%,IF(data.E[[#This Row],[عدد أيام الأجازات]]=7,data.E[[#This Row],[الحافز]]*50%,IF(data.E[[#This Row],[عدد أيام الأجازات]]>7,data.E[[#This Row],[الحافز]]*100%,0))))) -> 0 | BS73: 0 | BT73: 0 | BU73: 0 | BV73: 0 | BW73: 3 | BX73: 0 | BZ73: 0 | CA73: 0 | CB73: 0 | CD73: 0 | CE73: 0 | CF73: 0 | CG73: 0 | CH73: 0 | CJ73: 4.29 | CK73: 5 | CN73: 0 | CO73: 0 | CR73: 0 | CS73: 442.11 | CT73: 0 | CU73: =ROUND(IF($H73=data.E[[#Headers],[إيقاف]],$BG73-SUM(data.E[[#This Row],[تامينات 2026]:[تنفيذ أحكام]],data.E[[#This Row],[الشهداء]:[خصم 5% تأمين من العمولة]],0),0),2) -> 0 | CV73: =ROUND(IF($H73=data.E[[#Headers],[مرضي]],$BG73-SUM(data.E[[#This Row],[تامينات 2026]:[تنفيذ أحكام]],data.E[[#This Row],[الشهداء]:[خصم 5% تأمين من العمولة]],0),0),2) -> 0 | CW73: =ROUND(IF($H73=data.E[[#Headers],[أجازة]],$BG73-SUM(data.E[[#This Row],[تامينات 2026]:[تنفيذ أحكام]],data.E[[#This Row],[الشهداء]:[خصم 5% تأمين من العمولة]],0),0),2) -> 0 | CX73: =ROUND(IF($H73=data.E[[#Headers],[إعارة]],$BG73-SUM(data.E[[#This Row],[تامينات 2026]:[تنفيذ أحكام]],data.E[[#This Row],[الشهداء]:[خصم 5% تأمين من العمولة]],0),0),2) -> 0 | CY73: =ROUND(IF($H73=data.E[[#Headers],[إنهاء]],$BG73-SUM(data.E[[#This Row],[تامينات 2026]:[تنفيذ أحكام]],data.E[[#This Row],[الشهداء]:[خصم 5% تأمين من العمولة]],0),0),2) -> 0 | CZ73: =ROUND(IF($H73=data.E[[#Headers],[معاش]],$BG73-SUM(data.E[[#This Row],[تامينات 2026]:[تنفيذ أحكام]],data.E[[#This Row],[الشهداء]:[خصم 5% تأمين من العمولة]],0),0),2) -> 0 | DA73: =ROUND(SUM(data.E[[#This Row],[تامينات 2026]:[تنفيذ أحكام]],data.E[[#This Row],[الشهداء]:[معاش]]),2) -> 1428.85 | DB73: 7900.58
A74: =IF(data.E[[#This Row],[الموظف المختص]]=print.e!$E$2,COUNTIF('data.e'!$G$4:G74,G74),"") -> 68 | B74: 101071 | C74: 22029 | D74: بنك مصر 1 | E74: محسن محمد عبد المحسن محمد | F74: 1060110297 | G74: منال | H74: دوام كامل | I74: ادارى | J74: الاولى | M74: أمين خزينة | N74: الادارة العامة | O74: المنطقه المركزية | P74: 27008170102251 | Q74: 10107122029محسن محمد عبد المحسن محمدمنالالاولىأمين خزينة | S74: 2411.52 | T74: 2652.672 | U74: 0 | V74: 3581.11 | W74: 397.9 | X74: 0 | Y74: 0 | Z74: 0 | AB74: 0 | AC74: 300 | AE74: 0 | AF74: 0 | AG74: 0 | AH74: 0 | AI74: =SUM(AA74:AH74)-data.E[[#This Row],[بدل تمثيل]] -> 300 | AJ74: 79.33 | AK74: 88.56 | AL74: 106.32 | AM74: 0 | AN74: 190 | AO74: 48.21 | AP74: 85.97 | AQ74: 110.38 | AR74: 157.48 | AS74: 168.51 | AT74: 180.3 | AU74: 0 | AV74: 120.576 | AW74: 600 | AX74: 10 | AY74: 1945.64 | AZ74: 10 | BA74: =ROUND((data.E[[#This Row],[أساسي 7/2025]]*2)/12,2) -> 442.11 | BE74: 9329.43 | BF74: 0 | BG74: =IF(data.E[[#This Row],[حالة العمل]]="إيقاف",data.E[[#This Row],[أساسي 7/2025]],ROUND(SUM(data.E[[#This Row],[بدل تمثيل]],BB74:BF74),2)) -> 9329.43 | BL74: =ROUND(data.E[[#This Row],[تامينات 2026]]/11%,2) -> 8858.64 | BM74: 974.45 | BO74: =(data.E[[#This Row],[إجمالي المستحق]]-SUM(data.E[[#This Row],[الحافز]],data.E[[#This Row],[متوسط المنحة]:[الإضافي]]))/30*data.E[[#This Row],[أيام الغياب]] -> 0 | BP74: =(data.E[[#This Row],[إجمالي المستحق]]-SUM(data.E[[#This Row],[الحافز]],data.E[[#This Row],[متوسط المنحة]:[الإضافي]]))/30*data.E[[#This Row],[أيام جزاء]] -> 0 | BQ74: =IF(data.E[[#This Row],[أيام الغياب]]=1,data.E[[#This Row],[الحافز]]*20%,IF(data.E[[#This Row],[أيام الغياب]]=2,data.E[[#This Row],[الحافز]]*30%,IF(data.E[[#This Row],[أيام الغياب]]>2,data.E[[#This Row],[الحافز]]*100%,0))) -> 0 | BR74: =IF(data.E[[#This Row],[عدد أيام الأجازات]]<=4,data.E[[#This Row],[الحافز]]*0,IF(data.E[[#This Row],[عدد أيام الأجازات]]=5,data.E[[#This Row],[الحافز]]*20%,IF(data.E[[#This Row],[عدد أيام الأجازات]]=6,data.E[[#This Row],[الحافز]]*40%,IF(data.E[[#This Row],[عدد أيام الأجازات]]=7,data.E[[#This Row],[الحافز]]*50%,IF(data.E[[#This Row],[عدد أيام الأجازات]]>7,data.E[[#This Row],[الحافز]]*100%,0))))) -> 0 | BS74: 0 | BT74: 0 | BU74: 0 | BV74: 0 | BW74: 3 | BX74: 0 | BZ74: 0 | CA74: 0 | CB74: 0 | CD74: 0 | CE74: 0 | CF74: 0 | CG74: 0 | CH74: 0 | CJ74: 4.29 | CK74: 5 | CN74: 0 | CO74: 0 | CR74: =ROUND(IF(H74=$CR$3,(BG74-BA74)*40%,0),2) -> 0 | CS74: 442.11 | CT74: 0 | CU74: =ROUND(IF($H74=data.E[[#Headers],[إيقاف]],$BG74-SUM(data.E[[#This Row],[تامينات 2026]:[تنفيذ أحكام]],data.E[[#This Row],[الشهداء]:[خصم 5% تأمين من العمولة]],0),0),2) -> 0 | CV74: =ROUND(IF($H74=data.E[[#Headers],[مرضي]],$BG74-SUM(data.E[[#This Row],[تامينات 2026]:[تنفيذ أحكام]],data.E[[#This Row],[الشهداء]:[خصم 5% تأمين من العمولة]],0),0),2) -> 0 | CW74: =ROUND(IF($H74=data.E[[#Headers],[أجازة]],$BG74-SUM(data.E[[#This Row],[تامينات 2026]:[تنفيذ أحكام]],data.E[[#This Row],[الشهداء]:[خصم 5% تأمين من العمولة]],0),0),2) -> 0 | CX74: =ROUND(IF($H74=data.E[[#Headers],[إعارة]],$BG74-SUM(data.E[[#This Row],[تامينات 2026]:[تنفيذ أحكام]],data.E[[#This Row],[الشهداء]:[خصم 5% تأمين من العمولة]],0),0),2) -> 0 | CY74: =ROUND(IF($H74=data.E[[#Headers],[إنهاء]],$BG74-SUM(data.E[[#This Row],[تامينات 2026]:[تنفيذ أحكام]],data.E[[#This Row],[الشهداء]:[خصم 5% تأمين من العمولة]],0),0),2) -> 0 | CZ74: =ROUND(IF($H74=data.E[[#Headers],[معاش]],$BG74-SUM(data.E[[#This Row],[تامينات 2026]:[تنفيذ أحكام]],data.E[[#This Row],[الشهداء]:[خصم 5% تأمين من العمولة]],0),0),2) -> 0 | DA74: =ROUND(SUM(data.E[[#This Row],[تامينات 2026]:[تنفيذ أحكام]],data.E[[#This Row],[الشهداء]:[معاش]]),2) -> 1428.85 | DB74: 7900.58
A75: =IF(data.E[[#This Row],[الموظف المختص]]=print.e!$E$2,COUNTIF('data.e'!$G$4:G75,G75),"") -> 69 | B75: 101072 | C75: 22030 | D75: بنك مصر 1 | E75: سمير محمد عبد الفتاح متولى | G75: منال | H75: دوام كامل | I75: ادارى | J75: الاولى | L75: الأولى | M75: كاتب حركة وتشغيل | N75: الادارة العامة | O75: المنطقه المركزية | P75: 26811190101092 | Q75: 10107222030سمير محمد عبد الفتاح متولىمنالالاولىالأولىكاتب حركة وتشغيل قطاع التشغيل | R75: نعم | S75: 2404.88 | T75: 2813.7096 | U75: 0 | V75: 3798.51 | W75: 422.06 | X75: 0 | Y75: 0 | Z75: 0 | AB75: 0 | AC75: 300 | AE75: 0 | AF75: 0 | AG75: 0 | AH75: 0 | AI75: =SUM(AA75:AH75)-data.E[[#This Row],[بدل تمثيل]] -> 300 | AJ75: 85.28 | AK75: 95.16 | AL75: 113.56 | AM75: 0 | AN75: 190 | AO75: 48.07 | AP75: 85.73 | AQ75: 110.08 | AR75: 157.05 | AS75: 168.04 | AT75: 179.8 | AU75: 0 | AV75: 120.244 | AW75: 600 | AX75: 10 | AY75: 1963.01 | AZ75: 10 | BA75: =ROUND((data.E[[#This Row],[أساسي 7/2025]]*2)/12,2) -> 468.95 | BE75: 9776.24 | BF75: 0 | BG75: =IF(data.E[[#This Row],[حالة العمل]]="إيقاف",data.E[[#This Row],[أساسي 7/2025]],ROUND(SUM(data.E[[#This Row],[بدل تمثيل]],BB75:BF75),2)) -> 9776.24 | BL75: =ROUND(data.E[[#This Row],[تامينات 2026]]/11%,2) -> 9046.36 | BM75: 995.1 | BO75: =(data.E[[#This Row],[إجمالي المستحق]]-SUM(data.E[[#This Row],[الحافز]],data.E[[#This Row],[متوسط المنحة]:[الإضافي]]))/30*data.E[[#This Row],[أيام الغياب]] -> 0 | BP75: =(data.E[[#This Row],[إجمالي المستحق]]-SUM(data.E[[#This Row],[الحافز]],data.E[[#This Row],[متوسط المنحة]:[الإضافي]]))/30*data.E[[#This Row],[أيام جزاء]] -> 0 | BQ75: =IF(data.E[[#This Row],[أيام الغياب]]=1,data.E[[#This Row],[الحافز]]*20%,IF(data.E[[#This Row],[أيام الغياب]]=2,data.E[[#This Row],[الحافز]]*30%,IF(data.E[[#This Row],[أيام الغياب]]>2,data.E[[#This Row],[الحافز]]*100%,0))) -> 0 | BR75: =IF(data.E[[#This Row],[عدد أيام الأجازات]]<=4,data.E[[#This Row],[الحافز]]*0,IF(data.E[[#This Row],[عدد أيام الأجازات]]=5,data.E[[#This Row],[الحافز]]*20%,IF(data.E[[#This Row],[عدد أيام الأجازات]]=6,data.E[[#This Row],[الحافز]]*40%,IF(data.E[[#This Row],[عدد أيام الأجازات]]=7,data.E[[#This Row],[الحافز]]*50%,IF(data.E[[#This Row],[عدد أيام الأجازات]]>7,data.E[[#This Row],[الحافز]]*100%,0))))) -> 0 | BS75: 0 | BT75: 0 | BU75: 0 | BV75: 0 | BW75: 3 | BX75: 0 | BZ75: 0 | CA75: 0 | CB75: 0 | CD75: 0 | CE75: 0 | CF75: 0 | CG75: 0 | CH75: 0 | CJ75: 4.5 | CK75: 5 | CN75: 0 | CO75: 0 | CR75: 0 | CS75: 468.95 | CT75: 0 | CU75: =ROUND(IF($H75=data.E[[#Headers],[إيقاف]],$BG75-SUM(data.E[[#This Row],[تامينات 2026]:[تنفيذ أحكام]],data.E[[#This Row],[الشهداء]:[خصم 5% تأمين من العمولة]],0),0),2) -> 0 | CV75: =ROUND(IF($H75=data.E[[#Headers],[مرضي]],$BG75-SUM(data.E[[#This Row],[تامينات 2026]:[تنفيذ أحكام]],data.E[[#This Row],[الشهداء]:[خصم 5% تأمين من العمولة]],0),0),2) -> 0 | CW75: =ROUND(IF($H75=data.E[[#Headers],[أجازة]],$BG75-SUM(data.E[[#This Row],[تامينات 2026]:[تنفيذ أحكام]],data.E[[#This Row],[الشهداء]:[خصم 5% تأمين من العمولة]],0),0),2) -> 0 | CX75: =ROUND(IF($H75=data.E[[#Headers],[إعارة]],$BG75-SUM(data.E[[#This Row],[تامينات 2026]:[تنفيذ أحكام]],data.E[[#This Row],[الشهداء]:[خصم 5% تأمين من العمولة]],0),0),2) -> 0 | CY75: =ROUND(IF($H75=data.E[[#Headers],[إنهاء]],$BG75-SUM(data.E[[#This Row],[تامينات 2026]:[تنفيذ أحكام]],data.E[[#This Row],[الشهداء]:[خصم 5% تأمين من العمولة]],0),0),2) -> 0 | CZ75: =ROUND(IF($H75=data.E[[#Headers],[معاش]],$BG75-SUM(data.E[[#This Row],[تامينات 2026]:[تنفيذ أحكام]],data.E[[#This Row],[الشهداء]:[خصم 5% تأمين من العمولة]],0),0),2) -> 0 | DA75: =ROUND(SUM(data.E[[#This Row],[تامينات 2026]:[تنفيذ أحكام]],data.E[[#This Row],[الشهداء]:[معاش]]),2) -> 1476.55 | DB75: 8299.69
A76: =IF(data.E[[#This Row],[الموظف المختص]]=print.e!$E$2,COUNTIF('data.e'!$G$4:G76,G76),"") -> 70 | B76: 101073 | C76: 22052 | D76: بنك مصر 1 | E76: محمد احمد السيد خليل | G76: منال | H76: دوام كامل | I76: ادارى | J76: الاولى | L76: الأولى | M76: كاتب شئون تجارية | N76: الادارة العامة | O76: المنطقه المركزية | P76: 27002250105198 | Q76: 10107322052محمد احمد السيد خليلمنالالاولىالأولىكاتب شئون تجارية قطاع مالى | R76: نعم | S76: 2222.9 | T76: 2600.793 | U76: 0 | V76: 3511.07 | W76: 390.12 | X76: 0 | Y76: 0 | Z76: 0 | AB76: 0 | AC76: 300 | AE76: 0 | AF76: 0 | AG76: 0 | AH76: 0 | AI76: =SUM(AA76:AH76)-data.E[[#This Row],[بدل تمثيل]] -> 300 | AJ76: 72.97 | AK76: 81.47 | AL76: 98.03 | AM76: 0 | AN76: 190 | AO76: 44.43 | AP76: 79.24 | AQ76: 101.75 | AR76: 145.16 | AS76: 155.33 | AT76: 166.2 | AU76: 0 | AV76: 111.145 | AW76: 600 | AX76: 10 | AY76: 1855.73 | AZ76: 10 | BA76: =ROUND((data.E[[#This Row],[أساسي 7/2025]]*2)/12,2) -> 433.47 | BE76: 9101.18 | BF76: 0 | BG76: =IF(data.E[[#This Row],[حالة العمل]]="إيقاف",data.E[[#This Row],[أساسي 7/2025]],ROUND(SUM(data.E[[#This Row],[بدل تمثيل]],BB76:BF76),2)) -> 9101.18 | BL76: =ROUND(data.E[[#This Row],[تامينات 2026]]/11%,2) -> 8409.73 | BM76: 925.07 | BO76: =(data.E[[#This Row],[إجمالي المستحق]]-SUM(data.E[[#This Row],[الحافز]],data.E[[#This Row],[متوسط المنحة]:[الإضافي]]))/30*data.E[[#This Row],[أيام الغياب]] -> 0 | BP76: =(data.E[[#This Row],[إجمالي المستحق]]-SUM(data.E[[#This Row],[الحافز]],data.E[[#This Row],[متوسط المنحة]:[الإضافي]]))/30*data.E[[#This Row],[أيام جزاء]] -> 0 | BQ76: =IF(data.E[[#This Row],[أيام الغياب]]=1,data.E[[#This Row],[الحافز]]*20%,IF(data.E[[#This Row],[أيام الغياب]]=2,data.E[[#This Row],[الحافز]]*30%,IF(data.E[[#This Row],[أيام الغياب]]>2,data.E[[#This Row],[الحافز]]*100%,0))) -> 0 | BR76: =IF(data.E[[#This Row],[عدد أيام الأجازات]]<=4,data.E[[#This Row],[الحافز]]*0,IF(data.E[[#This Row],[عدد أيام الأجازات]]=5,data.E[[#This Row],[الحافز]]*20%,IF(data.E[[#This Row],[عدد أيام الأجازات]]=6,data.E[[#This Row],[الحافز]]*40%,IF(data.E[[#This Row],[عدد أيام الأجازات]]=7,data.E[[#This Row],[الحافز]]*50%,IF(data.E[[#This Row],[عدد أيام الأجازات]]>7,data.E[[#This Row],[الحافز]]*100%,0))))) -> 0 | BS76: 0 | BT76: 58.35 | BU76: 0 | BV76: 0 | BW76: 3 | BX76: 0 | BZ76: 0 | CA76: 0 | CB76: 0 | CD76: 0 | CE76: 0 | CF76: 0 | CG76: 0 | CH76: 0 | CJ76: 4.18 | CK76: 5 | CN76: 0 | CO76: 0 | CR76: 0 | CS76: 433.47 | CT76: 0 | CU76: =ROUND(IF($H76=data.E[[#Headers],[إيقاف]],$BG76-SUM(data.E[[#This Row],[تامينات 2026]:[تنفيذ أحكام]],data.E[[#This Row],[الشهداء]:[خصم 5% تأمين من العمولة]],0),0),2) -> 0 | CV76: =ROUND(IF($H76=data.E[[#Headers],[مرضي]],$BG76-SUM(data.E[[#This Row],[تامينات 2026]:[تنفيذ أحكام]],data.E[[#This Row],[الشهداء]:[خصم 5% تأمين من العمولة]],0),0),2) -> 0 | CW76: =ROUND(IF($H76=data.E[[#Headers],[أجازة]],$BG76-SUM(data.E[[#This Row],[تامينات 2026]:[تنفيذ أحكام]],data.E[[#This Row],[الشهداء]:[خصم 5% تأمين من العمولة]],0),0),2) -> 0 | CX76: =ROUND(IF($H76=data.E[[#Headers],[إعارة]],$BG76-SUM(data.E[[#This Row],[تامينات 2026]:[تنفيذ أحكام]],data.E[[#This Row],[الشهداء]:[خصم 5% تأمين من العمولة]],0),0),2) -> 0 | CY76: =ROUND(IF($H76=data.E[[#Headers],[إنهاء]],$BG76-SUM(data.E[[#This Row],[تامينات 2026]:[تنفيذ أحكام]],data.E[[#This Row],[الشهداء]:[خصم 5% تأمين من العمولة]],0),0),2) -> 0 | CZ76: =ROUND(IF($H76=data.E[[#Headers],[معاش]],$BG76-SUM(data.E[[#This Row],[تامينات 2026]:[تنفيذ أحكام]],data.E[[#This Row],[الشهداء]:[خصم 5% تأمين من العمولة]],0),0),2) -> 0 | DA76: =ROUND(SUM(data.E[[#This Row],[تامينات 2026]:[تنفيذ أحكام]],data.E[[#This Row],[الشهداء]:[معاش]]),2) -> 1429.07 | DB76: 7672.11
A77: =IF(data.E[[#This Row],[الموظف المختص]]=print.e!$E$2,COUNTIF('data.e'!$G$4:G77,G77),"") -> 71 | B77: 101074 | C77: 22060 | D77: بنك مصر 1 | E77: ابراهيم حسن سعد حسن | G77: منال | H77: دوام كامل | I77: ادارى | J77: الاولى | L77: الأولى | M77: مشرف امن صناعى | N77: الادارة العامة | O77: المنطقه المركزية | P77: 27501011308458 | Q77: 10107422060ابراهيم حسن سعد حسنمنالالاولىالأولىمشرف امن صناعى جسر السويس | R77: نعم | S77: 2139.19 | T77: 2502.8523 | U77: 0 | V77: 3378.85 | W77: 375.43 | X77: 0 | Y77: 0 | Z77: 0 | AB77: 0 | AC77: 300 | AE77: 0 | AF77: 0 | AG77: 0 | AH77: 0 | AI77: =SUM(AA77:AH77)-data.E[[#This Row],[بدل تمثيل]] -> 300 | AJ77: 70.21 | AK77: 78.59 | AL77: 94.4 | AM77: 0 | AN77: 190 | AO77: 42.76 | AP77: 76.26 | AQ77: 97.92 | AR77: 139.7 | AS77: 149.48 | AT77: 159.94 | AU77: 0 | AV77: 106.9595 | AW77: 600 | AX77: 10 | AY77: 1816.22 | AZ77: 10 | BA77: =ROUND((data.E[[#This Row],[أساسي 7/2025]]*2)/12,2) -> 417.14 | BE77: 8800.49 | BF77: 0 | BG77: =IF(data.E[[#This Row],[حالة العمل]]="إيقاف",data.E[[#This Row],[أساسي 7/2025]],ROUND(SUM(data.E[[#This Row],[بدل تمثيل]],BB77:BF77),2)) -> 8800.49 | BL77: =ROUND(data.E[[#This Row],[تامينات 2026]]/11%,2) -> 8117 | BM77: 892.87 | BO77: =(data.E[[#This Row],[إجمالي المستحق]]-SUM(data.E[[#This Row],[الحافز]],data.E[[#This Row],[متوسط المنحة]:[الإضافي]]))/30*data.E[[#This Row],[أيام الغياب]] -> 0 | BP77: =(data.E[[#This Row],[إجمالي المستحق]]-SUM(data.E[[#This Row],[الحافز]],data.E[[#This Row],[متوسط المنحة]:[الإضافي]]))/30*data.E[[#This Row],[أيام جزاء]] -> 0 | BQ77: =IF(data.E[[#This Row],[أيام الغياب]]=1,data.E[[#This Row],[الحافز]]*20%,IF(data.E[[#This Row],[أيام الغياب]]=2,data.E[[#This Row],[الحافز]]*30%,IF(data.E[[#This Row],[أيام الغياب]]>2,data.E[[#This Row],[الحافز]]*100%,0))) -> 0 | BR77: =IF(data.E[[#This Row],[عدد أيام الأجازات]]<=4,data.E[[#This Row],[الحافز]]*0,IF(data.E[[#This Row],[عدد أيام الأجازات]]=5,data.E[[#This Row],[الحافز]]*20%,IF(data.E[[#This Row],[عدد أيام الأجازات]]=6,data.E[[#This Row],[الحافز]]*40%,IF(data.E[[#This Row],[عدد أيام الأجازات]]=7,data.E[[#This Row],[الحافز]]*50%,IF(data.E[[#This Row],[عدد أيام الأجازات]]>7,data.E[[#This Row],[الحافز]]*100%,0))))) -> 0 | BS77: 0 | BT77: 0 | BU77: 0 | BV77: 0 | BW77: 3 | BX77: 0 | BZ77: 0 | CA77: 0 | CB77: 0 | CD77: 0 | CE77: 0 | CF77: 0 | CG77: 0 | CH77: 0 | CJ77: 4.04 | CK77: 5 | CN77: 0 | CO77: 0 | CR77: 0 | CS77: 417.14 | CT77: 0 | CU77: =ROUND(IF($H77=data.E[[#Headers],[إيقاف]],$BG77-SUM(data.E[[#This Row],[تامينات 2026]:[تنفيذ أحكام]],data.E[[#This Row],[الشهداء]:[خصم 5% تأمين من العمولة]],0),0),2) -> 0 | CV77: =ROUND(IF($H77=data.E[[#Headers],[مرضي]],$BG77-SUM(data.E[[#This Row],[تامينات 2026]:[تنفيذ أحكام]],data.E[[#This Row],[الشهداء]:[خصم 5% تأمين من العمولة]],0),0),2) -> 0 | CW77: =ROUND(IF($H77=data.E[[#Headers],[أجازة]],$BG77-SUM(data.E[[#This Row],[تامينات 2026]:[تنفيذ أحكام]],data.E[[#This Row],[الشهداء]:[خصم 5% تأمين من العمولة]],0),0),2) -> 0 | CX77: =ROUND(IF($H77=data.E[[#Headers],[إعارة]],$BG77-SUM(data.E[[#This Row],[تامينات 2026]:[تنفيذ أحكام]],data.E[[#This Row],[الشهداء]:[خصم 5% تأمين من العمولة]],0),0),2) -> 0 | CY77: =ROUND(IF($H77=data.E[[#Headers],[إنهاء]],$BG77-SUM(data.E[[#This Row],[تامينات 2026]:[تنفيذ أحكام]],data.E[[#This Row],[الشهداء]:[خصم 5% تأمين من العمولة]],0),0),2) -> 0 | CZ77: =ROUND(IF($H77=data.E[[#Headers],[معاش]],$BG77-SUM(data.E[[#This Row],[تامينات 2026]:[تنفيذ أحكام]],data.E[[#This Row],[الشهداء]:[خصم 5% تأمين من العمولة]],0),0),2) -> 0 | DA77: =ROUND(SUM(data.E[[#This Row],[تامينات 2026]:[تنفيذ أحكام]],data.E[[#This Row],[الشهداء]:[معاش]]),2) -> 1322.05 | DB77: 7478.44
A78: =IF(data.E[[#This Row],[الموظف المختص]]=print.e!$E$2,COUNTIF('data.e'!$G$4:G78,G78),"") -> 72 | B78: 101075 | C78: 22068 | D78: بنك مصر 1 | E78: عمرو فهمى زكى محمد | G78: منال | H78: دوام كامل | I78: ادارى | J78: الاولى | N78: الادارة العامة | O78: المنطقه المركزية | P78: 27007120103071 | Q78: 10107522068عمرو فهمى زكى محمدمنالالاولى | S78: 2411.81 | T78: 2652.991 | U78: 0 | V78: 3581.54 | W78: 397.95 | X78: 0 | Y78: 0 | Z78: 0 | AB78: 0 | AC78: 300 | AE78: 0 | AF78: 0 | AG78: 0 | AH78: 0 | AI78: =SUM(AA78:AH78)-data.E[[#This Row],[بدل تمثيل]] -> 300 | AJ78: 79.33 | AK78: 88.57 | AL78: 106.34 | AM78: 0 | AN78: 190 | AO78: 48.21 | AP78: 85.98 | AQ78: 110.4 | AR78: 157.5 | AS78: 168.53 | AT78: 180.32 | AU78: 0 | AV78: 120.5905 | AW78: 600 | AX78: 10 | AY78: 1945.77 | AZ78: 10 | BA78: =ROUND((data.E[[#This Row],[أساسي 7/2025]]*2)/12,2) -> 442.17 | BE78: 9330.42 | BF78: 0 | BG78: =IF(data.E[[#This Row],[حالة العمل]]="إيقاف",data.E[[#This Row],[أساسي 7/2025]],ROUND(SUM(data.E[[#This Row],[بدل تمثيل]],BB78:BF78),2)) -> 9330.42 | BL78: =ROUND(data.E[[#This Row],[تامينات 2026]]/11%,2) -> 8876.27 | BM78: 976.39 | BO78: =(data.E[[#This Row],[إجمالي المستحق]]-SUM(data.E[[#This Row],[الحافز]],data.E[[#This Row],[متوسط المنحة]:[الإضافي]]))/30*data.E[[#This Row],[أيام الغياب]] -> 0 | BP78: =(data.E[[#This Row],[إجمالي المستحق]]-SUM(data.E[[#This Row],[الحافز]],data.E[[#This Row],[متوسط المنحة]:[الإضافي]]))/30*data.E[[#This Row],[أيام جزاء]] -> 0 | BQ78: =IF(data.E[[#This Row],[أيام الغياب]]=1,data.E[[#This Row],[الحافز]]*20%,IF(data.E[[#This Row],[أيام الغياب]]=2,data.E[[#This Row],[الحافز]]*30%,IF(data.E[[#This Row],[أيام الغياب]]>2,data.E[[#This Row],[الحافز]]*100%,0))) -> 0 | BR78: =IF(data.E[[#This Row],[عدد أيام الأجازات]]<=4,data.E[[#This Row],[الحافز]]*0,IF(data.E[[#This Row],[عدد أيام الأجازات]]=5,data.E[[#This Row],[الحافز]]*20%,IF(data.E[[#This Row],[عدد أيام الأجازات]]=6,data.E[[#This Row],[الحافز]]*40%,IF(data.E[[#This Row],[عدد أيام الأجازات]]=7,data.E[[#This Row],[الحافز]]*50%,IF(data.E[[#This Row],[عدد أيام الأجازات]]>7,data.E[[#This Row],[الحافز]]*100%,0))))) -> 0 | BS78: 0 | BT78: 0 | BU78: 0 | BV78: 0 | BW78: 3 | BX78: 0 | BZ78: 0 | CA78: 0 | CB78: 0 | CD78: 0 | CE78: 0 | CF78: 0 | CG78: 0 | CH78: 0 | CJ78: 4.34 | CK78: 5 | CN78: 0 | CO78: 0 | CR78: 0 | CS78: 442.17 | CT78: 0 | CU78: =ROUND(IF($H78=data.E[[#Headers],[إيقاف]],$BG78-SUM(data.E[[#This Row],[تامينات 2026]:[تنفيذ أحكام]],data.E[[#This Row],[الشهداء]:[خصم 5% تأمين من العمولة]],0),0),2) -> 0 | CV78: =ROUND(IF($H78=data.E[[#Headers],[مرضي]],$BG78-SUM(data.E[[#This Row],[تامينات 2026]:[تنفيذ أحكام]],data.E[[#This Row],[الشهداء]:[خصم 5% تأمين من العمولة]],0),0),2) -> 0 | CW78: =ROUND(IF($H78=data.E[[#Headers],[أجازة]],$BG78-SUM(data.E[[#This Row],[تامينات 2026]:[تنفيذ أحكام]],data.E[[#This Row],[الشهداء]:[خصم 5% تأمين من العمولة]],0),0),2) -> 0 | CX78: =ROUND(IF($H78=data.E[[#Headers],[إعارة]],$BG78-SUM(data.E[[#This Row],[تامينات 2026]:[تنفيذ أحكام]],data.E[[#This Row],[الشهداء]:[خصم 5% تأمين من العمولة]],0),0),2) -> 0 | CY78: =ROUND(IF($H78=data.E[[#Headers],[إنهاء]],$BG78-SUM(data.E[[#This Row],[تامينات 2026]:[تنفيذ أحكام]],data.E[[#This Row],[الشهداء]:[خصم 5% تأمين من العمولة]],0),0),2) -> 0 | CZ78: =ROUND(IF($H78=data.E[[#Headers],[معاش]],$BG78-SUM(data.E[[#This Row],[تامينات 2026]:[تنفيذ أحكام]],data.E[[#This Row],[الشهداء]:[خصم 5% تأمين من العمولة]],0),0),2) -> 0 | DA78: =ROUND(SUM(data.E[[#This Row],[تامينات 2026]:[تنفيذ أحكام]],data.E[[#This Row],[الشهداء]:[معاش]]),2) -> 1430.9 | DB78: 7899.52
A79: =IF(data.E[[#This Row],[الموظف المختص]]=print.e!$E$2,COUNTIF('data.e'!$G$4:G79,G79),"") -> 73 | B79: 101076 | C79: 22096 | D79: بنك مصر 1 | E79: طارق عبد الغنى عبد الجيد فايد | G79: منال | H79: دوام كامل | I79: ادارى | J79: الاولى | L79: الأولى | M79: مشرف امن صناعى | N79: الادارة العامة | O79: المنطقه المركزية | P79: 26808231700477 | Q79: 10107622096طارق عبد الغنى عبد الجيد فايدمنالالاولىالأولىمشرف امن صناعى ادارة التفتيش والسلامه | R79: نعم | S79: 1997.06 | T79: 2336.5602 | U79: 0 | V79: 3154.36 | W79: 350.48 | X79: 0 | Y79: 0 | Z79: 0 | AB79: 0 | AC79: 300 | AE79: 0 | AF79: 0 | AG79: 0 | AH79: 0 | AI79: =SUM(AA79:AH79)-data.E[[#This Row],[بدل تمثيل]] -> 300 | AJ79: 65.59 | AK79: 73.39 | AL79: 88.12 | AM79: 0 | AN79: 190 | AO79: 39.92 | AP79: 71.19 | AQ79: 91.41 | AR79: 130.42 | AS79: 139.54 | AT79: 149.31 | AU79: 0 | AV79: 99.853 | AW79: 600 | AX79: 10 | AY79: 1748.74 | AZ79: 10 | BA79: =ROUND((data.E[[#This Row],[أساسي 7/2025]]*2)/12,2) -> 389.43 | BE79: 8289.57 | BF79: 0 | BG79: =IF(data.E[[#This Row],[حالة العمل]]="إيقاف",data.E[[#This Row],[أساسي 7/2025]],ROUND(SUM(data.E[[#This Row],[بدل تمثيل]],BB79:BF79),2)) -> 8289.57 | BL79: =ROUND(data.E[[#This Row],[تامينات 2026]]/11%,2) -> 7630.91 | BM79: 839.4 | BO79: =(data.E[[#This Row],[إجمالي المستحق]]-SUM(data.E[[#This Row],[الحافز]],data.E[[#This Row],[متوسط المنحة]:[الإضافي]]))/30*data.E[[#This Row],[أيام الغياب]] -> 0 | BP79: =(data.E[[#This Row],[إجمالي المستحق]]-SUM(data.E[[#This Row],[الحافز]],data.E[[#This Row],[متوسط المنحة]:[الإضافي]]))/30*data.E[[#This Row],[أيام جزاء]] -> 0 | BQ79: =IF(data.E[[#This Row],[أيام الغياب]]=1,data.E[[#This Row],[الحافز]]*20%,IF(data.E[[#This Row],[أيام الغياب]]=2,data.E[[#This Row],[الحافز]]*30%,IF(data.E[[#This Row],[أيام الغياب]]>2,data.E[[#This Row],[الحافز]]*100%,0))) -> 0 | BR79: =IF(data.E[[#This Row],[عدد أيام الأجازات]]<=4,data.E[[#This Row],[الحافز]]*0,IF(data.E[[#This Row],[عدد أيام الأجازات]]=5,data.E[[#This Row],[الحافز]]*20%,IF(data.E[[#This Row],[عدد أيام الأجازات]]=6,data.E[[#This Row],[الحافز]]*40%,IF(data.E[[#This Row],[عدد أيام الأجازات]]=7,data.E[[#This Row],[الحافز]]*50%,IF(data.E[[#This Row],[عدد أيام الأجازات]]>7,data.E[[#This Row],[الحافز]]*100%,0))))) -> 0 | BS79: 0 | BT79: 8.17 | BU79: 0 | BV79: 0 | BW79: 3 | BX79: 1200 | BZ79: 0 | CA79: 0 | CB79: 0 | CD79: 0 | CE79: 0 | CF79: 0 | CG79: 0 | CH79: 0 | CJ79: 3.8 | CK79: 5 | CN79: 0 | CO79: 0 | CR79: 0 | CS79: 389.43 | CT79: 0 | CU79: =ROUND(IF($H79=data.E[[#Headers],[إيقاف]],$BG79-SUM(data.E[[#This Row],[تامينات 2026]:[تنفيذ أحكام]],data.E[[#This Row],[الشهداء]:[خصم 5% تأمين من العمولة]],0),0),2) -> 0 | CV79: =ROUND(IF($H79=data.E[[#Headers],[مرضي]],$BG79-SUM(data.E[[#This Row],[تامينات 2026]:[تنفيذ أحكام]],data.E[[#This Row],[الشهداء]:[خصم 5% تأمين من العمولة]],0),0),2) -> 0 | CW79: =ROUND(IF($H79=data.E[[#Headers],[أجازة]],$BG79-SUM(data.E[[#This Row],[تامينات 2026]:[تنفيذ أحكام]],data.E[[#This Row],[الشهداء]:[خصم 5% تأمين من العمولة]],0),0),2) -> 0 | CX79: =ROUND(IF($H79=data.E[[#Headers],[إعارة]],$BG79-SUM(data.E[[#This Row],[تامينات 2026]:[تنفيذ أحكام]],data.E[[#This Row],[الشهداء]:[خصم 5% تأمين من العمولة]],0),0),2) -> 0 | CY79: =ROUND(IF($H79=data.E[[#Headers],[إنهاء]],$BG79-SUM(data.E[[#This Row],[تامينات 2026]:[تنفيذ أحكام]],data.E[[#This Row],[الشهداء]:[خصم 5% تأمين من العمولة]],0),0),2) -> 0 | CZ79: =ROUND(IF($H79=data.E[[#Headers],[معاش]],$BG79-SUM(data.E[[#This Row],[تامينات 2026]:[تنفيذ أحكام]],data.E[[#This Row],[الشهداء]:[خصم 5% تأمين من العمولة]],0),0),2) -> 0 | DA79: =ROUND(SUM(data.E[[#This Row],[تامينات 2026]:[تنفيذ أحكام]],data.E[[#This Row],[الشهداء]:[معاش]]),2) -> 2448.8 | DB79: 5840.77
A80: =IF(data.E[[#This Row],[الموظف المختص]]=print.e!$E$2,COUNTIF('data.e'!$G$4:G80,G80),"") -> 74 | B80: 101077 | C80: 33254 | D80: بنك مصر 1 | E80: احمد سعيد عبد السميع عبد المعطى | G80: منال | H80: دوام كامل | I80: ادارى | J80: الثانية | N80: الادارة العامة | O80: المنطقه المركزية | P80: 27910010117931 | Q80: 10107733254احمد سعيد عبد السميع عبد المعطىمنالالثانية | S80: 1040.13 | T80: 1216.95 | U80: 0 | V80: 1642.88 | W80: 182.54 | X80: 0 | Y80: 0 | Z80: 0 | AB80: 0 | AC80: 300 | AE80: 0 | AF80: 0 | AG80: 0 | AH80: 0 | AI80: =SUM(AA80:AH80)-data.E[[#This Row],[بدل تمثيل]] -> 300 | AJ80: 34.05 | AK80: 38.12 | AL80: 65 | AM80: 0 | AN80: 190 | AO80: 26.48 | AP80: 37.08 | AQ80: 47.61 | AR80: 67.92 | AS80: 72.68 | AT80: 81.95 | AU80: 0 | AV80: 52.0065 | AW80: 600 | AX80: 10 | AY80: 1322.9 | AZ80: 10 | BA80: =ROUND((data.E[[#This Row],[أساسي 7/2025]]*2)/12,2) -> 202.83 | BE80: 4878.1 | BF80: 2121.9 | BG80: =IF(data.E[[#This Row],[حالة العمل]]="إيقاف",data.E[[#This Row],[أساسي 7/2025]],ROUND(SUM(data.E[[#This Row],[بدل تمثيل]],BB80:BF80),2)) -> 7000 | BL80: =ROUND(data.E[[#This Row],[تامينات 2026]]/11%,2) -> 5808.55 | BM80: 638.94 | BO80: =(data.E[[#This Row],[إجمالي المستحق]]-SUM(data.E[[#This Row],[الحافز]],data.E[[#This Row],[متوسط المنحة]:[الإضافي]]))/30*data.E[[#This Row],[أيام الغياب]] -> 0 | BP80: =(data.E[[#This Row],[إجمالي المستحق]]-SUM(data.E[[#This Row],[الحافز]],data.E[[#This Row],[متوسط المنحة]:[الإضافي]]))/30*data.E[[#This Row],[أيام جزاء]] -> 0 | BQ80: =IF(data.E[[#This Row],[أيام الغياب]]=1,data.E[[#This Row],[الحافز]]*20%,IF(data.E[[#This Row],[أيام الغياب]]=2,data.E[[#This Row],[الحافز]]*30%,IF(data.E[[#This Row],[أيام الغياب]]>2,data.E[[#This Row],[الحافز]]*100%,0))) -> 0 | BR80: =IF(data.E[[#This Row],[عدد أيام الأجازات]]<=4,data.E[[#This Row],[الحافز]]*0,IF(data.E[[#This Row],[عدد أيام الأجازات]]=5,data.E[[#This Row],[الحافز]]*20%,IF(data.E[[#This Row],[عدد أيام الأجازات]]=6,data.E[[#This Row],[الحافز]]*40%,IF(data.E[[#This Row],[عدد أيام الأجازات]]=7,data.E[[#This Row],[الحافز]]*50%,IF(data.E[[#This Row],[عدد أيام الأجازات]]>7,data.E[[#This Row],[الحافز]]*100%,0))))) -> 0 | BS80: 0 | BT80: 0 | BU80: 0 | BV80: 0 | BW80: 3 | BX80: 0 | BZ80: 0 | CA80: 0 | CB80: 0 | CD80: 0 | CE80: 0 | CF80: 0 | CG80: 0 | CH80: 0 | CJ80: 3.25 | CK80: 3 | CN80: 0 | CO80: 0 | CR80: 0 | CS80: 202.83 | CT80: 0 | CU80: =ROUND(IF($H80=data.E[[#Headers],[إيقاف]],$BG80-SUM(data.E[[#This Row],[تامينات 2026]:[تنفيذ أحكام]],data.E[[#This Row],[الشهداء]:[خصم 5% تأمين من العمولة]],0),0),2) -> 0 | CV80: =ROUND(IF($H80=data.E[[#Headers],[مرضي]],$BG80-SUM(data.E[[#This Row],[تامينات 2026]:[تنفيذ أحكام]],data.E[[#This Row],[الشهداء]:[خصم 5% تأمين من العمولة]],0),0),2) -> 0 | CW80: =ROUND(IF($H80=data.E[[#Headers],[أجازة]],$BG80-SUM(data.E[[#This Row],[تامينات 2026]:[تنفيذ أحكام]],data.E[[#This Row],[الشهداء]:[خصم 5% تأمين من العمولة]],0),0),2) -> 0 | CX80: =ROUND(IF($H80=data.E[[#Headers],[إعارة]],$BG80-SUM(data.E[[#This Row],[تامينات 2026]:[تنفيذ أحكام]],data.E[[#This Row],[الشهداء]:[خصم 5% تأمين من العمولة]],0),0),2) -> 0 | CY80: =ROUND(IF($H80=data.E[[#Headers],[إنهاء]],$BG80-SUM(data.E[[#This Row],[تامينات 2026]:[تنفيذ أحكام]],data.E[[#This Row],[الشهداء]:[خصم 5% تأمين من العمولة]],0),0),2) -> 0 | CZ80: =ROUND(IF($H80=data.E[[#Headers],[معاش]],$BG80-SUM(data.E[[#This Row],[تامينات 2026]:[تنفيذ أحكام]],data.E[[#This Row],[الشهداء]:[خصم 5% تأمين من العمولة]],0),0),2) -> 0 | DA80: =ROUND(SUM(data.E[[#This Row],[تامينات 2026]:[تنفيذ أحكام]],data.E[[#This Row],[الشهداء]:[معاش]]),2) -> 851.02 | DB80: 6148.98
A81: =IF(data.E[[#This Row],[الموظف المختص]]=print.e!$E$2,COUNTIF('data.e'!$G$4:G81,G81),"") -> 75 | B81: 101078 | C81: 42320 | D81: بنك مصر 1 | E81: اسامة يحيي حامد ابو عيشه | G81: منال | H81: دوام كامل | I81: ادارى | J81: الثالثة | L81: الثالثة | M81: كاتب امن | N81: الادارة العامة | O81: المنطقه المركزية | P81: 27202222200851 | Q81: 10107842320اسامة يحيي حامد ابو عيشهمنالالثالثةالثالثةكاتب امن بنى سويف | R81: نعم | S81: 849.38 | T81: 993.7746 | U81: 0 | V81: 1341.6 | W81: 149.07 | X81: 0 | Y81: 0 | Z81: 0 | AB81: 0 | AC81: 300 | AE81: 0 | AF81: 0 | AG81: 0 | AH81: 0 | AI81: =SUM(AA81:AH81)-data.E[[#This Row],[بدل تمثيل]] -> 300 | AJ81: 28.18 | AK81: 31.71 | AL81: 65 | AM81: 0 | AN81: 200 | AO81: 35.38 | AP81: 32.61 | AQ81: 38.88 | AR81: 55.46 | AS81: 73.07 | AT81: 124.43 | AU81: 0 | AV81: 65.062 | AW81: 600 | AX81: 10 | AY81: 1359.78 | AZ81: 10 | BA81: =ROUND((data.E[[#This Row],[أساسي 7/2025]]*2)/12,2) -> 165.63 | BE81: 4319.85 | BF81: 2680.15 | BG81: =IF(data.E[[#This Row],[حالة العمل]]="إيقاف",data.E[[#This Row],[أساسي 7/2025]],ROUND(SUM(data.E[[#This Row],[بدل تمثيل]],BB81:BF81),2)) -> 7000 | BL81: =ROUND(data.E[[#This Row],[تامينات 2026]]/11%,2) -> 5775.82 | BM81: 635.34 | BO81: =(data.E[[#This Row],[إجمالي المستحق]]-SUM(data.E[[#This Row],[الحافز]],data.E[[#This Row],[متوسط المنحة]:[الإضافي]]))/30*data.E[[#This Row],[أيام الغياب]] -> 0 | BP81: =(data.E[[#This Row],[إجمالي المستحق]]-SUM(data.E[[#This Row],[الحافز]],data.E[[#This Row],[متوسط المنحة]:[الإضافي]]))/30*data.E[[#This Row],[أيام جزاء]] -> 0 | BQ81: =IF(data.E[[#This Row],[أيام الغياب]]=1,data.E[[#This Row],[الحافز]]*20%,IF(data.E[[#This Row],[أيام الغياب]]=2,data.E[[#This Row],[الحافز]]*30%,IF(data.E[[#This Row],[أيام الغياب]]>2,data.E[[#This Row],[الحافز]]*100%,0))) -> 0 | BR81: =IF(data.E[[#This Row],[عدد أيام الأجازات]]<=4,data.E[[#This Row],[الحافز]]*0,IF(data.E[[#This Row],[عدد أيام الأجازات]]=5,data.E[[#This Row],[الحافز]]*20%,IF(data.E[[#This Row],[عدد أيام الأجازات]]=6,data.E[[#This Row],[الحافز]]*40%,IF(data.E[[#This Row],[عدد أيام الأجازات]]=7,data.E[[#This Row],[الحافز]]*50%,IF(data.E[[#This Row],[عدد أيام الأجازات]]>7,data.E[[#This Row],[الحافز]]*100%,0))))) -> 0 | BS81: 0 | BT81: 0 | BU81: 0 | BV81: 0 | BW81: 3 | BX81: 0 | BZ81: 0 | CA81: 0 | CB81: 0 | CD81: 0 | CE81: 0 | CF81: 0 | CG81: 0 | CH81: 0 | CJ81: 3.27 | CK81: 3 | CN81: 0 | CO81: 0 | CR81: 0 | CS81: 165.63 | CT81: 0 | CU81: =ROUND(IF($H81=data.E[[#Headers],[إيقاف]],$BG81-SUM(data.E[[#This Row],[تامينات 2026]:[تنفيذ أحكام]],data.E[[#This Row],[الشهداء]:[خصم 5% تأمين من العمولة]],0),0),2) -> 0 | CV81: =ROUND(IF($H81=data.E[[#Headers],[مرضي]],$BG81-SUM(data.E[[#This Row],[تامينات 2026]:[تنفيذ أحكام]],data.E[[#This Row],[الشهداء]:[خصم 5% تأمين من العمولة]],0),0),2) -> 0 | CW81: =ROUND(IF($H81=data.E[[#Headers],[أجازة]],$BG81-SUM(data.E[[#This Row],[تامينات 2026]:[تنفيذ أحكام]],data.E[[#This Row],[الشهداء]:[خصم 5% تأمين من العمولة]],0),0),2) -> 0 | CX81: =ROUND(IF($H81=data.E[[#Headers],[إعارة]],$BG81-SUM(data.E[[#This Row],[تامينات 2026]:[تنفيذ أحكام]],data.E[[#This Row],[الشهداء]:[خصم 5% تأمين من العمولة]],0),0),2) -> 0 | CY81: =ROUND(IF($H81=data.E[[#Headers],[إنهاء]],$BG81-SUM(data.E[[#This Row],[تامينات 2026]:[تنفيذ أحكام]],data.E[[#This Row],[الشهداء]:[خصم 5% تأمين من العمولة]],0),0),2) -> 0 | CZ81: =ROUND(IF($H81=data.E[[#Headers],[معاش]],$BG81-SUM(data.E[[#This Row],[تامينات 2026]:[تنفيذ أحكام]],data.E[[#This Row],[الشهداء]:[خصم 5% تأمين من العمولة]],0),0),2) -> 0 | DA81: =ROUND(SUM(data.E[[#This Row],[تامينات 2026]:[تنفيذ أحكام]],data.E[[#This Row],[الشهداء]:[معاش]]),2) -> 810.24 | DB81: 6189.76
A82: =IF(data.E[[#This Row],[الموظف المختص]]=print.e!$E$2,COUNTIF('data.e'!$G$4:G82,G82),"") -> 76 | B82: 101080 | C82: 10080 | D82: بنك مصر 1 | E82: ايمن متولي بدري احمد | G82: منال | H82: دوام كامل | I82: ادارى | J82: الاولى | N82: الادارة العامة | O82: المنطقه المركزية | P82: 27103030103691 | Q82: 10108010080ايمن متولي بدري احمدمنالالاولى | S82: 1851.27 | T82: 2036.397 | U82: 0 | V82: 2749.14 | W82: 305.46 | X82: 0 | Y82: 0 | Z82: 0 | AB82: 0 | AC82: 300 | AE82: 200 | AG82: 0 | AH82: 0 | AI82: =SUM(AA82:AH82)-data.E[[#This Row],[بدل تمثيل]] -> 300 | AJ82: 64.3154 | AK82: 71.95119 | AL82: 86.33549 | AM82: 0 | AN82: 190 | AO82: 37.00738 | AP82: 65.9965 | AQ82: 84.7395 | AR82: 120.895 | AS82: 129.3577 | AT82: 138.4127 | AU82: 0 | AV82: 92.5635 | AW82: 600 | AX82: 6 | AY82: 1687.57 | AZ82: 10 | BA82: =ROUND((data.E[[#This Row],[أساسي 7/2025]]*2)/12,2) -> 339.4 | BE82: 7427.97 | BF82: 0 | BG82: =IF(data.E[[#This Row],[حالة العمل]]="إيقاف",data.E[[#This Row],[أساسي 7/2025]],ROUND(SUM(data.E[[#This Row],[بدل تمثيل]],BB82:BF82),2)) -> 7627.97 | BL82: =ROUND(data.E[[#This Row],[تامينات 2026]]/11%,2) -> 7109.55 | BM82: 782.05 | BO82: =(data.E[[#This Row],[إجمالي المستحق]]-SUM(data.E[[#This Row],[الحافز]],data.E[[#This Row],[متوسط المنحة]:[الإضافي]]))/30*data.E[[#This Row],[أيام الغياب]] -> 0 | BP82: =(data.E[[#This Row],[إجمالي المستحق]]-SUM(data.E[[#This Row],[الحافز]],data.E[[#This Row],[متوسط المنحة]:[الإضافي]]))/30*data.E[[#This Row],[أيام جزاء]] -> 0 | BQ82: =IF(data.E[[#This Row],[أيام الغياب]]=1,data.E[[#This Row],[الحافز]]*20%,IF(data.E[[#This Row],[أيام الغياب]]=2,data.E[[#This Row],[الحافز]]*30%,IF(data.E[[#This Row],[أيام الغياب]]>2,data.E[[#This Row],[الحافز]]*100%,0))) -> 0 | BR82: =IF(data.E[[#This Row],[عدد أيام الأجازات]]<=4,data.E[[#This Row],[الحافز]]*0,IF(data.E[[#This Row],[عدد أيام الأجازات]]=5,data.E[[#This Row],[الحافز]]*20%,IF(data.E[[#This Row],[عدد أيام الأجازات]]=6,data.E[[#This Row],[الحافز]]*40%,IF(data.E[[#This Row],[عدد أيام الأجازات]]=7,data.E[[#This Row],[الحافز]]*50%,IF(data.E[[#This Row],[عدد أيام الأجازات]]>7,data.E[[#This Row],[الحافز]]*100%,0))))) -> 0 | BS82: 0 | BT82: 0 | BU82: 0 | BW82: 3 | BX82: 0 | BZ82: 0 | CD82: 0 | CE82: 0 | CG82: 0 | CJ82: 3.49 | CK82: 5 | CR82: 0 | CS82: 339.4 | CT82: 0 | CU82: =ROUND(IF($H82=data.E[[#Headers],[إيقاف]],$BG82-SUM(data.E[[#This Row],[تامينات 2026]:[تنفيذ أحكام]],data.E[[#This Row],[الشهداء]:[خصم 5% تأمين من العمولة]],0),0),2) -> 0 | CV82: =ROUND(IF($H82=data.E[[#Headers],[مرضي]],$BG82-SUM(data.E[[#This Row],[تامينات 2026]:[تنفيذ أحكام]],data.E[[#This Row],[الشهداء]:[خصم 5% تأمين من العمولة]],0),0),2) -> 0 | CW82: =ROUND(IF($H82=data.E[[#Headers],[أجازة]],$BG82-SUM(data.E[[#This Row],[تامينات 2026]:[تنفيذ أحكام]],data.E[[#This Row],[الشهداء]:[خصم 5% تأمين من العمولة]],0),0),2) -> 0 | CX82: =ROUND(IF($H82=data.E[[#Headers],[إعارة]],$BG82-SUM(data.E[[#This Row],[تامينات 2026]:[تنفيذ أحكام]],data.E[[#This Row],[الشهداء]:[خصم 5% تأمين من العمولة]],0),0),2) -> 0 | CY82: =ROUND(IF($H82=data.E[[#Headers],[إنهاء]],$BG82-SUM(data.E[[#This Row],[تامينات 2026]:[تنفيذ أحكام]],data.E[[#This Row],[الشهداء]:[خصم 5% تأمين من العمولة]],0),0),2) -> 0 | CZ82: =ROUND(IF($H82=data.E[[#Headers],[معاش]],$BG82-SUM(data.E[[#This Row],[تامينات 2026]:[تنفيذ أحكام]],data.E[[#This Row],[الشهداء]:[خصم 5% تأمين من العمولة]],0),0),2) -> 0 | DA82: =ROUND(SUM(data.E[[#This Row],[تامينات 2026]:[تنفيذ أحكام]],data.E[[#This Row],[الشهداء]:[معاش]]),2) -> 1132.94 | DB82: 6495.03
A83: =IF(data.E[[#This Row],[الموظف المختص]]=print.e!$E$2,COUNTIF('data.e'!$G$4:G83,G83),"") ->  | B83: 101081 | C83: 1359 | D83: بنك مصر 1 | E83: رشا عصمت عبد الرحمن | G83: مرفت | H83: دوام كامل | I83: ادارى | J83: الثانية | L83: الثانية | M83: محام | N83: الادارة العامة | O83: المنطقه المركزية | P83: 2880250106466 | Q83: 1010811359رشا عصمت عبد الرحمنمرفتالثانيةالثانيةمحام الاميرية | R83: نعم | S83: 1253 | T83: 1466.01 | U83: 0 | V83: 1979.11 | W83: 219.9 | X83: 0 | Y83: 0 | Z83: 0 | AB83: 0 | AC83: 300 | AE83: 0 | AF83: 0 | AG83: 0 | AH83: 0 | AI83: =SUM(AA83:AH83)-data.E[[#This Row],[بدل تمثيل]] -> 300 | AJ83: 41.06 | AK83: 46.07 | AL83: 65 | AM83: 0 | AN83: 190 | AO83: 23.4 | AP83: 41.74 | AQ83: 53.6 | AR83: 76.47 | AS83: 81.83 | AT83: 93.68 | AU83: 0 | AV83: 62.65 | AW83: 600 | AX83: 6 | AY83: 1381.5 | AZ83: 10 | BA83: =ROUND((data.E[[#This Row],[أساسي 7/2025]]*2)/12,2) -> 244.34 | BE83: 5600.86 | BF83: 1399.14 | BG83: =IF(data.E[[#This Row],[حالة العمل]]="إيقاف",data.E[[#This Row],[أساسي 7/2025]],ROUND(SUM(data.E[[#This Row],[بدل تمثيل]],BB83:BF83),2)) -> 7000 | BL83: =ROUND(data.E[[#This Row],[تامينات 2026]]/11%,2) -> 5874.55 | BM83: 646.2 | BO83: =(data.E[[#This Row],[إجمالي المستحق]]-SUM(data.E[[#This Row],[الحافز]],data.E[[#This Row],[متوسط المنحة]:[الإضافي]]))/30*data.E[[#This Row],[أيام الغياب]] -> 0 | BP83: =(data.E[[#This Row],[إجمالي المستحق]]-SUM(data.E[[#This Row],[الحافز]],data.E[[#This Row],[متوسط المنحة]:[الإضافي]]))/30*data.E[[#This Row],[أيام جزاء]] -> 0 | BQ83: =IF(data.E[[#This Row],[أيام الغياب]]=1,data.E[[#This Row],[الحافز]]*20%,IF(data.E[[#This Row],[أيام الغياب]]=2,data.E[[#This Row],[الحافز]]*30%,IF(data.E[[#This Row],[أيام الغياب]]>2,data.E[[#This Row],[الحافز]]*100%,0))) -> 0 | BR83: =IF(data.E[[#This Row],[عدد أيام الأجازات]]<=4,data.E[[#This Row],[الحافز]]*0,IF(data.E[[#This Row],[عدد أيام الأجازات]]=5,data.E[[#This Row],[الحافز]]*20%,IF(data.E[[#This Row],[عدد أيام الأجازات]]=6,data.E[[#This Row],[الحافز]]*40%,IF(data.E[[#This Row],[عدد أيام الأجازات]]=7,data.E[[#This Row],[الحافز]]*50%,IF(data.E[[#This Row],[عدد أيام الأجازات]]>7,data.E[[#This Row],[الحافز]]*100%,0))))) -> 0 | BS83: 0 | BT83: 57 | BU83: 0 | BV83: 0 | BW83: 3 | BX83: 0 | BZ83: 0 | CA83: 0 | CB83: 0 | CD83: 0 | CE83: 0 | CF83: 0 | CG83: 0 | CH83: 0 | CJ83: 3.23 | CK83: 3 | CN83: 0 | CO83: 0 | CR83: 0 | CS83: 244.34 | CT83: 0 | CU83: =ROUND(IF($H83=data.E[[#Headers],[إيقاف]],$BG83-SUM(data.E[[#This Row],[تامينات 2026]:[تنفيذ أحكام]],data.E[[#This Row],[الشهداء]:[خصم 5% تأمين من العمولة]],0),0),2) -> 0 | CV83: =ROUND(IF($H83=data.E[[#Headers],[مرضي]],$BG83-SUM(data.E[[#This Row],[تامينات 2026]:[تنفيذ أحكام]],data.E[[#This Row],[الشهداء]:[خصم 5% تأمين من العمولة]],0),0),2) -> 0 | CW83: =ROUND(IF($H83=data.E[[#Headers],[أجازة]],$BG83-SUM(data.E[[#This Row],[تامينات 2026]:[تنفيذ أحكام]],data.E[[#This Row],[الشهداء]:[خصم 5% تأمين من العمولة]],0),0),2) -> 0 | CX83: =ROUND(IF($H83=data.E[[#Headers],[إعارة]],$BG83-SUM(data.E[[#This Row],[تامينات 2026]:[تنفيذ أحكام]],data.E[[#This Row],[الشهداء]:[خصم 5% تأمين من العمولة]],0),0),2) -> 0 | CY83: =ROUND(IF($H83=data.E[[#Headers],[إنهاء]],$BG83-SUM(data.E[[#This Row],[تامينات 2026]:[تنفيذ أحكام]],data.E[[#This Row],[الشهداء]:[خصم 5% تأمين من العمولة]],0),0),2) -> 0 | CZ83: =ROUND(IF($H83=data.E[[#Headers],[معاش]],$BG83-SUM(data.E[[#This Row],[تامينات 2026]:[تنفيذ أحكام]],data.E[[#This Row],[الشهداء]:[خصم 5% تأمين من العمولة]],0),0),2) -> 0 | DA83: =ROUND(SUM(data.E[[#This Row],[تامينات 2026]:[تنفيذ أحكام]],data.E[[#This Row],[الشهداء]:[معاش]]),2) -> 956.77 | DB83: 6043.23
A84: =IF(data.E[[#This Row],[الموظف المختص]]=print.e!$E$2,COUNTIF('data.e'!$G$4:G84,G84),"") -> 77 | B84: 101082 | C84: 10082 | D84: بنك مصر 1 | E84: مدحت احمد ابراهيم جمعة | G84: منال | H84: دوام كامل | I84: ادارى | J84: الاولى | L84: الأولى | M84: اخصائى شئون مالية | N84: الادارة العامة | O84: المنطقه المركزية | P84: 27708200102678 | Q84: 10108210082مدحت احمد ابراهيم جمعةمنالالاولىالأولىاخصائى شئون ماليةقطاع مالى | R84: نعم | S84: 1242.477 | T84: 1453.69809 | U84: 0 | V84: 1962.49 | W84: 218.05 | X84: 0 | Y84: 0 | Z84: 0 | AB84: 0 | AC84: 300 | AE84: 0 | AG84: 0 | AH84: 0 | AI84: =SUM(AA84:AH84)-data.E[[#This Row],[بدل تمثيل]] -> 300 | AJ84: 41.11798 | AK84: 46.13196 | AL84: 65 | AM84: 0 | AN84: 190 | AO84: 24.83744 | AP84: 44.29344 | AQ84: 56.87278 | AR84: 81.13849 | AS84: 86.81818 | AT84: 92.89546 | AU84: 0 | AV84: 62.12385 | AW84: 600 | AX84: 6 | AY84: 1397.23 | AZ84: 10 | BA84: =ROUND((data.E[[#This Row],[أساسي 7/2025]]*2)/12,2) -> 242.28 | BE84: 5583.75 | BF84: 1416.25 | BG84: =IF(data.E[[#This Row],[حالة العمل]]="إيقاف",data.E[[#This Row],[أساسي 7/2025]],ROUND(SUM(data.E[[#This Row],[بدل تمثيل]],BB84:BF84),2)) -> 7000 | BL84: =ROUND(data.E[[#This Row],[تامينات 2026]]/11%,2) -> 5851.73 | BM84: 643.69 | BO84: =(data.E[[#This Row],[إجمالي المستحق]]-SUM(data.E[[#This Row],[الحافز]],data.E[[#This Row],[متوسط المنحة]:[الإضافي]]))/30*data.E[[#This Row],[أيام الغياب]] -> 0 | BP84: =(data.E[[#This Row],[إجمالي المستحق]]-SUM(data.E[[#This Row],[الحافز]],data.E[[#This Row],[متوسط المنحة]:[الإضافي]]))/30*data.E[[#This Row],[أيام جزاء]] -> 0 | BQ84: =IF(data.E[[#This Row],[أيام الغياب]]=1,data.E[[#This Row],[الحافز]]*20%,IF(data.E[[#This Row],[أيام الغياب]]=2,data.E[[#This Row],[الحافز]]*30%,IF(data.E[[#This Row],[أيام الغياب]]>2,data.E[[#This Row],[الحافز]]*100%,0))) -> 0 | BR84: =IF(data.E[[#This Row],[عدد أيام الأجازات]]<=4,data.E[[#This Row],[الحافز]]*0,IF(data.E[[#This Row],[عدد أيام الأجازات]]=5,data.E[[#This Row],[الحافز]]*20%,IF(data.E[[#This Row],[عدد أيام الأجازات]]=6,data.E[[#This Row],[الحافز]]*40%,IF(data.E[[#This Row],[عدد أيام الأجازات]]=7,data.E[[#This Row],[الحافز]]*50%,IF(data.E[[#This Row],[عدد أيام الأجازات]]>7,data.E[[#This Row],[الحافز]]*100%,0))))) -> 0 | BS84: 0 | BT84: 0 | BU84: 0 | BW84: 3 | BX84: 0 | BZ84: 0 | CD84: 0 | CE84: 0 | CG84: 0 | CJ84: 3.23 | CK84: 5 | CR84: 0 | CS84: 242.28 | CT84: 0 | CU84: =ROUND(IF($H84=data.E[[#Headers],[إيقاف]],$BG84-SUM(data.E[[#This Row],[تامينات 2026]:[تنفيذ أحكام]],data.E[[#This Row],[الشهداء]:[خصم 5% تأمين من العمولة]],0),0),2) -> 0 | CV84: =ROUND(IF($H84=data.E[[#Headers],[مرضي]],$BG84-SUM(data.E[[#This Row],[تامينات 2026]:[تنفيذ أحكام]],data.E[[#This Row],[الشهداء]:[خصم 5% تأمين من العمولة]],0),0),2) -> 0 | CW84: =ROUND(IF($H84=data.E[[#Headers],[أجازة]],$BG84-SUM(data.E[[#This Row],[تامينات 2026]:[تنفيذ أحكام]],data.E[[#This Row],[الشهداء]:[خصم 5% تأمين من العمولة]],0),0),2) -> 0 | CX84: =ROUND(IF($H84=data.E[[#Headers],[إعارة]],$BG84-SUM(data.E[[#This Row],[تامينات 2026]:[تنفيذ أحكام]],data.E[[#This Row],[الشهداء]:[خصم 5% تأمين من العمولة]],0),0),2) -> 0 | CY84: =ROUND(IF($H84=data.E[[#Headers],[إنهاء]],$BG84-SUM(data.E[[#This Row],[تامينات 2026]:[تنفيذ أحكام]],data.E[[#This Row],[الشهداء]:[خصم 5% تأمين من العمولة]],0),0),2) -> 0 | CZ84: =ROUND(IF($H84=data.E[[#Headers],[معاش]],$BG84-SUM(data.E[[#This Row],[تامينات 2026]:[تنفيذ أحكام]],data.E[[#This Row],[الشهداء]:[خصم 5% تأمين من العمولة]],0),0),2) -> 0 | DA84: =ROUND(SUM(data.E[[#This Row],[تامينات 2026]:[تنفيذ أحكام]],data.E[[#This Row],[الشهداء]:[معاش]]),2) -> 897.2 | DB84: 6102.8
A85: =IF(data.E[[#This Row],[الموظف المختص]]=print.e!$E$2,COUNTIF('data.e'!$G$4:G85,G85),"") -> 78 | B85: 101084 | C85: 10084 | D85: بنك مصر 1 | E85: محمد عبد الفتاح السيد عبدالرحيم | G85: منال | H85: دوام كامل | I85: ادارى | J85: الثانية | N85: الادارة العامة | O85: المنطقه المركزية | P85: 28209090102798 | Q85: 10108410084محمد عبد الفتاح السيد عبدالرحيممنالالثانية | S85: 1161.864 | T85: 1359.8 | U85: 0 | V85: 1835.73 | W85: 203.97 | X85: 0 | Y85: 0 | Z85: 0 | AB85: 0 | AC85: 300 | AE85: 0 | AG85: 0 | AH85: 0 | AI85: =SUM(AA85:AH85)-data.E[[#This Row],[بدل تمثيل]] -> 300 | AJ85: 40.53535 | AK85: 45.30097 | AL85: 65 | AM85: 0 | AN85: 190 | AO85: 23.22597 | AP85: 41.41964 | AQ85: 53.18282 | AR85: 75.87416 | AS85: 81.18535 | AT85: 86.86833 | AU85: 0 | AV85: 58.0932 | AW85: 600 | AX85: 10 | AY85: 1370.69 | AZ85: 10 | BA85: =ROUND((data.E[[#This Row],[أساسي 7/2025]]*2)/12,2) -> 226.63 | BE85: 5306.82 | BF85: 1693.18 | BG85: =IF(data.E[[#This Row],[حالة العمل]]="إيقاف",data.E[[#This Row],[أساسي 7/2025]],ROUND(SUM(data.E[[#This Row],[بدل تمثيل]],BB85:BF85),2)) -> 7000 | BL85: =ROUND(data.E[[#This Row],[تامينات 2026]]/11%,2) -> 5808.82 | BM85: 638.97 | BO85: 0 | BP85: =(data.E[[#This Row],[إجمالي المستحق]]-SUM(data.E[[#This Row],[الحافز]],data.E[[#This Row],[متوسط المنحة]:[الإضافي]]))/30*data.E[[#This Row],[أيام جزاء]] -> 0 | BQ85: =IF(data.E[[#This Row],[أيام الغياب]]=1,data.E[[#This Row],[الحافز]]*20%,IF(data.E[[#This Row],[أيام الغياب]]=2,data.E[[#This Row],[الحافز]]*30%,IF(data.E[[#This Row],[أيام الغياب]]>2,data.E[[#This Row],[الحافز]]*100%,0))) -> 0 | BR85: 0 | BS85: 0 | BT85: 0 | BU85: 0 | BW85: 3 | BX85: 0 | BZ85: 0 | CD85: 0 | CE85: 0 | CG85: 0 | CJ85: 3.24 | CK85: 5 | CR85: 0 | CS85: 226.63 | CT85: 0 | CU85: =ROUND(IF($H85=data.E[[#Headers],[إيقاف]],$BG85-SUM(data.E[[#This Row],[تامينات 2026]:[تنفيذ أحكام]],data.E[[#This Row],[الشهداء]:[خصم 5% تأمين من العمولة]],0),0),2) -> 0 | CV85: =ROUND(IF($H85=data.E[[#Headers],[مرضي]],$BG85-SUM(data.E[[#This Row],[تامينات 2026]:[تنفيذ أحكام]],data.E[[#This Row],[الشهداء]:[خصم 5% تأمين من العمولة]],0),0),2) -> 0 | CW85: =ROUND(IF($H85=data.E[[#Headers],[أجازة]],$BG85-SUM(data.E[[#This Row],[تامينات 2026]:[تنفيذ أحكام]],data.E[[#This Row],[الشهداء]:[خصم 5% تأمين من العمولة]],0),0),2) -> 0 | CX85: =ROUND(IF($H85=data.E[[#Headers],[إعارة]],$BG85-SUM(data.E[[#This Row],[تامينات 2026]:[تنفيذ أحكام]],data.E[[#This Row],[الشهداء]:[خصم 5% تأمين من العمولة]],0),0),2) -> 0 | CY85: =ROUND(IF($H85=data.E[[#Headers],[إنهاء]],$BG85-SUM(data.E[[#This Row],[تامينات 2026]:[تنفيذ أحكام]],data.E[[#This Row],[الشهداء]:[خصم 5% تأمين من العمولة]],0),0),2) -> 0 | CZ85: =ROUND(IF($H85=data.E[[#Headers],[معاش]],$BG85-SUM(data.E[[#This Row],[تامينات 2026]:[تنفيذ أحكام]],data.E[[#This Row],[الشهداء]:[خصم 5% تأمين من العمولة]],0),0),2) -> 0 | DA85: =ROUND(SUM(data.E[[#This Row],[تامينات 2026]:[تنفيذ أحكام]],data.E[[#This Row],[الشهداء]:[معاش]]),2) -> 876.84 | DB85: 6123.16
A86: =IF(data.E[[#This Row],[الموظف المختص]]=print.e!$E$2,COUNTIF('data.e'!$G$4:G86,G86),"") -> 79 | B86: 101086 | C86: 10086 | D86: بنك مصر 1 | E86: عبير جمعة عامر صقر | G86: منال | H86: دوام كامل | I86: ادارى | J86: الاولى | L86: الأولى | M86: محاسب | N86: الادارة العامة | O86: المنطقه المركزية | P86: 27807082103247 | Q86: 10108610086عبير جمعة عامر صقرمنالالاولىالأولىمحاسبقطاع مالى | R86: نعم | S86: 1445.074 | T86: 1690.73658 | U86: 0 | V86: 2282.49 | W86: 253.61 | X86: 0 | Y86: 0 | Z86: 0 | AB86: 0 | AC86: 300 | AE86: 0 | AG86: 0 | AH86: 0 | AI86: =SUM(AA86:AH86)-data.E[[#This Row],[بدل تمثيل]] -> 300 | AJ86: 52.01554 | AK86: 57.79342 | AL86: 68.05 | AM86: 0 | AN86: 190 | AO86: 28.88741 | AP86: 51.51589 | AQ86: 66.14639 | AR86: 94.36886 | AS86: 100.9747 | AT86: 108.0429 | AU86: 0 | AV86: 72.2537 | AW86: 600 | AX86: 4 | AY86: 1494.05 | AZ86: 10 | BA86: =ROUND((data.E[[#This Row],[أساسي 7/2025]]*2)/12,2) -> 281.79 | BE86: 6312.68 | BF86: 687.32 | BG86: =IF(data.E[[#This Row],[حالة العمل]]="إيقاف",data.E[[#This Row],[أساسي 7/2025]],ROUND(SUM(data.E[[#This Row],[بدل تمثيل]],BB86:BF86),2)) -> 7000 | BL86: =ROUND(data.E[[#This Row],[تامينات 2026]]/11%,2) -> 6027.45 | BM86: 663.02 | BO86: =(data.E[[#This Row],[إجمالي المستحق]]-SUM(data.E[[#This Row],[الحافز]],data.E[[#This Row],[متوسط المنحة]:[الإضافي]]))/30*data.E[[#This Row],[أيام الغياب]] -> 0 | BP86: =(data.E[[#This Row],[إجمالي المستحق]]-SUM(data.E[[#This Row],[الحافز]],data.E[[#This Row],[متوسط المنحة]:[الإضافي]]))/30*data.E[[#This Row],[أيام جزاء]] -> 0 | BQ86: =IF(data.E[[#This Row],[أيام الغياب]]=1,data.E[[#This Row],[الحافز]]*20%,IF(data.E[[#This Row],[أيام الغياب]]=2,data.E[[#This Row],[الحافز]]*30%,IF(data.E[[#This Row],[أيام الغياب]]>2,data.E[[#This Row],[الحافز]]*100%,0))) -> 0 | BR86: =IF(data.E[[#This Row],[عدد أيام الأجازات]]<=4,data.E[[#This Row],[الحافز]]*0,IF(data.E[[#This Row],[عدد أيام الأجازات]]=5,data.E[[#This Row],[الحافز]]*20%,IF(data.E[[#This Row],[عدد أيام الأجازات]]=6,data.E[[#This Row],[الحافز]]*40%,IF(data.E[[#This Row],[عدد أيام الأجازات]]=7,data.E[[#This Row],[الحافز]]*50%,IF(data.E[[#This Row],[عدد أيام الأجازات]]>7,data.E[[#This Row],[الحافز]]*100%,0))))) -> 0 | BS86: 0 | BT86: 0 | BU86: 0 | BW86: 3 | BX86: 0 | BZ86: 0 | CD86: 0 | CE86: 0 | CG86: 0 | CJ86: 3.21 | CK86: 5 | CR86: 0 | CS86: 281.79 | CT86: 0 | CU86: =ROUND(IF($H86=data.E[[#Headers],[إيقاف]],$BG86-SUM(data.E[[#This Row],[تامينات 2026]:[تنفيذ أحكام]],data.E[[#This Row],[الشهداء]:[خصم 5% تأمين من العمولة]],0),0),2) -> 0 | CV86: =ROUND(IF($H86=data.E[[#Headers],[مرضي]],$BG86-SUM(data.E[[#This Row],[تامينات 2026]:[تنفيذ أحكام]],data.E[[#This Row],[الشهداء]:[خصم 5% تأمين من العمولة]],0),0),2) -> 0 | CW86: =ROUND(IF($H86=data.E[[#Headers],[أجازة]],$BG86-SUM(data.E[[#This Row],[تامينات 2026]:[تنفيذ أحكام]],data.E[[#This Row],[الشهداء]:[خصم 5% تأمين من العمولة]],0),0),2) -> 0 | CX86: =ROUND(IF($H86=data.E[[#Headers],[إعارة]],$BG86-SUM(data.E[[#This Row],[تامينات 2026]:[تنفيذ أحكام]],data.E[[#This Row],[الشهداء]:[خصم 5% تأمين من العمولة]],0),0),2) -> 0 | CY86: =ROUND(IF($H86=data.E[[#Headers],[إنهاء]],$BG86-SUM(data.E[[#This Row],[تامينات 2026]:[تنفيذ أحكام]],data.E[[#This Row],[الشهداء]:[خصم 5% تأمين من العمولة]],0),0),2) -> 0 | CZ86: =ROUND(IF($H86=data.E[[#Headers],[معاش]],$BG86-SUM(data.E[[#This Row],[تامينات 2026]:[تنفيذ أحكام]],data.E[[#This Row],[الشهداء]:[خصم 5% تأمين من العمولة]],0),0),2) -> 0 | DA86: =ROUND(SUM(data.E[[#This Row],[تامينات 2026]:[تنفيذ أحكام]],data.E[[#This Row],[الشهداء]:[معاش]]),2) -> 956.02 | DB86: 6043.98
A87: =IF(data.E[[#This Row],[الموظف المختص]]=print.e!$E$2,COUNTIF('data.e'!$G$4:G87,G87),"") -> 80 | B87: 101087 | C87: 13084 | D87: بنك مصر 1 | E87: فتحي محمد خليل الصيفى | G87: منال | H87: دوام كامل | I87: ادارى | J87: الاولى | N87: الادارة العامة | O87: المنطقه المركزية | P87: 26601291401611 | Q87: 10108713084فتحي محمد خليل الصيفىمنالالاولى | S87: 1998.774 | T87: 2198.6514 | U87: 0 | V87: 2968.18 | W87: 329.8 | X87: 0 | Y87: 0 | Z87: 0 | AB87: 0 | AC87: 300 | AE87: 0 | AG87: 0 | AH87: 0 | AI87: =SUM(AA87:AH87)-data.E[[#This Row],[بدل تمثيل]] -> 300 | AJ87: 69.40577 | AK87: 77.64323 | AL87: 93.21627 | AM87: 0 | AN87: 190 | AO87: 27.86661 | AP87: 71.2549 | AQ87: 91.49129 | AR87: 130.5276 | AS87: 139.6645 | AT87: 149.441 | AU87: 0 | AV87: 99.9387 | AW87: 600 | AX87: 10 | AY87: 1750.45 | AZ87: 10 | BA87: =ROUND((data.E[[#This Row],[أساسي 7/2025]]*2)/12,2) -> 366.44 | BE87: 7923.52 | BF87: 0 | BG87: =IF(data.E[[#This Row],[حالة العمل]]="إيقاف",data.E[[#This Row],[أساسي 7/2025]],ROUND(SUM(data.E[[#This Row],[بدل تمثيل]],BB87:BF87),2)) -> 7923.52 | BL87: =ROUND(data.E[[#This Row],[تامينات 2026]]/11%,2) -> 7480.27 | BM87: 822.83 | BO87: =(data.E[[#This Row],[إجمالي المستحق]]-SUM(data.E[[#This Row],[الحافز]],data.E[[#This Row],[متوسط المنحة]:[الإضافي]]))/30*data.E[[#This Row],[أيام الغياب]] -> 0 | BP87: =(data.E[[#This Row],[إجمالي المستحق]]-SUM(data.E[[#This Row],[الحافز]],data.E[[#This Row],[متوسط المنحة]:[الإضافي]]))/30*data.E[[#This Row],[أيام جزاء]] -> 0 | BQ87: =IF(data.E[[#This Row],[أيام الغياب]]=1,data.E[[#This Row],[الحافز]]*20%,IF(data.E[[#This Row],[أيام الغياب]]=2,data.E[[#This Row],[الحافز]]*30%,IF(data.E[[#This Row],[أيام الغياب]]>2,data.E[[#This Row],[الحافز]]*100%,0))) -> 0 | BR87: =IF(data.E[[#This Row],[عدد أيام الأجازات]]<=4,data.E[[#This Row],[الحافز]]*0,IF(data.E[[#This Row],[عدد أيام الأجازات]]=5,data.E[[#This Row],[الحافز]]*20%,IF(data.E[[#This Row],[عدد أيام الأجازات]]=6,data.E[[#This Row],[الحافز]]*40%,IF(data.E[[#This Row],[عدد أيام الأجازات]]=7,data.E[[#This Row],[الحافز]]*50%,IF(data.E[[#This Row],[عدد أيام الأجازات]]>7,data.E[[#This Row],[الحافز]]*100%,0))))) -> 0 | BS87: 0 | BT87: 0 | BU87: 0 | BW87: 3 | BX87: 0 | BZ87: 0 | CD87: 0 | CE87: 0 | CG87: 0 | CJ87: 3.63 | CK87: 5 | CR87: 0 | CS87: 366.44 | CT87: 0 | CU87: =ROUND(IF($H87=data.E[[#Headers],[إيقاف]],$BG87-SUM(data.E[[#This Row],[تامينات 2026]:[تنفيذ أحكام]],data.E[[#This Row],[الشهداء]:[خصم 5% تأمين من العمولة]],0),0),2) -> 0 | CV87: =ROUND(IF($H87=data.E[[#Headers],[مرضي]],$BG87-SUM(data.E[[#This Row],[تامينات 2026]:[تنفيذ أحكام]],data.E[[#This Row],[الشهداء]:[خصم 5% تأمين من العمولة]],0),0),2) -> 0 | CW87: =ROUND(IF($H87=data.E[[#Headers],[أجازة]],$BG87-SUM(data.E[[#This Row],[تامينات 2026]:[تنفيذ أحكام]],data.E[[#This Row],[الشهداء]:[خصم 5% تأمين من العمولة]],0),0),2) -> 0 | CX87: =ROUND(IF($H87=data.E[[#Headers],[إعارة]],$BG87-SUM(data.E[[#This Row],[تامينات 2026]:[تنفيذ أحكام]],data.E[[#This Row],[الشهداء]:[خصم 5% تأمين من العمولة]],0),0),2) -> 0 | CY87: =ROUND(IF($H87=data.E[[#Headers],[إنهاء]],$BG87-SUM(data.E[[#This Row],[تامينات 2026]:[تنفيذ أحكام]],data.E[[#This Row],[الشهداء]:[خصم 5% تأمين من العمولة]],0),0),2) -> 0 | CZ87: =ROUND(IF($H87=data.E[[#Headers],[معاش]],$BG87-SUM(data.E[[#This Row],[تامينات 2026]:[تنفيذ أحكام]],data.E[[#This Row],[الشهداء]:[خصم 5% تأمين من العمولة]],0),0),2) -> 0 | DA87: =ROUND(SUM(data.E[[#This Row],[تامينات 2026]:[تنفيذ أحكام]],data.E[[#This Row],[الشهداء]:[معاش]]),2) -> 1200.9 | DB87: 6722.62
